Workbook

Sheet ACCUEILPRO
A1: Accueil
F7: =ACCUEIL!F7 -> 2022-10-23

Sheet ACCUEILPREM
A1: Accueil
F7: =ACCUEIL!F7 -> 2022-10-23

Sheet ACCUEILGP
A1: Accueil
F7: =ACCUEIL!F7 -> 2022-10-23

Sheet ACCUEIL
F7: 2022-10-23

Sheet Accueilagence
A1: Accueil
E7: =ACCUEIL!F7 -> 2022-10-23

Sheet Accueilsecteur
A1: Accueil
E7: =ACCUEIL!F7 -> 2022-10-23

Sheet AccueilDircom
A1: Accueil
E7: =ACCUEIL!F7 -> 2022-10-23

Sheet DC_FICHE
A1: Accueil
A2: BAROMETRE BDD
A4: UNITE: | B4: DIRECTION REGIONALE | E4: ETP perf : | F4: =VLOOKUP(A5,'RECAP DIRCOM'!$G$6:$I$12,3,FALSE) -> 219.31
A5: =VLOOKUP(B5,LISTES!$M$6:$N$12,2,FALSE) -> 262 | B5: BAS-RHIN
C6: Coefficient du critére | E6: Résultats | I6: Ecart au 1ier | M6: Evolution | O6: Rang
E7: du 1ier | G7: DIRECTION | I7: Du mois | K7: Au 31/12/2019
A9: RANG au CLASSEMENT GENERAL | K9: =VLOOKUP($A$5,#REF!,168,FALSE) ->  | M9: =+K9-O9 ->  | O9: =VLOOKUP($A$5,'RECAP DIRCOM'!$G$6:$CY$312,168,FALSE) -> 
A11: CRITERE CLIENTS | C11: 15% | O11: =VLOOKUP($A$5,'RECAP DIRCOM'!$G$6:$CY$312,23,FALSE) -> 49.75149332
B12: PNB Evolution nette Clients BP | C12: 4% | E12: ='RECAP DIRCOM'!#REF! ->  | G12: =VLOOKUP($A$5,'RECAP DIRCOM'!$G$6:$CY$312,6,FALSE) -> 0.8 | I12: =VLOOKUP($A$5,'RECAP DIRCOM'!$G$6:$CY$312,7,FALSE) -> 500% | K12: =VLOOKUP($A$5,#REF!,7,FALSE) ->  | M12: =+K12-I12 ->  | O12: =VLOOKUP($A$5,'RECAP DIRCOM'!$G$6:$CY$312,8,FALSE) -> 0.6171998828
B13: PNB Evolution nette Clients PREMIUM | C13: 5% | E13: ='RECAP DIRCOM'!#REF! ->  | G13: =VLOOKUP($A$5,'RECAP DIRCOM'!$G$6:$CY$312,10,FALSE) -> 4.0 | I13: =VLOOKUP($A$5,'RECAP DIRCOM'!$G$6:$CY$312,11,FALSE) -> 43% | K13: =VLOOKUP($A$5,#REF!,11,FALSE) ->  | M13: =+K13-I13 ->  | O13: =VLOOKUP($A$5,'RECAP DIRCOM'!$G$6:$CY$312,12,FALSE) -> 0.4310158997
B14: PNB Evolution nette Clients Jeunes Equipés | C14: 3% | E14: ='RECAP DIRCOM'!#REF! ->  | G14: =VLOOKUP($A$5,'RECAP DIRCOM'!$G$6:$CY$312,14,FALSE) -> 0.0 | I14: =VLOOKUP($A$5,'RECAP DIRCOM'!$G$6:$CY$312,15,FALSE) -> 0% | K14: =VLOOKUP($A$5,#REF!,15,FALSE) ->  | M14: =+K14-I14 ->  | O14: =VLOOKUP($A$5,'RECAP DIRCOM'!$G$6:$CY$312,16,FALSE) -> 0
B15: PNB Evolution nette Clients Pro Actifs Equipés | C15: 3% | E15: ='RECAP DIRCOM'!W4 -> 0.0 | G15: =VLOOKUP($A$5,'RECAP DIRCOM'!$G$6:$CY$312,18,FALSE) -> 3553.6 | I15: =VLOOKUP($A$5,'RECAP DIRCOM'!$G$6:$CY$312,19,FALSE) -> 1620% | K15: =VLOOKUP($A$5,#REF!,19,FALSE) ->  | M15: =+K15-I15 ->  | O15: =VLOOKUP($A$5,'RECAP DIRCOM'!$G$6:$CY$312,20,FALSE) -> 0.3364805136
A17: CRITERE BANCARISATION | C17: 15% | O17: =VLOOKUP($A$5,'RECAP DIRCOM'!$G$6:$CY$312,48,FALSE) -> 43529.62367
B18: PNB Ventes nettes forfaits | C18: 4% | E18: ='RECAP DIRCOM'!X4 -> 24.4 | G18: =VLOOKUP($A$5,'RECAP DIRCOM'!$G$6:$CY$312,31,FALSE) -> 0.0 | I18: =VLOOKUP($A$5,'RECAP DIRCOM'!$G$6:$CY$312,32,FALSE) -> 0% | K18: =VLOOKUP($A$5,#REF!,32,FALSE) ->  | M18: =+K18-I18 ->  | O18: =VLOOKUP($A$5,'RECAP DIRCOM'!$G$6:$CY$312,33,FALSE) -> 55638.66724
B19: PNB Ventes nettes IZICARTES Débit Différé | C19: 4% | E19: ='RECAP DIRCOM'!AB4 -> 62.4 | G19: =VLOOKUP($A$5,'RECAP DIRCOM'!$G$6:$CY$312,35,FALSE) -> 0.1 | I19: =VLOOKUP($A$5,'RECAP DIRCOM'!$G$6:$CY$312,36,FALSE) -> 400% | K19: =VLOOKUP($A$5,#REF!,36,FALSE) ->  | M19: =+K19-I19 ->  | O19: =VLOOKUP($A$5,'RECAP DIRCOM'!$G$6:$CY$312,37,FALSE) -> 10840
B20: PNB Ventes nettes cartes HDG Débit Différé | C20: 4% | E20: ='RECAP DIRCOM'!#REF! ->  | G20: =VLOOKUP($A$5,'RECAP DIRCOM'!$G$6:$CY$312,39,FALSE) -> 0.2 | I20: =VLOOKUP($A$5,'RECAP DIRCOM'!$G$6:$CY$312,40,FALSE) -> 300% | K20: =VLOOKUP($A$5,#REF!,40,FALSE) ->  | M20: =+K20-I20 ->  | O20: =VLOOKUP($A$5,'RECAP DIRCOM'!$G$6:$CY$312,41,FALSE) -> 0.135503959
B21: PNB Ventes nettes Forfaits Pro, Carte pro | C21: 3% | E21: ='RECAP DIRCOM'!#REF! ->  | G21: =VLOOKUP($A$5,'RECAP DIRCOM'!$G$6:$CY$312,43,FALSE) -> 4.0 | I21: =VLOOKUP($A$5,'RECAP DIRCOM'!$G$6:$CY$312,44,FALSE) -> 0% | K21: =VLOOKUP($A$5,#REF!,44,FALSE) ->  | M21: =+K21-I21 ->  | O21: =VLOOKUP($A$5,'RECAP DIRCOM'!$G$6:$CY$312,45,FALSE) -> 0
A23: CRITERE EPARGNE | C23: 10% | O23: =VLOOKUP($A$5,'RECAP DIRCOM'!$G$6:$CY$312,69,FALSE) -> 0.4408926661
B24: PNB Epargne Liquide | C24: 3% | E24: ='RECAP DIRCOM'!AM4 -> 271.3 | G24: =VLOOKUP($A$5,'RECAP DIRCOM'!$G$6:$CY$312,56,FALSE) -> 3766.0 | I24: =VLOOKUP($A$5,'RECAP DIRCOM'!$G$6:$CY$312,57,FALSE) -> 1717% | K24: =VLOOKUP($A$5,#REF!,57,FALSE) ->  | M24: =+K24-I24 ->  | O24: =VLOOKUP($A$5,'RECAP DIRCOM'!$G$6:$CY$312,58,FALSE) -> 0.4184772276
B25: PNB CA UC + arbitrage | C25: 4% | E25: ='RECAP DIRCOM'!AQ4 -> 65.2 | G25: =VLOOKUP($A$5,'RECAP DIRCOM'!$G$6:$CY$312,60,FALSE) -> 0.4 | I25: =VLOOKUP($A$5,'RECAP DIRCOM'!$G$6:$CY$312,61,FALSE) -> 37% | K25: =VLOOKUP($A$5,#REF!,61,FALSE) ->  | M25: =+K25-I25 ->  | O25: =VLOOKUP($A$5,'RECAP DIRCOM'!$G$6:$CY$312,62,FALSE) -> 6
B26: PNB Excédent assurance vie | C26: 3% | E26: ='RECAP DIRCOM'!#REF! ->  | G26: =VLOOKUP($A$5,'RECAP DIRCOM'!$G$6:$CY$312,64,FALSE) -> 0.0 | I26: =VLOOKUP($A$5,'RECAP DIRCOM'!$G$6:$CY$312,65,FALSE) -> 0% | K26: =VLOOKUP($A$5,#REF!,65,FALSE) ->  | M26: =+K26-I26 ->  | O26: =VLOOKUP($A$5,'RECAP DIRCOM'!$G$6:$CY$312,66,FALSE) -> 0
A28: CRITERE CREDITS | C28: 15% | O28: =VLOOKUP($A$5,'RECAP DIRCOM'!$G$6:$CY$312,102,FALSE) -> 
B29: PNB crédit conso | C29: 4% | E29: ='RECAP DIRCOM'!BB4 -> 410.5 | G29: =VLOOKUP($A$5,'RECAP DIRCOM'!$G$6:$CY$312,77,FALSE) -> 5.0 | I29: =VLOOKUP($A$5,'RECAP DIRCOM'!$G$6:$CY$312,78,FALSE) -> 0% | K29: =VLOOKUP($A$5,#REF!,78,FALSE) ->  | M29: =+K29-I29 ->  | O29: =VLOOKUP($A$5,'RECAP DIRCOM'!$G$6:$CY$312,79,FALSE) -> 0
B30: PNB ADE crédit conso | C30: 1% | E30: ='RECAP DIRCOM'!#REF! ->  | G30: =VLOOKUP($A$5,'RECAP DIRCOM'!$G$6:$CY$312,81,FALSE) -> 0.0 | I30: =VLOOKUP($A$5,'RECAP DIRCOM'!$G$6:$CY$312,82,FALSE) -> 0% | K30: =VLOOKUP($A$5,#REF!,82,FALSE) ->  | O30: =VLOOKUP($A$5,'RECAP DIRCOM'!$G$6:$CY$312,83,FALSE) -> 0
B31: PNB crédit immo | C31: 4% | E31: ='RECAP DIRCOM'!BF4 -> 50.3 | G31: =VLOOKUP($A$5,'RECAP DIRCOM'!$G$6:$CY$312,85,FALSE) -> 0.0 | I31: =VLOOKUP($A$5,'RECAP DIRCOM'!$G$6:$CY$312,86,FALSE) -> 0% | K31: =VLOOKUP($A$5,#REF!,86,FALSE) ->  | O31: =VLOOKUP($A$5,'RECAP DIRCOM'!$G$6:$CY$312,87,FALSE) -> 0
B32: PNB ADE crédit immo | C32: 2% | E32: ='RECAP DIRCOM'!#REF! ->  | G32: =VLOOKUP($A$5,'RECAP DIRCOM'!$G$6:$CY$312,89,FALSE) -> 0.0 | I32: =VLOOKUP($A$5,'RECAP DIRCOM'!$G$6:$CY$312,90,FALSE) -> 0% | K32: =VLOOKUP($A$5,#REF!,90,FALSE) ->  | O32: =VLOOKUP($A$5,'RECAP DIRCOM'!$G$6:$CY$312,91,FALSE) -> 0
B33: PNB SACCEF | C33: 2% | E33: ='RECAP DIRCOM'!#REF! ->  | G33: =VLOOKUP($A$5,'RECAP DIRCOM'!$G$6:$CY$312,93,FALSE) -> 0.0 | I33: =VLOOKUP($A$5,'RECAP DIRCOM'!$G$6:$CY$312,94,FALSE) -> 30% | K33: =VLOOKUP($A$5,#REF!,94,FALSE) ->  | O33: =VLOOKUP($A$5,'RECAP DIRCOM'!$G$6:$CY$312,95,FALSE) -> 0.2733426794
B34: PNB Crédit MLT + Crédit Bail | C34: 2% | E34: ='RECAP DIRCOM'!BJ4 -> 29.5 | G34: =VLOOKUP($A$5,'RECAP DIRCOM'!$G$6:$CY$312,97,FALSE) -> 0.0 | I34: =VLOOKUP($A$5,'RECAP DIRCOM'!$G$6:$CY$312,98,FALSE) ->  | K34: =VLOOKUP($A$5,#REF!,98,FALSE) ->  | O34: =VLOOKUP($A$5,'RECAP DIRCOM'!$G$6:$CY$312,99,FALSE) -> 
A36: CRITERE IARD PREVOYANCE | C36: 15% | O36: =VLOOKUP($A$5,'RECAP DIRCOM'!$G$6:$CY$312,119,FALSE) -> 
B37: PNB Ventes nettes IARD | C37: 9% | E37: ='RECAP DIRCOM'!BU4 -> 145.0 | G37: =VLOOKUP($A$5,'RECAP DIRCOM'!$G$6:$CY$312,110,FALSE) ->  | I37: =VLOOKUP($A$5,'RECAP DIRCOM'!$G$6:$CY$312,111,FALSE) ->  | K37: =VLOOKUP($A$5,#REF!,111,FALSE) ->  | M37: =+K37-I37 ->  | O37: =VLOOKUP($A$5,'RECAP DIRCOM'!$G$6:$CY$312,112,FALSE) -> 
B38: PNB Ventes nettes Prévoyance | C38: 6% | E38: ='RECAP DIRCOM'!BY4 -> 41.9 | G38: =VLOOKUP($A$5,'RECAP DIRCOM'!$G$6:$CY$312,114,FALSE) ->  | I38: =VLOOKUP($A$5,'RECAP DIRCOM'!$G$6:$CY$312,115,FALSE) ->  | K38: =VLOOKUP($A$5,#REF!,115,FALSE) ->  | M38: =+K38-I38 ->  | O38: =VLOOKUP($A$5,'RECAP DIRCOM'!$G$6:$CY$312,116,FALSE) -> 
A40: CRITERE ACCELERATEURS PNB | C40: 15% | O40: =VLOOKUP($A$5,'RECAP DIRCOM'!$G$6:$CY$312,144,FALSE) -> 
B41: PNB Ventes brutes SED Finalisées | C41: 6% | E41: ='RECAP DIRCOM'!#REF! ->  | G41: =VLOOKUP($A$5,'RECAP DIRCOM'!$G$6:$CY$312,127,FALSE) ->  | I41: =VLOOKUP($A$5,'RECAP DIRCOM'!$G$6:$CY$312,128,FALSE) ->  | K41: =VLOOKUP($A$5,#REF!,128,FALSE) ->  | M41: =+K41-I41 ->  | O41: =VLOOKUP($A$5,'RECAP DIRCOM'!$G$6:$CY$312,129,FALSE) -> 
B42: PNB clients équipés E documents | C42: 3% | E42: ='RECAP DIRCOM'!#REF! ->  | G42: =VLOOKUP($A$5,'RECAP DIRCOM'!$G$6:$CY$312,131,FALSE) ->  | I42: =VLOOKUP($A$5,'RECAP DIRCOM'!$G$6:$CY$312,132,FALSE) ->  | K42: =VLOOKUP($A$5,#REF!,132,FALSE) ->  | M42: =+K42-I42 ->  | O42: =VLOOKUP($A$5,'RECAP DIRCOM'!$G$6:$CY$312,133,FALSE) -> 
B43: Economie opt'in | C43: 3% | E43: ='RECAP DIRCOM'!#REF! ->  | G43: =VLOOKUP($A$5,'RECAP DIRCOM'!$G$6:$CY$312,135,FALSE) ->  | I43: =VLOOKUP($A$5,'RECAP DIRCOM'!$G$6:$CY$312,136,FALSE) ->  | K43: =VLOOKUP($A$5,#REF!,136,FALSE) ->  | M43: =+K43-I43 ->  | O43: =VLOOKUP($A$5,'RECAP DIRCOM'!$G$6:$CY$312,137,FALSE) -> 
B44: Remises commerciales | C44: 3% | E44: ='RECAP DIRCOM'!#REF! ->  | G44: =VLOOKUP($A$5,'RECAP DIRCOM'!$G$6:$CY$312,139,FALSE) ->  | I44: =VLOOKUP($A$5,'RECAP DIRCOM'!$G$6:$CY$312,140,FALSE) ->  | K44: =VLOOKUP($A$5,#REF!,140,FALSE) ->  | M44: =+K44-I44 ->  | O44: =VLOOKUP($A$5,'RECAP DIRCOM'!$G$6:$CY$312,141,FALSE) -> 
A46: CRITERE Qualité-Satisfaction Clients | C46: 15% | O46: =VLOOKUP($A$5,'RECAP DIRCOM'!$G$6:$CY$312,159,FALSE) -> 
B47: Objectifs NPS* | C47: 8% | E47: ='RECAP DIRCOM'!K4 -> 23 | G47: =VLOOKUP($A$5,'RECAP DIRCOM'!$G$6:$CY$312,151,FALSE) ->  | I47: =VLOOKUP($A$5,'RECAP DIRCOM'!$G$6:$CY$312,152,FALSE) ->  | K47: =VLOOKUP($A$5,#REF!,152,FALSE) ->  | M47: =+K47-I47 ->  | O47: =VLOOKUP($A$5,'RECAP DIRCOM'!$G$6:$CY$312,153,FALSE) -> 
B48: Enquête Qualité Haute Définition | C48: 7% | E48: ='RECAP DIRCOM'!N4 -> 69% | G48: =VLOOKUP($A$5,'RECAP DIRCOM'!$G$6:$CY$312,154,FALSE) ->  | I48: =VLOOKUP($A$5,'RECAP DIRCOM'!$G$6:$CY$312,155,FALSE) ->  | K48: =VLOOKUP($A$5,#REF!,155,FALSE) ->  | M48: =+K48-I48 ->  | O48: =VLOOKUP($A$5,'RECAP DIRCOM'!$G$6:$CY$312,156,FALSE) -> 

Sheet DC_TOTAL
B1: Accueil | D1: BAROMETRE BDD - DIRECTIONS REGIONALES
D2: TOTAL GENERAL
D3: =ACCUEIL!F7 -> 2022-10-23
D7: TOTAL GENERAL | G7: Total Satisfaction Clients | J7: Total Bancarisation | M7: Total Epargne | P7: Total IARD Prévoyance | S7: Total Crédits
E8: coef | F8: =+I8+L8+O8+R8+U8 -> 100% | H8: coef | I8: =DC_SATISFACTION!L8 -> 20% | K8: coef | L8: =DC_BANCA!N8 -> 20% | N8: coef | O8: =DC_EPARGNE!N8 -> 20% | Q8: coef | R8: =DC_IARD!N8 -> 20% | T8: coef | U8: =DC_CREDIT!R8 -> 20%
A9: eds | B9: Direction | C9: ="ETP perf "&DATEMAJ!$C$28 -> ETP perf 23-oct | D9: Moyenne ecart au 1er | E9: % Ecart au 1er | F9: Rang CEGEE | G9: Moyenne ecart au 1er | H9: % Ecart au 1er | I9: Rang CEGEE | J9: Moyenne ecart au 1er | K9: % Ecart au 1er | L9: Rang CEGEE | M9: Moyenne ecart au 1er | N9: % Ecart au 1er | O9: Rang CEGEE | P9: Moyenne ecart au 1er | Q9: % Ecart au 1er | R9: Rang CEGEE | S9: Moyenne ecart au 1er | T9: % Ecart au 1er | U9: Rang CEGEE
A10: 50 | B10: Marne-Ardennes | C10: 193 | D10: 3% | E10: 0% | F10: 1 | G10: 15% | H10: 15% | I10: 2 | J10: 0% | K10: 0% | L10: 1 | M10: 4% | N10: 0% | O10: 1 | P10: 0% | Q10: 0% | R10: 1 | S10: 4% | T10: 0% | U10: 1
A11: 262 | B11: Moselle | C11: 221 | D11: 10% | E11: 7% | F11: 2 | G11: 22% | H11: 22% | I11: 3 | J11: 9% | K11: 9% | L11: 2 | M11: 9% | N11: 5% | O11: 2 | P11: 6% | Q11: 6% | R11: 2 | S11: 10% | T11: 7% | U11: 2
A12: 264 | B12: Meurthe et Moselle Meuse | C12: 204 | D12: 22% | E12: 19% | F12: 3 | G12: 30% | H12: 30% | I12: 4 | J12: 31% | K12: 31% | L12: 4 | M12: 10% | N12: 6% | O12: 3 | P12: 27% | Q12: 27% | R12: 3 | S12: 21% | T12: 17% | U12: 3
A13: 30 | B13: Vosges | C13: 117 | D13: 24% | E13: 20% | F13: 4 | G13: 0% | H13: 0% | I13: 1 | J13: 35% | K13: 35% | L13: 5 | M13: 15% | N13: 11% | O13: 5 | P13: 40% | Q13: 40% | R13: 6 | S13: 36% | T13: 32% | U13: 4
A14: 110 | B14: Bas-Rhin | C14: 219 | D14: 30% | E14: 27% | F14: 5 | G14: 43% | H14: 43% | I14: 5 | J14: 28% | K14: 28% | L14: 3 | M14: 14% | N14: 9% | O14: 4 | P14: 34% | Q14: 34% | R14: 5 | S14: 41% | T14: 37% | U14: 6
A15: 160 | B15: Aube Haute Marne | C15: 112 | D15: 40% | E15: 37% | F15: 6 | G15: 52% | H15: 52% | I15: 6 | J15: 48% | K15: 48% | L15: 6 | M15: 43% | N15: 39% | O15: 6 | P15: 27% | Q15: 27% | R15: 4 | S15: 37% | T15: 33% | U15: 5
A16: 80 | B16: Haut-Rhin | C16: 123 | D16: 63% | E16: 60% | F16: 7 | G16: 59% | H16: 59% | I16: 7 | J16: 67% | K16: 67% | L16: 7 | M16: 83% | N16: 79% | O16: 7 | P16: 66% | Q16: 66% | R16: 7 | S16: 49% | T16: 45% | U16: 7
B17: Total CEGEE Directions Régionales | C17: =SUM(C10:C16) -> 1189

Sheet DC_BANCA
B1: Accueil | D1: BAROMETRE BDD - DIRECTIONS REGIONALES
D2: BANCARISATION
D3: =ACCUEIL!F7 -> 2022-10-23
D7: Ventes Nettes produits pondérés | H7: Ventes sur client non détenteur de l’univers | L7: Total Bancarisation
D8: =DATEMAJ!C8 -> au 23/10 | F8: coef | G8: ='RECAP DIRCOM'!AA4 -> 12% | H8: =DATEMAJ!C9 -> au 23/10 | J8: coef | K8: ='RECAP DIRCOM'!AE4 -> 8% | M8: coef | N8: ='RECAP DIRCOM'!AH4 -> 20%
B9: Direction | C9: ="ETP perf "&DATEMAJ!$C$28 -> ETP perf 23-oct | D9: VN | E9: VN / ETP | F9: % Ecart au 1er | G9: Rang | H9: VB | I9: VB / ETP | J9: % Ecart au 1er | K9: Rang | L9: Moyenne ecart au 1er | M9: % Ecart au 1er | N9: Rang CEGEE
A10: 50 | B10: Aube Haute Marne | C10: =VLOOKUP($A10,'RECAP DIRCOM'!$G$6:$CU$12,3,FALSE) -> 112 | D10: =VLOOKUP($A10,'RECAP DIRCOM'!$G$6:$CU$12,18,FALSE) -> 996 | E10: =VLOOKUP($A10,'RECAP DIRCOM'!$G$6:$CU$12,19,FALSE) -> 8.87 | F10: =VLOOKUP($A10,'RECAP DIRCOM'!$G$6:$CU$12,20,FALSE) -> 64% | G10: =VLOOKUP($A10,'RECAP DIRCOM'!$G$6:$CU$12,21,FALSE) -> 6 | H10: =VLOOKUP($A10,'RECAP DIRCOM'!$G$6:$CU$12,22,FALSE) -> 5,368 | I10: =VLOOKUP($A10,'RECAP DIRCOM'!$G$6:$CU$12,23,FALSE) -> 47.81 | J10: =VLOOKUP($A10,'RECAP DIRCOM'!$G$6:$CU$12,24,FALSE) -> 23% | K10: =VLOOKUP($A10,'RECAP DIRCOM'!$G$6:$CU$12,25,FALSE) -> 5 | L10: =VLOOKUP($A10,'RECAP DIRCOM'!$G$6:$CU$12,26,FALSE) -> 48% | M10: =VLOOKUP($A10,'RECAP DIRCOM'!$G$6:$CU$12,27,FALSE) -> 48% | N10: =VLOOKUP($A10,'RECAP DIRCOM'!$G$6:$CU$12,28,FALSE) -> 6
A11: 262 | B11: Bas-Rhin | C11: =VLOOKUP($A11,'RECAP DIRCOM'!$G$6:$CU$12,3,FALSE) -> 219 | D11: =VLOOKUP($A11,'RECAP DIRCOM'!$G$6:$CU$12,18,FALSE) -> 3,554 | E11: =VLOOKUP($A11,'RECAP DIRCOM'!$G$6:$CU$12,19,FALSE) -> 16.20 | F11: =VLOOKUP($A11,'RECAP DIRCOM'!$G$6:$CU$12,20,FALSE) -> 34% | G11: =VLOOKUP($A11,'RECAP DIRCOM'!$G$6:$CU$12,21,FALSE) -> 3 | H11: =VLOOKUP($A11,'RECAP DIRCOM'!$G$6:$CU$12,22,FALSE) -> 10,911 | I11: =VLOOKUP($A11,'RECAP DIRCOM'!$G$6:$CU$12,23,FALSE) -> 49.75 | J11: =VLOOKUP($A11,'RECAP DIRCOM'!$G$6:$CU$12,24,FALSE) -> 20% | K11: =VLOOKUP($A11,'RECAP DIRCOM'!$G$6:$CU$12,25,FALSE) -> 4 | L11: =VLOOKUP($A11,'RECAP DIRCOM'!$G$6:$CU$12,26,FALSE) -> 28% | M11: =VLOOKUP($A11,'RECAP DIRCOM'!$G$6:$CU$12,27,FALSE) -> 28% | N11: =VLOOKUP($A11,'RECAP DIRCOM'!$G$6:$CU$12,28,FALSE) -> 3
A12: 264 | B12: Haut-Rhin | C12: =VLOOKUP($A12,'RECAP DIRCOM'!$G$6:$CU$12,3,FALSE) -> 123 | D12: =VLOOKUP($A12,'RECAP DIRCOM'!$G$6:$CU$12,18,FALSE) -> 389 | E12: =VLOOKUP($A12,'RECAP DIRCOM'!$G$6:$CU$12,19,FALSE) -> 3.17 | F12: =VLOOKUP($A12,'RECAP DIRCOM'!$G$6:$CU$12,20,FALSE) -> 87% | G12: =VLOOKUP($A12,'RECAP DIRCOM'!$G$6:$CU$12,21,FALSE) -> 7 | H12: =VLOOKUP($A12,'RECAP DIRCOM'!$G$6:$CU$12,22,FALSE) -> 4,913 | I12: =VLOOKUP($A12,'RECAP DIRCOM'!$G$6:$CU$12,23,FALSE) -> 40.06 | J12: =VLOOKUP($A12,'RECAP DIRCOM'!$G$6:$CU$12,24,FALSE) -> 36% | K12: =VLOOKUP($A12,'RECAP DIRCOM'!$G$6:$CU$12,25,FALSE) -> 7 | L12: =VLOOKUP($A12,'RECAP DIRCOM'!$G$6:$CU$12,26,FALSE) -> 67% | M12: =VLOOKUP($A12,'RECAP DIRCOM'!$G$6:$CU$12,27,FALSE) -> 67% | N12: =VLOOKUP($A12,'RECAP DIRCOM'!$G$6:$CU$12,28,FALSE) -> 7
A13: 30 | B13: Marne-Ardennes | C13: =VLOOKUP($A13,'RECAP DIRCOM'!$G$6:$CU$12,3,FALSE) -> 193 | D13: =VLOOKUP($A13,'RECAP DIRCOM'!$G$6:$CU$12,18,FALSE) -> 4,712 | E13: =VLOOKUP($A13,'RECAP DIRCOM'!$G$6:$CU$12,19,FALSE) -> 24.42 | F13: =VLOOKUP($A13,'RECAP DIRCOM'!$G$6:$CU$12,20,FALSE) -> 0% | G13: =VLOOKUP($A13,'RECAP DIRCOM'!$G$6:$CU$12,21,FALSE) -> 1 | H13: =VLOOKUP($A13,'RECAP DIRCOM'!$G$6:$CU$12,22,FALSE) -> 12,033 | I13: =VLOOKUP($A13,'RECAP DIRCOM'!$G$6:$CU$12,23,FALSE) -> 62.36 | J13: =VLOOKUP($A13,'RECAP DIRCOM'!$G$6:$CU$12,24,FALSE) -> 0% | K13: =VLOOKUP($A13,'RECAP DIRCOM'!$G$6:$CU$12,25,FALSE) -> 1 | L13: =VLOOKUP($A13,'RECAP DIRCOM'!$G$6:$CU$12,26,FALSE) -> 0% | M13: =VLOOKUP($A13,'RECAP DIRCOM'!$G$6:$CU$12,27,FALSE) -> 0% | N13: =VLOOKUP($A13,'RECAP DIRCOM'!$G$6:$CU$12,28,FALSE) -> 1
A14: 110 | B14: Meurthe et Moselle Meuse | C14: =VLOOKUP($A14,'RECAP DIRCOM'!$G$6:$CU$12,3,FALSE) -> 204 | D14: =VLOOKUP($A14,'RECAP DIRCOM'!$G$6:$CU$12,18,FALSE) -> 2,858 | E14: =VLOOKUP($A14,'RECAP DIRCOM'!$G$6:$CU$12,19,FALSE) -> 14.04 | F14: =VLOOKUP($A14,'RECAP DIRCOM'!$G$6:$CU$12,20,FALSE) -> 43% | G14: =VLOOKUP($A14,'RECAP DIRCOM'!$G$6:$CU$12,21,FALSE) -> 5 | H14: =VLOOKUP($A14,'RECAP DIRCOM'!$G$6:$CU$12,22,FALSE) -> 11,081 | I14: =VLOOKUP($A14,'RECAP DIRCOM'!$G$6:$CU$12,23,FALSE) -> 54.43 | J14: =VLOOKUP($A14,'RECAP DIRCOM'!$G$6:$CU$12,24,FALSE) -> 13% | K14: =VLOOKUP($A14,'RECAP DIRCOM'!$G$6:$CU$12,25,FALSE) -> 3 | L14: =VLOOKUP($A14,'RECAP DIRCOM'!$G$6:$CU$12,26,FALSE) -> 31% | M14: =VLOOKUP($A14,'RECAP DIRCOM'!$G$6:$CU$12,27,FALSE) -> 31% | N14: =VLOOKUP($A14,'RECAP DIRCOM'!$G$6:$CU$12,28,FALSE) -> 4
A15: 160 | B15: Moselle | C15: =VLOOKUP($A15,'RECAP DIRCOM'!$G$6:$CU$12,3,FALSE) -> 221 | D15: =VLOOKUP($A15,'RECAP DIRCOM'!$G$6:$CU$12,18,FALSE) -> 4,689 | E15: =VLOOKUP($A15,'RECAP DIRCOM'!$G$6:$CU$12,19,FALSE) -> 21.19 | F15: =VLOOKUP($A15,'RECAP DIRCOM'!$G$6:$CU$12,20,FALSE) -> 13% | G15: =VLOOKUP($A15,'RECAP DIRCOM'!$G$6:$CU$12,21,FALSE) -> 2 | H15: =VLOOKUP($A15,'RECAP DIRCOM'!$G$6:$CU$12,22,FALSE) -> 13,542 | I15: =VLOOKUP($A15,'RECAP DIRCOM'!$G$6:$CU$12,23,FALSE) -> 61.19 | J15: =VLOOKUP($A15,'RECAP DIRCOM'!$G$6:$CU$12,24,FALSE) -> 2% | K15: =VLOOKUP($A15,'RECAP DIRCOM'!$G$6:$CU$12,25,FALSE) -> 2 | L15: =VLOOKUP($A15,'RECAP DIRCOM'!$G$6:$CU$12,26,FALSE) -> 9% | M15: =VLOOKUP($A15,'RECAP DIRCOM'!$G$6:$CU$12,27,FALSE) -> 9% | N15: =VLOOKUP($A15,'RECAP DIRCOM'!$G$6:$CU$12,28,FALSE) -> 2
A16: 80 | B16: Vosges | C16: =VLOOKUP($A16,'RECAP DIRCOM'!$G$6:$CU$12,3,FALSE) -> 117 | D16: =VLOOKUP($A16,'RECAP DIRCOM'!$G$6:$CU$12,18,FALSE) -> 1,704 | E16: =VLOOKUP($A16,'RECAP DIRCOM'!$G$6:$CU$12,19,FALSE) -> 14.60 | F16: =VLOOKUP($A16,'RECAP DIRCOM'!$G$6:$CU$12,20,FALSE) -> 40% | G16: =VLOOKUP($A16,'RECAP DIRCOM'!$G$6:$CU$12,21,FALSE) -> 4 | H16: =VLOOKUP($A16,'RECAP DIRCOM'!$G$6:$CU$12,22,FALSE) -> 5,266 | I16: =VLOOKUP($A16,'RECAP DIRCOM'!$G$6:$CU$12,23,FALSE) -> 45.10 | J16: =VLOOKUP($A16,'RECAP DIRCOM'!$G$6:$CU$12,24,FALSE) -> 28% | K16: =VLOOKUP($A16,'RECAP DIRCOM'!$G$6:$CU$12,25,FALSE) -> 6 | L16: =VLOOKUP($A16,'RECAP DIRCOM'!$G$6:$CU$12,26,FALSE) -> 35% | M16: =VLOOKUP($A16,'RECAP DIRCOM'!$G$6:$CU$12,27,FALSE) -> 35% | N16: =VLOOKUP($A16,'RECAP DIRCOM'!$G$6:$CU$12,28,FALSE) -> 5
B17: Total CEGEE Directions Régionales | C17: =SUM(C10:C16) -> 1189

Sheet DC_EPARGNE
B1: Accueil | D1: BAROMETRE BDD - DIRECTIONS REGIONALES
D2: EPARGNE
D3: =ACCUEIL!F7 -> 2022-10-23
D7: Excédent Epargne hors DAV pondéré | H7: Ventes sur client non détenteur de l’univers | L7: Total Epargne
D8: =DATEMAJ!C14 -> au 23/10 | F8: coef | G8: ='RECAP DIRCOM'!AP4 -> 12% | H8: =DATEMAJ!C15 -> au 23/10 | J8: coef | K8: ='RECAP DIRCOM'!AT4 -> 8% | M8: coef | N8: ='RECAP DIRCOM'!AW4 -> 20%
B9: Direction | C9: ="ETP perf "&DATEMAJ!$C$28 -> ETP perf 23-oct | D9: Excédent | E9: Excédent / ETP | F9: % Ecart au 1er | G9: Rang | H9: VB | I9: VB / ETP | J9: % Ecart au 1er | K9: Rang | L9: Moyenne ecart au 1er | M9: % Ecart au 1er | N9: Rang CEGEE
A10: 50 | B10: Aube Haute Marne | C10: =VLOOKUP($A10,'RECAP DIRCOM'!$G$6:$CU$12,3,FALSE) -> 112 | D10: =VLOOKUP($A10,'RECAP DIRCOM'!$G$6:$CU$12,33,FALSE) -> 14,493 | E10: =VLOOKUP($A10,'RECAP DIRCOM'!$G$6:$CU$12,34,FALSE) -> 129.09 | F10: =VLOOKUP($A10,'RECAP DIRCOM'!$G$6:$CU$12,35,FALSE) -> 52% | G10: =VLOOKUP($A10,'RECAP DIRCOM'!$G$6:$CU$12,36,FALSE) -> 6 | H10: =VLOOKUP($A10,'RECAP DIRCOM'!$G$6:$CU$12,37,FALSE) -> 5,117 | I10: =VLOOKUP($A10,'RECAP DIRCOM'!$G$6:$CU$12,38,FALSE) -> 45.58 | J10: =VLOOKUP($A10,'RECAP DIRCOM'!$G$6:$CU$12,39,FALSE) -> 30% | K10: =VLOOKUP($A10,'RECAP DIRCOM'!$G$6:$CU$12,40,FALSE) -> 5 | L10: =VLOOKUP($A10,'RECAP DIRCOM'!$G$6:$CU$12,41,FALSE) -> 43% | M10: =VLOOKUP($A10,'RECAP DIRCOM'!$G$6:$CU$12,42,FALSE) -> 39% | N10: =VLOOKUP($A10,'RECAP DIRCOM'!$G$6:$CU$12,43,FALSE) -> 6
A11: 262 | B11: Bas-Rhin | C11: =VLOOKUP($A11,'RECAP DIRCOM'!$G$6:$CU$12,3,FALSE) -> 219 | D11: =VLOOKUP($A11,'RECAP DIRCOM'!$G$6:$CU$12,33,FALSE) -> 55,639 | E11: =VLOOKUP($A11,'RECAP DIRCOM'!$G$6:$CU$12,34,FALSE) -> 253.70 | F11: =VLOOKUP($A11,'RECAP DIRCOM'!$G$6:$CU$12,35,FALSE) -> 6% | G11: =VLOOKUP($A11,'RECAP DIRCOM'!$G$6:$CU$12,36,FALSE) -> 4 | H11: =VLOOKUP($A11,'RECAP DIRCOM'!$G$6:$CU$12,37,FALSE) -> 10,840 | I11: =VLOOKUP($A11,'RECAP DIRCOM'!$G$6:$CU$12,38,FALSE) -> 49.43 | J11: =VLOOKUP($A11,'RECAP DIRCOM'!$G$6:$CU$12,39,FALSE) -> 24% | K11: =VLOOKUP($A11,'RECAP DIRCOM'!$G$6:$CU$12,40,FALSE) -> 3 | L11: =VLOOKUP($A11,'RECAP DIRCOM'!$G$6:$CU$12,41,FALSE) -> 14% | M11: =VLOOKUP($A11,'RECAP DIRCOM'!$G$6:$CU$12,42,FALSE) -> 9% | N11: =VLOOKUP($A11,'RECAP DIRCOM'!$G$6:$CU$12,43,FALSE) -> 4
A12: 264 | B12: Haut-Rhin | C12: =VLOOKUP($A12,'RECAP DIRCOM'!$G$6:$CU$12,3,FALSE) -> 123 | D12: =VLOOKUP($A12,'RECAP DIRCOM'!$G$6:$CU$12,33,FALSE) -> -3,330 | E12: =VLOOKUP($A12,'RECAP DIRCOM'!$G$6:$CU$12,34,FALSE) -> -27.15 | F12: =VLOOKUP($A12,'RECAP DIRCOM'!$G$6:$CU$12,35,FALSE) -> 110% | G12: =VLOOKUP($A12,'RECAP DIRCOM'!$G$6:$CU$12,36,FALSE) -> 7 | H12: =VLOOKUP($A12,'RECAP DIRCOM'!$G$6:$CU$12,37,FALSE) -> 4,541 | I12: =VLOOKUP($A12,'RECAP DIRCOM'!$G$6:$CU$12,38,FALSE) -> 37.02 | J12: =VLOOKUP($A12,'RECAP DIRCOM'!$G$6:$CU$12,39,FALSE) -> 43% | K12: =VLOOKUP($A12,'RECAP DIRCOM'!$G$6:$CU$12,40,FALSE) -> 7 | L12: =VLOOKUP($A12,'RECAP DIRCOM'!$G$6:$CU$12,41,FALSE) -> 83% | M12: =VLOOKUP($A12,'RECAP DIRCOM'!$G$6:$CU$12,42,FALSE) -> 79% | N12: =VLOOKUP($A12,'RECAP DIRCOM'!$G$6:$CU$12,43,FALSE) -> 7
A13: 30 | B13: Marne-Ardennes | C13: =VLOOKUP($A13,'RECAP DIRCOM'!$G$6:$CU$12,3,FALSE) -> 193 | D13: =VLOOKUP($A13,'RECAP DIRCOM'!$G$6:$CU$12,33,FALSE) -> 49,827 | E13: =VLOOKUP($A13,'RECAP DIRCOM'!$G$6:$CU$12,34,FALSE) -> 258.22 | F13: =VLOOKUP($A13,'RECAP DIRCOM'!$G$6:$CU$12,35,FALSE) -> 5% | G13: =VLOOKUP($A13,'RECAP DIRCOM'!$G$6:$CU$12,36,FALSE) -> 3 | H13: =VLOOKUP($A13,'RECAP DIRCOM'!$G$6:$CU$12,37,FALSE) -> 12,140 | I13: =VLOOKUP($A13,'RECAP DIRCOM'!$G$6:$CU$12,38,FALSE) -> 62.91 | J13: =VLOOKUP($A13,'RECAP DIRCOM'!$G$6:$CU$12,39,FALSE) -> 3% | K13: =VLOOKUP($A13,'RECAP DIRCOM'!$G$6:$CU$12,40,FALSE) -> 2 | L13: =VLOOKUP($A13,'RECAP DIRCOM'!$G$6:$CU$12,41,FALSE) -> 4% | M13: =VLOOKUP($A13,'RECAP DIRCOM'!$G$6:$CU$12,42,FALSE) -> 0% | N13: =VLOOKUP($A13,'RECAP DIRCOM'!$G$6:$CU$12,43,FALSE) -> 1
A14: 110 | B14: Meurthe et Moselle Meuse | C14: =VLOOKUP($A14,'RECAP DIRCOM'!$G$6:$CU$12,3,FALSE) -> 204 | D14: =VLOOKUP($A14,'RECAP DIRCOM'!$G$6:$CU$12,33,FALSE) -> 55,238 | E14: =VLOOKUP($A14,'RECAP DIRCOM'!$G$6:$CU$12,34,FALSE) -> 271.32 | F14: =VLOOKUP($A14,'RECAP DIRCOM'!$G$6:$CU$12,35,FALSE) -> 0% | G14: =VLOOKUP($A14,'RECAP DIRCOM'!$G$6:$CU$12,36,FALSE) -> 1 | H14: =VLOOKUP($A14,'RECAP DIRCOM'!$G$6:$CU$12,37,FALSE) -> 9,958 | I14: =VLOOKUP($A14,'RECAP DIRCOM'!$G$6:$CU$12,38,FALSE) -> 48.91 | J14: =VLOOKUP($A14,'RECAP DIRCOM'!$G$6:$CU$12,39,FALSE) -> 25% | K14: =VLOOKUP($A14,'RECAP DIRCOM'!$G$6:$CU$12,40,FALSE) -> 4 | L14: =VLOOKUP($A14,'RECAP DIRCOM'!$G$6:$CU$12,41,FALSE) -> 10% | M14: =VLOOKUP($A14,'RECAP DIRCOM'!$G$6:$CU$12,42,FALSE) -> 6% | N14: =VLOOKUP($A14,'RECAP DIRCOM'!$G$6:$CU$12,43,FALSE) -> 3
A15: 160 | B15: Moselle | C15: =VLOOKUP($A15,'RECAP DIRCOM'!$G$6:$CU$12,3,FALSE) -> 221 | D15: =VLOOKUP($A15,'RECAP DIRCOM'!$G$6:$CU$12,33,FALSE) -> 50,848 | E15: =VLOOKUP($A15,'RECAP DIRCOM'!$G$6:$CU$12,34,FALSE) -> 229.77 | F15: =VLOOKUP($A15,'RECAP DIRCOM'!$G$6:$CU$12,35,FALSE) -> 15% | G15: =VLOOKUP($A15,'RECAP DIRCOM'!$G$6:$CU$12,36,FALSE) -> 5 | H15: =VLOOKUP($A15,'RECAP DIRCOM'!$G$6:$CU$12,37,FALSE) -> 14,418 | I15: =VLOOKUP($A15,'RECAP DIRCOM'!$G$6:$CU$12,38,FALSE) -> 65.15 | J15: =VLOOKUP($A15,'RECAP DIRCOM'!$G$6:$CU$12,39,FALSE) -> 0% | K15: =VLOOKUP($A15,'RECAP DIRCOM'!$G$6:$CU$12,40,FALSE) -> 1 | L15: =VLOOKUP($A15,'RECAP DIRCOM'!$G$6:$CU$12,41,FALSE) -> 9% | M15: =VLOOKUP($A15,'RECAP DIRCOM'!$G$6:$CU$12,42,FALSE) -> 5% | N15: =VLOOKUP($A15,'RECAP DIRCOM'!$G$6:$CU$12,43,FALSE) -> 2
A16: 80 | B16: Vosges | C16: =VLOOKUP($A16,'RECAP DIRCOM'!$G$6:$CU$12,3,FALSE) -> 117 | D16: =VLOOKUP($A16,'RECAP DIRCOM'!$G$6:$CU$12,33,FALSE) -> 30,813 | E16: =VLOOKUP($A16,'RECAP DIRCOM'!$G$6:$CU$12,34,FALSE) -> 263.93 | F16: =VLOOKUP($A16,'RECAP DIRCOM'!$G$6:$CU$12,35,FALSE) -> 3% | G16: =VLOOKUP($A16,'RECAP DIRCOM'!$G$6:$CU$12,36,FALSE) -> 2 | H16: =VLOOKUP($A16,'RECAP DIRCOM'!$G$6:$CU$12,37,FALSE) -> 5,002 | I16: =VLOOKUP($A16,'RECAP DIRCOM'!$G$6:$CU$12,38,FALSE) -> 42.84 | J16: =VLOOKUP($A16,'RECAP DIRCOM'!$G$6:$CU$12,39,FALSE) -> 34% | K16: =VLOOKUP($A16,'RECAP DIRCOM'!$G$6:$CU$12,40,FALSE) -> 6 | L16: =VLOOKUP($A16,'RECAP DIRCOM'!$G$6:$CU$12,41,FALSE) -> 15% | M16: =VLOOKUP($A16,'RECAP DIRCOM'!$G$6:$CU$12,42,FALSE) -> 11% | N16: =VLOOKUP($A16,'RECAP DIRCOM'!$G$6:$CU$12,43,FALSE) -> 5
B17: Total CEGEE Directions Régionales | C17: =SUM(C10:C16) -> 1189

Sheet DC_CREDIT
B1: Accueil | D1: BAROMETRE BDD - DIRECTIONS REGIONALES
D2: CREDITS
D3: =ACCUEIL!F7 -> 2022-10-23
D7: Engagements et ventes accessoires pondérés Immo | H7: Engagements et ventes accessoires pondérés Conso | L7: Ventes sur client non détenteur de l’univers | P7: Total Crédits
D8: =DATEMAJ!C18 -> au 23/10 | F8: coef | G8: ='RECAP DIRCOM'!BE4 -> 6% | H8: =DATEMAJ!C19 -> au 23/10 | J8: coef | K8: ='RECAP DIRCOM'!BI4 -> 6% | L8: =DATEMAJ!C20 -> au 23/10 | N8: coef | O8: ='RECAP DIRCOM'!BM4 -> 8% | Q8: coef | R8: ='RECAP DIRCOM'!BP4 -> 20%
B9: Direction | C9: ="ETP perf "&DATEMAJ!$C$28 -> ETP perf 23-oct | D9: PNB | E9: PNB / ETP | F9: % Ecart au 1er | G9: Rang | H9: PNB | I9: PNB / ETP | J9: % Ecart au 1er | K9: Rang | L9: VB | M9: VB / ETP | N9: % Ecart au 1er | O9: Rang | P9: Moyenne ecart au 1er | Q9: % Ecart au 1er | R9: Rang CEGEE
A10: 50 | B10: Aube Haute Marne | C10: =VLOOKUP($A10,'RECAP DIRCOM'!$G$6:$CU$12,3,FALSE) -> 112 | D10: =VLOOKUP($A10,'RECAP DIRCOM'!$G$6:$CU$12,48,FALSE) -> 20,022 | E10: =VLOOKUP($A10,'RECAP DIRCOM'!$G$6:$CU$12,49,FALSE) -> 178.34 | F10: =VLOOKUP($A10,'RECAP DIRCOM'!$G$6:$CU$12,50,FALSE) -> 57% | G10: =VLOOKUP($A10,'RECAP DIRCOM'!$G$6:$CU$12,51,FALSE) -> 6 | H10: =VLOOKUP($A10,'RECAP DIRCOM'!$G$6:$CU$12,52,FALSE) -> 4,787 | I10: =VLOOKUP($A10,'RECAP DIRCOM'!$G$6:$CU$12,53,FALSE) -> 42.64 | J10: =VLOOKUP($A10,'RECAP DIRCOM'!$G$6:$CU$12,54,FALSE) -> 15% | K10: =VLOOKUP($A10,'RECAP DIRCOM'!$G$6:$CU$12,55,FALSE) -> 4 | L10: =VLOOKUP($A10,'RECAP DIRCOM'!$G$6:$CU$12,56,FALSE) -> 2,004 | M10: =VLOOKUP($A10,'RECAP DIRCOM'!$G$6:$CU$12,57,FALSE) -> 17.85 | N10: =VLOOKUP($A10,'RECAP DIRCOM'!$G$6:$CU$12,58,FALSE) -> 40% | O10: =VLOOKUP($A10,'RECAP DIRCOM'!$G$6:$CU$12,59,FALSE) -> 5 | P10: =VLOOKUP($A10,'RECAP DIRCOM'!$G$6:$CU$12,60,FALSE) -> 37% | Q10: =VLOOKUP($A10,'RECAP DIRCOM'!$G$6:$CU$12,61,FALSE) -> 33% | R10: =VLOOKUP($A10,'RECAP DIRCOM'!$G$6:$CU$12,62,FALSE) -> 5
A11: 262 | B11: Bas-Rhin | C11: =VLOOKUP($A11,'RECAP DIRCOM'!$G$6:$CU$12,3,FALSE) -> 219 | D11: =VLOOKUP($A11,'RECAP DIRCOM'!$G$6:$CU$12,48,FALSE) -> 43,530 | E11: =VLOOKUP($A11,'RECAP DIRCOM'!$G$6:$CU$12,49,FALSE) -> 198.48 | F11: =VLOOKUP($A11,'RECAP DIRCOM'!$G$6:$CU$12,50,FALSE) -> 52% | G11: =VLOOKUP($A11,'RECAP DIRCOM'!$G$6:$CU$12,51,FALSE) -> 5 | H11: =VLOOKUP($A11,'RECAP DIRCOM'!$G$6:$CU$12,52,FALSE) -> 7,838 | I11: =VLOOKUP($A11,'RECAP DIRCOM'!$G$6:$CU$12,53,FALSE) -> 35.74 | J11: =VLOOKUP($A11,'RECAP DIRCOM'!$G$6:$CU$12,54,FALSE) -> 29% | K11: =VLOOKUP($A11,'RECAP DIRCOM'!$G$6:$CU$12,55,FALSE) -> 6 | L11: =VLOOKUP($A11,'RECAP DIRCOM'!$G$6:$CU$12,56,FALSE) -> 3,766 | M11: =VLOOKUP($A11,'RECAP DIRCOM'!$G$6:$CU$12,57,FALSE) -> 17.17 | N11: =VLOOKUP($A11,'RECAP DIRCOM'!$G$6:$CU$12,58,FALSE) -> 42% | O11: =VLOOKUP($A11,'RECAP DIRCOM'!$G$6:$CU$12,59,FALSE) -> 6 | P11: =VLOOKUP($A11,'RECAP DIRCOM'!$G$6:$CU$12,60,FALSE) -> 41% | Q11: =VLOOKUP($A11,'RECAP DIRCOM'!$G$6:$CU$12,61,FALSE) -> 37% | R11: =VLOOKUP($A11,'RECAP DIRCOM'!$G$6:$CU$12,62,FALSE) -> 6
A12: 264 | B12: Haut-Rhin | C12: =VLOOKUP($A12,'RECAP DIRCOM'!$G$6:$CU$12,3,FALSE) -> 123 | D12: =VLOOKUP($A12,'RECAP DIRCOM'!$G$6:$CU$12,48,FALSE) -> 20,189 | E12: =VLOOKUP($A12,'RECAP DIRCOM'!$G$6:$CU$12,49,FALSE) -> 164.61 | F12: =VLOOKUP($A12,'RECAP DIRCOM'!$G$6:$CU$12,50,FALSE) -> 60% | G12: =VLOOKUP($A12,'RECAP DIRCOM'!$G$6:$CU$12,51,FALSE) -> 7 | H12: =VLOOKUP($A12,'RECAP DIRCOM'!$G$6:$CU$12,52,FALSE) -> 4,189 | I12: =VLOOKUP($A12,'RECAP DIRCOM'!$G$6:$CU$12,53,FALSE) -> 34.15 | J12: =VLOOKUP($A12,'RECAP DIRCOM'!$G$6:$CU$12,54,FALSE) -> 32% | K12: =VLOOKUP($A12,'RECAP DIRCOM'!$G$6:$CU$12,55,FALSE) -> 7 | L12: =VLOOKUP($A12,'RECAP DIRCOM'!$G$6:$CU$12,56,FALSE) -> 1,710 | M12: =VLOOKUP($A12,'RECAP DIRCOM'!$G$6:$CU$12,57,FALSE) -> 13.94 | N12: =VLOOKUP($A12,'RECAP DIRCOM'!$G$6:$CU$12,58,FALSE) -> 53% | O12: =VLOOKUP($A12,'RECAP DIRCOM'!$G$6:$CU$12,59,FALSE) -> 7 | P12: =VLOOKUP($A12,'RECAP DIRCOM'!$G$6:$CU$12,60,FALSE) -> 49% | Q12: =VLOOKUP($A12,'RECAP DIRCOM'!$G$6:$CU$12,61,FALSE) -> 45% | R12: =VLOOKUP($A12,'RECAP DIRCOM'!$G$6:$CU$12,62,FALSE) -> 7
A13: 30 | B13: Marne-Ardennes | C13: =VLOOKUP($A13,'RECAP DIRCOM'!$G$6:$CU$12,3,FALSE) -> 193 | D13: =VLOOKUP($A13,'RECAP DIRCOM'!$G$6:$CU$12,48,FALSE) -> 79,217 | E13: =VLOOKUP($A13,'RECAP DIRCOM'!$G$6:$CU$12,49,FALSE) -> 410.53 | F13: =VLOOKUP($A13,'RECAP DIRCOM'!$G$6:$CU$12,50,FALSE) -> 0% | G13: =VLOOKUP($A13,'RECAP DIRCOM'!$G$6:$CU$12,51,FALSE) -> 1 | H13: =VLOOKUP($A13,'RECAP DIRCOM'!$G$6:$CU$12,52,FALSE) -> 8,451 | I13: =VLOOKUP($A13,'RECAP DIRCOM'!$G$6:$CU$12,53,FALSE) -> 43.79 | J13: =VLOOKUP($A13,'RECAP DIRCOM'!$G$6:$CU$12,54,FALSE) -> 13% | K13: =VLOOKUP($A13,'RECAP DIRCOM'!$G$6:$CU$12,55,FALSE) -> 3 | L13: =VLOOKUP($A13,'RECAP DIRCOM'!$G$6:$CU$12,56,FALSE) -> 5,698 | M13: =VLOOKUP($A13,'RECAP DIRCOM'!$G$6:$CU$12,57,FALSE) -> 29.53 | N13: =VLOOKUP($A13,'RECAP DIRCOM'!$G$6:$CU$12,58,FALSE) -> 0% | O13: =VLOOKUP($A13,'RECAP DIRCOM'!$G$6:$CU$12,59,FALSE) -> 1 | P13: =VLOOKUP($A13,'RECAP DIRCOM'!$G$6:$CU$12,60,FALSE) -> 4% | Q13: =VLOOKUP($A13,'RECAP DIRCOM'!$G$6:$CU$12,61,FALSE) -> 0% | R13: =VLOOKUP($A13,'RECAP DIRCOM'!$G$6:$CU$12,62,FALSE) -> 1
A14: 110 | B14: Meurthe et Moselle Meuse | C14: =VLOOKUP($A14,'RECAP DIRCOM'!$G$6:$CU$12,3,FALSE) -> 204 | D14: =VLOOKUP($A14,'RECAP DIRCOM'!$G$6:$CU$12,48,FALSE) -> 61,465 | E14: =VLOOKUP($A14,'RECAP DIRCOM'!$G$6:$CU$12,49,FALSE) -> 301.90 | F14: =VLOOKUP($A14,'RECAP DIRCOM'!$G$6:$CU$12,50,FALSE) -> 26% | G14: =VLOOKUP($A14,'RECAP DIRCOM'!$G$6:$CU$12,51,FALSE) -> 3 | H14: =VLOOKUP($A14,'RECAP DIRCOM'!$G$6:$CU$12,52,FALSE) -> 9,181 | I14: =VLOOKUP($A14,'RECAP DIRCOM'!$G$6:$CU$12,53,FALSE) -> 45.09 | J14: =VLOOKUP($A14,'RECAP DIRCOM'!$G$6:$CU$12,54,FALSE) -> 10% | K14: =VLOOKUP($A14,'RECAP DIRCOM'!$G$6:$CU$12,55,FALSE) -> 2 | L14: =VLOOKUP($A14,'RECAP DIRCOM'!$G$6:$CU$12,56,FALSE) -> 4,488 | M14: =VLOOKUP($A14,'RECAP DIRCOM'!$G$6:$CU$12,57,FALSE) -> 22.04 | N14: =VLOOKUP($A14,'RECAP DIRCOM'!$G$6:$CU$12,58,FALSE) -> 25% | O14: =VLOOKUP($A14,'RECAP DIRCOM'!$G$6:$CU$12,59,FALSE) -> 3 | P14: =VLOOKUP($A14,'RECAP DIRCOM'!$G$6:$CU$12,60,FALSE) -> 21% | Q14: =VLOOKUP($A14,'RECAP DIRCOM'!$G$6:$CU$12,61,FALSE) -> 17% | R14: =VLOOKUP($A14,'RECAP DIRCOM'!$G$6:$CU$12,62,FALSE) -> 3
A15: 160 | B15: Moselle | C15: =VLOOKUP($A15,'RECAP DIRCOM'!$G$6:$CU$12,3,FALSE) -> 221 | D15: =VLOOKUP($A15,'RECAP DIRCOM'!$G$6:$CU$12,48,FALSE) -> 79,664 | E15: =VLOOKUP($A15,'RECAP DIRCOM'!$G$6:$CU$12,49,FALSE) -> 359.98 | F15: =VLOOKUP($A15,'RECAP DIRCOM'!$G$6:$CU$12,50,FALSE) -> 12% | G15: =VLOOKUP($A15,'RECAP DIRCOM'!$G$6:$CU$12,51,FALSE) -> 2 | H15: =VLOOKUP($A15,'RECAP DIRCOM'!$G$6:$CU$12,52,FALSE) -> 11,123 | I15: =VLOOKUP($A15,'RECAP DIRCOM'!$G$6:$CU$12,53,FALSE) -> 50.26 | J15: =VLOOKUP($A15,'RECAP DIRCOM'!$G$6:$CU$12,54,FALSE) -> 0% | K15: =VLOOKUP($A15,'RECAP DIRCOM'!$G$6:$CU$12,55,FALSE) -> 1 | L15: =VLOOKUP($A15,'RECAP DIRCOM'!$G$6:$CU$12,56,FALSE) -> 5,433 | M15: =VLOOKUP($A15,'RECAP DIRCOM'!$G$6:$CU$12,57,FALSE) -> 24.55 | N15: =VLOOKUP($A15,'RECAP DIRCOM'!$G$6:$CU$12,58,FALSE) -> 17% | O15: =VLOOKUP($A15,'RECAP DIRCOM'!$G$6:$CU$12,59,FALSE) -> 2 | P15: =VLOOKUP($A15,'RECAP DIRCOM'!$G$6:$CU$12,60,FALSE) -> 10% | Q15: =VLOOKUP($A15,'RECAP DIRCOM'!$G$6:$CU$12,61,FALSE) -> 7% | R15: =VLOOKUP($A15,'RECAP DIRCOM'!$G$6:$CU$12,62,FALSE) -> 2
A16: 80 | B16: Vosges | C16: =VLOOKUP($A16,'RECAP DIRCOM'!$G$6:$CU$12,3,FALSE) -> 117 | D16: =VLOOKUP($A16,'RECAP DIRCOM'!$G$6:$CU$12,48,FALSE) -> 23,422 | E16: =VLOOKUP($A16,'RECAP DIRCOM'!$G$6:$CU$12,49,FALSE) -> 200.61 | F16: =VLOOKUP($A16,'RECAP DIRCOM'!$G$6:$CU$12,50,FALSE) -> 51% | G16: =VLOOKUP($A16,'RECAP DIRCOM'!$G$6:$CU$12,51,FALSE) -> 4 | H16: =VLOOKUP($A16,'RECAP DIRCOM'!$G$6:$CU$12,52,FALSE) -> 4,514 | I16: =VLOOKUP($A16,'RECAP DIRCOM'!$G$6:$CU$12,53,FALSE) -> 38.66 | J16: =VLOOKUP($A16,'RECAP DIRCOM'!$G$6:$CU$12,54,FALSE) -> 23% | K16: =VLOOKUP($A16,'RECAP DIRCOM'!$G$6:$CU$12,55,FALSE) -> 5 | L16: =VLOOKUP($A16,'RECAP DIRCOM'!$G$6:$CU$12,56,FALSE) -> 2,284 | M16: =VLOOKUP($A16,'RECAP DIRCOM'!$G$6:$CU$12,57,FALSE) -> 19.56 | N16: =VLOOKUP($A16,'RECAP DIRCOM'!$G$6:$CU$12,58,FALSE) -> 34% | O16: =VLOOKUP($A16,'RECAP DIRCOM'!$G$6:$CU$12,59,FALSE) -> 4 | P16: =VLOOKUP($A16,'RECAP DIRCOM'!$G$6:$CU$12,60,FALSE) -> 36% | Q16: =VLOOKUP($A16,'RECAP DIRCOM'!$G$6:$CU$12,61,FALSE) -> 32% | R16: =VLOOKUP($A16,'RECAP DIRCOM'!$G$6:$CU$12,62,FALSE) -> 4
B17: Total CEGEE Directions Régionales | C17: =SUM(C10:C16) -> 1189

Sheet DC_IARD
B1: Accueil | D1: BAROMETRE BDD - DIRECTIONS REGIONALES
D2: IARD ET PREVOYANCE
D3: =ACCUEIL!F7 -> 2022-10-23
D7: Ventes Nettes produits pondérés | H7: Ventes sur client non détenteur de l’univers | L7: Total IARD Prévoyance
D8: =DATEMAJ!C23 -> au 23/10 | F8: coef | G8: ='RECAP DIRCOM'!BX4 -> 12% | H8: =DATEMAJ!C24 -> au 23/10 | J8: coef | K8: ='RECAP DIRCOM'!CB4 -> 8% | M8: coef | N8: ='RECAP DIRCOM'!CE4 -> 20%
B9: Direction | C9: ="ETP perf "&DATEMAJ!$C$28 -> ETP perf 23-oct | D9: VN | E9: VN / ETP | F9: % Ecart au 1er | G9: Rang | H9: VB | I9: VB / ETP | J9: % Ecart au 1er | K9: Rang | L9: Moyenne ecart au 1er | M9: % Ecart au 1er | N9: Rang CEGEE
A10: 50 | B10: Aube Haute Marne | C10: =VLOOKUP($A10,'RECAP DIRCOM'!$G$6:$CU$12,3,FALSE) -> 112 | D10: =VLOOKUP($A10,'RECAP DIRCOM'!$G$6:$CU$12,67,FALSE) -> 11,534 | E10: =VLOOKUP($A10,'RECAP DIRCOM'!$G$6:$CU$12,68,FALSE) -> 102.73 | F10: =VLOOKUP($A10,'RECAP DIRCOM'!$G$6:$CU$12,69,FALSE) -> 29% | G10: =VLOOKUP($A10,'RECAP DIRCOM'!$G$6:$CU$12,70,FALSE) -> 3 | H10: =VLOOKUP($A10,'RECAP DIRCOM'!$G$6:$CU$12,71,FALSE) -> 3,600 | I10: =VLOOKUP($A10,'RECAP DIRCOM'!$G$6:$CU$12,72,FALSE) -> 32.07 | J10: =VLOOKUP($A10,'RECAP DIRCOM'!$G$6:$CU$12,73,FALSE) -> 24% | K10: =VLOOKUP($A10,'RECAP DIRCOM'!$G$6:$CU$12,74,FALSE) -> 5 | L10: =VLOOKUP($A10,'RECAP DIRCOM'!$G$6:$CU$12,75,FALSE) -> 27% | M10: =VLOOKUP($A10,'RECAP DIRCOM'!$G$6:$CU$12,76,FALSE) -> 27% | N10: =VLOOKUP($A10,'RECAP DIRCOM'!$G$6:$CU$12,77,FALSE) -> 4
A11: 262 | B11: Bas-Rhin | C11: =VLOOKUP($A11,'RECAP DIRCOM'!$G$6:$CU$12,3,FALSE) -> 219 | D11: =VLOOKUP($A11,'RECAP DIRCOM'!$G$6:$CU$12,67,FALSE) -> 17,782 | E11: =VLOOKUP($A11,'RECAP DIRCOM'!$G$6:$CU$12,68,FALSE) -> 81.08 | F11: =VLOOKUP($A11,'RECAP DIRCOM'!$G$6:$CU$12,69,FALSE) -> 44% | G11: =VLOOKUP($A11,'RECAP DIRCOM'!$G$6:$CU$12,70,FALSE) -> 5 | H11: =VLOOKUP($A11,'RECAP DIRCOM'!$G$6:$CU$12,71,FALSE) -> 7,357 | I11: =VLOOKUP($A11,'RECAP DIRCOM'!$G$6:$CU$12,72,FALSE) -> 33.55 | J11: =VLOOKUP($A11,'RECAP DIRCOM'!$G$6:$CU$12,73,FALSE) -> 20% | K11: =VLOOKUP($A11,'RECAP DIRCOM'!$G$6:$CU$12,74,FALSE) -> 4 | L11: =VLOOKUP($A11,'RECAP DIRCOM'!$G$6:$CU$12,75,FALSE) -> 34% | M11: =VLOOKUP($A11,'RECAP DIRCOM'!$G$6:$CU$12,76,FALSE) -> 34% | N11: =VLOOKUP($A11,'RECAP DIRCOM'!$G$6:$CU$12,77,FALSE) -> 5
A12: 264 | B12: Haut-Rhin | C12: =VLOOKUP($A12,'RECAP DIRCOM'!$G$6:$CU$12,3,FALSE) -> 123 | D12: =VLOOKUP($A12,'RECAP DIRCOM'!$G$6:$CU$12,67,FALSE) -> 2,573 | E12: =VLOOKUP($A12,'RECAP DIRCOM'!$G$6:$CU$12,68,FALSE) -> 20.98 | F12: =VLOOKUP($A12,'RECAP DIRCOM'!$G$6:$CU$12,69,FALSE) -> 86% | G12: =VLOOKUP($A12,'RECAP DIRCOM'!$G$6:$CU$12,70,FALSE) -> 7 | H12: =VLOOKUP($A12,'RECAP DIRCOM'!$G$6:$CU$12,71,FALSE) -> 3,198 | I12: =VLOOKUP($A12,'RECAP DIRCOM'!$G$6:$CU$12,72,FALSE) -> 26.07 | J12: =VLOOKUP($A12,'RECAP DIRCOM'!$G$6:$CU$12,73,FALSE) -> 38% | K12: =VLOOKUP($A12,'RECAP DIRCOM'!$G$6:$CU$12,74,FALSE) -> 7 | L12: =VLOOKUP($A12,'RECAP DIRCOM'!$G$6:$CU$12,75,FALSE) -> 66% | M12: =VLOOKUP($A12,'RECAP DIRCOM'!$G$6:$CU$12,76,FALSE) -> 66% | N12: =VLOOKUP($A12,'RECAP DIRCOM'!$G$6:$CU$12,77,FALSE) -> 7
A13: 30 | B13: Marne-Ardennes | C13: =VLOOKUP($A13,'RECAP DIRCOM'!$G$6:$CU$12,3,FALSE) -> 193 | D13: =VLOOKUP($A13,'RECAP DIRCOM'!$G$6:$CU$12,67,FALSE) -> 27,983 | E13: =VLOOKUP($A13,'RECAP DIRCOM'!$G$6:$CU$12,68,FALSE) -> 145.02 | F13: =VLOOKUP($A13,'RECAP DIRCOM'!$G$6:$CU$12,69,FALSE) -> 0% | G13: =VLOOKUP($A13,'RECAP DIRCOM'!$G$6:$CU$12,70,FALSE) -> 1 | H13: =VLOOKUP($A13,'RECAP DIRCOM'!$G$6:$CU$12,71,FALSE) -> 8,090 | I13: =VLOOKUP($A13,'RECAP DIRCOM'!$G$6:$CU$12,72,FALSE) -> 41.93 | J13: =VLOOKUP($A13,'RECAP DIRCOM'!$G$6:$CU$12,73,FALSE) -> 0% | K13: =VLOOKUP($A13,'RECAP DIRCOM'!$G$6:$CU$12,74,FALSE) -> 1 | L13: =VLOOKUP($A13,'RECAP DIRCOM'!$G$6:$CU$12,75,FALSE) -> 0% | M13: =VLOOKUP($A13,'RECAP DIRCOM'!$G$6:$CU$12,76,FALSE) -> 0% | N13: =VLOOKUP($A13,'RECAP DIRCOM'!$G$6:$CU$12,77,FALSE) -> 1
A14: 110 | B14: Meurthe et Moselle Meuse | C14: =VLOOKUP($A14,'RECAP DIRCOM'!$G$6:$CU$12,3,FALSE) -> 204 | D14: =VLOOKUP($A14,'RECAP DIRCOM'!$G$6:$CU$12,67,FALSE) -> 19,114 | E14: =VLOOKUP($A14,'RECAP DIRCOM'!$G$6:$CU$12,68,FALSE) -> 93.88 | F14: =VLOOKUP($A14,'RECAP DIRCOM'!$G$6:$CU$12,69,FALSE) -> 35% | G14: =VLOOKUP($A14,'RECAP DIRCOM'!$G$6:$CU$12,70,FALSE) -> 4 | H14: =VLOOKUP($A14,'RECAP DIRCOM'!$G$6:$CU$12,71,FALSE) -> 7,347 | I14: =VLOOKUP($A14,'RECAP DIRCOM'!$G$6:$CU$12,72,FALSE) -> 36.09 | J14: =VLOOKUP($A14,'RECAP DIRCOM'!$G$6:$CU$12,73,FALSE) -> 14% | K14: =VLOOKUP($A14,'RECAP DIRCOM'!$G$6:$CU$12,74,FALSE) -> 3 | L14: =VLOOKUP($A14,'RECAP DIRCOM'!$G$6:$CU$12,75,FALSE) -> 27% | M14: =VLOOKUP($A14,'RECAP DIRCOM'!$G$6:$CU$12,76,FALSE) -> 27% | N14: =VLOOKUP($A14,'RECAP DIRCOM'!$G$6:$CU$12,77,FALSE) -> 3
A15: 160 | B15: Moselle | C15: =VLOOKUP($A15,'RECAP DIRCOM'!$G$6:$CU$12,3,FALSE) -> 221 | D15: =VLOOKUP($A15,'RECAP DIRCOM'!$G$6:$CU$12,67,FALSE) -> 29,335 | E15: =VLOOKUP($A15,'RECAP DIRCOM'!$G$6:$CU$12,68,FALSE) -> 132.56 | F15: =VLOOKUP($A15,'RECAP DIRCOM'!$G$6:$CU$12,69,FALSE) -> 9% | G15: =VLOOKUP($A15,'RECAP DIRCOM'!$G$6:$CU$12,70,FALSE) -> 2 | H15: =VLOOKUP($A15,'RECAP DIRCOM'!$G$6:$CU$12,71,FALSE) -> 9,067 | I15: =VLOOKUP($A15,'RECAP DIRCOM'!$G$6:$CU$12,72,FALSE) -> 40.97 | J15: =VLOOKUP($A15,'RECAP DIRCOM'!$G$6:$CU$12,73,FALSE) -> 2% | K15: =VLOOKUP($A15,'RECAP DIRCOM'!$G$6:$CU$12,74,FALSE) -> 2 | L15: =VLOOKUP($A15,'RECAP DIRCOM'!$G$6:$CU$12,75,FALSE) -> 6% | M15: =VLOOKUP($A15,'RECAP DIRCOM'!$G$6:$CU$12,76,FALSE) -> 6% | N15: =VLOOKUP($A15,'RECAP DIRCOM'!$G$6:$CU$12,77,FALSE) -> 2
A16: 80 | B16: Vosges | C16: =VLOOKUP($A16,'RECAP DIRCOM'!$G$6:$CU$12,3,FALSE) -> 117 | D16: =VLOOKUP($A16,'RECAP DIRCOM'!$G$6:$CU$12,67,FALSE) -> 9,147 | E16: =VLOOKUP($A16,'RECAP DIRCOM'!$G$6:$CU$12,68,FALSE) -> 78.35 | F16: =VLOOKUP($A16,'RECAP DIRCOM'!$G$6:$CU$12,69,FALSE) -> 46% | G16: =VLOOKUP($A16,'RECAP DIRCOM'!$G$6:$CU$12,70,FALSE) -> 6 | H16: =VLOOKUP($A16,'RECAP DIRCOM'!$G$6:$CU$12,71,FALSE) -> 3,413 | I16: =VLOOKUP($A16,'RECAP DIRCOM'!$G$6:$CU$12,72,FALSE) -> 29.23 | J16: =VLOOKUP($A16,'RECAP DIRCOM'!$G$6:$CU$12,73,FALSE) -> 30% | K16: =VLOOKUP($A16,'RECAP DIRCOM'!$G$6:$CU$12,74,FALSE) -> 6 | L16: =VLOOKUP($A16,'RECAP DIRCOM'!$G$6:$CU$12,75,FALSE) -> 40% | M16: =VLOOKUP($A16,'RECAP DIRCOM'!$G$6:$CU$12,76,FALSE) -> 40% | N16: =VLOOKUP($A16,'RECAP DIRCOM'!$G$6:$CU$12,77,FALSE) -> 6
B17: Total CEGEE Directions Régionales | C17: =SUM(C10:C16) -> 1189

Sheet DC_SATISFACTION
B1: Accueil | D1: BAROMETRE BDD - DIRECTIONS REGIONALES
D2: SATISFACTION
D3: =ACCUEIL!F7 -> 2022-10-23
D7: NPS à froid (SAE) | G7: NPS à chaud (QHD) | J7: Total Satisfaction Clients
D8: =DATEMAJ!E4 -> au 30/09 | E8: coef | F8: ='RECAP DIRCOM'!M4 -> 10% | G8: =DATEMAJ!C5 -> au 31/08 | H8: coef | I8: ='RECAP DIRCOM'!P4 -> 10% | K8: coef | L8: ='RECAP DIRCOM'!S4 -> 20%
B9: Direction | C9: ="ETP perf "&DATEMAJ!$C$28 -> ETP perf 23-oct | E9: % Ecart au 1er | F9: Rang | H9: % Ecart au 1er | I9: Rang | J9: Moyenne ecart au 1er | K9: % Ecart au 1er | L9: Rang CEGEE
A10: 50 | B10: Aube Haute Marne | C10: =VLOOKUP($A10,'RECAP DIRCOM'!$G$6:$CU$12,3,FALSE) -> 112 | D10: =VLOOKUP($A10,'RECAP DIRCOM'!$G$6:$CU$12,5,FALSE) -> 4.25 | E10: =VLOOKUP($A10,'RECAP DIRCOM'!$G$6:$CU$12,6,FALSE) -> 82% | F10: =VLOOKUP($A10,'RECAP DIRCOM'!$G$6:$CU$12,7,FALSE) -> 6 | G10: =VLOOKUP($A10,'RECAP DIRCOM'!$G$6:$CU$12,8,FALSE) -> 54% | H10: =VLOOKUP($A10,'RECAP DIRCOM'!$G$6:$CU$12,9,FALSE) -> 22% | I10: =VLOOKUP($A10,'RECAP DIRCOM'!$G$6:$CU$12,10,FALSE) -> 6 | J10: =VLOOKUP($A10,'RECAP DIRCOM'!$G$6:$CU$12,11,FALSE) -> 52% | K10: =VLOOKUP($A10,'RECAP DIRCOM'!$G$6:$CU$12,12,FALSE) -> 52% | L10: =VLOOKUP($A10,'RECAP DIRCOM'!$G$6:$CU$12,13,FALSE) -> 6
A11: 262 | B11: Bas-Rhin | C11: =VLOOKUP($A11,'RECAP DIRCOM'!$G$6:$CU$12,3,FALSE) -> 219 | D11: =VLOOKUP($A11,'RECAP DIRCOM'!$G$6:$CU$12,5,FALSE) -> 5.75 | E11: =VLOOKUP($A11,'RECAP DIRCOM'!$G$6:$CU$12,6,FALSE) -> 75% | F11: =VLOOKUP($A11,'RECAP DIRCOM'!$G$6:$CU$12,7,FALSE) -> 5 | G11: =VLOOKUP($A11,'RECAP DIRCOM'!$G$6:$CU$12,8,FALSE) -> 62% | H11: =VLOOKUP($A11,'RECAP DIRCOM'!$G$6:$CU$12,9,FALSE) -> 11% | I11: =VLOOKUP($A11,'RECAP DIRCOM'!$G$6:$CU$12,10,FALSE) -> 4 | J11: =VLOOKUP($A11,'RECAP DIRCOM'!$G$6:$CU$12,11,FALSE) -> 43% | K11: =VLOOKUP($A11,'RECAP DIRCOM'!$G$6:$CU$12,12,FALSE) -> 43% | L11: =VLOOKUP($A11,'RECAP DIRCOM'!$G$6:$CU$12,13,FALSE) -> 5
A12: 264 | B12: Haut-Rhin | C12: =VLOOKUP($A12,'RECAP DIRCOM'!$G$6:$CU$12,3,FALSE) -> 123 | D12: =VLOOKUP($A12,'RECAP DIRCOM'!$G$6:$CU$12,5,FALSE) -> 3 | E12: =VLOOKUP($A12,'RECAP DIRCOM'!$G$6:$CU$12,6,FALSE) -> 87% | F12: =VLOOKUP($A12,'RECAP DIRCOM'!$G$6:$CU$12,7,FALSE) -> 7 | G12: =VLOOKUP($A12,'RECAP DIRCOM'!$G$6:$CU$12,8,FALSE) -> 47% | H12: =VLOOKUP($A12,'RECAP DIRCOM'!$G$6:$CU$12,9,FALSE) -> 32% | I12: =VLOOKUP($A12,'RECAP DIRCOM'!$G$6:$CU$12,10,FALSE) -> 7 | J12: =VLOOKUP($A12,'RECAP DIRCOM'!$G$6:$CU$12,11,FALSE) -> 59% | K12: =VLOOKUP($A12,'RECAP DIRCOM'!$G$6:$CU$12,12,FALSE) -> 59% | L12: =VLOOKUP($A12,'RECAP DIRCOM'!$G$6:$CU$12,13,FALSE) -> 7
A13: 30 | B13: Marne-Ardennes | C13: =VLOOKUP($A13,'RECAP DIRCOM'!$G$6:$CU$12,3,FALSE) -> 193 | D13: =VLOOKUP($A13,'RECAP DIRCOM'!$G$6:$CU$12,5,FALSE) -> 17.25 | E13: =VLOOKUP($A13,'RECAP DIRCOM'!$G$6:$CU$12,6,FALSE) -> 26% | F13: =VLOOKUP($A13,'RECAP DIRCOM'!$G$6:$CU$12,7,FALSE) -> 2 | G13: =VLOOKUP($A13,'RECAP DIRCOM'!$G$6:$CU$12,8,FALSE) -> 66% | H13: =VLOOKUP($A13,'RECAP DIRCOM'!$G$6:$CU$12,9,FALSE) -> 5% | I13: =VLOOKUP($A13,'RECAP DIRCOM'!$G$6:$CU$12,10,FALSE) -> 2 | J13: =VLOOKUP($A13,'RECAP DIRCOM'!$G$6:$CU$12,11,FALSE) -> 15% | K13: =VLOOKUP($A13,'RECAP DIRCOM'!$G$6:$CU$12,12,FALSE) -> 15% | L13: =VLOOKUP($A13,'RECAP DIRCOM'!$G$6:$CU$12,13,FALSE) -> 2
A14: 110 | B14: Meurthe et Moselle Meuse | C14: =VLOOKUP($A14,'RECAP DIRCOM'!$G$6:$CU$12,3,FALSE) -> 204 | D14: =VLOOKUP($A14,'RECAP DIRCOM'!$G$6:$CU$12,5,FALSE) -> 12 | E14: =VLOOKUP($A14,'RECAP DIRCOM'!$G$6:$CU$12,6,FALSE) -> 48% | F14: =VLOOKUP($A14,'RECAP DIRCOM'!$G$6:$CU$12,7,FALSE) -> 4 | G14: =VLOOKUP($A14,'RECAP DIRCOM'!$G$6:$CU$12,8,FALSE) -> 61% | H14: =VLOOKUP($A14,'RECAP DIRCOM'!$G$6:$CU$12,9,FALSE) -> 12% | I14: =VLOOKUP($A14,'RECAP DIRCOM'!$G$6:$CU$12,10,FALSE) -> 5 | J14: =VLOOKUP($A14,'RECAP DIRCOM'!$G$6:$CU$12,11,FALSE) -> 30% | K14: =VLOOKUP($A14,'RECAP DIRCOM'!$G$6:$CU$12,12,FALSE) -> 30% | L14: =VLOOKUP($A14,'RECAP DIRCOM'!$G$6:$CU$12,13,FALSE) -> 4
A15: 160 | B15: Moselle | C15: =VLOOKUP($A15,'RECAP DIRCOM'!$G$6:$CU$12,3,FALSE) -> 221 | D15: =VLOOKUP($A15,'RECAP DIRCOM'!$G$6:$CU$12,5,FALSE) -> 15.25 | E15: =VLOOKUP($A15,'RECAP DIRCOM'!$G$6:$CU$12,6,FALSE) -> 34% | F15: =VLOOKUP($A15,'RECAP DIRCOM'!$G$6:$CU$12,7,FALSE) -> 3 | G15: =VLOOKUP($A15,'RECAP DIRCOM'!$G$6:$CU$12,8,FALSE) -> 62% | H15: =VLOOKUP($A15,'RECAP DIRCOM'!$G$6:$CU$12,9,FALSE) -> 10% | I15: =VLOOKUP($A15,'RECAP DIRCOM'!$G$6:$CU$12,10,FALSE) -> 3 | J15: =VLOOKUP($A15,'RECAP DIRCOM'!$G$6:$CU$12,11,FALSE) -> 22% | K15: =VLOOKUP($A15,'RECAP DIRCOM'!$G$6:$CU$12,12,FALSE) -> 22% | L15: =VLOOKUP($A15,'RECAP DIRCOM'!$G$6:$CU$12,13,FALSE) -> 3
A16: 80 | B16: Vosges | C16: =VLOOKUP($A16,'RECAP DIRCOM'!$G$6:$CU$12,3,FALSE) -> 117 | D16: =VLOOKUP($A16,'RECAP DIRCOM'!$G$6:$CU$12,5,FALSE) -> 23.25 | E16: =VLOOKUP($A16,'RECAP DIRCOM'!$G$6:$CU$12,6,FALSE) -> 0% | F16: =VLOOKUP($A16,'RECAP DIRCOM'!$G$6:$CU$12,7,FALSE) -> 1 | G16: =VLOOKUP($A16,'RECAP DIRCOM'!$G$6:$CU$12,8,FALSE) -> 69% | H16: =VLOOKUP($A16,'RECAP DIRCOM'!$G$6:$CU$12,9,FALSE) -> 0% | I16: =VLOOKUP($A16,'RECAP DIRCOM'!$G$6:$CU$12,10,FALSE) -> 1 | J16: =VLOOKUP($A16,'RECAP DIRCOM'!$G$6:$CU$12,11,FALSE) -> 0% | K16: =VLOOKUP($A16,'RECAP DIRCOM'!$G$6:$CU$12,12,FALSE) -> 0% | L16: =VLOOKUP($A16,'RECAP DIRCOM'!$G$6:$CU$12,13,FALSE) -> 1
B17: Total CEGEE Directions Régionales | C17: =SUM(C10:C16) -> 1189

Sheet SE_FICHE
A1: Accueil
A2: BAROMETRE BDD
A4: UNITE: | B4: TERRITOIRE | E4: ETP perf : | F4: =VLOOKUP(A5,'RECAP SECT'!$G$6:$I$23,3,FALSE) -> 45.90
A5: =VLOOKUP(B5,LISTES!$H$6:$I$23,2,FALSE) -> 5130 | B5: COLMAR
C6: Coefficient du critére | E6: Résultats | I6: Ecart au 1ier | M6: Evolution | O6: Rang
E7: du 1ier | G7: du territoire | I7: Du mois | K7: Au 31/12/2019
A9: RANG au CLASSEMENT GENERAL | K9: =VLOOKUP($A$5,#REF!,168,FALSE) ->  | M9: =+K9-O9 ->  | O9: =VLOOKUP($A$5,'RECAP SECT'!$G$6:$CY$312,168,FALSE) ->  | S9: =VLOOKUP($A$5,#REF!,154,FALSE) ->  | U9: =+S9-O9 -> 
A11: CRITERE CONQUETE | C11: 15% | O11: =VLOOKUP($A$5,'RECAP SECT'!$G$6:$CY$312,23,FALSE) -> 49.60784314
B12: PNB Evolution nette Clients BP | C12: 4% | E12: ='RECAP SECT'!#REF! ->  | G12: =VLOOKUP($A$5,'RECAP SECT'!$G$6:$CY$312,6,FALSE) -> 0.9 | I12: =VLOOKUP($A$5,'RECAP SECT'!$G$6:$CY$312,7,FALSE) -> 1600% | K12: =VLOOKUP($A$5,#REF!,7,FALSE) ->  | M12: =+K12-I12 ->  | O12: =VLOOKUP($A$5,'RECAP SECT'!$G$6:$CY$312,8,FALSE) -> 0.5025046922 | S12: =VLOOKUP($A$5,#REF!,6,FALSE) ->  | U12: =+S12-I12 -> 
B13: PNB Evolution nette Clients PREMIUM | C13: 5% | E13: ='RECAP SECT'!#REF! ->  | G13: =VLOOKUP($A$5,'RECAP SECT'!$G$6:$CY$312,10,FALSE) -> 16.0 | I13: =VLOOKUP($A$5,'RECAP SECT'!$G$6:$CY$312,11,FALSE) -> 61% | K13: =VLOOKUP($A$5,#REF!,11,FALSE) ->  | M13: =+K13-I13 ->  | O13: =VLOOKUP($A$5,'RECAP SECT'!$G$6:$CY$312,12,FALSE) -> 0.6038088598 | S13: =VLOOKUP($A$5,#REF!,9,FALSE) ->  | U13: =+S13-I13 -> 
B14: PNB Evolution nette Clients Jeunes Equipés | C14: 3% | E14: ='RECAP SECT'!#REF! ->  | G14: =VLOOKUP($A$5,'RECAP SECT'!$G$6:$CY$312,14,FALSE) -> 0.0 | I14: =VLOOKUP($A$5,'RECAP SECT'!$G$6:$CY$312,15,FALSE) -> 0% | K14: =VLOOKUP($A$5,#REF!,15,FALSE) ->  | M14: =+K14-I14 ->  | O14: =VLOOKUP($A$5,'RECAP SECT'!$G$6:$CY$312,16,FALSE) -> 0 | S14: =VLOOKUP($A$5,#REF!,12,FALSE) ->  | U14: =+S14-I14 -> 
B15: PNB Evolution nette Clients Pro Actifs Equipés | C15: 3% | E15: ='RECAP SECT'!W4 -> 0.0 | G15: =VLOOKUP($A$5,'RECAP SECT'!$G$6:$CY$312,18,FALSE) -> 388.3 | I15: =VLOOKUP($A$5,'RECAP SECT'!$G$6:$CY$312,19,FALSE) -> 846% | K15: =VLOOKUP($A$5,#REF!,19,FALSE) ->  | M15: =+K15-I15 ->  | O15: =VLOOKUP($A$5,'RECAP SECT'!$G$6:$CY$312,20,FALSE) -> 0.7736494166 | S15: =VLOOKUP($A$5,#REF!,15,FALSE) ->  | U15: =+S15-I15 -> 
A17: CRITERE BANCARISATION | C17: 15% | O17: =VLOOKUP($A$5,'RECAP SECT'!$G$6:$CY$312,48,FALSE) -> 8748.224894
B18: PNB Ventes nettes forfaits | C18: 4% | E18: ='RECAP SECT'!X4 -> 37.4 | G18: =VLOOKUP($A$5,'RECAP SECT'!$G$6:$CY$312,31,FALSE) -> 0.0 | I18: =VLOOKUP($A$5,'RECAP SECT'!$G$6:$CY$312,32,FALSE) -> 0% | K18: =VLOOKUP($A$5,#REF!,32,FALSE) ->  | M18: =+K18-I18 ->  | O18: =VLOOKUP($A$5,'RECAP SECT'!$G$6:$CY$312,33,FALSE) -> 682.2050865 | S18: =VLOOKUP($A$5,#REF!,27,FALSE) ->  | U18: =+S18-I18 -> 
B19: PNB Ventes nettes IZICARTES Débit Différé | C19: 4% | E19: ='RECAP SECT'!AB4 -> 89.8 | G19: =VLOOKUP($A$5,'RECAP SECT'!$G$6:$CY$312,35,FALSE) -> 1.0 | I19: =VLOOKUP($A$5,'RECAP SECT'!$G$6:$CY$312,36,FALSE) -> 1700% | K19: =VLOOKUP($A$5,#REF!,36,FALSE) ->  | M19: =+K19-I19 ->  | O19: =VLOOKUP($A$5,'RECAP SECT'!$G$6:$CY$312,37,FALSE) -> 2083 | S19: =VLOOKUP($A$5,#REF!,30,FALSE) ->  | U19: =+S19-I19 -> 
B20: PNB Ventes nettes cartes HDG Débit Différé | C20: 4% | E20: ='RECAP SECT'!#REF! ->  | G20: =VLOOKUP($A$5,'RECAP SECT'!$G$6:$CY$312,39,FALSE) -> 0.5 | I20: =VLOOKUP($A$5,'RECAP SECT'!$G$6:$CY$312,40,FALSE) -> 1800% | K20: =VLOOKUP($A$5,#REF!,40,FALSE) ->  | M20: =+K20-I20 ->  | O20: =VLOOKUP($A$5,'RECAP SECT'!$G$6:$CY$312,41,FALSE) -> 0.7735431969 | S20: =VLOOKUP($A$5,#REF!,33,FALSE) ->  | U20: =+S20-I20 -> 
B21: PNB Ventes nettes Forfaits Pro, Carte pro | C21: 3% | E21: ='RECAP SECT'!#REF! ->  | G21: =VLOOKUP($A$5,'RECAP SECT'!$G$6:$CY$312,43,FALSE) -> 17.0 | I21: =VLOOKUP($A$5,'RECAP SECT'!$G$6:$CY$312,44,FALSE) -> 0% | K21: =VLOOKUP($A$5,#REF!,44,FALSE) ->  | M21: =+K21-I21 ->  | O21: =VLOOKUP($A$5,'RECAP SECT'!$G$6:$CY$312,45,FALSE) -> 0 | S21: =VLOOKUP($A$5,#REF!,39,FALSE) ->  | U21: =+S21-I21 -> 
A23: CRITERE EPARGNE | C23: 10% | O23: =VLOOKUP($A$5,'RECAP SECT'!$G$6:$CY$312,69,FALSE) -> 0.718732338
B24: PNB Epargne Liquide | C24: 3% | E24: ='RECAP SECT'!AM4 -> 453.1 | G24: =VLOOKUP($A$5,'RECAP SECT'!$G$6:$CY$312,56,FALSE) -> 833.0 | I24: =VLOOKUP($A$5,'RECAP SECT'!$G$6:$CY$312,57,FALSE) -> 1815% | K24: =VLOOKUP($A$5,#REF!,57,FALSE) ->  | M24: =+K24-I24 ->  | O24: =VLOOKUP($A$5,'RECAP SECT'!$G$6:$CY$312,58,FALSE) -> 0.5812628775 | S24: =VLOOKUP($A$5,#REF!,51,FALSE) ->  | U24: =+S24-I24 -> 
B25: PNB CA UC + arbitrage | C25: 4% | E25: ='RECAP SECT'!AQ4 -> 87.8 | G25: =VLOOKUP($A$5,'RECAP SECT'!$G$6:$CY$312,60,FALSE) -> 0.5 | I25: =VLOOKUP($A$5,'RECAP SECT'!$G$6:$CY$312,61,FALSE) -> 47% | K25: =VLOOKUP($A$5,#REF!,61,FALSE) ->  | M25: =+K25-I25 ->  | O25: =VLOOKUP($A$5,'RECAP SECT'!$G$6:$CY$312,62,FALSE) -> 18 | S25: =VLOOKUP($A$5,#REF!,57,FALSE) ->  | U25: =+S25-I25 -> 
B26: PNB Excédent assurance vie | C26: 3% | E26: ='RECAP SECT'!#REF! ->  | G26: =VLOOKUP($A$5,'RECAP SECT'!$G$6:$CY$312,64,FALSE) -> 0.0 | I26: =VLOOKUP($A$5,'RECAP SECT'!$G$6:$CY$312,65,FALSE) -> 0% | K26: =VLOOKUP($A$5,#REF!,65,FALSE) ->  | M26: =+K26-I26 ->  | O26: =VLOOKUP($A$5,'RECAP SECT'!$G$6:$CY$312,66,FALSE) -> 0 | S26: =VLOOKUP($A$5,#REF!,60,FALSE) ->  | U26: =+S26-I26 -> 
A28: CRITERE CREDITS | C28: 15% | O28: =VLOOKUP($A$5,'RECAP SECT'!$G$6:$CY$312,102,FALSE) -> 
B29: PNB crédit conso | C29: 4% | E29: ='RECAP SECT'!BB4 -> 635.7 | G29: =VLOOKUP($A$5,'RECAP SECT'!$G$6:$CY$312,77,FALSE) -> 17.0 | I29: =VLOOKUP($A$5,'RECAP SECT'!$G$6:$CY$312,78,FALSE) -> 0% | K29: =VLOOKUP($A$5,#REF!,78,FALSE) ->  | M29: =+K29-I29 ->  | O29: =VLOOKUP($A$5,'RECAP SECT'!$G$6:$CY$312,79,FALSE) -> 0 | S29: =VLOOKUP($A$5,#REF!,75,FALSE) ->  | U29: =+S29-I29 -> 
B30: PNB ADE crédit conso | C30: 1% | E30: ='RECAP SECT'!#REF! ->  | G30: =VLOOKUP($A$5,'RECAP SECT'!$G$6:$CY$312,81,FALSE) -> 0.0 | I30: =VLOOKUP($A$5,'RECAP SECT'!$G$6:$CY$312,82,FALSE) -> 0% | K30: =VLOOKUP($A$5,#REF!,82,FALSE) ->  | O30: =VLOOKUP($A$5,'RECAP SECT'!$G$6:$CY$312,83,FALSE) -> 0 | S30: =VLOOKUP($A$5,#REF!,78,FALSE) -> 
B31: PNB crédit immo | C31: 4% | E31: ='RECAP SECT'!BF4 -> 62.4 | G31: =VLOOKUP($A$5,'RECAP SECT'!$G$6:$CY$312,85,FALSE) -> 0.0 | I31: =VLOOKUP($A$5,'RECAP SECT'!$G$6:$CY$312,86,FALSE) -> 0% | K31: =VLOOKUP($A$5,#REF!,86,FALSE) ->  | O31: =VLOOKUP($A$5,'RECAP SECT'!$G$6:$CY$312,87,FALSE) -> 0 | S31: =VLOOKUP($A$5,#REF!,81,FALSE) -> 
B32: PNB ADE crédit immo | C32: 2% | E32: ='RECAP SECT'!#REF! ->  | G32: =VLOOKUP($A$5,'RECAP SECT'!$G$6:$CY$312,89,FALSE) -> 0.0 | I32: =VLOOKUP($A$5,'RECAP SECT'!$G$6:$CY$312,90,FALSE) -> 0% | K32: =VLOOKUP($A$5,#REF!,90,FALSE) ->  | O32: =VLOOKUP($A$5,'RECAP SECT'!$G$6:$CY$312,91,FALSE) -> 0 | S32: =VLOOKUP($A$5,#REF!,84,FALSE) -> 
B33: PNB SACCEF | C33: 2% | E33: ='RECAP SECT'!#REF! ->  | G33: =VLOOKUP($A$5,'RECAP SECT'!$G$6:$CY$312,93,FALSE) -> 0.0 | I33: =VLOOKUP($A$5,'RECAP SECT'!$G$6:$CY$312,94,FALSE) -> 60% | K33: =VLOOKUP($A$5,#REF!,94,FALSE) ->  | O33: =VLOOKUP($A$5,'RECAP SECT'!$G$6:$CY$312,95,FALSE) -> 0.521086409 | S33: =VLOOKUP($A$5,#REF!,87,FALSE) -> 
B34: PNB Crédit MLT + Crédit Bail | C34: 2% | E34: ='RECAP SECT'!BJ4 -> 43.3 | G34: =VLOOKUP($A$5,'RECAP SECT'!$G$6:$CY$312,97,FALSE) -> 0.0 | I34: =VLOOKUP($A$5,'RECAP SECT'!$G$6:$CY$312,98,FALSE) ->  | K34: =VLOOKUP($A$5,#REF!,98,FALSE) ->  | O34: =VLOOKUP($A$5,'RECAP SECT'!$G$6:$CY$312,99,FALSE) ->  | S34: =VLOOKUP($A$5,#REF!,90,FALSE) -> 
A36: CRITERE IARD PREVOYANCE | C36: 15% | O36: =VLOOKUP($A$5,'RECAP SECT'!$G$6:$CY$312,119,FALSE) -> 
B37: PNB Ventes nettes IARD | C37: 9% | E37: ='RECAP SECT'!BU4 -> 199.5 | G37: =VLOOKUP($A$5,'RECAP SECT'!$G$6:$CY$312,110,FALSE) ->  | I37: =VLOOKUP($A$5,'RECAP SECT'!$G$6:$CY$312,111,FALSE) ->  | K37: =VLOOKUP($A$5,#REF!,111,FALSE) ->  | M37: =+K37-I37 ->  | O37: =VLOOKUP($A$5,'RECAP SECT'!$G$6:$CY$312,112,FALSE) ->  | S37: =VLOOKUP($A$5,#REF!,102,FALSE) ->  | U37: =+S37-I37 -> 
B38: PNB Ventes nettes Prévoyance | C38: 6% | E38: ='RECAP SECT'!BY4 -> 57.9 | G38: =VLOOKUP($A$5,'RECAP SECT'!$G$6:$CY$312,114,FALSE) ->  | I38: =VLOOKUP($A$5,'RECAP SECT'!$G$6:$CY$312,115,FALSE) ->  | K38: =VLOOKUP($A$5,#REF!,115,FALSE) ->  | M38: =+K38-I38 ->  | O38: =VLOOKUP($A$5,'RECAP SECT'!$G$6:$CY$312,116,FALSE) ->  | S38: =VLOOKUP($A$5,#REF!,105,FALSE) ->  | U38: =+S38-I38 -> 
A40: CRITERE ACCELERATEURS PNB | C40: 15% | O40: =VLOOKUP($A$5,'RECAP SECT'!$G$6:$CY$312,144,FALSE) -> 
B41: PNB Ventes brutes SED Finalisées | C41: 6% | E41: ='RECAP SECT'!#REF! ->  | G41: =VLOOKUP($A$5,'RECAP SECT'!$G$6:$CY$312,127,FALSE) ->  | I41: =VLOOKUP($A$5,'RECAP SECT'!$G$6:$CY$312,128,FALSE) ->  | K41: =VLOOKUP($A$5,#REF!,128,FALSE) ->  | M41: =+K41-I41 ->  | O41: =VLOOKUP($A$5,'RECAP SECT'!$G$6:$CY$312,129,FALSE) ->  | S41: =VLOOKUP($A$5,#REF!,120,FALSE) ->  | U41: =+S41-I41 -> 
B42: PNB clients équipés E documents | C42: 3% | E42: ='RECAP SECT'!#REF! ->  | G42: =VLOOKUP($A$5,'RECAP SECT'!$G$6:$CY$312,131,FALSE) ->  | I42: =VLOOKUP($A$5,'RECAP SECT'!$G$6:$CY$312,132,FALSE) ->  | K42: =VLOOKUP($A$5,#REF!,132,FALSE) ->  | M42: =+K42-I42 ->  | O42: =VLOOKUP($A$5,'RECAP SECT'!$G$6:$CY$312,133,FALSE) ->  | S42: =VLOOKUP($A$5,#REF!,123,FALSE) ->  | U42: =+S42-I42 -> 
B43: Economie opt'in | C43: 3% | E43: ='RECAP SECT'!#REF! ->  | G43: =VLOOKUP($A$5,'RECAP SECT'!$G$6:$CY$312,135,FALSE) ->  | I43: =VLOOKUP($A$5,'RECAP SECT'!$G$6:$CY$312,136,FALSE) ->  | K43: =VLOOKUP($A$5,#REF!,136,FALSE) ->  | M43: =+K43-I43 ->  | O43: =VLOOKUP($A$5,'RECAP SECT'!$G$6:$CY$312,137,FALSE) -> 
B44: Remises commerciales | C44: 3% | E44: ='RECAP SECT'!#REF! ->  | G44: =VLOOKUP($A$5,'RECAP SECT'!$G$6:$CY$312,139,FALSE) ->  | I44: =VLOOKUP($A$5,'RECAP SECT'!$G$6:$CY$312,140,FALSE) ->  | K44: =VLOOKUP($A$5,#REF!,140,FALSE) ->  | M44: =+K44-I44 ->  | O44: =VLOOKUP($A$5,'RECAP SECT'!$G$6:$CY$312,141,FALSE) ->  | S44: =VLOOKUP($A$5,#REF!,126,FALSE) ->  | U44: =+S44-I44 -> 
A46: CRITERE Satisfaction Clients | C46: 15% | O46: =VLOOKUP($A$5,'RECAP SECT'!$G$6:$CY$312,159,FALSE) -> 
B47: Objectifs NPS* | C47: 8% | E47: ='RECAP SECT'!K4 -> 25 | G47: =VLOOKUP($A$5,'RECAP SECT'!$G$6:$CY$312,151,FALSE) ->  | I47: =VLOOKUP($A$5,'RECAP SECT'!$G$6:$CY$312,152,FALSE) ->  | K47: =VLOOKUP($A$5,#REF!,152,FALSE) ->  | M47: =+K47-I47 ->  | O47: =VLOOKUP($A$5,'RECAP SECT'!$G$6:$CY$312,153,FALSE) ->  | S47: =VLOOKUP($A$5,#REF!,138,FALSE) ->  | U47: =+S47-I47 -> 
B48: Enquête Qualité Haute Définition | C48: 7% | E48: ='RECAP SECT'!N4 -> 74% | G48: =VLOOKUP($A$5,'RECAP SECT'!$G$6:$CY$312,154,FALSE) ->  | I48: =VLOOKUP($A$5,'RECAP SECT'!$G$6:$CY$312,155,FALSE) ->  | K48: =VLOOKUP($A$5,#REF!,155,FALSE) ->  | M48: =+K48-I48 ->  | O48: =VLOOKUP($A$5,'RECAP SECT'!$G$6:$CY$312,156,FALSE) ->  | S48: =VLOOKUP($A$5,#REF!,141,FALSE) ->  | U48: =+S48-I48 -> 

Sheet SE_TOTAL
B1: Accueil | F1: BAROMETRE BDD - TERRITOIRES
F2: TOTAL GENERAL
F3: =ACCUEIL!F7 -> 2022-10-23
F7: TOTAL GENERAL | I7: Total Satisfaction Clients | L7: Total Bancarisation | O7: Total Epargne | R7: Total IARD Prévoyance | U7: Total Crédits
G8: coef | H8: =K8+N8+Q8+T8+W8 -> 100% | J8: coef | K8: =SE_SATISFACTION!N8 -> 20% | M8: coef | N8: =SE_BANCA!P8 -> 20% | P8: coef | Q8: =SE_EPARGNE!P8 -> 20% | S8: coef | T8: =SE_IARD!P8 -> 20% | V8: coef | W8: =SE_CREDIT!T8 -> 20%
B9: Direction | C9: eds | D9: Territoire | E9: ="ETP perf "&DATEMAJ!$C$28 -> ETP perf 23-oct | F9: Moyenne ecart au 1er | G9: % Ecart au 1er | H9: Rang CEGEE | I9: Moyenne ecart au 1er | J9: % Ecart au 1er | K9: Rang CEGEE | L9: Moyenne ecart au 1er | M9: % Ecart au 1er | N9: Rang CEGEE | O9: Moyenne ecart au 1er | P9: % Ecart au 1er | Q9: Rang CEGEE | R9: Moyenne ecart au 1er | S9: % Ecart au 1er | T9: Rang CEGEE | U9: Moyenne ecart au 1er | V9: % Ecart au 1er | W9: Rang CEGEE
A10: 50 | B10: MARNE-ARDENNES | C10: 11 | D10: REIMS | E10: 68.0 | F10: 8% | G10: 0% | H10: 1 | I10: 26% | J10: 25% | K10: 7 | L10: 0% | M10: 0% | N10: 1 | O10: 16% | P10: 9% | Q10: 3 | R10: 6% | S10: 5% | T10: 2 | U10: 5% | V10: 0% | W10: 1
A11: 50 | B11: MARNE-ARDENNES | C11: 6 | D11: CHALONS EN CHAMPAGNE | E11: 37.4 | F11: 14% | G11: 6% | H11: 2 | I11: 0% | J11: 0% | K11: 1 | L11: 20% | M11: 20% | N11: 3 | O11: 26% | P11: 18% | Q11: 9 | R11: 12% | S11: 10% | T11: 4 | U11: 26% | V11: 21% | W11: 4
A12: 262 | B12: MOSELLE | C12: 44 | D12: MOSELLE NORD | E12: 55.6 | F12: 17% | G12: 9% | H12: 3 | I12: 40% | J12: 39% | K12: 13 | L12: 9% | M12: 9% | N12: 2 | O12: 39% | P12: 31% | Q12: 11 | R12: 2% | S12: 0% | T12: 1 | U12: 11% | V12: 6% | W12: 2
A13: 262 | B13: MARNE-ARDENNES | C13: 2 | D13: CHARLEVILLE MEZIERES | E13: 48.3 | F13: 21% | G13: 14% | H13: 4 | I13: 29% | J13: 28% | K13: 9 | L13: 35% | M13: 35% | N13: 6 | O13: 25% | P13: 17% | Q13: 7 | R13: 11% | S13: 9% | T13: 3 | U13: 22% | V13: 17% | W13: 3
A14: 262 | B14: MOSELLE | C14: 42 | D14: MOSELLE EST | E14: 58.0 | F14: 24% | G14: 16% | H14: 5 | I14: 18% | J14: 17% | K14: 5 | L14: 28% | M14: 28% | N14: 4 | O14: 45% | P14: 38% | Q14: 15 | R14: 15% | S14: 13% | T14: 5 | U14: 28% | V14: 24% | W14: 6
A15: 264 | B15: BAS-RHIN | C15: 5006 | D15: STRASBOURG | E15: 65.0 | F15: 26% | G15: 18% | H15: 6 | I15: 38% | J15: 38% | K15: 12 | L15: 31% | M15: 31% | N15: 5 | O15: 10% | P15: 2% | Q15: 2 | R15: 22% | S15: 20% | T15: 7 | U15: 41% | V15: 37% | W15: 11
A16: 264 | B16: MOSELLE | C16: 45 | D16: METZ | E16: 72.8 | F16: 26% | G16: 18% | H16: 7 | I16: 27% | J16: 27% | K16: 8 | L16: 41% | M16: 41% | N16: 9 | O16: 8% | P16: 0% | Q16: 1 | R16: 36% | S16: 34% | T16: 9 | U16: 32% | V16: 27% | W16: 8
A17: 30 | B17: AUBE HAUTE MARNE | C17: 21 | D17: CHAUMONT | E17: 33.6 | F17: 26% | G17: 18% | H17: 8 | I17: 21% | J17: 20% | K17: 6 | L17: 46% | M17: 46% | N17: 14 | O17: 23% | P17: 15% | Q17: 5 | R17: 16% | S17: 15% | T17: 6 | U17: 38% | V17: 34% | W17: 10
A18: 30 | B18: MEURTHE ET MOSELLE MEUSE | C18: 26 | D18: NANCY | E18: 54.9 | F18: 28% | G18: 20% | H18: 9 | I18: 32% | J18: 31% | K18: 10 | L18: 43% | M18: 43% | N18: 11 | O18: 17% | P18: 9% | Q18: 4 | R18: 37% | S18: 35% | T18: 10 | U18: 26% | V18: 22% | W18: 5
A19: 30 | B19: VOSGES | C19: 57 | D19: EPINAL | E19: 53.0 | F19: 29% | G19: 21% | H19: 10 | I19: 11% | J19: 11% | K19: 3 | L19: 41% | M19: 41% | N19: 8 | O19: 23% | P19: 16% | Q19: 6 | R19: 42% | S19: 40% | T19: 12 | U19: 42% | V19: 37% | W19: 12
A20: 110 | B20: MEURTHE ET MOSELLE MEUSE | C20: 31 | D20: VERDUN | E20: 48.5 | F20: 30% | G20: 22% | H20: 11 | I20: 13% | J20: 13% | K20: 4 | L20: 37% | M20: 37% | N20: 7 | O20: 42% | P20: 34% | Q20: 13 | R20: 38% | S20: 36% | T20: 11 | U20: 34% | V20: 29% | W20: 9
A21: 110 | B21: MEURTHE ET MOSELLE MEUSE | C21: 27 | D21: PONT A MOUSSON | E21: 59.6 | F21: 34% | G21: 26% | H21: 12 | I21: 56% | J21: 56% | K21: 15 | L21: 44% | M21: 44% | N21: 12 | O21: 25% | P21: 18% | Q21: 8 | R21: 27% | S21: 26% | T21: 8 | U21: 30% | V21: 25% | W21: 7
A22: 110 | B22: VOSGES | C22: 55 | D22: SAINT DIE | E22: 40.1 | F22: 35% | G22: 27% | H22: 13 | I22: 3% | J22: 3% | K22: 2 | L22: 52% | M22: 52% | N22: 15 | O22: 43% | P22: 35% | Q22: 14 | R22: 49% | S22: 48% | T22: 15 | U22: 43% | V22: 38% | W22: 13
A23: 160 | B23: BAS-RHIN | C23: 5060 | D23: HAGUENAU | E23: 55.4 | F23: 40% | G23: 32% | H23: 14 | I23: 36% | J23: 36% | K23: 11 | L23: 42% | M23: 42% | N23: 10 | O23: 38% | P23: 30% | Q23: 10 | R23: 49% | S23: 48% | T23: 14 | U23: 50% | V23: 45% | W23: 16
A24: 160 | B24: BAS-RHIN | C24: 5101 | D24: SELESTAT | E24: 50.9 | F24: 45% | G24: 37% | H24: 15 | I24: 56% | J24: 55% | K24: 14 | L24: 44% | M24: 44% | N24: 13 | O24: 41% | P24: 33% | Q24: 12 | R24: 50% | S24: 48% | T24: 16 | U24: 47% | V24: 43% | W24: 15
A25: 160 | B25: AUBE HAUTE MARNE | C25: 14 | D25: TROYES | E25: 54.0 | F25: 54% | G25: 46% | H25: 16 | I25: 67% | J25: 67% | K25: 18 | L25: 60% | M25: 60% | N25: 16 | O25: 69% | P25: 62% | Q25: 16 | R25: 42% | S25: 40% | T25: 13 | U25: 44% | V25: 40% | W25: 14
A26: 80 | B26: HAUT-RHIN | C26: 5130 | D26: COLMAR | E26: 45.9 | F26: 60% | G26: 52% | H26: 17 | I26: 61% | J26: 60% | K26: 16 | L26: 64% | M26: 64% | N26: 17 | O26: 77% | P26: 70% | Q26: 17 | R26: 59% | S26: 58% | T26: 17 | U26: 52% | V26: 47% | W26: 18
A27: 80 | B27: HAUT-RHIN | C27: 5169 | D27: MULHOUSE | E27: 46.7 | F27: 67% | G27: 60% | H27: 18 | I27: 63% | J27: 62% | K27: 17 | L27: 75% | M27: 75% | N27: 18 | O27: 87% | P27: 80% | Q27: 18 | R27: 76% | S27: 75% | T27: 18 | U27: 50% | V27: 46% | W27: 17
A28: Total CEGEE Directions Régionales | E28: =SUM(E10:E27) -> 948

Sheet SE_BANCA
B1: Accueil | F1: BAROMETRE BDD - TERRITOIRES
F2: BANCARISATION
F3: =ACCUEIL!F7 -> 2022-10-23
F7: Ventes Nettes produits pondérés | J7: Ventes sur client non détenteur de l’univers | N7: Total Bancarisation
F8: =DATEMAJ!C8 -> au 23/10 | H8: coef | I8: ='RECAP DIRCOM'!AA4 -> 12% | J8: =DATEMAJ!C9 -> au 23/10 | L8: coef | M8: ='RECAP DIRCOM'!AE4 -> 8% | O8: coef | P8: ='RECAP DIRCOM'!AH4 -> 20%
B9: Direction | C9: eds | D9: Territoire | E9: ="ETP perf "&DATEMAJ!$C$28 -> ETP perf 23-oct | F9: VN | G9: VN / ETP | H9: % Ecart au 1er | I9: Rang | J9: VB | K9: VB / ETP | L9: % Ecart au 1er | M9: Rang | N9: Moyenne ecart au 1er | O9: % Ecart au 1er | P9: Rang CEGEE
A10: 50 | B10: AUBE HAUTE MARNE | C10: 21 | D10: CHAUMONT | E10: =VLOOKUP($C10,'RECAP SECT'!$G$6:$CU$253,3,FALSE) -> 33.6 | F10: =VLOOKUP($C10,'RECAP SECT'!$G$6:$CU$253,18,FALSE) -> 561 | G10: =VLOOKUP($C10,'RECAP SECT'!$G$6:$CU$253,19,FALSE) -> 16.68 | H10: =VLOOKUP($C10,'RECAP SECT'!$G$6:$CU$253,20,FALSE) -> 55% | I10: =VLOOKUP($C10,'RECAP SECT'!$G$6:$CU$253,21,FALSE) -> 12 | J10: =VLOOKUP($C10,'RECAP SECT'!$G$6:$CU$253,22,FALSE) -> 2,068 | K10: =VLOOKUP($C10,'RECAP SECT'!$G$6:$CU$253,23,FALSE) -> 61.47 | L10: =VLOOKUP($C10,'RECAP SECT'!$G$6:$CU$253,24,FALSE) -> 32% | M10: =VLOOKUP($C10,'RECAP SECT'!$G$6:$CU$253,25,FALSE) -> 11 | N10: =VLOOKUP($C10,'RECAP SECT'!$G$6:$CU$253,26,FALSE) -> 46% | O10: =VLOOKUP($C10,'RECAP SECT'!$G$6:$CU$253,27,FALSE) -> 46% | P10: =VLOOKUP($C10,'RECAP SECT'!$G$6:$CU$253,28,FALSE) -> 14
A11: 50 | B11: AUBE HAUTE MARNE | C11: 14 | D11: TROYES | E11: =VLOOKUP($C11,'RECAP SECT'!$G$6:$CU$253,3,FALSE) -> 54.0 | F11: =VLOOKUP($C11,'RECAP SECT'!$G$6:$CU$253,18,FALSE) -> 435 | G11: =VLOOKUP($C11,'RECAP SECT'!$G$6:$CU$253,19,FALSE) -> 8.04 | H11: =VLOOKUP($C11,'RECAP SECT'!$G$6:$CU$253,20,FALSE) -> 78% | I11: =VLOOKUP($C11,'RECAP SECT'!$G$6:$CU$253,21,FALSE) -> 17 | J11: =VLOOKUP($C11,'RECAP SECT'!$G$6:$CU$253,22,FALSE) -> 3,300 | K11: =VLOOKUP($C11,'RECAP SECT'!$G$6:$CU$253,23,FALSE) -> 61.08 | L11: =VLOOKUP($C11,'RECAP SECT'!$G$6:$CU$253,24,FALSE) -> 32% | M11: =VLOOKUP($C11,'RECAP SECT'!$G$6:$CU$253,25,FALSE) -> 12 | N11: =VLOOKUP($C11,'RECAP SECT'!$G$6:$CU$253,26,FALSE) -> 60% | O11: =VLOOKUP($C11,'RECAP SECT'!$G$6:$CU$253,27,FALSE) -> 60% | P11: =VLOOKUP($C11,'RECAP SECT'!$G$6:$CU$253,28,FALSE) -> 16
A12: 262 | B12: BAS-RHIN | C12: 5060 | D12: HAGUENAU | E12: =VLOOKUP($C12,'RECAP SECT'!$G$6:$CU$253,3,FALSE) -> 55.4 | F12: =VLOOKUP($C12,'RECAP SECT'!$G$6:$CU$253,18,FALSE) -> 1,165 | G12: =VLOOKUP($C12,'RECAP SECT'!$G$6:$CU$253,19,FALSE) -> 21.02 | H12: =VLOOKUP($C12,'RECAP SECT'!$G$6:$CU$253,20,FALSE) -> 44% | I12: =VLOOKUP($C12,'RECAP SECT'!$G$6:$CU$253,21,FALSE) -> 7 | J12: =VLOOKUP($C12,'RECAP SECT'!$G$6:$CU$253,22,FALSE) -> 3,065 | K12: =VLOOKUP($C12,'RECAP SECT'!$G$6:$CU$253,23,FALSE) -> 55.32 | L12: =VLOOKUP($C12,'RECAP SECT'!$G$6:$CU$253,24,FALSE) -> 38% | M12: =VLOOKUP($C12,'RECAP SECT'!$G$6:$CU$253,25,FALSE) -> 15 | N12: =VLOOKUP($C12,'RECAP SECT'!$G$6:$CU$253,26,FALSE) -> 42% | O12: =VLOOKUP($C12,'RECAP SECT'!$G$6:$CU$253,27,FALSE) -> 42% | P12: =VLOOKUP($C12,'RECAP SECT'!$G$6:$CU$253,28,FALSE) -> 10
A13: 262 | B13: BAS-RHIN | C13: 5101 | D13: SELESTAT | E13: =VLOOKUP($C13,'RECAP SECT'!$G$6:$CU$253,3,FALSE) -> 50.9 | F13: =VLOOKUP($C13,'RECAP SECT'!$G$6:$CU$253,18,FALSE) -> 1,010 | G13: =VLOOKUP($C13,'RECAP SECT'!$G$6:$CU$253,19,FALSE) -> 19.83 | H13: =VLOOKUP($C13,'RECAP SECT'!$G$6:$CU$253,20,FALSE) -> 47% | I13: =VLOOKUP($C13,'RECAP SECT'!$G$6:$CU$253,21,FALSE) -> 10 | J13: =VLOOKUP($C13,'RECAP SECT'!$G$6:$CU$253,22,FALSE) -> 2,771 | K13: =VLOOKUP($C13,'RECAP SECT'!$G$6:$CU$253,23,FALSE) -> 54.43 | L13: =VLOOKUP($C13,'RECAP SECT'!$G$6:$CU$253,24,FALSE) -> 39% | M13: =VLOOKUP($C13,'RECAP SECT'!$G$6:$CU$253,25,FALSE) -> 16 | N13: =VLOOKUP($C13,'RECAP SECT'!$G$6:$CU$253,26,FALSE) -> 44% | O13: =VLOOKUP($C13,'RECAP SECT'!$G$6:$CU$253,27,FALSE) -> 44% | P13: =VLOOKUP($C13,'RECAP SECT'!$G$6:$CU$253,28,FALSE) -> 13
A14: 262 | B14: BAS-RHIN | C14: 5006 | D14: STRASBOURG | E14: =VLOOKUP($C14,'RECAP SECT'!$G$6:$CU$253,3,FALSE) -> 65.0 | F14: =VLOOKUP($C14,'RECAP SECT'!$G$6:$CU$253,18,FALSE) -> 1,380 | G14: =VLOOKUP($C14,'RECAP SECT'!$G$6:$CU$253,19,FALSE) -> 21.24 | H14: =VLOOKUP($C14,'RECAP SECT'!$G$6:$CU$253,20,FALSE) -> 43% | I14: =VLOOKUP($C14,'RECAP SECT'!$G$6:$CU$253,21,FALSE) -> 5 | J14: =VLOOKUP($C14,'RECAP SECT'!$G$6:$CU$253,22,FALSE) -> 5,075 | K14: =VLOOKUP($C14,'RECAP SECT'!$G$6:$CU$253,23,FALSE) -> 78.13 | L14: =VLOOKUP($C14,'RECAP SECT'!$G$6:$CU$253,24,FALSE) -> 13% | M14: =VLOOKUP($C14,'RECAP SECT'!$G$6:$CU$253,25,FALSE) -> 3 | N14: =VLOOKUP($C14,'RECAP SECT'!$G$6:$CU$253,26,FALSE) -> 31% | O14: =VLOOKUP($C14,'RECAP SECT'!$G$6:$CU$253,27,FALSE) -> 31% | P14: =VLOOKUP($C14,'RECAP SECT'!$G$6:$CU$253,28,FALSE) -> 5
A15: 264 | B15: HAUT-RHIN | C15: 5130 | D15: COLMAR | E15: =VLOOKUP($C15,'RECAP SECT'!$G$6:$CU$253,3,FALSE) -> 45.9 | F15: =VLOOKUP($C15,'RECAP SECT'!$G$6:$CU$253,18,FALSE) -> 388 | G15: =VLOOKUP($C15,'RECAP SECT'!$G$6:$CU$253,19,FALSE) -> 8.46 | H15: =VLOOKUP($C15,'RECAP SECT'!$G$6:$CU$253,20,FALSE) -> 77% | I15: =VLOOKUP($C15,'RECAP SECT'!$G$6:$CU$253,21,FALSE) -> 16 | J15: =VLOOKUP($C15,'RECAP SECT'!$G$6:$CU$253,22,FALSE) -> 2,277 | K15: =VLOOKUP($C15,'RECAP SECT'!$G$6:$CU$253,23,FALSE) -> 49.61 | L15: =VLOOKUP($C15,'RECAP SECT'!$G$6:$CU$253,24,FALSE) -> 45% | M15: =VLOOKUP($C15,'RECAP SECT'!$G$6:$CU$253,25,FALSE) -> 18 | N15: =VLOOKUP($C15,'RECAP SECT'!$G$6:$CU$253,26,FALSE) -> 64% | O15: =VLOOKUP($C15,'RECAP SECT'!$G$6:$CU$253,27,FALSE) -> 64% | P15: =VLOOKUP($C15,'RECAP SECT'!$G$6:$CU$253,28,FALSE) -> 17
A16: 264 | B16: HAUT-RHIN | C16: 5169 | D16: MULHOUSE | E16: =VLOOKUP($C16,'RECAP SECT'!$G$6:$CU$253,3,FALSE) -> 46.7 | F16: =VLOOKUP($C16,'RECAP SECT'!$G$6:$CU$253,18,FALSE) -> 1 | G16: =VLOOKUP($C16,'RECAP SECT'!$G$6:$CU$253,19,FALSE) -> 0.02 | H16: =VLOOKUP($C16,'RECAP SECT'!$G$6:$CU$253,20,FALSE) -> 100% | I16: =VLOOKUP($C16,'RECAP SECT'!$G$6:$CU$253,21,FALSE) -> 18 | J16: =VLOOKUP($C16,'RECAP SECT'!$G$6:$CU$253,22,FALSE) -> 2,636 | K16: =VLOOKUP($C16,'RECAP SECT'!$G$6:$CU$253,23,FALSE) -> 56.42 | L16: =VLOOKUP($C16,'RECAP SECT'!$G$6:$CU$253,24,FALSE) -> 37% | M16: =VLOOKUP($C16,'RECAP SECT'!$G$6:$CU$253,25,FALSE) -> 14 | N16: =VLOOKUP($C16,'RECAP SECT'!$G$6:$CU$253,26,FALSE) -> 75% | O16: =VLOOKUP($C16,'RECAP SECT'!$G$6:$CU$253,27,FALSE) -> 75% | P16: =VLOOKUP($C16,'RECAP SECT'!$G$6:$CU$253,28,FALSE) -> 18
A17: 30 | B17: MARNE-ARDENNES | C17: 6 | D17: CHALONS EN CHAMPAGNE | E17: =VLOOKUP($C17,'RECAP SECT'!$G$6:$CU$253,3,FALSE) -> 37.4 | F17: =VLOOKUP($C17,'RECAP SECT'!$G$6:$CU$253,18,FALSE) -> 1,158 | G17: =VLOOKUP($C17,'RECAP SECT'!$G$6:$CU$253,19,FALSE) -> 30.94 | H17: =VLOOKUP($C17,'RECAP SECT'!$G$6:$CU$253,20,FALSE) -> 17% | I17: =VLOOKUP($C17,'RECAP SECT'!$G$6:$CU$253,21,FALSE) -> 3 | J17: =VLOOKUP($C17,'RECAP SECT'!$G$6:$CU$253,22,FALSE) -> 2,514 | K17: =VLOOKUP($C17,'RECAP SECT'!$G$6:$CU$253,23,FALSE) -> 67.15 | L17: =VLOOKUP($C17,'RECAP SECT'!$G$6:$CU$253,24,FALSE) -> 25% | M17: =VLOOKUP($C17,'RECAP SECT'!$G$6:$CU$253,25,FALSE) -> 8 | N17: =VLOOKUP($C17,'RECAP SECT'!$G$6:$CU$253,26,FALSE) -> 20% | O17: =VLOOKUP($C17,'RECAP SECT'!$G$6:$CU$253,27,FALSE) -> 20% | P17: =VLOOKUP($C17,'RECAP SECT'!$G$6:$CU$253,28,FALSE) -> 3
A18: 30 | B18: MARNE-ARDENNES | C18: 2 | D18: CHARLEVILLE MEZIERES | E18: =VLOOKUP($C18,'RECAP SECT'!$G$6:$CU$253,3,FALSE) -> 48.3 | F18: =VLOOKUP($C18,'RECAP SECT'!$G$6:$CU$253,18,FALSE) -> 1,012 | G18: =VLOOKUP($C18,'RECAP SECT'!$G$6:$CU$253,19,FALSE) -> 20.94 | H18: =VLOOKUP($C18,'RECAP SECT'!$G$6:$CU$253,20,FALSE) -> 44% | I18: =VLOOKUP($C18,'RECAP SECT'!$G$6:$CU$253,21,FALSE) -> 8 | J18: =VLOOKUP($C18,'RECAP SECT'!$G$6:$CU$253,22,FALSE) -> 3,411 | K18: =VLOOKUP($C18,'RECAP SECT'!$G$6:$CU$253,23,FALSE) -> 70.61 | L18: =VLOOKUP($C18,'RECAP SECT'!$G$6:$CU$253,24,FALSE) -> 21% | M18: =VLOOKUP($C18,'RECAP SECT'!$G$6:$CU$253,25,FALSE) -> 5 | N18: =VLOOKUP($C18,'RECAP SECT'!$G$6:$CU$253,26,FALSE) -> 35% | O18: =VLOOKUP($C18,'RECAP SECT'!$G$6:$CU$253,27,FALSE) -> 35% | P18: =VLOOKUP($C18,'RECAP SECT'!$G$6:$CU$253,28,FALSE) -> 6
A19: 30 | B19: MARNE-ARDENNES | C19: 11 | D19: REIMS | E19: =VLOOKUP($C19,'RECAP SECT'!$G$6:$CU$253,3,FALSE) -> 68.0 | F19: =VLOOKUP($C19,'RECAP SECT'!$G$6:$CU$253,18,FALSE) -> 2,542 | G19: =VLOOKUP($C19,'RECAP SECT'!$G$6:$CU$253,19,FALSE) -> 37.37 | H19: =VLOOKUP($C19,'RECAP SECT'!$G$6:$CU$253,20,FALSE) -> 0% | I19: =VLOOKUP($C19,'RECAP SECT'!$G$6:$CU$253,21,FALSE) -> 1 | J19: =VLOOKUP($C19,'RECAP SECT'!$G$6:$CU$253,22,FALSE) -> 6,108 | K19: =VLOOKUP($C19,'RECAP SECT'!$G$6:$CU$253,23,FALSE) -> 89.80 | L19: =VLOOKUP($C19,'RECAP SECT'!$G$6:$CU$253,24,FALSE) -> 0% | M19: =VLOOKUP($C19,'RECAP SECT'!$G$6:$CU$253,25,FALSE) -> 1 | N19: =VLOOKUP($C19,'RECAP SECT'!$G$6:$CU$253,26,FALSE) -> 0% | O19: =VLOOKUP($C19,'RECAP SECT'!$G$6:$CU$253,27,FALSE) -> 0% | P19: =VLOOKUP($C19,'RECAP SECT'!$G$6:$CU$253,28,FALSE) -> 1
A20: 110 | B20: MEURTHE ET MOSELLE MEUSE | C20: 26 | D20: NANCY | E20: =VLOOKUP($C20,'RECAP SECT'!$G$6:$CU$253,3,FALSE) -> 54.9 | F20: =VLOOKUP($C20,'RECAP SECT'!$G$6:$CU$253,18,FALSE) -> 894 | G20: =VLOOKUP($C20,'RECAP SECT'!$G$6:$CU$253,19,FALSE) -> 16.29 | H20: =VLOOKUP($C20,'RECAP SECT'!$G$6:$CU$253,20,FALSE) -> 56% | I20: =VLOOKUP($C20,'RECAP SECT'!$G$6:$CU$253,21,FALSE) -> 13 | J20: =VLOOKUP($C20,'RECAP SECT'!$G$6:$CU$253,22,FALSE) -> 3,768 | K20: =VLOOKUP($C20,'RECAP SECT'!$G$6:$CU$253,23,FALSE) -> 68.65 | L20: =VLOOKUP($C20,'RECAP SECT'!$G$6:$CU$253,24,FALSE) -> 24% | M20: =VLOOKUP($C20,'RECAP SECT'!$G$6:$CU$253,25,FALSE) -> 7 | N20: =VLOOKUP($C20,'RECAP SECT'!$G$6:$CU$253,26,FALSE) -> 43% | O20: =VLOOKUP($C20,'RECAP SECT'!$G$6:$CU$253,27,FALSE) -> 43% | P20: =VLOOKUP($C20,'RECAP SECT'!$G$6:$CU$253,28,FALSE) -> 11
A21: 110 | B21: MEURTHE ET MOSELLE MEUSE | C21: 27 | D21: PONT A MOUSSON | E21: =VLOOKUP($C21,'RECAP SECT'!$G$6:$CU$253,3,FALSE) -> 59.6 | F21: =VLOOKUP($C21,'RECAP SECT'!$G$6:$CU$253,18,FALSE) -> 941 | G21: =VLOOKUP($C21,'RECAP SECT'!$G$6:$CU$253,19,FALSE) -> 15.79 | H21: =VLOOKUP($C21,'RECAP SECT'!$G$6:$CU$253,20,FALSE) -> 58% | I21: =VLOOKUP($C21,'RECAP SECT'!$G$6:$CU$253,21,FALSE) -> 14 | J21: =VLOOKUP($C21,'RECAP SECT'!$G$6:$CU$253,22,FALSE) -> 4,124 | K21: =VLOOKUP($C21,'RECAP SECT'!$G$6:$CU$253,23,FALSE) -> 69.19 | L21: =VLOOKUP($C21,'RECAP SECT'!$G$6:$CU$253,24,FALSE) -> 23% | M21: =VLOOKUP($C21,'RECAP SECT'!$G$6:$CU$253,25,FALSE) -> 6 | N21: =VLOOKUP($C21,'RECAP SECT'!$G$6:$CU$253,26,FALSE) -> 44% | O21: =VLOOKUP($C21,'RECAP SECT'!$G$6:$CU$253,27,FALSE) -> 44% | P21: =VLOOKUP($C21,'RECAP SECT'!$G$6:$CU$253,28,FALSE) -> 12
A22: 110 | B22: MEURTHE ET MOSELLE MEUSE | C22: 31 | D22: VERDUN | E22: =VLOOKUP($C22,'RECAP SECT'!$G$6:$CU$253,3,FALSE) -> 48.5 | F22: =VLOOKUP($C22,'RECAP SECT'!$G$6:$CU$253,18,FALSE) -> 1,023 | G22: =VLOOKUP($C22,'RECAP SECT'!$G$6:$CU$253,19,FALSE) -> 21.09 | H22: =VLOOKUP($C22,'RECAP SECT'!$G$6:$CU$253,20,FALSE) -> 44% | I22: =VLOOKUP($C22,'RECAP SECT'!$G$6:$CU$253,21,FALSE) -> 6 | J22: =VLOOKUP($C22,'RECAP SECT'!$G$6:$CU$253,22,FALSE) -> 3,189 | K22: =VLOOKUP($C22,'RECAP SECT'!$G$6:$CU$253,23,FALSE) -> 65.75 | L22: =VLOOKUP($C22,'RECAP SECT'!$G$6:$CU$253,24,FALSE) -> 27% | M22: =VLOOKUP($C22,'RECAP SECT'!$G$6:$CU$253,25,FALSE) -> 10 | N22: =VLOOKUP($C22,'RECAP SECT'!$G$6:$CU$253,26,FALSE) -> 37% | O22: =VLOOKUP($C22,'RECAP SECT'!$G$6:$CU$253,27,FALSE) -> 37% | P22: =VLOOKUP($C22,'RECAP SECT'!$G$6:$CU$253,28,FALSE) -> 7
A23: 160 | B23: MOSELLE | C23: 45 | D23: METZ | E23: =VLOOKUP($C23,'RECAP SECT'!$G$6:$CU$253,3,FALSE) -> 72.8 | F23: =VLOOKUP($C23,'RECAP SECT'!$G$6:$CU$253,18,FALSE) -> 1,328 | G23: =VLOOKUP($C23,'RECAP SECT'!$G$6:$CU$253,19,FALSE) -> 18.24 | H23: =VLOOKUP($C23,'RECAP SECT'!$G$6:$CU$253,20,FALSE) -> 51% | I23: =VLOOKUP($C23,'RECAP SECT'!$G$6:$CU$253,21,FALSE) -> 11 | J23: =VLOOKUP($C23,'RECAP SECT'!$G$6:$CU$253,22,FALSE) -> 4,864 | K23: =VLOOKUP($C23,'RECAP SECT'!$G$6:$CU$253,23,FALSE) -> 66.80 | L23: =VLOOKUP($C23,'RECAP SECT'!$G$6:$CU$253,24,FALSE) -> 26% | M23: =VLOOKUP($C23,'RECAP SECT'!$G$6:$CU$253,25,FALSE) -> 9 | N23: =VLOOKUP($C23,'RECAP SECT'!$G$6:$CU$253,26,FALSE) -> 41% | O23: =VLOOKUP($C23,'RECAP SECT'!$G$6:$CU$253,27,FALSE) -> 41% | P23: =VLOOKUP($C23,'RECAP SECT'!$G$6:$CU$253,28,FALSE) -> 9
A24: 160 | B24: MOSELLE | C24: 42 | D24: MOSELLE EST | E24: =VLOOKUP($C24,'RECAP SECT'!$G$6:$CU$253,3,FALSE) -> 58.0 | F24: =VLOOKUP($C24,'RECAP SECT'!$G$6:$CU$253,18,FALSE) -> 1,445 | G24: =VLOOKUP($C24,'RECAP SECT'!$G$6:$CU$253,19,FALSE) -> 24.91 | H24: =VLOOKUP($C24,'RECAP SECT'!$G$6:$CU$253,20,FALSE) -> 33% | I24: =VLOOKUP($C24,'RECAP SECT'!$G$6:$CU$253,21,FALSE) -> 4 | J24: =VLOOKUP($C24,'RECAP SECT'!$G$6:$CU$253,22,FALSE) -> 4,184 | K24: =VLOOKUP($C24,'RECAP SECT'!$G$6:$CU$253,23,FALSE) -> 72.14 | L24: =VLOOKUP($C24,'RECAP SECT'!$G$6:$CU$253,24,FALSE) -> 20% | M24: =VLOOKUP($C24,'RECAP SECT'!$G$6:$CU$253,25,FALSE) -> 4 | N24: =VLOOKUP($C24,'RECAP SECT'!$G$6:$CU$253,26,FALSE) -> 28% | O24: =VLOOKUP($C24,'RECAP SECT'!$G$6:$CU$253,27,FALSE) -> 28% | P24: =VLOOKUP($C24,'RECAP SECT'!$G$6:$CU$253,28,FALSE) -> 4
A25: 160 | B25: MOSELLE | C25: 44 | D25: MOSELLE NORD | E25: =VLOOKUP($C25,'RECAP SECT'!$G$6:$CU$253,3,FALSE) -> 55.6 | F25: =VLOOKUP($C25,'RECAP SECT'!$G$6:$CU$253,18,FALSE) -> 1,917 | G25: =VLOOKUP($C25,'RECAP SECT'!$G$6:$CU$253,19,FALSE) -> 34.47 | H25: =VLOOKUP($C25,'RECAP SECT'!$G$6:$CU$253,20,FALSE) -> 8% | I25: =VLOOKUP($C25,'RECAP SECT'!$G$6:$CU$253,21,FALSE) -> 2 | J25: =VLOOKUP($C25,'RECAP SECT'!$G$6:$CU$253,22,FALSE) -> 4,494 | K25: =VLOOKUP($C25,'RECAP SECT'!$G$6:$CU$253,23,FALSE) -> 80.83 | L25: =VLOOKUP($C25,'RECAP SECT'!$G$6:$CU$253,24,FALSE) -> 10% | M25: =VLOOKUP($C25,'RECAP SECT'!$G$6:$CU$253,25,FALSE) -> 2 | N25: =VLOOKUP($C25,'RECAP SECT'!$G$6:$CU$253,26,FALSE) -> 9% | O25: =VLOOKUP($C25,'RECAP SECT'!$G$6:$CU$253,27,FALSE) -> 9% | P25: =VLOOKUP($C25,'RECAP SECT'!$G$6:$CU$253,28,FALSE) -> 2
A26: 80 | B26: VOSGES | C26: 57 | D26: EPINAL | E26: =VLOOKUP($C26,'RECAP SECT'!$G$6:$CU$253,3,FALSE) -> 53.0 | F26: =VLOOKUP($C26,'RECAP SECT'!$G$6:$CU$253,18,FALSE) -> 1,084 | G26: =VLOOKUP($C26,'RECAP SECT'!$G$6:$CU$253,19,FALSE) -> 20.45 | H26: =VLOOKUP($C26,'RECAP SECT'!$G$6:$CU$253,20,FALSE) -> 45% | I26: =VLOOKUP($C26,'RECAP SECT'!$G$6:$CU$253,21,FALSE) -> 9 | J26: =VLOOKUP($C26,'RECAP SECT'!$G$6:$CU$253,22,FALSE) -> 3,163 | K26: =VLOOKUP($C26,'RECAP SECT'!$G$6:$CU$253,23,FALSE) -> 59.67 | L26: =VLOOKUP($C26,'RECAP SECT'!$G$6:$CU$253,24,FALSE) -> 34% | M26: =VLOOKUP($C26,'RECAP SECT'!$G$6:$CU$253,25,FALSE) -> 13 | N26: =VLOOKUP($C26,'RECAP SECT'!$G$6:$CU$253,26,FALSE) -> 41% | O26: =VLOOKUP($C26,'RECAP SECT'!$G$6:$CU$253,27,FALSE) -> 41% | P26: =VLOOKUP($C26,'RECAP SECT'!$G$6:$CU$253,28,FALSE) -> 8
A27: 80 | B27: VOSGES | C27: 55 | D27: SAINT DIE | E27: =VLOOKUP($C27,'RECAP SECT'!$G$6:$CU$253,3,FALSE) -> 40.1 | F27: =VLOOKUP($C27,'RECAP SECT'!$G$6:$CU$253,18,FALSE) -> 620 | G27: =VLOOKUP($C27,'RECAP SECT'!$G$6:$CU$253,19,FALSE) -> 15.45 | H27: =VLOOKUP($C27,'RECAP SECT'!$G$6:$CU$253,20,FALSE) -> 59% | I27: =VLOOKUP($C27,'RECAP SECT'!$G$6:$CU$253,21,FALSE) -> 15 | J27: =VLOOKUP($C27,'RECAP SECT'!$G$6:$CU$253,22,FALSE) -> 2,103 | K27: =VLOOKUP($C27,'RECAP SECT'!$G$6:$CU$253,23,FALSE) -> 52.42 | L27: =VLOOKUP($C27,'RECAP SECT'!$G$6:$CU$253,24,FALSE) -> 42% | M27: =VLOOKUP($C27,'RECAP SECT'!$G$6:$CU$253,25,FALSE) -> 17 | N27: =VLOOKUP($C27,'RECAP SECT'!$G$6:$CU$253,26,FALSE) -> 52% | O27: =VLOOKUP($C27,'RECAP SECT'!$G$6:$CU$253,27,FALSE) -> 52% | P27: =VLOOKUP($C27,'RECAP SECT'!$G$6:$CU$253,28,FALSE) -> 15
A28: Total CEGEE Directions Régionales | E28: =SUM(E10:E27) -> 948

Sheet SE_EPARGNE
B1: Accueil | F1: BAROMETRE BDD - TERRITOIRES
F2: EPARGNE
F3: =ACCUEIL!F7 -> 2022-10-23
F7: Excédent Epargne hors DAV pondéré | J7: Ventes sur client non détenteur de l’univers | N7: Total Epargne
F8: =DATEMAJ!C14 -> au 23/10 | H8: coef | I8: ='RECAP DIRCOM'!AP4 -> 12% | J8: =DATEMAJ!C15 -> au 23/10 | L8: coef | M8: ='RECAP DIRCOM'!AT4 -> 8% | O8: coef | P8: ='RECAP DIRCOM'!AW4 -> 20%
A9: eds | B9: Direction | C9: eds | D9: Territoire | E9: ="ETP perf "&DATEMAJ!$C$28 -> ETP perf 23-oct | F9: Excédent | G9: Excédent / ETP | H9: % Ecart au 1er | I9: Rang | J9: VB | K9: VB / ETP | L9: % Ecart au 1er | M9: Rang | N9: Moyenne ecart au 1er | O9: % Ecart au 1er | P9: Rang CEGEE
A10: 50 | B10: AUBE HAUTE MARNE | C10: 21 | D10: CHAUMONT | E10: =VLOOKUP($C10,'RECAP SECT'!$G$6:$CU$253,3,FALSE) -> 33.6 | F10: =VLOOKUP($C10,'RECAP SECT'!$G$6:$CU$253,33,FALSE) -> 12,660 | G10: =VLOOKUP($C10,'RECAP SECT'!$G$6:$CU$253,34,FALSE) -> 376.35 | H10: =VLOOKUP($C10,'RECAP SECT'!$G$6:$CU$253,35,FALSE) -> 17% | I10: =VLOOKUP($C10,'RECAP SECT'!$G$6:$CU$253,36,FALSE) -> 5 | J10: =VLOOKUP($C10,'RECAP SECT'!$G$6:$CU$253,37,FALSE) -> 2,002 | K10: =VLOOKUP($C10,'RECAP SECT'!$G$6:$CU$253,38,FALSE) -> 59.51 | L10: =VLOOKUP($C10,'RECAP SECT'!$G$6:$CU$253,39,FALSE) -> 32% | M10: =VLOOKUP($C10,'RECAP SECT'!$G$6:$CU$253,40,FALSE) -> 9 | N10: =VLOOKUP($C10,'RECAP SECT'!$G$6:$CU$253,41,FALSE) -> 23% | O10: =VLOOKUP($C10,'RECAP SECT'!$G$6:$CU$253,42,FALSE) -> 15% | P10: =VLOOKUP($C10,'RECAP SECT'!$G$6:$CU$253,43,FALSE) -> 5
A11: 50 | B11: AUBE HAUTE MARNE | C11: 14 | D11: TROYES | E11: =VLOOKUP($C11,'RECAP SECT'!$G$6:$CU$253,3,FALSE) -> 54.0 | F11: =VLOOKUP($C11,'RECAP SECT'!$G$6:$CU$253,33,FALSE) -> 1,832 | G11: =VLOOKUP($C11,'RECAP SECT'!$G$6:$CU$253,34,FALSE) -> 33.91 | H11: =VLOOKUP($C11,'RECAP SECT'!$G$6:$CU$253,35,FALSE) -> 93% | I11: =VLOOKUP($C11,'RECAP SECT'!$G$6:$CU$253,36,FALSE) -> 16 | J11: =VLOOKUP($C11,'RECAP SECT'!$G$6:$CU$253,37,FALSE) -> 3,115 | K11: =VLOOKUP($C11,'RECAP SECT'!$G$6:$CU$253,38,FALSE) -> 57.65 | L11: =VLOOKUP($C11,'RECAP SECT'!$G$6:$CU$253,39,FALSE) -> 34% | M11: =VLOOKUP($C11,'RECAP SECT'!$G$6:$CU$253,40,FALSE) -> 13 | N11: =VLOOKUP($C11,'RECAP SECT'!$G$6:$CU$253,41,FALSE) -> 69% | O11: =VLOOKUP($C11,'RECAP SECT'!$G$6:$CU$253,42,FALSE) -> 62% | P11: =VLOOKUP($C11,'RECAP SECT'!$G$6:$CU$253,43,FALSE) -> 16
A12: 262 | B12: BAS-RHIN | C12: 5060 | D12: HAGUENAU | E12: =VLOOKUP($C12,'RECAP SECT'!$G$6:$CU$253,3,FALSE) -> 55.4 | F12: =VLOOKUP($C12,'RECAP SECT'!$G$6:$CU$253,33,FALSE) -> 15,527 | G12: =VLOOKUP($C12,'RECAP SECT'!$G$6:$CU$253,34,FALSE) -> 280.28 | H12: =VLOOKUP($C12,'RECAP SECT'!$G$6:$CU$253,35,FALSE) -> 38% | I12: =VLOOKUP($C12,'RECAP SECT'!$G$6:$CU$253,36,FALSE) -> 10 | J12: =VLOOKUP($C12,'RECAP SECT'!$G$6:$CU$253,37,FALSE) -> 3,029 | K12: =VLOOKUP($C12,'RECAP SECT'!$G$6:$CU$253,38,FALSE) -> 54.68 | L12: =VLOOKUP($C12,'RECAP SECT'!$G$6:$CU$253,39,FALSE) -> 38% | M12: =VLOOKUP($C12,'RECAP SECT'!$G$6:$CU$253,40,FALSE) -> 15 | N12: =VLOOKUP($C12,'RECAP SECT'!$G$6:$CU$253,41,FALSE) -> 38% | O12: =VLOOKUP($C12,'RECAP SECT'!$G$6:$CU$253,42,FALSE) -> 30% | P12: =VLOOKUP($C12,'RECAP SECT'!$G$6:$CU$253,43,FALSE) -> 10
A13: 262 | B13: BAS-RHIN | C13: 5101 | D13: SELESTAT | E13: =VLOOKUP($C13,'RECAP SECT'!$G$6:$CU$253,3,FALSE) -> 50.9 | F13: =VLOOKUP($C13,'RECAP SECT'!$G$6:$CU$253,33,FALSE) -> 13,194 | G13: =VLOOKUP($C13,'RECAP SECT'!$G$6:$CU$253,34,FALSE) -> 259.16 | H13: =VLOOKUP($C13,'RECAP SECT'!$G$6:$CU$253,35,FALSE) -> 43% | I13: =VLOOKUP($C13,'RECAP SECT'!$G$6:$CU$253,36,FALSE) -> 12 | J13: =VLOOKUP($C13,'RECAP SECT'!$G$6:$CU$253,37,FALSE) -> 2,794 | K13: =VLOOKUP($C13,'RECAP SECT'!$G$6:$CU$253,38,FALSE) -> 54.88 | L13: =VLOOKUP($C13,'RECAP SECT'!$G$6:$CU$253,39,FALSE) -> 37% | M13: =VLOOKUP($C13,'RECAP SECT'!$G$6:$CU$253,40,FALSE) -> 14 | N13: =VLOOKUP($C13,'RECAP SECT'!$G$6:$CU$253,41,FALSE) -> 41% | O13: =VLOOKUP($C13,'RECAP SECT'!$G$6:$CU$253,42,FALSE) -> 33% | P13: =VLOOKUP($C13,'RECAP SECT'!$G$6:$CU$253,43,FALSE) -> 12
A14: 262 | B14: BAS-RHIN | C14: 5006 | D14: STRASBOURG | E14: =VLOOKUP($C14,'RECAP SECT'!$G$6:$CU$253,3,FALSE) -> 65.0 | F14: =VLOOKUP($C14,'RECAP SECT'!$G$6:$CU$253,33,FALSE) -> 26,918 | G14: =VLOOKUP($C14,'RECAP SECT'!$G$6:$CU$253,34,FALSE) -> 414.37 | H14: =VLOOKUP($C14,'RECAP SECT'!$G$6:$CU$253,35,FALSE) -> 9% | I14: =VLOOKUP($C14,'RECAP SECT'!$G$6:$CU$253,36,FALSE) -> 2 | J14: =VLOOKUP($C14,'RECAP SECT'!$G$6:$CU$253,37,FALSE) -> 5,017 | K14: =VLOOKUP($C14,'RECAP SECT'!$G$6:$CU$253,38,FALSE) -> 77.23 | L14: =VLOOKUP($C14,'RECAP SECT'!$G$6:$CU$253,39,FALSE) -> 12% | M14: =VLOOKUP($C14,'RECAP SECT'!$G$6:$CU$253,40,FALSE) -> 4 | N14: =VLOOKUP($C14,'RECAP SECT'!$G$6:$CU$253,41,FALSE) -> 10% | O14: =VLOOKUP($C14,'RECAP SECT'!$G$6:$CU$253,42,FALSE) -> 2% | P14: =VLOOKUP($C14,'RECAP SECT'!$G$6:$CU$253,43,FALSE) -> 2
A15: 264 | B15: HAUT-RHIN | C15: 5130 | D15: COLMAR | E15: =VLOOKUP($C15,'RECAP SECT'!$G$6:$CU$253,3,FALSE) -> 45.9 | F15: =VLOOKUP($C15,'RECAP SECT'!$G$6:$CU$253,33,FALSE) -> 682 | G15: =VLOOKUP($C15,'RECAP SECT'!$G$6:$CU$253,34,FALSE) -> 14.86 | H15: =VLOOKUP($C15,'RECAP SECT'!$G$6:$CU$253,35,FALSE) -> 97% | I15: =VLOOKUP($C15,'RECAP SECT'!$G$6:$CU$253,36,FALSE) -> 17 | J15: =VLOOKUP($C15,'RECAP SECT'!$G$6:$CU$253,37,FALSE) -> 2,083 | K15: =VLOOKUP($C15,'RECAP SECT'!$G$6:$CU$253,38,FALSE) -> 45.38 | L15: =VLOOKUP($C15,'RECAP SECT'!$G$6:$CU$253,39,FALSE) -> 48% | M15: =VLOOKUP($C15,'RECAP SECT'!$G$6:$CU$253,40,FALSE) -> 18 | N15: =VLOOKUP($C15,'RECAP SECT'!$G$6:$CU$253,41,FALSE) -> 77% | O15: =VLOOKUP($C15,'RECAP SECT'!$G$6:$CU$253,42,FALSE) -> 70% | P15: =VLOOKUP($C15,'RECAP SECT'!$G$6:$CU$253,43,FALSE) -> 17
A16: 264 | B16: HAUT-RHIN | C16: 5169 | D16: MULHOUSE | E16: =VLOOKUP($C16,'RECAP SECT'!$G$6:$CU$253,3,FALSE) -> 46.7 | F16: =VLOOKUP($C16,'RECAP SECT'!$G$6:$CU$253,33,FALSE) -> -4,012 | G16: =VLOOKUP($C16,'RECAP SECT'!$G$6:$CU$253,34,FALSE) -> -85.88 | H16: =VLOOKUP($C16,'RECAP SECT'!$G$6:$CU$253,35,FALSE) -> 119% | I16: =VLOOKUP($C16,'RECAP SECT'!$G$6:$CU$253,36,FALSE) -> 18 | J16: =VLOOKUP($C16,'RECAP SECT'!$G$6:$CU$253,37,FALSE) -> 2,458 | K16: =VLOOKUP($C16,'RECAP SECT'!$G$6:$CU$253,38,FALSE) -> 52.61 | L16: =VLOOKUP($C16,'RECAP SECT'!$G$6:$CU$253,39,FALSE) -> 40% | M16: =VLOOKUP($C16,'RECAP SECT'!$G$6:$CU$253,40,FALSE) -> 16 | N16: =VLOOKUP($C16,'RECAP SECT'!$G$6:$CU$253,41,FALSE) -> 87% | O16: =VLOOKUP($C16,'RECAP SECT'!$G$6:$CU$253,42,FALSE) -> 80% | P16: =VLOOKUP($C16,'RECAP SECT'!$G$6:$CU$253,43,FALSE) -> 18
A17: 30 | B17: MARNE-ARDENNES | C17: 6 | D17: CHALONS EN CHAMPAGNE | E17: =VLOOKUP($C17,'RECAP SECT'!$G$6:$CU$253,3,FALSE) -> 37.4 | F17: =VLOOKUP($C17,'RECAP SECT'!$G$6:$CU$253,33,FALSE) -> 11,564 | G17: =VLOOKUP($C17,'RECAP SECT'!$G$6:$CU$253,34,FALSE) -> 308.87 | H17: =VLOOKUP($C17,'RECAP SECT'!$G$6:$CU$253,35,FALSE) -> 32% | I17: =VLOOKUP($C17,'RECAP SECT'!$G$6:$CU$253,36,FALSE) -> 8 | J17: =VLOOKUP($C17,'RECAP SECT'!$G$6:$CU$253,37,FALSE) -> 2,757 | K17: =VLOOKUP($C17,'RECAP SECT'!$G$6:$CU$253,38,FALSE) -> 73.64 | L17: =VLOOKUP($C17,'RECAP SECT'!$G$6:$CU$253,39,FALSE) -> 16% | M17: =VLOOKUP($C17,'RECAP SECT'!$G$6:$CU$253,40,FALSE) -> 6 | N17: =VLOOKUP($C17,'RECAP SECT'!$G$6:$CU$253,41,FALSE) -> 26% | O17: =VLOOKUP($C17,'RECAP SECT'!$G$6:$CU$253,42,FALSE) -> 18% | P17: =VLOOKUP($C17,'RECAP SECT'!$G$6:$CU$253,43,FALSE) -> 9
A18: 30 | B18: MARNE-ARDENNES | C18: 2 | D18: CHARLEVILLE MEZIERES | E18: =VLOOKUP($C18,'RECAP SECT'!$G$6:$CU$253,3,FALSE) -> 48.3 | F18: =VLOOKUP($C18,'RECAP SECT'!$G$6:$CU$253,33,FALSE) -> 14,247 | G18: =VLOOKUP($C18,'RECAP SECT'!$G$6:$CU$253,34,FALSE) -> 294.91 | H18: =VLOOKUP($C18,'RECAP SECT'!$G$6:$CU$253,35,FALSE) -> 35% | I18: =VLOOKUP($C18,'RECAP SECT'!$G$6:$CU$253,36,FALSE) -> 9 | J18: =VLOOKUP($C18,'RECAP SECT'!$G$6:$CU$253,37,FALSE) -> 3,844 | K18: =VLOOKUP($C18,'RECAP SECT'!$G$6:$CU$253,38,FALSE) -> 79.57 | L18: =VLOOKUP($C18,'RECAP SECT'!$G$6:$CU$253,39,FALSE) -> 9% | M18: =VLOOKUP($C18,'RECAP SECT'!$G$6:$CU$253,40,FALSE) -> 3 | N18: =VLOOKUP($C18,'RECAP SECT'!$G$6:$CU$253,41,FALSE) -> 25% | O18: =VLOOKUP($C18,'RECAP SECT'!$G$6:$CU$253,42,FALSE) -> 17% | P18: =VLOOKUP($C18,'RECAP SECT'!$G$6:$CU$253,43,FALSE) -> 7
A19: 30 | B19: MARNE-ARDENNES | C19: 11 | D19: REIMS | E19: =VLOOKUP($C19,'RECAP SECT'!$G$6:$CU$253,3,FALSE) -> 68.0 | F19: =VLOOKUP($C19,'RECAP SECT'!$G$6:$CU$253,33,FALSE) -> 24,015 | G19: =VLOOKUP($C19,'RECAP SECT'!$G$6:$CU$253,34,FALSE) -> 353.07 | H19: =VLOOKUP($C19,'RECAP SECT'!$G$6:$CU$253,35,FALSE) -> 22% | I19: =VLOOKUP($C19,'RECAP SECT'!$G$6:$CU$253,36,FALSE) -> 7 | J19: =VLOOKUP($C19,'RECAP SECT'!$G$6:$CU$253,37,FALSE) -> 5,539 | K19: =VLOOKUP($C19,'RECAP SECT'!$G$6:$CU$253,38,FALSE) -> 81.43 | L19: =VLOOKUP($C19,'RECAP SECT'!$G$6:$CU$253,39,FALSE) -> 7% | M19: =VLOOKUP($C19,'RECAP SECT'!$G$6:$CU$253,40,FALSE) -> 2 | N19: =VLOOKUP($C19,'RECAP SECT'!$G$6:$CU$253,41,FALSE) -> 16% | O19: =VLOOKUP($C19,'RECAP SECT'!$G$6:$CU$253,42,FALSE) -> 9% | P19: =VLOOKUP($C19,'RECAP SECT'!$G$6:$CU$253,43,FALSE) -> 3
A20: 110 | B20: MEURTHE ET MOSELLE MEUSE | C20: 26 | D20: NANCY | E20: =VLOOKUP($C20,'RECAP SECT'!$G$6:$CU$253,3,FALSE) -> 54.9 | F20: =VLOOKUP($C20,'RECAP SECT'!$G$6:$CU$253,33,FALSE) -> 22,179 | G20: =VLOOKUP($C20,'RECAP SECT'!$G$6:$CU$253,34,FALSE) -> 404.06 | H20: =VLOOKUP($C20,'RECAP SECT'!$G$6:$CU$253,35,FALSE) -> 11% | I20: =VLOOKUP($C20,'RECAP SECT'!$G$6:$CU$253,36,FALSE) -> 3 | J20: =VLOOKUP($C20,'RECAP SECT'!$G$6:$CU$253,37,FALSE) -> 3,594 | K20: =VLOOKUP($C20,'RECAP SECT'!$G$6:$CU$253,38,FALSE) -> 65.48 | L20: =VLOOKUP($C20,'RECAP SECT'!$G$6:$CU$253,39,FALSE) -> 25% | M20: =VLOOKUP($C20,'RECAP SECT'!$G$6:$CU$253,40,FALSE) -> 8 | N20: =VLOOKUP($C20,'RECAP SECT'!$G$6:$CU$253,41,FALSE) -> 17% | O20: =VLOOKUP($C20,'RECAP SECT'!$G$6:$CU$253,42,FALSE) -> 9% | P20: =VLOOKUP($C20,'RECAP SECT'!$G$6:$CU$253,43,FALSE) -> 4
A21: 110 | B21: MEURTHE ET MOSELLE MEUSE | C21: 27 | D21: PONT A MOUSSON | E21: =VLOOKUP($C21,'RECAP SECT'!$G$6:$CU$253,3,FALSE) -> 59.6 | F21: =VLOOKUP($C21,'RECAP SECT'!$G$6:$CU$253,33,FALSE) -> 21,650 | G21: =VLOOKUP($C21,'RECAP SECT'!$G$6:$CU$253,34,FALSE) -> 363.26 | H21: =VLOOKUP($C21,'RECAP SECT'!$G$6:$CU$253,35,FALSE) -> 20% | I21: =VLOOKUP($C21,'RECAP SECT'!$G$6:$CU$253,36,FALSE) -> 6 | J21: =VLOOKUP($C21,'RECAP SECT'!$G$6:$CU$253,37,FALSE) -> 3,504 | K21: =VLOOKUP($C21,'RECAP SECT'!$G$6:$CU$253,38,FALSE) -> 58.79 | L21: =VLOOKUP($C21,'RECAP SECT'!$G$6:$CU$253,39,FALSE) -> 33% | M21: =VLOOKUP($C21,'RECAP SECT'!$G$6:$CU$253,40,FALSE) -> 11 | N21: =VLOOKUP($C21,'RECAP SECT'!$G$6:$CU$253,41,FALSE) -> 25% | O21: =VLOOKUP($C21,'RECAP SECT'!$G$6:$CU$253,42,FALSE) -> 18% | P21: =VLOOKUP($C21,'RECAP SECT'!$G$6:$CU$253,43,FALSE) -> 8
A22: 110 | B22: MEURTHE ET MOSELLE MEUSE | C22: 31 | D22: VERDUN | E22: =VLOOKUP($C22,'RECAP SECT'!$G$6:$CU$253,3,FALSE) -> 48.5 | F22: =VLOOKUP($C22,'RECAP SECT'!$G$6:$CU$253,33,FALSE) -> 11,409 | G22: =VLOOKUP($C22,'RECAP SECT'!$G$6:$CU$253,34,FALSE) -> 235.24 | H22: =VLOOKUP($C22,'RECAP SECT'!$G$6:$CU$253,35,FALSE) -> 48% | I22: =VLOOKUP($C22,'RECAP SECT'!$G$6:$CU$253,36,FALSE) -> 13 | J22: =VLOOKUP($C22,'RECAP SECT'!$G$6:$CU$253,37,FALSE) -> 2,860 | K22: =VLOOKUP($C22,'RECAP SECT'!$G$6:$CU$253,38,FALSE) -> 58.97 | L22: =VLOOKUP($C22,'RECAP SECT'!$G$6:$CU$253,39,FALSE) -> 33% | M22: =VLOOKUP($C22,'RECAP SECT'!$G$6:$CU$253,40,FALSE) -> 10 | N22: =VLOOKUP($C22,'RECAP SECT'!$G$6:$CU$253,41,FALSE) -> 42% | O22: =VLOOKUP($C22,'RECAP SECT'!$G$6:$CU$253,42,FALSE) -> 34% | P22: =VLOOKUP($C22,'RECAP SECT'!$G$6:$CU$253,43,FALSE) -> 13
A23: 160 | B23: MOSELLE | C23: 45 | D23: METZ | E23: =VLOOKUP($C23,'RECAP SECT'!$G$6:$CU$253,3,FALSE) -> 72.8 | F23: =VLOOKUP($C23,'RECAP SECT'!$G$6:$CU$253,33,FALSE) -> 32,993 | G23: =VLOOKUP($C23,'RECAP SECT'!$G$6:$CU$253,34,FALSE) -> 453.14 | H23: =VLOOKUP($C23,'RECAP SECT'!$G$6:$CU$253,35,FALSE) -> 0% | I23: =VLOOKUP($C23,'RECAP SECT'!$G$6:$CU$253,36,FALSE) -> 1 | J23: =VLOOKUP($C23,'RECAP SECT'!$G$6:$CU$253,37,FALSE) -> 5,184 | K23: =VLOOKUP($C23,'RECAP SECT'!$G$6:$CU$253,38,FALSE) -> 71.20 | L23: =VLOOKUP($C23,'RECAP SECT'!$G$6:$CU$253,39,FALSE) -> 19% | M23: =VLOOKUP($C23,'RECAP SECT'!$G$6:$CU$253,40,FALSE) -> 7 | N23: =VLOOKUP($C23,'RECAP SECT'!$G$6:$CU$253,41,FALSE) -> 8% | O23: =VLOOKUP($C23,'RECAP SECT'!$G$6:$CU$253,42,FALSE) -> 0% | P23: =VLOOKUP($C23,'RECAP SECT'!$G$6:$CU$253,43,FALSE) -> 1
A24: 160 | B24: MOSELLE | C24: 42 | D24: MOSELLE EST | E24: =VLOOKUP($C24,'RECAP SECT'!$G$6:$CU$253,3,FALSE) -> 58.0 | F24: =VLOOKUP($C24,'RECAP SECT'!$G$6:$CU$253,33,FALSE) -> 8,975 | G24: =VLOOKUP($C24,'RECAP SECT'!$G$6:$CU$253,34,FALSE) -> 154.75 | H24: =VLOOKUP($C24,'RECAP SECT'!$G$6:$CU$253,35,FALSE) -> 66% | I24: =VLOOKUP($C24,'RECAP SECT'!$G$6:$CU$253,36,FALSE) -> 15 | J24: =VLOOKUP($C24,'RECAP SECT'!$G$6:$CU$253,37,FALSE) -> 4,353 | K24: =VLOOKUP($C24,'RECAP SECT'!$G$6:$CU$253,38,FALSE) -> 75.05 | L24: =VLOOKUP($C24,'RECAP SECT'!$G$6:$CU$253,39,FALSE) -> 15% | M24: =VLOOKUP($C24,'RECAP SECT'!$G$6:$CU$253,40,FALSE) -> 5 | N24: =VLOOKUP($C24,'RECAP SECT'!$G$6:$CU$253,41,FALSE) -> 45% | O24: =VLOOKUP($C24,'RECAP SECT'!$G$6:$CU$253,42,FALSE) -> 38% | P24: =VLOOKUP($C24,'RECAP SECT'!$G$6:$CU$253,43,FALSE) -> 15
A25: 160 | B25: MOSELLE | C25: 44 | D25: MOSELLE NORD | E25: =VLOOKUP($C25,'RECAP SECT'!$G$6:$CU$253,3,FALSE) -> 55.6 | F25: =VLOOKUP($C25,'RECAP SECT'!$G$6:$CU$253,33,FALSE) -> 8,879 | G25: =VLOOKUP($C25,'RECAP SECT'!$G$6:$CU$253,34,FALSE) -> 159.70 | H25: =VLOOKUP($C25,'RECAP SECT'!$G$6:$CU$253,35,FALSE) -> 65% | I25: =VLOOKUP($C25,'RECAP SECT'!$G$6:$CU$253,36,FALSE) -> 14 | J25: =VLOOKUP($C25,'RECAP SECT'!$G$6:$CU$253,37,FALSE) -> 4,881 | K25: =VLOOKUP($C25,'RECAP SECT'!$G$6:$CU$253,38,FALSE) -> 87.79 | L25: =VLOOKUP($C25,'RECAP SECT'!$G$6:$CU$253,39,FALSE) -> 0% | M25: =VLOOKUP($C25,'RECAP SECT'!$G$6:$CU$253,40,FALSE) -> 1 | N25: =VLOOKUP($C25,'RECAP SECT'!$G$6:$CU$253,41,FALSE) -> 39% | O25: =VLOOKUP($C25,'RECAP SECT'!$G$6:$CU$253,42,FALSE) -> 31% | P25: =VLOOKUP($C25,'RECAP SECT'!$G$6:$CU$253,43,FALSE) -> 11
A26: 80 | B26: VOSGES | C26: 57 | D26: EPINAL | E26: =VLOOKUP($C26,'RECAP SECT'!$G$6:$CU$253,3,FALSE) -> 53.0 | F26: =VLOOKUP($C26,'RECAP SECT'!$G$6:$CU$253,33,FALSE) -> 20,072 | G26: =VLOOKUP($C26,'RECAP SECT'!$G$6:$CU$253,34,FALSE) -> 378.65 | H26: =VLOOKUP($C26,'RECAP SECT'!$G$6:$CU$253,35,FALSE) -> 16% | I26: =VLOOKUP($C26,'RECAP SECT'!$G$6:$CU$253,36,FALSE) -> 4 | J26: =VLOOKUP($C26,'RECAP SECT'!$G$6:$CU$253,37,FALSE) -> 3,073 | K26: =VLOOKUP($C26,'RECAP SECT'!$G$6:$CU$253,38,FALSE) -> 57.97 | L26: =VLOOKUP($C26,'RECAP SECT'!$G$6:$CU$253,39,FALSE) -> 34% | M26: =VLOOKUP($C26,'RECAP SECT'!$G$6:$CU$253,40,FALSE) -> 12 | N26: =VLOOKUP($C26,'RECAP SECT'!$G$6:$CU$253,41,FALSE) -> 23% | O26: =VLOOKUP($C26,'RECAP SECT'!$G$6:$CU$253,42,FALSE) -> 16% | P26: =VLOOKUP($C26,'RECAP SECT'!$G$6:$CU$253,43,FALSE) -> 6
A27: 80 | B27: VOSGES | C27: 55 | D27: SAINT DIE | E27: =VLOOKUP($C27,'RECAP SECT'!$G$6:$CU$253,3,FALSE) -> 40.1 | F27: =VLOOKUP($C27,'RECAP SECT'!$G$6:$CU$253,33,FALSE) -> 10,741 | G27: =VLOOKUP($C27,'RECAP SECT'!$G$6:$CU$253,34,FALSE) -> 267.72 | H27: =VLOOKUP($C27,'RECAP SECT'!$G$6:$CU$253,35,FALSE) -> 41% | I27: =VLOOKUP($C27,'RECAP SECT'!$G$6:$CU$253,36,FALSE) -> 11 | J27: =VLOOKUP($C27,'RECAP SECT'!$G$6:$CU$253,37,FALSE) -> 1,929 | K27: =VLOOKUP($C27,'RECAP SECT'!$G$6:$CU$253,38,FALSE) -> 48.08 | L27: =VLOOKUP($C27,'RECAP SECT'!$G$6:$CU$253,39,FALSE) -> 45% | M27: =VLOOKUP($C27,'RECAP SECT'!$G$6:$CU$253,40,FALSE) -> 17 | N27: =VLOOKUP($C27,'RECAP SECT'!$G$6:$CU$253,41,FALSE) -> 43% | O27: =VLOOKUP($C27,'RECAP SECT'!$G$6:$CU$253,42,FALSE) -> 35% | P27: =VLOOKUP($C27,'RECAP SECT'!$G$6:$CU$253,43,FALSE) -> 14
A28: Total CEGEE Directions Régionales | E28: =SUM(E10:E27) -> 948

Sheet SE_CREDIT
B1: Accueil | F1: BAROMETRE BDD - TERRITOIRES
F2: CREDITS
F3: =ACCUEIL!F7 -> 2022-10-23
F7: Engagements et ventes accessoires pondérés Immo | J7: Engagements et ventes accessoires pondérés Conso | N7: Ventes sur client non détenteur de l’univers | R7: Total Crédits
F8: =DATEMAJ!C18 -> au 23/10 | H8: coef | I8: ='RECAP DIRCOM'!BE4 -> 6% | J8: =DATEMAJ!C19 -> au 23/10 | L8: coef | M8: ='RECAP DIRCOM'!BI4 -> 6% | N8: =DATEMAJ!C20 -> au 23/10 | P8: coef | Q8: ='RECAP DIRCOM'!BM4 -> 8% | S8: coef | T8: ='RECAP DIRCOM'!BP4 -> 20%
B9: Direction | C9: eds | D9: Territoire | E9: ="ETP perf "&DATEMAJ!$C$28 -> ETP perf 23-oct | F9: PNB | G9: PNB / ETP | H9: % Ecart au 1er | I9: Rang | J9: PNB | K9: PNB / ETP | L9: % Ecart au 1er | M9: Rang | N9: VB | O9: VB / ETP | P9: % Ecart au 1er | Q9: Rang | R9: Moyenne ecart au 1er | S9: % Ecart au 1er | T9: Rang CEGEE
A10: 50 | B10: AUBE HAUTE MARNE | C10: 21 | D10: CHAUMONT | E10: =VLOOKUP($C10,'RECAP SECT'!$G$6:$CU$253,3,FALSE) -> 33.6 | F10: =VLOOKUP($C10,'RECAP SECT'!$G$6:$CU$253,48,FALSE) -> 7,594 | G10: =VLOOKUP($C10,'RECAP SECT'!$G$6:$CU$253,49,FALSE) -> 225.75 | H10: =VLOOKUP($C10,'RECAP SECT'!$G$6:$CU$253,50,FALSE) -> 64% | I10: =VLOOKUP($C10,'RECAP SECT'!$G$6:$CU$253,51,FALSE) -> 16 | J10: =VLOOKUP($C10,'RECAP SECT'!$G$6:$CU$253,52,FALSE) -> 1,984 | K10: =VLOOKUP($C10,'RECAP SECT'!$G$6:$CU$253,53,FALSE) -> 58.98 | L10: =VLOOKUP($C10,'RECAP SECT'!$G$6:$CU$253,54,FALSE) -> 6% | M10: =VLOOKUP($C10,'RECAP SECT'!$G$6:$CU$253,55,FALSE) -> 4 | N10: =VLOOKUP($C10,'RECAP SECT'!$G$6:$CU$253,56,FALSE) -> 823 | O10: =VLOOKUP($C10,'RECAP SECT'!$G$6:$CU$253,57,FALSE) -> 24.46 | P10: =VLOOKUP($C10,'RECAP SECT'!$G$6:$CU$253,58,FALSE) -> 44% | Q10: =VLOOKUP($C10,'RECAP SECT'!$G$6:$CU$253,59,FALSE) -> 11 | R10: =VLOOKUP($C10,'RECAP SECT'!$G$6:$CU$253,60,FALSE) -> 38% | S10: =VLOOKUP($C10,'RECAP SECT'!$G$6:$CU$253,61,FALSE) -> 34% | T10: =VLOOKUP($C10,'RECAP SECT'!$G$6:$CU$253,62,FALSE) -> 10
A11: 50 | B11: AUBE HAUTE MARNE | C11: 14 | D11: TROYES | E11: =VLOOKUP($C11,'RECAP SECT'!$G$6:$CU$253,3,FALSE) -> 54.0 | F11: =VLOOKUP($C11,'RECAP SECT'!$G$6:$CU$253,48,FALSE) -> 12,428 | G11: =VLOOKUP($C11,'RECAP SECT'!$G$6:$CU$253,49,FALSE) -> 230.01 | H11: =VLOOKUP($C11,'RECAP SECT'!$G$6:$CU$253,50,FALSE) -> 64% | I11: =VLOOKUP($C11,'RECAP SECT'!$G$6:$CU$253,51,FALSE) -> 14 | J11: =VLOOKUP($C11,'RECAP SECT'!$G$6:$CU$253,52,FALSE) -> 2,803 | K11: =VLOOKUP($C11,'RECAP SECT'!$G$6:$CU$253,53,FALSE) -> 51.87 | L11: =VLOOKUP($C11,'RECAP SECT'!$G$6:$CU$253,54,FALSE) -> 17% | M11: =VLOOKUP($C11,'RECAP SECT'!$G$6:$CU$253,55,FALSE) -> 12 | N11: =VLOOKUP($C11,'RECAP SECT'!$G$6:$CU$253,56,FALSE) -> 1,181 | O11: =VLOOKUP($C11,'RECAP SECT'!$G$6:$CU$253,57,FALSE) -> 21.86 | P11: =VLOOKUP($C11,'RECAP SECT'!$G$6:$CU$253,58,FALSE) -> 50% | Q11: =VLOOKUP($C11,'RECAP SECT'!$G$6:$CU$253,59,FALSE) -> 14 | R11: =VLOOKUP($C11,'RECAP SECT'!$G$6:$CU$253,60,FALSE) -> 44% | S11: =VLOOKUP($C11,'RECAP SECT'!$G$6:$CU$253,61,FALSE) -> 40% | T11: =VLOOKUP($C11,'RECAP SECT'!$G$6:$CU$253,62,FALSE) -> 14
A12: 262 | B12: BAS-RHIN | C12: 5060 | D12: HAGUENAU | E12: =VLOOKUP($C12,'RECAP SECT'!$G$6:$CU$253,3,FALSE) -> 55.4 | F12: =VLOOKUP($C12,'RECAP SECT'!$G$6:$CU$253,48,FALSE) -> 10,416 | G12: =VLOOKUP($C12,'RECAP SECT'!$G$6:$CU$253,49,FALSE) -> 188.02 | H12: =VLOOKUP($C12,'RECAP SECT'!$G$6:$CU$253,50,FALSE) -> 70% | I12: =VLOOKUP($C12,'RECAP SECT'!$G$6:$CU$253,51,FALSE) -> 18 | J12: =VLOOKUP($C12,'RECAP SECT'!$G$6:$CU$253,52,FALSE) -> 2,829 | K12: =VLOOKUP($C12,'RECAP SECT'!$G$6:$CU$253,53,FALSE) -> 51.06 | L12: =VLOOKUP($C12,'RECAP SECT'!$G$6:$CU$253,54,FALSE) -> 18% | M12: =VLOOKUP($C12,'RECAP SECT'!$G$6:$CU$253,55,FALSE) -> 13 | N12: =VLOOKUP($C12,'RECAP SECT'!$G$6:$CU$253,56,FALSE) -> 1,009 | O12: =VLOOKUP($C12,'RECAP SECT'!$G$6:$CU$253,57,FALSE) -> 18.21 | P12: =VLOOKUP($C12,'RECAP SECT'!$G$6:$CU$253,58,FALSE) -> 58% | Q12: =VLOOKUP($C12,'RECAP SECT'!$G$6:$CU$253,59,FALSE) -> 17 | R12: =VLOOKUP($C12,'RECAP SECT'!$G$6:$CU$253,60,FALSE) -> 50% | S12: =VLOOKUP($C12,'RECAP SECT'!$G$6:$CU$253,61,FALSE) -> 45% | T12: =VLOOKUP($C12,'RECAP SECT'!$G$6:$CU$253,62,FALSE) -> 16
A13: 262 | B13: BAS-RHIN | C13: 5101 | D13: SELESTAT | E13: =VLOOKUP($C13,'RECAP SECT'!$G$6:$CU$253,3,FALSE) -> 50.9 | F13: =VLOOKUP($C13,'RECAP SECT'!$G$6:$CU$253,48,FALSE) -> 11,859 | G13: =VLOOKUP($C13,'RECAP SECT'!$G$6:$CU$253,49,FALSE) -> 232.94 | H13: =VLOOKUP($C13,'RECAP SECT'!$G$6:$CU$253,50,FALSE) -> 63% | I13: =VLOOKUP($C13,'RECAP SECT'!$G$6:$CU$253,51,FALSE) -> 13 | J13: =VLOOKUP($C13,'RECAP SECT'!$G$6:$CU$253,52,FALSE) -> 2,397 | K13: =VLOOKUP($C13,'RECAP SECT'!$G$6:$CU$253,53,FALSE) -> 47.09 | L13: =VLOOKUP($C13,'RECAP SECT'!$G$6:$CU$253,54,FALSE) -> 25% | M13: =VLOOKUP($C13,'RECAP SECT'!$G$6:$CU$253,55,FALSE) -> 14 | N13: =VLOOKUP($C13,'RECAP SECT'!$G$6:$CU$253,56,FALSE) -> 1,066 | O13: =VLOOKUP($C13,'RECAP SECT'!$G$6:$CU$253,57,FALSE) -> 20.94 | P13: =VLOOKUP($C13,'RECAP SECT'!$G$6:$CU$253,58,FALSE) -> 52% | Q13: =VLOOKUP($C13,'RECAP SECT'!$G$6:$CU$253,59,FALSE) -> 15 | R13: =VLOOKUP($C13,'RECAP SECT'!$G$6:$CU$253,60,FALSE) -> 47% | S13: =VLOOKUP($C13,'RECAP SECT'!$G$6:$CU$253,61,FALSE) -> 43% | T13: =VLOOKUP($C13,'RECAP SECT'!$G$6:$CU$253,62,FALSE) -> 15
A14: 262 | B14: BAS-RHIN | C14: 5006 | D14: STRASBOURG | E14: =VLOOKUP($C14,'RECAP SECT'!$G$6:$CU$253,3,FALSE) -> 65.0 | F14: =VLOOKUP($C14,'RECAP SECT'!$G$6:$CU$253,48,FALSE) -> 21,254 | G14: =VLOOKUP($C14,'RECAP SECT'!$G$6:$CU$253,49,FALSE) -> 327.19 | H14: =VLOOKUP($C14,'RECAP SECT'!$G$6:$CU$253,50,FALSE) -> 49% | I14: =VLOOKUP($C14,'RECAP SECT'!$G$6:$CU$253,51,FALSE) -> 9 | J14: =VLOOKUP($C14,'RECAP SECT'!$G$6:$CU$253,52,FALSE) -> 2,612 | K14: =VLOOKUP($C14,'RECAP SECT'!$G$6:$CU$253,53,FALSE) -> 40.20 | L14: =VLOOKUP($C14,'RECAP SECT'!$G$6:$CU$253,54,FALSE) -> 36% | M14: =VLOOKUP($C14,'RECAP SECT'!$G$6:$CU$253,55,FALSE) -> 18 | N14: =VLOOKUP($C14,'RECAP SECT'!$G$6:$CU$253,56,FALSE) -> 1,691 | O14: =VLOOKUP($C14,'RECAP SECT'!$G$6:$CU$253,57,FALSE) -> 26.03 | P14: =VLOOKUP($C14,'RECAP SECT'!$G$6:$CU$253,58,FALSE) -> 40% | Q14: =VLOOKUP($C14,'RECAP SECT'!$G$6:$CU$253,59,FALSE) -> 9 | R14: =VLOOKUP($C14,'RECAP SECT'!$G$6:$CU$253,60,FALSE) -> 41% | S14: =VLOOKUP($C14,'RECAP SECT'!$G$6:$CU$253,61,FALSE) -> 37% | T14: =VLOOKUP($C14,'RECAP SECT'!$G$6:$CU$253,62,FALSE) -> 11
A15: 264 | B15: HAUT-RHIN | C15: 5130 | D15: COLMAR | E15: =VLOOKUP($C15,'RECAP SECT'!$G$6:$CU$253,3,FALSE) -> 45.9 | F15: =VLOOKUP($C15,'RECAP SECT'!$G$6:$CU$253,48,FALSE) -> 8,748 | G15: =VLOOKUP($C15,'RECAP SECT'!$G$6:$CU$253,49,FALSE) -> 190.59 | H15: =VLOOKUP($C15,'RECAP SECT'!$G$6:$CU$253,50,FALSE) -> 70% | I15: =VLOOKUP($C15,'RECAP SECT'!$G$6:$CU$253,51,FALSE) -> 17 | J15: =VLOOKUP($C15,'RECAP SECT'!$G$6:$CU$253,52,FALSE) -> 2,153 | K15: =VLOOKUP($C15,'RECAP SECT'!$G$6:$CU$253,53,FALSE) -> 46.90 | L15: =VLOOKUP($C15,'RECAP SECT'!$G$6:$CU$253,54,FALSE) -> 25% | M15: =VLOOKUP($C15,'RECAP SECT'!$G$6:$CU$253,55,FALSE) -> 15 | N15: =VLOOKUP($C15,'RECAP SECT'!$G$6:$CU$253,56,FALSE) -> 833 | O15: =VLOOKUP($C15,'RECAP SECT'!$G$6:$CU$253,57,FALSE) -> 18.15 | P15: =VLOOKUP($C15,'RECAP SECT'!$G$6:$CU$253,58,FALSE) -> 58% | Q15: =VLOOKUP($C15,'RECAP SECT'!$G$6:$CU$253,59,FALSE) -> 18 | R15: =VLOOKUP($C15,'RECAP SECT'!$G$6:$CU$253,60,FALSE) -> 52% | S15: =VLOOKUP($C15,'RECAP SECT'!$G$6:$CU$253,61,FALSE) -> 47% | T15: =VLOOKUP($C15,'RECAP SECT'!$G$6:$CU$253,62,FALSE) -> 18
A16: 264 | B16: HAUT-RHIN | C16: 5169 | D16: MULHOUSE | E16: =VLOOKUP($C16,'RECAP SECT'!$G$6:$CU$253,3,FALSE) -> 46.7 | F16: =VLOOKUP($C16,'RECAP SECT'!$G$6:$CU$253,48,FALSE) -> 11,441 | G16: =VLOOKUP($C16,'RECAP SECT'!$G$6:$CU$253,49,FALSE) -> 244.89 | H16: =VLOOKUP($C16,'RECAP SECT'!$G$6:$CU$253,50,FALSE) -> 61% | I16: =VLOOKUP($C16,'RECAP SECT'!$G$6:$CU$253,51,FALSE) -> 12 | J16: =VLOOKUP($C16,'RECAP SECT'!$G$6:$CU$253,52,FALSE) -> 2,036 | K16: =VLOOKUP($C16,'RECAP SECT'!$G$6:$CU$253,53,FALSE) -> 43.59 | L16: =VLOOKUP($C16,'RECAP SECT'!$G$6:$CU$253,54,FALSE) -> 30% | M16: =VLOOKUP($C16,'RECAP SECT'!$G$6:$CU$253,55,FALSE) -> 17 | N16: =VLOOKUP($C16,'RECAP SECT'!$G$6:$CU$253,56,FALSE) -> 877 | O16: =VLOOKUP($C16,'RECAP SECT'!$G$6:$CU$253,57,FALSE) -> 18.77 | P16: =VLOOKUP($C16,'RECAP SECT'!$G$6:$CU$253,58,FALSE) -> 57% | Q16: =VLOOKUP($C16,'RECAP SECT'!$G$6:$CU$253,59,FALSE) -> 16 | R16: =VLOOKUP($C16,'RECAP SECT'!$G$6:$CU$253,60,FALSE) -> 50% | S16: =VLOOKUP($C16,'RECAP SECT'!$G$6:$CU$253,61,FALSE) -> 46% | T16: =VLOOKUP($C16,'RECAP SECT'!$G$6:$CU$253,62,FALSE) -> 17
A17: 30 | B17: MARNE-ARDENNES | C17: 6 | D17: CHALONS EN CHAMPAGNE | E17: =VLOOKUP($C17,'RECAP SECT'!$G$6:$CU$253,3,FALSE) -> 37.4 | F17: =VLOOKUP($C17,'RECAP SECT'!$G$6:$CU$253,48,FALSE) -> 15,091 | G17: =VLOOKUP($C17,'RECAP SECT'!$G$6:$CU$253,49,FALSE) -> 403.07 | H17: =VLOOKUP($C17,'RECAP SECT'!$G$6:$CU$253,50,FALSE) -> 37% | I17: =VLOOKUP($C17,'RECAP SECT'!$G$6:$CU$253,51,FALSE) -> 5 | J17: =VLOOKUP($C17,'RECAP SECT'!$G$6:$CU$253,52,FALSE) -> 2,111 | K17: =VLOOKUP($C17,'RECAP SECT'!$G$6:$CU$253,53,FALSE) -> 56.39 | L17: =VLOOKUP($C17,'RECAP SECT'!$G$6:$CU$253,54,FALSE) -> 10% | M17: =VLOOKUP($C17,'RECAP SECT'!$G$6:$CU$253,55,FALSE) -> 6 | N17: =VLOOKUP($C17,'RECAP SECT'!$G$6:$CU$253,56,FALSE) -> 1,133 | O17: =VLOOKUP($C17,'RECAP SECT'!$G$6:$CU$253,57,FALSE) -> 30.26 | P17: =VLOOKUP($C17,'RECAP SECT'!$G$6:$CU$253,58,FALSE) -> 30% | Q17: =VLOOKUP($C17,'RECAP SECT'!$G$6:$CU$253,59,FALSE) -> 4 | R17: =VLOOKUP($C17,'RECAP SECT'!$G$6:$CU$253,60,FALSE) -> 26% | S17: =VLOOKUP($C17,'RECAP SECT'!$G$6:$CU$253,61,FALSE) -> 21% | T17: =VLOOKUP($C17,'RECAP SECT'!$G$6:$CU$253,62,FALSE) -> 4
A18: 30 | B18: MARNE-ARDENNES | C18: 2 | D18: CHARLEVILLE MEZIERES | E18: =VLOOKUP($C18,'RECAP SECT'!$G$6:$CU$253,3,FALSE) -> 48.3 | F18: =VLOOKUP($C18,'RECAP SECT'!$G$6:$CU$253,48,FALSE) -> 20,883 | G18: =VLOOKUP($C18,'RECAP SECT'!$G$6:$CU$253,49,FALSE) -> 432.27 | H18: =VLOOKUP($C18,'RECAP SECT'!$G$6:$CU$253,50,FALSE) -> 32% | I18: =VLOOKUP($C18,'RECAP SECT'!$G$6:$CU$253,51,FALSE) -> 3 | J18: =VLOOKUP($C18,'RECAP SECT'!$G$6:$CU$253,52,FALSE) -> 2,732 | K18: =VLOOKUP($C18,'RECAP SECT'!$G$6:$CU$253,53,FALSE) -> 56.56 | L18: =VLOOKUP($C18,'RECAP SECT'!$G$6:$CU$253,54,FALSE) -> 9% | M18: =VLOOKUP($C18,'RECAP SECT'!$G$6:$CU$253,55,FALSE) -> 5 | N18: =VLOOKUP($C18,'RECAP SECT'!$G$6:$CU$253,56,FALSE) -> 1,617 | O18: =VLOOKUP($C18,'RECAP SECT'!$G$6:$CU$253,57,FALSE) -> 33.47 | P18: =VLOOKUP($C18,'RECAP SECT'!$G$6:$CU$253,58,FALSE) -> 23% | Q18: =VLOOKUP($C18,'RECAP SECT'!$G$6:$CU$253,59,FALSE) -> 3 | R18: =VLOOKUP($C18,'RECAP SECT'!$G$6:$CU$253,60,FALSE) -> 22% | S18: =VLOOKUP($C18,'RECAP SECT'!$G$6:$CU$253,61,FALSE) -> 17% | T18: =VLOOKUP($C18,'RECAP SECT'!$G$6:$CU$253,62,FALSE) -> 3
A19: 30 | B19: MARNE-ARDENNES | C19: 11 | D19: REIMS | E19: =VLOOKUP($C19,'RECAP SECT'!$G$6:$CU$253,3,FALSE) -> 68.0 | F19: =VLOOKUP($C19,'RECAP SECT'!$G$6:$CU$253,48,FALSE) -> 43,243 | G19: =VLOOKUP($C19,'RECAP SECT'!$G$6:$CU$253,49,FALSE) -> 635.74 | H19: =VLOOKUP($C19,'RECAP SECT'!$G$6:$CU$253,50,FALSE) -> 0% | I19: =VLOOKUP($C19,'RECAP SECT'!$G$6:$CU$253,51,FALSE) -> 1 | J19: =VLOOKUP($C19,'RECAP SECT'!$G$6:$CU$253,52,FALSE) -> 3,607 | K19: =VLOOKUP($C19,'RECAP SECT'!$G$6:$CU$253,53,FALSE) -> 53.03 | L19: =VLOOKUP($C19,'RECAP SECT'!$G$6:$CU$253,54,FALSE) -> 15% | M19: =VLOOKUP($C19,'RECAP SECT'!$G$6:$CU$253,55,FALSE) -> 10 | N19: =VLOOKUP($C19,'RECAP SECT'!$G$6:$CU$253,56,FALSE) -> 2,948 | O19: =VLOOKUP($C19,'RECAP SECT'!$G$6:$CU$253,57,FALSE) -> 43.34 | P19: =VLOOKUP($C19,'RECAP SECT'!$G$6:$CU$253,58,FALSE) -> 0% | Q19: =VLOOKUP($C19,'RECAP SECT'!$G$6:$CU$253,59,FALSE) -> 1 | R19: =VLOOKUP($C19,'RECAP SECT'!$G$6:$CU$253,60,FALSE) -> 5% | S19: =VLOOKUP($C19,'RECAP SECT'!$G$6:$CU$253,61,FALSE) -> 0% | T19: =VLOOKUP($C19,'RECAP SECT'!$G$6:$CU$253,62,FALSE) -> 1
A20: 110 | B20: MEURTHE ET MOSELLE MEUSE | C20: 26 | D20: NANCY | E20: =VLOOKUP($C20,'RECAP SECT'!$G$6:$CU$253,3,FALSE) -> 54.9 | F20: =VLOOKUP($C20,'RECAP SECT'!$G$6:$CU$253,48,FALSE) -> 23,711 | G20: =VLOOKUP($C20,'RECAP SECT'!$G$6:$CU$253,49,FALSE) -> 431.97 | H20: =VLOOKUP($C20,'RECAP SECT'!$G$6:$CU$253,50,FALSE) -> 32% | I20: =VLOOKUP($C20,'RECAP SECT'!$G$6:$CU$253,51,FALSE) -> 4 | J20: =VLOOKUP($C20,'RECAP SECT'!$G$6:$CU$253,52,FALSE) -> 2,959 | K20: =VLOOKUP($C20,'RECAP SECT'!$G$6:$CU$253,53,FALSE) -> 53.91 | L20: =VLOOKUP($C20,'RECAP SECT'!$G$6:$CU$253,54,FALSE) -> 14% | M20: =VLOOKUP($C20,'RECAP SECT'!$G$6:$CU$253,55,FALSE) -> 8 | N20: =VLOOKUP($C20,'RECAP SECT'!$G$6:$CU$253,56,FALSE) -> 1,642 | O20: =VLOOKUP($C20,'RECAP SECT'!$G$6:$CU$253,57,FALSE) -> 29.91 | P20: =VLOOKUP($C20,'RECAP SECT'!$G$6:$CU$253,58,FALSE) -> 31% | Q20: =VLOOKUP($C20,'RECAP SECT'!$G$6:$CU$253,59,FALSE) -> 5 | R20: =VLOOKUP($C20,'RECAP SECT'!$G$6:$CU$253,60,FALSE) -> 26% | S20: =VLOOKUP($C20,'RECAP SECT'!$G$6:$CU$253,61,FALSE) -> 22% | T20: =VLOOKUP($C20,'RECAP SECT'!$G$6:$CU$253,62,FALSE) -> 5
A21: 110 | B21: MEURTHE ET MOSELLE MEUSE | C21: 27 | D21: PONT A MOUSSON | E21: =VLOOKUP($C21,'RECAP SECT'!$G$6:$CU$253,3,FALSE) -> 59.6 | F21: =VLOOKUP($C21,'RECAP SECT'!$G$6:$CU$253,48,FALSE) -> 23,710 | G21: =VLOOKUP($C21,'RECAP SECT'!$G$6:$CU$253,49,FALSE) -> 397.82 | H21: =VLOOKUP($C21,'RECAP SECT'!$G$6:$CU$253,50,FALSE) -> 37% | I21: =VLOOKUP($C21,'RECAP SECT'!$G$6:$CU$253,51,FALSE) -> 6 | J21: =VLOOKUP($C21,'RECAP SECT'!$G$6:$CU$253,52,FALSE) -> 3,202 | K21: =VLOOKUP($C21,'RECAP SECT'!$G$6:$CU$253,53,FALSE) -> 53.72 | L21: =VLOOKUP($C21,'RECAP SECT'!$G$6:$CU$253,54,FALSE) -> 14% | M21: =VLOOKUP($C21,'RECAP SECT'!$G$6:$CU$253,55,FALSE) -> 9 | N21: =VLOOKUP($C21,'RECAP SECT'!$G$6:$CU$253,56,FALSE) -> 1,666 | O21: =VLOOKUP($C21,'RECAP SECT'!$G$6:$CU$253,57,FALSE) -> 27.95 | P21: =VLOOKUP($C21,'RECAP SECT'!$G$6:$CU$253,58,FALSE) -> 36% | Q21: =VLOOKUP($C21,'RECAP SECT'!$G$6:$CU$253,59,FALSE) -> 6 | R21: =VLOOKUP($C21,'RECAP SECT'!$G$6:$CU$253,60,FALSE) -> 30% | S21: =VLOOKUP($C21,'RECAP SECT'!$G$6:$CU$253,61,FALSE) -> 25% | T21: =VLOOKUP($C21,'RECAP SECT'!$G$6:$CU$253,62,FALSE) -> 7
A22: 110 | B22: MEURTHE ET MOSELLE MEUSE | C22: 31 | D22: VERDUN | E22: =VLOOKUP($C22,'RECAP SECT'!$G$6:$CU$253,3,FALSE) -> 48.5 | F22: =VLOOKUP($C22,'RECAP SECT'!$G$6:$CU$253,48,FALSE) -> 14,044 | G22: =VLOOKUP($C22,'RECAP SECT'!$G$6:$CU$253,49,FALSE) -> 289.56 | H22: =VLOOKUP($C22,'RECAP SECT'!$G$6:$CU$253,50,FALSE) -> 54% | I22: =VLOOKUP($C22,'RECAP SECT'!$G$6:$CU$253,51,FALSE) -> 10 | J22: =VLOOKUP($C22,'RECAP SECT'!$G$6:$CU$253,52,FALSE) -> 3,020 | K22: =VLOOKUP($C22,'RECAP SECT'!$G$6:$CU$253,53,FALSE) -> 62.26 | L22: =VLOOKUP($C22,'RECAP SECT'!$G$6:$CU$253,54,FALSE) -> 0% | M22: =VLOOKUP($C22,'RECAP SECT'!$G$6:$CU$253,55,FALSE) -> 2 | N22: =VLOOKUP($C22,'RECAP SECT'!$G$6:$CU$253,56,FALSE) -> 1,180 | O22: =VLOOKUP($C22,'RECAP SECT'!$G$6:$CU$253,57,FALSE) -> 24.33 | P22: =VLOOKUP($C22,'RECAP SECT'!$G$6:$CU$253,58,FALSE) -> 44% | Q22: =VLOOKUP($C22,'RECAP SECT'!$G$6:$CU$253,59,FALSE) -> 12 | R22: =VLOOKUP($C22,'RECAP SECT'!$G$6:$CU$253,60,FALSE) -> 34% | S22: =VLOOKUP($C22,'RECAP SECT'!$G$6:$CU$253,61,FALSE) -> 29% | T22: =VLOOKUP($C22,'RECAP SECT'!$G$6:$CU$253,62,FALSE) -> 9
A23: 160 | B23: MOSELLE | C23: 45 | D23: METZ | E23: =VLOOKUP($C23,'RECAP SECT'!$G$6:$CU$253,3,FALSE) -> 72.8 | F23: =VLOOKUP($C23,'RECAP SECT'!$G$6:$CU$253,48,FALSE) -> 26,574 | G23: =VLOOKUP($C23,'RECAP SECT'!$G$6:$CU$253,49,FALSE) -> 364.98 | H23: =VLOOKUP($C23,'RECAP SECT'!$G$6:$CU$253,50,FALSE) -> 43% | I23: =VLOOKUP($C23,'RECAP SECT'!$G$6:$CU$253,51,FALSE) -> 8 | J23: =VLOOKUP($C23,'RECAP SECT'!$G$6:$CU$253,52,FALSE) -> 4,096 | K23: =VLOOKUP($C23,'RECAP SECT'!$G$6:$CU$253,53,FALSE) -> 56.26 | L23: =VLOOKUP($C23,'RECAP SECT'!$G$6:$CU$253,54,FALSE) -> 10% | M23: =VLOOKUP($C23,'RECAP SECT'!$G$6:$CU$253,55,FALSE) -> 7 | N23: =VLOOKUP($C23,'RECAP SECT'!$G$6:$CU$253,56,FALSE) -> 1,906 | O23: =VLOOKUP($C23,'RECAP SECT'!$G$6:$CU$253,57,FALSE) -> 26.18 | P23: =VLOOKUP($C23,'RECAP SECT'!$G$6:$CU$253,58,FALSE) -> 40% | Q23: =VLOOKUP($C23,'RECAP SECT'!$G$6:$CU$253,59,FALSE) -> 8 | R23: =VLOOKUP($C23,'RECAP SECT'!$G$6:$CU$253,60,FALSE) -> 32% | S23: =VLOOKUP($C23,'RECAP SECT'!$G$6:$CU$253,61,FALSE) -> 27% | T23: =VLOOKUP($C23,'RECAP SECT'!$G$6:$CU$253,62,FALSE) -> 8
A24: 160 | B24: MOSELLE | C24: 42 | D24: MOSELLE EST | E24: =VLOOKUP($C24,'RECAP SECT'!$G$6:$CU$253,3,FALSE) -> 58.0 | F24: =VLOOKUP($C24,'RECAP SECT'!$G$6:$CU$253,48,FALSE) -> 21,323 | G24: =VLOOKUP($C24,'RECAP SECT'!$G$6:$CU$253,49,FALSE) -> 367.63 | H24: =VLOOKUP($C24,'RECAP SECT'!$G$6:$CU$253,50,FALSE) -> 42% | I24: =VLOOKUP($C24,'RECAP SECT'!$G$6:$CU$253,51,FALSE) -> 7 | J24: =VLOOKUP($C24,'RECAP SECT'!$G$6:$CU$253,52,FALSE) -> 3,555 | K24: =VLOOKUP($C24,'RECAP SECT'!$G$6:$CU$253,53,FALSE) -> 61.30 | L24: =VLOOKUP($C24,'RECAP SECT'!$G$6:$CU$253,54,FALSE) -> 2% | M24: =VLOOKUP($C24,'RECAP SECT'!$G$6:$CU$253,55,FALSE) -> 3 | N24: =VLOOKUP($C24,'RECAP SECT'!$G$6:$CU$253,56,FALSE) -> 1,582 | O24: =VLOOKUP($C24,'RECAP SECT'!$G$6:$CU$253,57,FALSE) -> 27.28 | P24: =VLOOKUP($C24,'RECAP SECT'!$G$6:$CU$253,58,FALSE) -> 37% | Q24: =VLOOKUP($C24,'RECAP SECT'!$G$6:$CU$253,59,FALSE) -> 7 | R24: =VLOOKUP($C24,'RECAP SECT'!$G$6:$CU$253,60,FALSE) -> 28% | S24: =VLOOKUP($C24,'RECAP SECT'!$G$6:$CU$253,61,FALSE) -> 24% | T24: =VLOOKUP($C24,'RECAP SECT'!$G$6:$CU$253,62,FALSE) -> 6
A25: 160 | B25: MOSELLE | C25: 44 | D25: MOSELLE NORD | E25: =VLOOKUP($C25,'RECAP SECT'!$G$6:$CU$253,3,FALSE) -> 55.6 | F25: =VLOOKUP($C25,'RECAP SECT'!$G$6:$CU$253,48,FALSE) -> 31,768 | G25: =VLOOKUP($C25,'RECAP SECT'!$G$6:$CU$253,49,FALSE) -> 571.36 | H25: =VLOOKUP($C25,'RECAP SECT'!$G$6:$CU$253,50,FALSE) -> 10% | I25: =VLOOKUP($C25,'RECAP SECT'!$G$6:$CU$253,51,FALSE) -> 2 | J25: =VLOOKUP($C25,'RECAP SECT'!$G$6:$CU$253,52,FALSE) -> 3,472 | K25: =VLOOKUP($C25,'RECAP SECT'!$G$6:$CU$253,53,FALSE) -> 62.45 | L25: =VLOOKUP($C25,'RECAP SECT'!$G$6:$CU$253,54,FALSE) -> 0% | M25: =VLOOKUP($C25,'RECAP SECT'!$G$6:$CU$253,55,FALSE) -> 1 | N25: =VLOOKUP($C25,'RECAP SECT'!$G$6:$CU$253,56,FALSE) -> 1,945 | O25: =VLOOKUP($C25,'RECAP SECT'!$G$6:$CU$253,57,FALSE) -> 34.98 | P25: =VLOOKUP($C25,'RECAP SECT'!$G$6:$CU$253,58,FALSE) -> 19% | Q25: =VLOOKUP($C25,'RECAP SECT'!$G$6:$CU$253,59,FALSE) -> 2 | R25: =VLOOKUP($C25,'RECAP SECT'!$G$6:$CU$253,60,FALSE) -> 11% | S25: =VLOOKUP($C25,'RECAP SECT'!$G$6:$CU$253,61,FALSE) -> 6% | T25: =VLOOKUP($C25,'RECAP SECT'!$G$6:$CU$253,62,FALSE) -> 2
A26: 80 | B26: VOSGES | C26: 57 | D26: EPINAL | E26: =VLOOKUP($C26,'RECAP SECT'!$G$6:$CU$253,3,FALSE) -> 53.0 | F26: =VLOOKUP($C26,'RECAP SECT'!$G$6:$CU$253,48,FALSE) -> 14,202 | G26: =VLOOKUP($C26,'RECAP SECT'!$G$6:$CU$253,49,FALSE) -> 267.91 | H26: =VLOOKUP($C26,'RECAP SECT'!$G$6:$CU$253,50,FALSE) -> 58% | I26: =VLOOKUP($C26,'RECAP SECT'!$G$6:$CU$253,51,FALSE) -> 11 | J26: =VLOOKUP($C26,'RECAP SECT'!$G$6:$CU$253,52,FALSE) -> 2,431 | K26: =VLOOKUP($C26,'RECAP SECT'!$G$6:$CU$253,53,FALSE) -> 45.85 | L26: =VLOOKUP($C26,'RECAP SECT'!$G$6:$CU$253,54,FALSE) -> 27% | M26: =VLOOKUP($C26,'RECAP SECT'!$G$6:$CU$253,55,FALSE) -> 16 | N26: =VLOOKUP($C26,'RECAP SECT'!$G$6:$CU$253,56,FALSE) -> 1,353 | O26: =VLOOKUP($C26,'RECAP SECT'!$G$6:$CU$253,57,FALSE) -> 25.52 | P26: =VLOOKUP($C26,'RECAP SECT'!$G$6:$CU$253,58,FALSE) -> 41% | Q26: =VLOOKUP($C26,'RECAP SECT'!$G$6:$CU$253,59,FALSE) -> 10 | R26: =VLOOKUP($C26,'RECAP SECT'!$G$6:$CU$253,60,FALSE) -> 42% | S26: =VLOOKUP($C26,'RECAP SECT'!$G$6:$CU$253,61,FALSE) -> 37% | T26: =VLOOKUP($C26,'RECAP SECT'!$G$6:$CU$253,62,FALSE) -> 12
A27: 80 | B27: VOSGES | C27: 55 | D27: SAINT DIE | E27: =VLOOKUP($C27,'RECAP SECT'!$G$6:$CU$253,3,FALSE) -> 40.1 | F27: =VLOOKUP($C27,'RECAP SECT'!$G$6:$CU$253,48,FALSE) -> 9,220 | G27: =VLOOKUP($C27,'RECAP SECT'!$G$6:$CU$253,49,FALSE) -> 229.80 | H27: =VLOOKUP($C27,'RECAP SECT'!$G$6:$CU$253,50,FALSE) -> 64% | I27: =VLOOKUP($C27,'RECAP SECT'!$G$6:$CU$253,51,FALSE) -> 15 | J27: =VLOOKUP($C27,'RECAP SECT'!$G$6:$CU$253,52,FALSE) -> 2,083 | K27: =VLOOKUP($C27,'RECAP SECT'!$G$6:$CU$253,53,FALSE) -> 51.91 | L27: =VLOOKUP($C27,'RECAP SECT'!$G$6:$CU$253,54,FALSE) -> 17% | M27: =VLOOKUP($C27,'RECAP SECT'!$G$6:$CU$253,55,FALSE) -> 11 | N27: =VLOOKUP($C27,'RECAP SECT'!$G$6:$CU$253,56,FALSE) -> 931 | O27: =VLOOKUP($C27,'RECAP SECT'!$G$6:$CU$253,57,FALSE) -> 23.21 | P27: =VLOOKUP($C27,'RECAP SECT'!$G$6:$CU$253,58,FALSE) -> 46% | Q27: =VLOOKUP($C27,'RECAP SECT'!$G$6:$CU$253,59,FALSE) -> 13 | R27: =VLOOKUP($C27,'RECAP SECT'!$G$6:$CU$253,60,FALSE) -> 43% | S27: =VLOOKUP($C27,'RECAP SECT'!$G$6:$CU$253,61,FALSE) -> 38% | T27: =VLOOKUP($C27,'RECAP SECT'!$G$6:$CU$253,62,FALSE) -> 13
A28: Total CEGEE Directions Régionales | E28: =SUM(E10:E27) -> 948

Sheet SE_IARD
B1: Accueil | F1: BAROMETRE BDD - TERRITOIRES
F2: IARD ET PREVOYANCE
F3: =ACCUEIL!F7 -> 2022-10-23
F7: Ventes Nettes produits pondérés | J7: Ventes sur client non détenteur de l’univers | N7: Total IARD Prévoyance
F8: =DATEMAJ!C23 -> au 23/10 | H8: coef | I8: ='RECAP DIRCOM'!BX4 -> 12% | J8: =DATEMAJ!C24 -> au 23/10 | L8: coef | M8: ='RECAP DIRCOM'!CB4 -> 8% | O8: coef | P8: ='RECAP DIRCOM'!CE4 -> 20%
B9: Direction | C9: eds | D9: Territoire | E9: ="ETP perf "&DATEMAJ!$C$28 -> ETP perf 23-oct | F9: VN | G9: VN / ETP | H9: % Ecart au 1er | I9: Rang | J9: VB | K9: VB / ETP | L9: % Ecart au 1er | M9: Rang | N9: Moyenne ecart au 1er | O9: % Ecart au 1er | P9: Rang CEGEE
A10: 50 | B10: AUBE HAUTE MARNE | C10: 21 | D10: CHAUMONT | E10: =VLOOKUP($C10,'RECAP SECT'!$G$6:$CU$253,3,FALSE) -> 33.6 | F10: =VLOOKUP($C10,'RECAP SECT'!$G$6:$CU$253,67,FALSE) -> 6,059 | G10: =VLOOKUP($C10,'RECAP SECT'!$G$6:$CU$253,68,FALSE) -> 180.11 | H10: =VLOOKUP($C10,'RECAP SECT'!$G$6:$CU$253,69,FALSE) -> 10% | I10: =VLOOKUP($C10,'RECAP SECT'!$G$6:$CU$253,70,FALSE) -> 3 | J10: =VLOOKUP($C10,'RECAP SECT'!$G$6:$CU$253,71,FALSE) -> 1,443 | K10: =VLOOKUP($C10,'RECAP SECT'!$G$6:$CU$253,72,FALSE) -> 42.90 | L10: =VLOOKUP($C10,'RECAP SECT'!$G$6:$CU$253,73,FALSE) -> 26% | M10: =VLOOKUP($C10,'RECAP SECT'!$G$6:$CU$253,74,FALSE) -> 9 | N10: =VLOOKUP($C10,'RECAP SECT'!$G$6:$CU$253,75,FALSE) -> 16% | O10: =VLOOKUP($C10,'RECAP SECT'!$G$6:$CU$253,76,FALSE) -> 15% | P10: =VLOOKUP($C10,'RECAP SECT'!$G$6:$CU$253,77,FALSE) -> 6
A11: 50 | B11: AUBE HAUTE MARNE | C11: 14 | D11: TROYES | E11: =VLOOKUP($C11,'RECAP SECT'!$G$6:$CU$253,3,FALSE) -> 54.0 | F11: =VLOOKUP($C11,'RECAP SECT'!$G$6:$CU$253,67,FALSE) -> 5,475 | G11: =VLOOKUP($C11,'RECAP SECT'!$G$6:$CU$253,68,FALSE) -> 101.33 | H11: =VLOOKUP($C11,'RECAP SECT'!$G$6:$CU$253,69,FALSE) -> 49% | I11: =VLOOKUP($C11,'RECAP SECT'!$G$6:$CU$253,70,FALSE) -> 13 | J11: =VLOOKUP($C11,'RECAP SECT'!$G$6:$CU$253,71,FALSE) -> 2,157 | K11: =VLOOKUP($C11,'RECAP SECT'!$G$6:$CU$253,72,FALSE) -> 39.92 | L11: =VLOOKUP($C11,'RECAP SECT'!$G$6:$CU$253,73,FALSE) -> 31% | M11: =VLOOKUP($C11,'RECAP SECT'!$G$6:$CU$253,74,FALSE) -> 12 | N11: =VLOOKUP($C11,'RECAP SECT'!$G$6:$CU$253,75,FALSE) -> 42% | O11: =VLOOKUP($C11,'RECAP SECT'!$G$6:$CU$253,76,FALSE) -> 40% | P11: =VLOOKUP($C11,'RECAP SECT'!$G$6:$CU$253,77,FALSE) -> 13
A12: 262 | B12: BAS-RHIN | C12: 5060 | D12: HAGUENAU | E12: =VLOOKUP($C12,'RECAP SECT'!$G$6:$CU$253,3,FALSE) -> 55.4 | F12: =VLOOKUP($C12,'RECAP SECT'!$G$6:$CU$253,67,FALSE) -> 4,762 | G12: =VLOOKUP($C12,'RECAP SECT'!$G$6:$CU$253,68,FALSE) -> 85.96 | H12: =VLOOKUP($C12,'RECAP SECT'!$G$6:$CU$253,69,FALSE) -> 57% | I12: =VLOOKUP($C12,'RECAP SECT'!$G$6:$CU$253,70,FALSE) -> 15 | J12: =VLOOKUP($C12,'RECAP SECT'!$G$6:$CU$253,71,FALSE) -> 1,996 | K12: =VLOOKUP($C12,'RECAP SECT'!$G$6:$CU$253,72,FALSE) -> 36.03 | L12: =VLOOKUP($C12,'RECAP SECT'!$G$6:$CU$253,73,FALSE) -> 38% | M12: =VLOOKUP($C12,'RECAP SECT'!$G$6:$CU$253,74,FALSE) -> 15 | N12: =VLOOKUP($C12,'RECAP SECT'!$G$6:$CU$253,75,FALSE) -> 49% | O12: =VLOOKUP($C12,'RECAP SECT'!$G$6:$CU$253,76,FALSE) -> 48% | P12: =VLOOKUP($C12,'RECAP SECT'!$G$6:$CU$253,77,FALSE) -> 14
A13: 262 | B13: BAS-RHIN | C13: 5101 | D13: SELESTAT | E13: =VLOOKUP($C13,'RECAP SECT'!$G$6:$CU$253,3,FALSE) -> 50.9 | F13: =VLOOKUP($C13,'RECAP SECT'!$G$6:$CU$253,67,FALSE) -> 4,193 | G13: =VLOOKUP($C13,'RECAP SECT'!$G$6:$CU$253,68,FALSE) -> 82.36 | H13: =VLOOKUP($C13,'RECAP SECT'!$G$6:$CU$253,69,FALSE) -> 59% | I13: =VLOOKUP($C13,'RECAP SECT'!$G$6:$CU$253,70,FALSE) -> 16 | J13: =VLOOKUP($C13,'RECAP SECT'!$G$6:$CU$253,71,FALSE) -> 1,854 | K13: =VLOOKUP($C13,'RECAP SECT'!$G$6:$CU$253,72,FALSE) -> 36.42 | L13: =VLOOKUP($C13,'RECAP SECT'!$G$6:$CU$253,73,FALSE) -> 37% | M13: =VLOOKUP($C13,'RECAP SECT'!$G$6:$CU$253,74,FALSE) -> 14 | N13: =VLOOKUP($C13,'RECAP SECT'!$G$6:$CU$253,75,FALSE) -> 50% | O13: =VLOOKUP($C13,'RECAP SECT'!$G$6:$CU$253,76,FALSE) -> 48% | P13: =VLOOKUP($C13,'RECAP SECT'!$G$6:$CU$253,77,FALSE) -> 16
A14: 262 | B14: BAS-RHIN | C14: 5006 | D14: STRASBOURG | E14: =VLOOKUP($C14,'RECAP SECT'!$G$6:$CU$253,3,FALSE) -> 65.0 | F14: =VLOOKUP($C14,'RECAP SECT'!$G$6:$CU$253,67,FALSE) -> 8,827 | G14: =VLOOKUP($C14,'RECAP SECT'!$G$6:$CU$253,68,FALSE) -> 135.88 | H14: =VLOOKUP($C14,'RECAP SECT'!$G$6:$CU$253,69,FALSE) -> 32% | I14: =VLOOKUP($C14,'RECAP SECT'!$G$6:$CU$253,70,FALSE) -> 7 | J14: =VLOOKUP($C14,'RECAP SECT'!$G$6:$CU$253,71,FALSE) -> 3,507 | K14: =VLOOKUP($C14,'RECAP SECT'!$G$6:$CU$253,72,FALSE) -> 53.99 | L14: =VLOOKUP($C14,'RECAP SECT'!$G$6:$CU$253,73,FALSE) -> 7% | M14: =VLOOKUP($C14,'RECAP SECT'!$G$6:$CU$253,74,FALSE) -> 3 | N14: =VLOOKUP($C14,'RECAP SECT'!$G$6:$CU$253,75,FALSE) -> 22% | O14: =VLOOKUP($C14,'RECAP SECT'!$G$6:$CU$253,76,FALSE) -> 20% | P14: =VLOOKUP($C14,'RECAP SECT'!$G$6:$CU$253,77,FALSE) -> 7
A15: 264 | B15: HAUT-RHIN | C15: 5130 | D15: COLMAR | E15: =VLOOKUP($C15,'RECAP SECT'!$G$6:$CU$253,3,FALSE) -> 45.9 | F15: =VLOOKUP($C15,'RECAP SECT'!$G$6:$CU$253,67,FALSE) -> 2,576 | G15: =VLOOKUP($C15,'RECAP SECT'!$G$6:$CU$253,68,FALSE) -> 56.12 | H15: =VLOOKUP($C15,'RECAP SECT'!$G$6:$CU$253,69,FALSE) -> 72% | I15: =VLOOKUP($C15,'RECAP SECT'!$G$6:$CU$253,70,FALSE) -> 17 | J15: =VLOOKUP($C15,'RECAP SECT'!$G$6:$CU$253,71,FALSE) -> 1,588 | K15: =VLOOKUP($C15,'RECAP SECT'!$G$6:$CU$253,72,FALSE) -> 34.60 | L15: =VLOOKUP($C15,'RECAP SECT'!$G$6:$CU$253,73,FALSE) -> 40% | M15: =VLOOKUP($C15,'RECAP SECT'!$G$6:$CU$253,74,FALSE) -> 17 | N15: =VLOOKUP($C15,'RECAP SECT'!$G$6:$CU$253,75,FALSE) -> 59% | O15: =VLOOKUP($C15,'RECAP SECT'!$G$6:$CU$253,76,FALSE) -> 58% | P15: =VLOOKUP($C15,'RECAP SECT'!$G$6:$CU$253,77,FALSE) -> 17
A16: 264 | B16: HAUT-RHIN | C16: 5169 | D16: MULHOUSE | E16: =VLOOKUP($C16,'RECAP SECT'!$G$6:$CU$253,3,FALSE) -> 46.7 | F16: =VLOOKUP($C16,'RECAP SECT'!$G$6:$CU$253,67,FALSE) -> -3 | G16: =VLOOKUP($C16,'RECAP SECT'!$G$6:$CU$253,68,FALSE) -> -0.06 | H16: =VLOOKUP($C16,'RECAP SECT'!$G$6:$CU$253,69,FALSE) -> 100% | I16: =VLOOKUP($C16,'RECAP SECT'!$G$6:$CU$253,70,FALSE) -> 18 | J16: =VLOOKUP($C16,'RECAP SECT'!$G$6:$CU$253,71,FALSE) -> 1,610 | K16: =VLOOKUP($C16,'RECAP SECT'!$G$6:$CU$253,72,FALSE) -> 34.46 | L16: =VLOOKUP($C16,'RECAP SECT'!$G$6:$CU$253,73,FALSE) -> 40% | M16: =VLOOKUP($C16,'RECAP SECT'!$G$6:$CU$253,74,FALSE) -> 18 | N16: =VLOOKUP($C16,'RECAP SECT'!$G$6:$CU$253,75,FALSE) -> 76% | O16: =VLOOKUP($C16,'RECAP SECT'!$G$6:$CU$253,76,FALSE) -> 75% | P16: =VLOOKUP($C16,'RECAP SECT'!$G$6:$CU$253,77,FALSE) -> 18
A17: 30 | B17: MARNE-ARDENNES | C17: 6 | D17: CHALONS EN CHAMPAGNE | E17: =VLOOKUP($C17,'RECAP SECT'!$G$6:$CU$253,3,FALSE) -> 37.4 | F17: =VLOOKUP($C17,'RECAP SECT'!$G$6:$CU$253,67,FALSE) -> 6,695 | G17: =VLOOKUP($C17,'RECAP SECT'!$G$6:$CU$253,68,FALSE) -> 178.82 | H17: =VLOOKUP($C17,'RECAP SECT'!$G$6:$CU$253,69,FALSE) -> 10% | I17: =VLOOKUP($C17,'RECAP SECT'!$G$6:$CU$253,70,FALSE) -> 4 | J17: =VLOOKUP($C17,'RECAP SECT'!$G$6:$CU$253,71,FALSE) -> 1,879 | K17: =VLOOKUP($C17,'RECAP SECT'!$G$6:$CU$253,72,FALSE) -> 50.19 | L17: =VLOOKUP($C17,'RECAP SECT'!$G$6:$CU$253,73,FALSE) -> 13% | M17: =VLOOKUP($C17,'RECAP SECT'!$G$6:$CU$253,74,FALSE) -> 4 | N17: =VLOOKUP($C17,'RECAP SECT'!$G$6:$CU$253,75,FALSE) -> 12% | O17: =VLOOKUP($C17,'RECAP SECT'!$G$6:$CU$253,76,FALSE) -> 10% | P17: =VLOOKUP($C17,'RECAP SECT'!$G$6:$CU$253,77,FALSE) -> 4
A18: 30 | B18: MARNE-ARDENNES | C18: 2 | D18: CHARLEVILLE MEZIERES | E18: =VLOOKUP($C18,'RECAP SECT'!$G$6:$CU$253,3,FALSE) -> 48.3 | F18: =VLOOKUP($C18,'RECAP SECT'!$G$6:$CU$253,67,FALSE) -> 9,139 | G18: =VLOOKUP($C18,'RECAP SECT'!$G$6:$CU$253,68,FALSE) -> 189.17 | H18: =VLOOKUP($C18,'RECAP SECT'!$G$6:$CU$253,69,FALSE) -> 5% | I18: =VLOOKUP($C18,'RECAP SECT'!$G$6:$CU$253,70,FALSE) -> 2 | J18: =VLOOKUP($C18,'RECAP SECT'!$G$6:$CU$253,71,FALSE) -> 2,274 | K18: =VLOOKUP($C18,'RECAP SECT'!$G$6:$CU$253,72,FALSE) -> 47.07 | L18: =VLOOKUP($C18,'RECAP SECT'!$G$6:$CU$253,73,FALSE) -> 19% | M18: =VLOOKUP($C18,'RECAP SECT'!$G$6:$CU$253,74,FALSE) -> 7 | N18: =VLOOKUP($C18,'RECAP SECT'!$G$6:$CU$253,75,FALSE) -> 11% | O18: =VLOOKUP($C18,'RECAP SECT'!$G$6:$CU$253,76,FALSE) -> 9% | P18: =VLOOKUP($C18,'RECAP SECT'!$G$6:$CU$253,77,FALSE) -> 3
A19: 30 | B19: MARNE-ARDENNES | C19: 11 | D19: REIMS | E19: =VLOOKUP($C19,'RECAP SECT'!$G$6:$CU$253,3,FALSE) -> 68.0 | F19: =VLOOKUP($C19,'RECAP SECT'!$G$6:$CU$253,67,FALSE) -> 12,149 | G19: =VLOOKUP($C19,'RECAP SECT'!$G$6:$CU$253,68,FALSE) -> 178.61 | H19: =VLOOKUP($C19,'RECAP SECT'!$G$6:$CU$253,69,FALSE) -> 10% | I19: =VLOOKUP($C19,'RECAP SECT'!$G$6:$CU$253,70,FALSE) -> 5 | J19: =VLOOKUP($C19,'RECAP SECT'!$G$6:$CU$253,71,FALSE) -> 3,937 | K19: =VLOOKUP($C19,'RECAP SECT'!$G$6:$CU$253,72,FALSE) -> 57.88 | L19: =VLOOKUP($C19,'RECAP SECT'!$G$6:$CU$253,73,FALSE) -> 0% | M19: =VLOOKUP($C19,'RECAP SECT'!$G$6:$CU$253,74,FALSE) -> 1 | N19: =VLOOKUP($C19,'RECAP SECT'!$G$6:$CU$253,75,FALSE) -> 6% | O19: =VLOOKUP($C19,'RECAP SECT'!$G$6:$CU$253,76,FALSE) -> 5% | P19: =VLOOKUP($C19,'RECAP SECT'!$G$6:$CU$253,77,FALSE) -> 2
A20: 110 | B20: MEURTHE ET MOSELLE MEUSE | C20: 26 | D20: NANCY | E20: =VLOOKUP($C20,'RECAP SECT'!$G$6:$CU$253,3,FALSE) -> 54.9 | F20: =VLOOKUP($C20,'RECAP SECT'!$G$6:$CU$253,67,FALSE) -> 5,831 | G20: =VLOOKUP($C20,'RECAP SECT'!$G$6:$CU$253,68,FALSE) -> 106.23 | H20: =VLOOKUP($C20,'RECAP SECT'!$G$6:$CU$253,69,FALSE) -> 47% | I20: =VLOOKUP($C20,'RECAP SECT'!$G$6:$CU$253,70,FALSE) -> 11 | J20: =VLOOKUP($C20,'RECAP SECT'!$G$6:$CU$253,71,FALSE) -> 2,473 | K20: =VLOOKUP($C20,'RECAP SECT'!$G$6:$CU$253,72,FALSE) -> 45.05 | L20: =VLOOKUP($C20,'RECAP SECT'!$G$6:$CU$253,73,FALSE) -> 22% | M20: =VLOOKUP($C20,'RECAP SECT'!$G$6:$CU$253,74,FALSE) -> 8 | N20: =VLOOKUP($C20,'RECAP SECT'!$G$6:$CU$253,75,FALSE) -> 37% | O20: =VLOOKUP($C20,'RECAP SECT'!$G$6:$CU$253,76,FALSE) -> 35% | P20: =VLOOKUP($C20,'RECAP SECT'!$G$6:$CU$253,77,FALSE) -> 10
A21: 110 | B21: MEURTHE ET MOSELLE MEUSE | C21: 27 | D21: PONT A MOUSSON | E21: =VLOOKUP($C21,'RECAP SECT'!$G$6:$CU$253,3,FALSE) -> 59.6 | F21: =VLOOKUP($C21,'RECAP SECT'!$G$6:$CU$253,67,FALSE) -> 7,744 | G21: =VLOOKUP($C21,'RECAP SECT'!$G$6:$CU$253,68,FALSE) -> 129.93 | H21: =VLOOKUP($C21,'RECAP SECT'!$G$6:$CU$253,69,FALSE) -> 35% | I21: =VLOOKUP($C21,'RECAP SECT'!$G$6:$CU$253,70,FALSE) -> 8 | J21: =VLOOKUP($C21,'RECAP SECT'!$G$6:$CU$253,71,FALSE) -> 2,912 | K21: =VLOOKUP($C21,'RECAP SECT'!$G$6:$CU$253,72,FALSE) -> 48.86 | L21: =VLOOKUP($C21,'RECAP SECT'!$G$6:$CU$253,73,FALSE) -> 16% | M21: =VLOOKUP($C21,'RECAP SECT'!$G$6:$CU$253,74,FALSE) -> 6 | N21: =VLOOKUP($C21,'RECAP SECT'!$G$6:$CU$253,75,FALSE) -> 27% | O21: =VLOOKUP($C21,'RECAP SECT'!$G$6:$CU$253,76,FALSE) -> 26% | P21: =VLOOKUP($C21,'RECAP SECT'!$G$6:$CU$253,77,FALSE) -> 8
A22: 110 | B22: MEURTHE ET MOSELLE MEUSE | C22: 31 | D22: VERDUN | E22: =VLOOKUP($C22,'RECAP SECT'!$G$6:$CU$253,3,FALSE) -> 48.5 | F22: =VLOOKUP($C22,'RECAP SECT'!$G$6:$CU$253,67,FALSE) -> 5,539 | G22: =VLOOKUP($C22,'RECAP SECT'!$G$6:$CU$253,68,FALSE) -> 114.21 | H22: =VLOOKUP($C22,'RECAP SECT'!$G$6:$CU$253,69,FALSE) -> 43% | I22: =VLOOKUP($C22,'RECAP SECT'!$G$6:$CU$253,70,FALSE) -> 10 | J22: =VLOOKUP($C22,'RECAP SECT'!$G$6:$CU$253,71,FALSE) -> 1,962 | K22: =VLOOKUP($C22,'RECAP SECT'!$G$6:$CU$253,72,FALSE) -> 40.45 | L22: =VLOOKUP($C22,'RECAP SECT'!$G$6:$CU$253,73,FALSE) -> 30% | M22: =VLOOKUP($C22,'RECAP SECT'!$G$6:$CU$253,74,FALSE) -> 11 | N22: =VLOOKUP($C22,'RECAP SECT'!$G$6:$CU$253,75,FALSE) -> 38% | O22: =VLOOKUP($C22,'RECAP SECT'!$G$6:$CU$253,76,FALSE) -> 36% | P22: =VLOOKUP($C22,'RECAP SECT'!$G$6:$CU$253,77,FALSE) -> 11
A23: 160 | B23: MOSELLE | C23: 45 | D23: METZ | E23: =VLOOKUP($C23,'RECAP SECT'!$G$6:$CU$253,3,FALSE) -> 72.8 | F23: =VLOOKUP($C23,'RECAP SECT'!$G$6:$CU$253,67,FALSE) -> 8,352 | G23: =VLOOKUP($C23,'RECAP SECT'!$G$6:$CU$253,68,FALSE) -> 114.71 | H23: =VLOOKUP($C23,'RECAP SECT'!$G$6:$CU$253,69,FALSE) -> 43% | I23: =VLOOKUP($C23,'RECAP SECT'!$G$6:$CU$253,70,FALSE) -> 9 | J23: =VLOOKUP($C23,'RECAP SECT'!$G$6:$CU$253,71,FALSE) -> 3,113 | K23: =VLOOKUP($C23,'RECAP SECT'!$G$6:$CU$253,72,FALSE) -> 42.76 | L23: =VLOOKUP($C23,'RECAP SECT'!$G$6:$CU$253,73,FALSE) -> 26% | M23: =VLOOKUP($C23,'RECAP SECT'!$G$6:$CU$253,74,FALSE) -> 10 | N23: =VLOOKUP($C23,'RECAP SECT'!$G$6:$CU$253,75,FALSE) -> 36% | O23: =VLOOKUP($C23,'RECAP SECT'!$G$6:$CU$253,76,FALSE) -> 34% | P23: =VLOOKUP($C23,'RECAP SECT'!$G$6:$CU$253,77,FALSE) -> 9
A24: 160 | B24: MOSELLE | C24: 42 | D24: MOSELLE EST | E24: =VLOOKUP($C24,'RECAP SECT'!$G$6:$CU$253,3,FALSE) -> 58.0 | F24: =VLOOKUP($C24,'RECAP SECT'!$G$6:$CU$253,67,FALSE) -> 9,889 | G24: =VLOOKUP($C24,'RECAP SECT'!$G$6:$CU$253,68,FALSE) -> 170.50 | H24: =VLOOKUP($C24,'RECAP SECT'!$G$6:$CU$253,69,FALSE) -> 15% | I24: =VLOOKUP($C24,'RECAP SECT'!$G$6:$CU$253,70,FALSE) -> 6 | J24: =VLOOKUP($C24,'RECAP SECT'!$G$6:$CU$253,71,FALSE) -> 2,862 | K24: =VLOOKUP($C24,'RECAP SECT'!$G$6:$CU$253,72,FALSE) -> 49.34 | L24: =VLOOKUP($C24,'RECAP SECT'!$G$6:$CU$253,73,FALSE) -> 15% | M24: =VLOOKUP($C24,'RECAP SECT'!$G$6:$CU$253,74,FALSE) -> 5 | N24: =VLOOKUP($C24,'RECAP SECT'!$G$6:$CU$253,75,FALSE) -> 15% | O24: =VLOOKUP($C24,'RECAP SECT'!$G$6:$CU$253,76,FALSE) -> 13% | P24: =VLOOKUP($C24,'RECAP SECT'!$G$6:$CU$253,77,FALSE) -> 5
A25: 160 | B25: MOSELLE | C25: 44 | D25: MOSELLE NORD | E25: =VLOOKUP($C25,'RECAP SECT'!$G$6:$CU$253,3,FALSE) -> 55.6 | F25: =VLOOKUP($C25,'RECAP SECT'!$G$6:$CU$253,67,FALSE) -> 11,094 | G25: =VLOOKUP($C25,'RECAP SECT'!$G$6:$CU$253,68,FALSE) -> 199.53 | H25: =VLOOKUP($C25,'RECAP SECT'!$G$6:$CU$253,69,FALSE) -> 0% | I25: =VLOOKUP($C25,'RECAP SECT'!$G$6:$CU$253,70,FALSE) -> 1 | J25: =VLOOKUP($C25,'RECAP SECT'!$G$6:$CU$253,71,FALSE) -> 3,092 | K25: =VLOOKUP($C25,'RECAP SECT'!$G$6:$CU$253,72,FALSE) -> 55.61 | L25: =VLOOKUP($C25,'RECAP SECT'!$G$6:$CU$253,73,FALSE) -> 4% | M25: =VLOOKUP($C25,'RECAP SECT'!$G$6:$CU$253,74,FALSE) -> 2 | N25: =VLOOKUP($C25,'RECAP SECT'!$G$6:$CU$253,75,FALSE) -> 2% | O25: =VLOOKUP($C25,'RECAP SECT'!$G$6:$CU$253,76,FALSE) -> 0% | P25: =VLOOKUP($C25,'RECAP SECT'!$G$6:$CU$253,77,FALSE) -> 1
A26: 80 | B26: VOSGES | C26: 57 | D26: EPINAL | E26: =VLOOKUP($C26,'RECAP SECT'!$G$6:$CU$253,3,FALSE) -> 53.0 | F26: =VLOOKUP($C26,'RECAP SECT'!$G$6:$CU$253,67,FALSE) -> 5,630 | G26: =VLOOKUP($C26,'RECAP SECT'!$G$6:$CU$253,68,FALSE) -> 106.21 | H26: =VLOOKUP($C26,'RECAP SECT'!$G$6:$CU$253,69,FALSE) -> 47% | I26: =VLOOKUP($C26,'RECAP SECT'!$G$6:$CU$253,70,FALSE) -> 12 | J26: =VLOOKUP($C26,'RECAP SECT'!$G$6:$CU$253,71,FALSE) -> 2,004 | K26: =VLOOKUP($C26,'RECAP SECT'!$G$6:$CU$253,72,FALSE) -> 37.80 | L26: =VLOOKUP($C26,'RECAP SECT'!$G$6:$CU$253,73,FALSE) -> 35% | M26: =VLOOKUP($C26,'RECAP SECT'!$G$6:$CU$253,74,FALSE) -> 13 | N26: =VLOOKUP($C26,'RECAP SECT'!$G$6:$CU$253,75,FALSE) -> 42% | O26: =VLOOKUP($C26,'RECAP SECT'!$G$6:$CU$253,76,FALSE) -> 40% | P26: =VLOOKUP($C26,'RECAP SECT'!$G$6:$CU$253,77,FALSE) -> 12
A27: 80 | B27: VOSGES | C27: 55 | D27: SAINT DIE | E27: =VLOOKUP($C27,'RECAP SECT'!$G$6:$CU$253,3,FALSE) -> 40.1 | F27: =VLOOKUP($C27,'RECAP SECT'!$G$6:$CU$253,67,FALSE) -> 3,517 | G27: =VLOOKUP($C27,'RECAP SECT'!$G$6:$CU$253,68,FALSE) -> 87.66 | H27: =VLOOKUP($C27,'RECAP SECT'!$G$6:$CU$253,69,FALSE) -> 56% | I27: =VLOOKUP($C27,'RECAP SECT'!$G$6:$CU$253,70,FALSE) -> 14 | J27: =VLOOKUP($C27,'RECAP SECT'!$G$6:$CU$253,71,FALSE) -> 1,409 | K27: =VLOOKUP($C27,'RECAP SECT'!$G$6:$CU$253,72,FALSE) -> 35.12 | L27: =VLOOKUP($C27,'RECAP SECT'!$G$6:$CU$253,73,FALSE) -> 39% | M27: =VLOOKUP($C27,'RECAP SECT'!$G$6:$CU$253,74,FALSE) -> 16 | N27: =VLOOKUP($C27,'RECAP SECT'!$G$6:$CU$253,75,FALSE) -> 49% | O27: =VLOOKUP($C27,'RECAP SECT'!$G$6:$CU$253,76,FALSE) -> 48% | P27: =VLOOKUP($C27,'RECAP SECT'!$G$6:$CU$253,77,FALSE) -> 15
A28: Total CEGEE Directions Régionales | E28: =SUM(E10:E27) -> 948

Sheet SE_SATISFACTION
B1: Accueil | F1: BAROMETRE BDD - TERRITOIRES
F2: SATISFACTION
F3: =ACCUEIL!F7 -> 2022-10-23
F7: NPS à froid (SAE) | I7: NPS à chaud (QHD) | L7: Total Satisfaction Clients
F8: =DATEMAJ!E4 -> au 30/09 | G8: coef | H8: ='RECAP DIRCOM'!M4 -> 10% | I8: =DATEMAJ!C5 -> au 31/08 | J8: coef | K8: ='RECAP DIRCOM'!P4 -> 10% | M8: coef | N8: ='RECAP DIRCOM'!S4 -> 20%
B9: Direction | C9: eds | D9: Territoire | E9: ="ETP perf "&DATEMAJ!$C$28 -> ETP perf 23-oct | G9: % Ecart au 1er | H9: Rang | J9: % Ecart au 1er | K9: Rang | L9: Moyenne ecart au 1er | M9: % Ecart au 1er | N9: Rang CEGEE
A10: 50 | B10: AUBE HAUTE MARNE | C10: 21 | D10: CHAUMONT | E10: =VLOOKUP($C10,'RECAP SECT'!$G$6:$CU$253,3,FALSE) -> 33.6 | F10: =VLOOKUP($C10,'RECAP SECT'!$G$6:$CU$253,5,FALSE) -> 17.75 | G10: =VLOOKUP($C10,'RECAP SECT'!$G$6:$CU$253,6,FALSE) -> 30% | H10: =VLOOKUP($C10,'RECAP SECT'!$G$6:$CU$253,7,FALSE) -> 6 | I10: =VLOOKUP($C10,'RECAP SECT'!$G$6:$CU$253,8,FALSE) -> 65% | J10: =VLOOKUP($C10,'RECAP SECT'!$G$6:$CU$253,9,FALSE) -> 12% | K10: =VLOOKUP($C10,'RECAP SECT'!$G$6:$CU$253,10,FALSE) -> 8 | L10: =VLOOKUP($C10,'RECAP SECT'!$G$6:$CU$253,11,FALSE) -> 21% | M10: =VLOOKUP($C10,'RECAP SECT'!$G$6:$CU$253,12,FALSE) -> 20% | N10: =VLOOKUP($C10,'RECAP SECT'!$G$6:$CU$253,13,FALSE) -> 6
A11: 50 | B11: AUBE HAUTE MARNE | C11: 14 | D11: TROYES | E11: =VLOOKUP($C11,'RECAP SECT'!$G$6:$CU$253,3,FALSE) -> 54.0 | F11: =VLOOKUP($C11,'RECAP SECT'!$G$6:$CU$253,5,FALSE) -> 0 | G11: =VLOOKUP($C11,'RECAP SECT'!$G$6:$CU$253,6,FALSE) -> 100% | H11: =VLOOKUP($C11,'RECAP SECT'!$G$6:$CU$253,7,FALSE) -> 18 | I11: =VLOOKUP($C11,'RECAP SECT'!$G$6:$CU$253,8,FALSE) -> 48% | J11: =VLOOKUP($C11,'RECAP SECT'!$G$6:$CU$253,9,FALSE) -> 35% | K11: =VLOOKUP($C11,'RECAP SECT'!$G$6:$CU$253,10,FALSE) -> 17 | L11: =VLOOKUP($C11,'RECAP SECT'!$G$6:$CU$253,11,FALSE) -> 67% | M11: =VLOOKUP($C11,'RECAP SECT'!$G$6:$CU$253,12,FALSE) -> 67% | N11: =VLOOKUP($C11,'RECAP SECT'!$G$6:$CU$253,13,FALSE) -> 18
A12: 262 | B12: BAS-RHIN | C12: 5060 | D12: HAGUENAU | E12: =VLOOKUP($C12,'RECAP SECT'!$G$6:$CU$253,3,FALSE) -> 55.4 | F12: =VLOOKUP($C12,'RECAP SECT'!$G$6:$CU$253,5,FALSE) -> 11.25 | G12: =VLOOKUP($C12,'RECAP SECT'!$G$6:$CU$253,6,FALSE) -> 55% | H12: =VLOOKUP($C12,'RECAP SECT'!$G$6:$CU$253,7,FALSE) -> 11 | I12: =VLOOKUP($C12,'RECAP SECT'!$G$6:$CU$253,8,FALSE) -> 61% | J12: =VLOOKUP($C12,'RECAP SECT'!$G$6:$CU$253,9,FALSE) -> 17% | K12: =VLOOKUP($C12,'RECAP SECT'!$G$6:$CU$253,10,FALSE) -> 11 | L12: =VLOOKUP($C12,'RECAP SECT'!$G$6:$CU$253,11,FALSE) -> 36% | M12: =VLOOKUP($C12,'RECAP SECT'!$G$6:$CU$253,12,FALSE) -> 36% | N12: =VLOOKUP($C12,'RECAP SECT'!$G$6:$CU$253,13,FALSE) -> 11
A13: 262 | B13: BAS-RHIN | C13: 5101 | D13: SELESTAT | E13: =VLOOKUP($C13,'RECAP SECT'!$G$6:$CU$253,3,FALSE) -> 50.9 | F13: =VLOOKUP($C13,'RECAP SECT'!$G$6:$CU$253,5,FALSE) -> 1.75 | G13: =VLOOKUP($C13,'RECAP SECT'!$G$6:$CU$253,6,FALSE) -> 93% | H13: =VLOOKUP($C13,'RECAP SECT'!$G$6:$CU$253,7,FALSE) -> 17 | I13: =VLOOKUP($C13,'RECAP SECT'!$G$6:$CU$253,8,FALSE) -> 60% | J13: =VLOOKUP($C13,'RECAP SECT'!$G$6:$CU$253,9,FALSE) -> 19% | K13: =VLOOKUP($C13,'RECAP SECT'!$G$6:$CU$253,10,FALSE) -> 13 | L13: =VLOOKUP($C13,'RECAP SECT'!$G$6:$CU$253,11,FALSE) -> 56% | M13: =VLOOKUP($C13,'RECAP SECT'!$G$6:$CU$253,12,FALSE) -> 55% | N13: =VLOOKUP($C13,'RECAP SECT'!$G$6:$CU$253,13,FALSE) -> 14
A14: 262 | B14: BAS-RHIN | C14: 5006 | D14: STRASBOURG | E14: =VLOOKUP($C14,'RECAP SECT'!$G$6:$CU$253,3,FALSE) -> 65.0 | F14: =VLOOKUP($C14,'RECAP SECT'!$G$6:$CU$253,5,FALSE) -> 8.5 | G14: =VLOOKUP($C14,'RECAP SECT'!$G$6:$CU$253,6,FALSE) -> 66% | H14: =VLOOKUP($C14,'RECAP SECT'!$G$6:$CU$253,7,FALSE) -> 13 | I14: =VLOOKUP($C14,'RECAP SECT'!$G$6:$CU$253,8,FALSE) -> 66% | J14: =VLOOKUP($C14,'RECAP SECT'!$G$6:$CU$253,9,FALSE) -> 10% | K14: =VLOOKUP($C14,'RECAP SECT'!$G$6:$CU$253,10,FALSE) -> 6 | L14: =VLOOKUP($C14,'RECAP SECT'!$G$6:$CU$253,11,FALSE) -> 38% | M14: =VLOOKUP($C14,'RECAP SECT'!$G$6:$CU$253,12,FALSE) -> 38% | N14: =VLOOKUP($C14,'RECAP SECT'!$G$6:$CU$253,13,FALSE) -> 12
A15: 264 | B15: HAUT-RHIN | C15: 5130 | D15: COLMAR | E15: =VLOOKUP($C15,'RECAP SECT'!$G$6:$CU$253,3,FALSE) -> 45.9 | F15: =VLOOKUP($C15,'RECAP SECT'!$G$6:$CU$253,5,FALSE) -> 2.5 | G15: =VLOOKUP($C15,'RECAP SECT'!$G$6:$CU$253,6,FALSE) -> 90% | H15: =VLOOKUP($C15,'RECAP SECT'!$G$6:$CU$253,7,FALSE) -> 16 | I15: =VLOOKUP($C15,'RECAP SECT'!$G$6:$CU$253,8,FALSE) -> 50% | J15: =VLOOKUP($C15,'RECAP SECT'!$G$6:$CU$253,9,FALSE) -> 32% | K15: =VLOOKUP($C15,'RECAP SECT'!$G$6:$CU$253,10,FALSE) -> 16 | L15: =VLOOKUP($C15,'RECAP SECT'!$G$6:$CU$253,11,FALSE) -> 61% | M15: =VLOOKUP($C15,'RECAP SECT'!$G$6:$CU$253,12,FALSE) -> 60% | N15: =VLOOKUP($C15,'RECAP SECT'!$G$6:$CU$253,13,FALSE) -> 16
A16: 264 | B16: HAUT-RHIN | C16: 5169 | D16: MULHOUSE | E16: =VLOOKUP($C16,'RECAP SECT'!$G$6:$CU$253,3,FALSE) -> 46.7 | F16: =VLOOKUP($C16,'RECAP SECT'!$G$6:$CU$253,5,FALSE) -> 3.25 | G16: =VLOOKUP($C16,'RECAP SECT'!$G$6:$CU$253,6,FALSE) -> 87% | H16: =VLOOKUP($C16,'RECAP SECT'!$G$6:$CU$253,7,FALSE) -> 15 | I16: =VLOOKUP($C16,'RECAP SECT'!$G$6:$CU$253,8,FALSE) -> 45% | J16: =VLOOKUP($C16,'RECAP SECT'!$G$6:$CU$253,9,FALSE) -> 39% | K16: =VLOOKUP($C16,'RECAP SECT'!$G$6:$CU$253,10,FALSE) -> 18 | L16: =VLOOKUP($C16,'RECAP SECT'!$G$6:$CU$253,11,FALSE) -> 63% | M16: =VLOOKUP($C16,'RECAP SECT'!$G$6:$CU$253,12,FALSE) -> 62% | N16: =VLOOKUP($C16,'RECAP SECT'!$G$6:$CU$253,13,FALSE) -> 17
A17: 30 | B17: MARNE-ARDENNES | C17: 6 | D17: CHALONS EN CHAMPAGNE | E17: =VLOOKUP($C17,'RECAP SECT'!$G$6:$CU$253,3,FALSE) -> 37.4 | F17: =VLOOKUP($C17,'RECAP SECT'!$G$6:$CU$253,5,FALSE) -> 25 | G17: =VLOOKUP($C17,'RECAP SECT'!$G$6:$CU$253,6,FALSE) -> 1% | H17: =VLOOKUP($C17,'RECAP SECT'!$G$6:$CU$253,7,FALSE) -> 2 | I17: =VLOOKUP($C17,'RECAP SECT'!$G$6:$CU$253,8,FALSE) -> 74% | J17: =VLOOKUP($C17,'RECAP SECT'!$G$6:$CU$253,9,FALSE) -> 0% | K17: =VLOOKUP($C17,'RECAP SECT'!$G$6:$CU$253,10,FALSE) -> 1 | L17: =VLOOKUP($C17,'RECAP SECT'!$G$6:$CU$253,11,FALSE) -> 0% | M17: =VLOOKUP($C17,'RECAP SECT'!$G$6:$CU$253,12,FALSE) -> 0% | N17: =VLOOKUP($C17,'RECAP SECT'!$G$6:$CU$253,13,FALSE) -> 1
A18: 30 | B18: MARNE-ARDENNES | C18: 2 | D18: CHARLEVILLE MEZIERES | E18: =VLOOKUP($C18,'RECAP SECT'!$G$6:$CU$253,3,FALSE) -> 48.3 | F18: =VLOOKUP($C18,'RECAP SECT'!$G$6:$CU$253,5,FALSE) -> 13.25 | G18: =VLOOKUP($C18,'RECAP SECT'!$G$6:$CU$253,6,FALSE) -> 48% | H18: =VLOOKUP($C18,'RECAP SECT'!$G$6:$CU$253,7,FALSE) -> 9 | I18: =VLOOKUP($C18,'RECAP SECT'!$G$6:$CU$253,8,FALSE) -> 66% | J18: =VLOOKUP($C18,'RECAP SECT'!$G$6:$CU$253,9,FALSE) -> 10% | K18: =VLOOKUP($C18,'RECAP SECT'!$G$6:$CU$253,10,FALSE) -> 7 | L18: =VLOOKUP($C18,'RECAP SECT'!$G$6:$CU$253,11,FALSE) -> 29% | M18: =VLOOKUP($C18,'RECAP SECT'!$G$6:$CU$253,12,FALSE) -> 28% | N18: =VLOOKUP($C18,'RECAP SECT'!$G$6:$CU$253,13,FALSE) -> 9
A19: 30 | B19: MARNE-ARDENNES | C19: 11 | D19: REIMS | E19: =VLOOKUP($C19,'RECAP SECT'!$G$6:$CU$253,3,FALSE) -> 68.0 | F19: =VLOOKUP($C19,'RECAP SECT'!$G$6:$CU$253,5,FALSE) -> 16.25 | G19: =VLOOKUP($C19,'RECAP SECT'!$G$6:$CU$253,6,FALSE) -> 36% | H19: =VLOOKUP($C19,'RECAP SECT'!$G$6:$CU$253,7,FALSE) -> 8 | I19: =VLOOKUP($C19,'RECAP SECT'!$G$6:$CU$253,8,FALSE) -> 62% | J19: =VLOOKUP($C19,'RECAP SECT'!$G$6:$CU$253,9,FALSE) -> 16% | K19: =VLOOKUP($C19,'RECAP SECT'!$G$6:$CU$253,10,FALSE) -> 10 | L19: =VLOOKUP($C19,'RECAP SECT'!$G$6:$CU$253,11,FALSE) -> 26% | M19: =VLOOKUP($C19,'RECAP SECT'!$G$6:$CU$253,12,FALSE) -> 25% | N19: =VLOOKUP($C19,'RECAP SECT'!$G$6:$CU$253,13,FALSE) -> 7
A20: 110 | B20: MEURTHE ET MOSELLE MEUSE | C20: 26 | D20: NANCY | E20: =VLOOKUP($C20,'RECAP SECT'!$G$6:$CU$253,3,FALSE) -> 54.9 | F20: =VLOOKUP($C20,'RECAP SECT'!$G$6:$CU$253,5,FALSE) -> 13.25 | G20: =VLOOKUP($C20,'RECAP SECT'!$G$6:$CU$253,6,FALSE) -> 48% | H20: =VLOOKUP($C20,'RECAP SECT'!$G$6:$CU$253,7,FALSE) -> 9 | I20: =VLOOKUP($C20,'RECAP SECT'!$G$6:$CU$253,8,FALSE) -> 62% | J20: =VLOOKUP($C20,'RECAP SECT'!$G$6:$CU$253,9,FALSE) -> 16% | K20: =VLOOKUP($C20,'RECAP SECT'!$G$6:$CU$253,10,FALSE) -> 9 | L20: =VLOOKUP($C20,'RECAP SECT'!$G$6:$CU$253,11,FALSE) -> 32% | M20: =VLOOKUP($C20,'RECAP SECT'!$G$6:$CU$253,12,FALSE) -> 31% | N20: =VLOOKUP($C20,'RECAP SECT'!$G$6:$CU$253,13,FALSE) -> 10
A21: 110 | B21: MEURTHE ET MOSELLE MEUSE | C21: 27 | D21: PONT A MOUSSON | E21: =VLOOKUP($C21,'RECAP SECT'!$G$6:$CU$253,3,FALSE) -> 59.6 | F21: =VLOOKUP($C21,'RECAP SECT'!$G$6:$CU$253,5,FALSE) -> 3.5 | G21: =VLOOKUP($C21,'RECAP SECT'!$G$6:$CU$253,6,FALSE) -> 86% | H21: =VLOOKUP($C21,'RECAP SECT'!$G$6:$CU$253,7,FALSE) -> 14 | I21: =VLOOKUP($C21,'RECAP SECT'!$G$6:$CU$253,8,FALSE) -> 54% | J21: =VLOOKUP($C21,'RECAP SECT'!$G$6:$CU$253,9,FALSE) -> 26% | K21: =VLOOKUP($C21,'RECAP SECT'!$G$6:$CU$253,10,FALSE) -> 15 | L21: =VLOOKUP($C21,'RECAP SECT'!$G$6:$CU$253,11,FALSE) -> 56% | M21: =VLOOKUP($C21,'RECAP SECT'!$G$6:$CU$253,12,FALSE) -> 56% | N21: =VLOOKUP($C21,'RECAP SECT'!$G$6:$CU$253,13,FALSE) -> 15
A22: 110 | B22: MEURTHE ET MOSELLE MEUSE | C22: 31 | D22: VERDUN | E22: =VLOOKUP($C22,'RECAP SECT'!$G$6:$CU$253,3,FALSE) -> 48.5 | F22: =VLOOKUP($C22,'RECAP SECT'!$G$6:$CU$253,5,FALSE) -> 20.75 | G22: =VLOOKUP($C22,'RECAP SECT'!$G$6:$CU$253,6,FALSE) -> 18% | H22: =VLOOKUP($C22,'RECAP SECT'!$G$6:$CU$253,7,FALSE) -> 4 | I22: =VLOOKUP($C22,'RECAP SECT'!$G$6:$CU$253,8,FALSE) -> 67% | J22: =VLOOKUP($C22,'RECAP SECT'!$G$6:$CU$253,9,FALSE) -> 9% | K22: =VLOOKUP($C22,'RECAP SECT'!$G$6:$CU$253,10,FALSE) -> 4 | L22: =VLOOKUP($C22,'RECAP SECT'!$G$6:$CU$253,11,FALSE) -> 13% | M22: =VLOOKUP($C22,'RECAP SECT'!$G$6:$CU$253,12,FALSE) -> 13% | N22: =VLOOKUP($C22,'RECAP SECT'!$G$6:$CU$253,13,FALSE) -> 4
A23: 160 | B23: MOSELLE | C23: 45 | D23: METZ | E23: =VLOOKUP($C23,'RECAP SECT'!$G$6:$CU$253,3,FALSE) -> 72.8 | F23: =VLOOKUP($C23,'RECAP SECT'!$G$6:$CU$253,5,FALSE) -> 16.5 | G23: =VLOOKUP($C23,'RECAP SECT'!$G$6:$CU$253,6,FALSE) -> 35% | H23: =VLOOKUP($C23,'RECAP SECT'!$G$6:$CU$253,7,FALSE) -> 7 | I23: =VLOOKUP($C23,'RECAP SECT'!$G$6:$CU$253,8,FALSE) -> 59% | J23: =VLOOKUP($C23,'RECAP SECT'!$G$6:$CU$253,9,FALSE) -> 19% | K23: =VLOOKUP($C23,'RECAP SECT'!$G$6:$CU$253,10,FALSE) -> 14 | L23: =VLOOKUP($C23,'RECAP SECT'!$G$6:$CU$253,11,FALSE) -> 27% | M23: =VLOOKUP($C23,'RECAP SECT'!$G$6:$CU$253,12,FALSE) -> 27% | N23: =VLOOKUP($C23,'RECAP SECT'!$G$6:$CU$253,13,FALSE) -> 8
A24: 160 | B24: MOSELLE | C24: 42 | D24: MOSELLE EST | E24: =VLOOKUP($C24,'RECAP SECT'!$G$6:$CU$253,3,FALSE) -> 58.0 | F24: =VLOOKUP($C24,'RECAP SECT'!$G$6:$CU$253,5,FALSE) -> 18.75 | G24: =VLOOKUP($C24,'RECAP SECT'!$G$6:$CU$253,6,FALSE) -> 26% | H24: =VLOOKUP($C24,'RECAP SECT'!$G$6:$CU$253,7,FALSE) -> 5 | I24: =VLOOKUP($C24,'RECAP SECT'!$G$6:$CU$253,8,FALSE) -> 67% | J24: =VLOOKUP($C24,'RECAP SECT'!$G$6:$CU$253,9,FALSE) -> 10% | K24: =VLOOKUP($C24,'RECAP SECT'!$G$6:$CU$253,10,FALSE) -> 5 | L24: =VLOOKUP($C24,'RECAP SECT'!$G$6:$CU$253,11,FALSE) -> 18% | M24: =VLOOKUP($C24,'RECAP SECT'!$G$6:$CU$253,12,FALSE) -> 17% | N24: =VLOOKUP($C24,'RECAP SECT'!$G$6:$CU$253,13,FALSE) -> 5
A25: 160 | B25: MOSELLE | C25: 44 | D25: MOSELLE NORD | E25: =VLOOKUP($C25,'RECAP SECT'!$G$6:$CU$253,3,FALSE) -> 55.6 | F25: =VLOOKUP($C25,'RECAP SECT'!$G$6:$CU$253,5,FALSE) -> 9.5 | G25: =VLOOKUP($C25,'RECAP SECT'!$G$6:$CU$253,6,FALSE) -> 62% | H25: =VLOOKUP($C25,'RECAP SECT'!$G$6:$CU$253,7,FALSE) -> 12 | I25: =VLOOKUP($C25,'RECAP SECT'!$G$6:$CU$253,8,FALSE) -> 61% | J25: =VLOOKUP($C25,'RECAP SECT'!$G$6:$CU$253,9,FALSE) -> 17% | K25: =VLOOKUP($C25,'RECAP SECT'!$G$6:$CU$253,10,FALSE) -> 12 | L25: =VLOOKUP($C25,'RECAP SECT'!$G$6:$CU$253,11,FALSE) -> 40% | M25: =VLOOKUP($C25,'RECAP SECT'!$G$6:$CU$253,12,FALSE) -> 39% | N25: =VLOOKUP($C25,'RECAP SECT'!$G$6:$CU$253,13,FALSE) -> 13
A26: 80 | B26: VOSGES | C26: 57 | D26: EPINAL | E26: =VLOOKUP($C26,'RECAP SECT'!$G$6:$CU$253,3,FALSE) -> 53.0 | F26: =VLOOKUP($C26,'RECAP SECT'!$G$6:$CU$253,5,FALSE) -> 21 | G26: =VLOOKUP($C26,'RECAP SECT'!$G$6:$CU$253,6,FALSE) -> 17% | H26: =VLOOKUP($C26,'RECAP SECT'!$G$6:$CU$253,7,FALSE) -> 3 | I26: =VLOOKUP($C26,'RECAP SECT'!$G$6:$CU$253,8,FALSE) -> 70% | J26: =VLOOKUP($C26,'RECAP SECT'!$G$6:$CU$253,9,FALSE) -> 5% | K26: =VLOOKUP($C26,'RECAP SECT'!$G$6:$CU$253,10,FALSE) -> 2 | L26: =VLOOKUP($C26,'RECAP SECT'!$G$6:$CU$253,11,FALSE) -> 11% | M26: =VLOOKUP($C26,'RECAP SECT'!$G$6:$CU$253,12,FALSE) -> 11% | N26: =VLOOKUP($C26,'RECAP SECT'!$G$6:$CU$253,13,FALSE) -> 3
A27: 80 | B27: VOSGES | C27: 55 | D27: SAINT DIE | E27: =VLOOKUP($C27,'RECAP SECT'!$G$6:$CU$253,3,FALSE) -> 40.1 | F27: =VLOOKUP($C27,'RECAP SECT'!$G$6:$CU$253,5,FALSE) -> 25.25 | G27: =VLOOKUP($C27,'RECAP SECT'!$G$6:$CU$253,6,FALSE) -> 0% | H27: =VLOOKUP($C27,'RECAP SECT'!$G$6:$CU$253,7,FALSE) -> 1 | I27: =VLOOKUP($C27,'RECAP SECT'!$G$6:$CU$253,8,FALSE) -> 69% | J27: =VLOOKUP($C27,'RECAP SECT'!$G$6:$CU$253,9,FALSE) -> 7% | K27: =VLOOKUP($C27,'RECAP SECT'!$G$6:$CU$253,10,FALSE) -> 3 | L27: =VLOOKUP($C27,'RECAP SECT'!$G$6:$CU$253,11,FALSE) -> 3% | M27: =VLOOKUP($C27,'RECAP SECT'!$G$6:$CU$253,12,FALSE) -> 3% | N27: =VLOOKUP($C27,'RECAP SECT'!$G$6:$CU$253,13,FALSE) -> 2
A28: Total CEGEE Directions Régionales | E28: =SUM(E10:E27) -> 948

Sheet AG_CLASS
B1: Accueil | H1: BAROMETRE BDD - AGENCES
H2: CLASSEMENTS
H3: =ACCUEIL!F7 -> 2022-10-23
H8: CLASSEMENT GENERAL | I8: CRITERE Satisfaction Clients | J8: NPS à froid (SAE) | K8: NPS à chaud (QHD) | L8: CRITERE BANCARISATION | M8: Ventes Nettes produits pondérés | N8: Ventes sur client non détenteur de l’univers | O8: CRITERE EPARGNE | P8: Excédent Epargne hors DAV pondéré | Q8: Ventes sur client non détenteur de l’univers | R8: CRITERE IARD PREVOYANCE | S8: Ventes Nettes produits pondérés | T8: Ventes sur client non détenteur de l’univers | U8: CRITERE CREDITS | V8: Engagements et ventes accessoires pondérés Immo | W8: Engagements et ventes accessoires pondérés Conso | X8: Ventes sur client non détenteur de l’univers
B9: Direction | C9: eds | D9: Territoire | E9: eds | F9: Agence | G9: ="ETP perf "&DATEMAJ!$C$28 -> ETP perf 23-oct | H9: Rang | I9: Rang | J9: Rang | K9: Rang | L9: Rang | M9: Rang | N9: Rang | O9: Rang | P9: Rang | Q9: Rang | R9: Rang | S9: Rang | T9: Rang | U9: Rang | V9: Rang | W9: Rang | X9: Rang
A10: 50 | B10: MOSELLE | C10: 44 | D10: MOSELLE NORD | E10: 557508 | F10: NILVANGE | G10: 1.4 | H10: 1 | I10: 46 | J10: 51 | K10: 40 | L10: 1 | M10: 1 | N10: 1 | O10: 5 | P10: 124 | Q10: 1 | R10: 1 | S10: 1 | T10: 1 | U10: 1 | V10: 1 | W10: 1 | X10: 1
A11: 50 | B11: VOSGES | C11: 57 | D11: EPINAL | E11: 488288 | F11: EPINAL LEOPOLD BOURG | G11: 2.0 | H11: 2 | I11: 3 | J11: 6 | K11: 3 | L11: 13 | M11: 11 | N11: 45 | O11: 6 | P11: 5 | Q11: 32 | R11: 50 | S11: 27 | T11: 142 | U11: 29 | V11: 21 | W11: 79 | X11: 32
A12: 50 | B12: MARNE ARDENNES | C12: 11 | D12: REIMS | E12: 551340 | F12: BETHENY | G12: 2.2 | H12: 3 | I12: 58 | J12: 48 | K12: 110 | L12: 4 | M12: 6 | N12: 9 | O12: 13 | P12: 27 | Q12: 8 | R12: 54 | S12: 62 | T12: 44 | U12: 7 | V12: 4 | W12: 57 | X12: 9
A13: 50 | B13: MARNE ARDENNES | C13: 11 | D13: REIMS | E13: 551349 | F13: REIMS SAINT REMI | G13: 2.9 | H13: 4 | I13: 121 | J13: 126 | K13: 93 | L13: 2 | M13: 2 | N13: 5 | O13: 25 | P13: 45 | Q13: 10 | R13: 11 | S13: 12 | T13: 11 | U13: 8 | V13: 10 | W13: 44 | X13: 8
A14: 50 | B14: MARNE ARDENNES | C14: 11 | D14: REIMS | E14: 551305 | F14: REIMS HIPPODROME | G14: 5.1 | H14: 5 | I14: 66 | J14: 70 | K14: 76 | L14: 10 | M14: 29 | N14: 7 | O14: 21 | P14: 31 | Q14: 15 | R14: 12 | S14: 14 | T14: 10 | U14: 6 | V14: 8 | W14: 75 | X14: 3
A15: 50 | B15: MARNE ARDENNES | C15: 6 | D15: CHALONS EN CHAMPAGNE | E15: 551330 | F15: MONTMIRAIL | G15: 2.8 | H15: 6 | I15: 10 | J15: 12 | K15: 14 | L15: 17 | M15: 9 | N15: 56 | O15: 39 | P15: 36 | Q15: 90 | R15: 9 | S15: 7 | T15: 21 | U15: 67 | V15: 52 | W15: 165 | X15: 38
A16: 50 | B16: MARNE ARDENNES | C16: 6 | D16: CHALONS EN CHAMPAGNE | E16: 451115 | F16: MOURMELON LE GRAND | G16: 2.8 | H16: 7 | I16: 85 | J16: 123 | K16: 18 | L16: 5 | M16: 3 | N16: 14 | O16: 19 | P16: 46 | Q16: 5 | R16: 14 | S16: 32 | T16: 7 | U16: 19 | V16: 40 | W16: 4 | X16: 37
A17: 50 | B17: MEURTHE ET MOSELLE MEUSE | C17: 27 | D17: PONT A MOUSSON | E17: 554381 | F17: LAXOU ARISTIDE BRIAND | G17: 2.2 | H17: 8 | I17: 150 | J17: 159 | K17: 133 | L17: 3 | M17: 4 | N17: 3 | O17: 27 | P17: 67 | Q17: 6 | R17: 13 | S17: 36 | T17: 6 | U17: 3 | V17: 5 | W17: 22 | X17: 7
A18: 50 | B18: MOSELLE | C18: 44 | D18: MOSELLE NORD | E18: 557660 | F18: UCKANGE | G18: 1.9 | H18: 9 | I18: 217 | J18: 165 | K18: 224 | L18: 14 | M18: 36 | N18: 11 | O18: 50 | P18: 199 | Q18: 2 | R18: 2 | S18: 2 | T18: 3 | U18: 2 | V18: 2 | W18: 53 | X18: 2
A19: 50 | B19: BAS RHIN | C19: 5006 | D19: STRASBOURG | E19: 4048 | F19: STRASBOURG KOENIGSHOFFEN | G19: 1.6 | H19: 10 | I19: 164 | J19: 196 | K19: 147 | L19: 8 | M19: 14 | N19: 4 | O19: 8 | P19: 28 | Q19: 3 | R19: 6 | S19: 52 | T19: 2 | U19: 17 | V19: 68 | W19: 16 | X19: 10
A20: 50 | B20: MARNE ARDENNES | C20: 2 | D20: CHARLEVILLE MEZIERES | E20: 508820 | F20: VOUZIERS | G20: 2.8 | H20: 11 | I20: 39 | J20: 31 | K20: 71 | L20: 39 | M20: 34 | N20: 53 | O20: 43 | P20: 30 | Q20: 146 | R20: 5 | S20: 4 | T20: 19 | U20: 36 | V20: 88 | W20: 6 | X20: 57
A21: 50 | B21: MEURTHE ET MOSELLE MEUSE | C21: 26 | D21: NANCY | E21: 554476 | F21: NANCY ARTEM | G21: 2.8 | H21: 12 | I21: 30 | J21: 41 | K21: 15 | L21: 11 | M21: 15 | N21: 15 | O21: 152 | P21: 161 | Q21: 84 | R21: 62 | S21: 54 | T21: 99 | U21: 5 | V21: 3 | W21: 102 | X21: 5
A22: 50 | B22: MARNE ARDENNES | C22: 6 | D22: CHALONS EN CHAMPAGNE | E22: 451120 | F22: SARRY | G22: 2.3 | H22: 13 | I22: 8 | J22: 11 | K22: 5 | L22: 19 | M22: 12 | N22: 64 | O22: 114 | P22: 136 | Q22: 43 | R22: 29 | S22: 24 | T22: 74 | U22: 53 | V22: 36 | W22: 90 | X22: 72
A23: 50 | B23: MOSELLE | C23: 45 | D23: METZ | E23: 457443 | F23: METZ REPUBLIQUE | G23: 3.5 | H23: 14 | I23: 36 | J23: 29 | K23: 51 | L23: 82 | M23: 75 | N23: 105 | O23: 3 | P23: 3 | Q23: 71 | R23: 16 | S23: 11 | T23: 38 | U23: 98 | V23: 108 | W23: 81 | X23: 110
A24: 50 | B24: MOSELLE | C24: 44 | D24: MOSELLE NORD | E24: 557113 | F24: AUDUN LE TICHE | G24: 2.1 | H24: 15 | I24: 119 | J24: 176 | K24: 12 | L24: 9 | M24: 19 | N24: 8 | O24: 18 | P24: 43 | Q24: 7 | R24: 31 | S24: 56 | T24: 17 | U24: 13 | V24: 14 | W24: 15 | X24: 25
A25: 50 | B25: BAS RHIN | C25: 5006 | D25: STRASBOURG | E25: 4037 | F25: MUNDOLSHEIM | G25: 3.8 | H25: 16 | I25: 64 | J25: 60 | K25: 88 | L25: 12 | M25: 18 | N25: 20 | O25: 155 | P25: 195 | Q25: 18 | R25: 10 | S25: 8 | T25: 18 | U25: 27 | V25: 20 | W25: 167 | X25: 16
A26: 50 | B26: MARNE ARDENNES | C26: 11 | D26: REIMS | E26: 451350 | F26: REIMS CENTRE VILLE | G26: 6.4 | H26: 17 | I26: 196 | J26: 200 | K26: 176 | L26: 7 | M26: 7 | N26: 10 | O26: 81 | P26: 115 | Q26: 28 | R26: 17 | S26: 22 | T26: 20 | U26: 4 | V26: 6 | W26: 41 | X26: 4
A27: 50 | B27: MARNE ARDENNES | C27: 11 | D27: REIMS | E27: 551365 | F27: DORMANS | G27: 2.5 | H27: 18 | I27: 60 | J27: 70 | K27: 61 | L27: 6 | M27: 5 | N27: 17 | O27: 163 | P27: 204 | Q27: 24 | R27: 33 | S27: 42 | T27: 33 | U27: 25 | V27: 27 | W27: 148 | X27: 13
A28: 262 | B28: MOSELLE | C28: 42 | D28: MOSELLE EST | E28: 457165 | F28: BITCHE | G28: 2.4 | H28: 19 | I28: 13 | J28: 12 | K28: 36 | L28: 18 | M28: 13 | N28: 59 | O28: 118 | P28: 163 | Q28: 23 | R28: 34 | S28: 38 | T28: 56 | U28: 114 | V28: 109 | W28: 60 | X28: 170
A29: 262 | B29: MOSELLE | C29: 45 | D29: METZ | E29: 457453 | F29: MONTIGNY LES METZ | G29: 6.9 | H29: 20 | I29: 14 | J29: 15 | K29: 21 | L29: 50 | M29: 39 | N29: 100 | O29: 65 | P29: 111 | Q29: 13 | R29: 137 | S29: 114 | T29: 176 | U29: 43 | V29: 33 | W29: 59 | X29: 66
A30: 262 | B30: MARNE ARDENNES | C30: 6 | D30: CHALONS EN CHAMPAGNE | E30: 551354 | F30: VERTUS | G30: 2.0 | H30: 21 | I30: 1 | J30: 2 | K30: 1 | L30: 132 | M30: 100 | N30: 202 | O30: 22 | P30: 12 | Q30: 139 | R30: 191 | S30: 199 | T30: 156 | U30: 100 | V30: 153 | W30: 62 | X30: 109
A31: 262 | B31: MARNE ARDENNES | C31: 11 | D31: REIMS | E31: 451336 | F31: TINQUEUX | G31: 5.0 | H31: 22 | I31: 138 | J31: 119 | K31: 170 | L31: 46 | M31: 45 | N31: 77 | O31: 1 | P31: 1 | Q31: 61 | R31: 98 | S31: 112 | T31: 91 | U31: 58 | V31: 26 | W31: 170 | X31: 65
A32: 262 | B32: MARNE ARDENNES | C32: 2 | D32: CHARLEVILLE MEZIERES | E32: 508839 | F32: GIVET | G32: 3.3 | H32: 23 | I32: 72 | J32: 63 | K32: 101 | L32: 45 | M32: 57 | N32: 48 | O32: 128 | P32: 162 | Q32: 31 | R32: 7 | S32: 3 | T32: 45 | U32: 42 | V32: 63 | W32: 23 | X32: 55
A33: 262 | B33: MEURTHE ET MOSELLE MEUSE | C33: 26 | D33: NANCY | E33: 554601 | F33: SAINT MAX | G33: 3.5 | H33: 24 | I33: 21 | J33: 22 | K33: 33 | L33: 110 | M33: 96 | N33: 125 | O33: 23 | P33: 13 | Q33: 104 | R33: 44 | S33: 33 | T33: 97 | U33: 95 | V33: 84 | W33: 98 | X33: 117
A34: 262 | B34: MOSELLE | C34: 45 | D34: METZ | E34: 457446 | F34: METZ SAINT LOUIS | G34: 5.7 | H34: 25 | I34: 95 | J34: 98 | K34: 80 | L34: 24 | M34: 22 | N34: 41 | O34: 64 | P34: 116 | Q34: 9 | R34: 65 | S34: 60 | T34: 101 | U34: 28 | V34: 13 | W34: 142 | X34: 27
A35: 262 | B35: MOSELLE | C35: 42 | D35: MOSELLE EST | E35: 457308 | F35: FORBACH CENTRALE | G35: 10.2 | H35: 26 | I35: 108 | J35: 93 | K35: 125 | L35: 23 | M35: 24 | N35: 40 | O35: 106 | P35: 126 | Q35: 37 | R35: 24 | S35: 25 | T35: 30 | U35: 31 | V35: 50 | W35: 14 | X35: 51
A36: 262 | B36: MARNE ARDENNES | C36: 11 | D36: REIMS | E36: 451361 | F36: PIERRY LECLERC | G36: 1.9 | H36: 27 | I36: 41 | J36: 34 | K36: 55 | L36: 87 | M36: 86 | N36: 86 | O36: 10 | P36: 8 | Q36: 66 | R36: 102 | S36: 78 | T36: 144 | U36: 84 | V36: 54 | W36: 181 | X36: 77
A37: 262 | B37: MARNE ARDENNES | C37: 2 | D37: CHARLEVILLE MEZIERES | E37: 508833 | F37: VILLERS SEMEUSE CORA | G37: 3.0 | H37: 28 | I37: 186 | J37: 208 | K37: 163 | L37: 95 | M37: 149 | N37: 47 | O37: 31 | P37: 53 | Q37: 20 | R37: 3 | S37: 6 | T37: 12 | U37: 11 | V37: 24 | W37: 7 | X37: 17
A38: 262 | B38: MOSELLE | C38: 42 | D38: MOSELLE EST | E38: 557250 | F38: CREUTZWALD | G38: 2.5 | H38: 29 | I38: 17 | J38: 14 | K38: 48 | L38: 125 | M38: 151 | N38: 85 | O38: 103 | P38: 109 | Q38: 62 | R38: 27 | S38: 19 | T38: 80 | U38: 81 | V38: 86 | W38: 32 | X38: 148
A39: 262 | B39: MARNE ARDENNES | C39: 11 | D39: REIMS | E39: 551367 | F39: AY CHAMPAGNE | G39: 2.6 | H39: 30 | I39: 42 | J39: 32 | K39: 69 | L39: 112 | M39: 139 | N39: 72 | O39: 47 | P39: 39 | Q39: 124 | R39: 76 | S39: 88 | T39: 64 | U39: 48 | V39: 29 | W39: 187 | X39: 26
A40: 262 | B40: VOSGES | C40: 57 | D40: EPINAL | E40: 588336 | F40: GOLBEY | G40: 2.8 | H40: 31 | I40: 38 | J40: 34 | K40: 42 | L40: 129 | M40: 131 | N40: 116 | O40: 48 | P40: 42 | Q40: 103 | R40: 35 | S40: 30 | T40: 88 | U40: 80 | V40: 113 | W40: 91 | X40: 48
A41: 262 | B41: MARNE ARDENNES | C41: 11 | D41: REIMS | E41: 451370 | F41: EPERNAY | G41: 9.1 | H41: 32 | I41: 51 | J41: 65 | K41: 43 | L41: 41 | M41: 28 | N41: 78 | O41: 76 | P41: 83 | Q41: 56 | R41: 85 | S41: 80 | T41: 92 | U41: 59 | V41: 66 | W41: 118 | X41: 39
A42: 262 | B42: MEURTHE ET MOSELLE MEUSE | C42: 26 | D42: NANCY | E42: 554356 | F42: JARVILLE LA MALGRANGE | G42: 4.1 | H42: 33 | I42: 26 | J42: 32 | K42: 22 | L42: 35 | M42: 17 | N42: 90 | O42: 186 | P42: 196 | Q42: 73 | R42: 78 | S42: 75 | T42: 87 | U42: 57 | V42: 48 | W42: 146 | X42: 44
A43: 262 | B43: MEURTHE ET MOSELLE MEUSE | C43: 31 | D43: VERDUN | E43: 555406 | F43: LIGNY EN BARROIS | G43: 2.5 | H43: 34 | I43: 32 | J43: 26 | K43: 58 | L43: 116 | M43: 115 | N43: 117 | O43: 2 | P43: 2 | Q43: 144 | R43: 214 | S43: 206 | T43: 191 | U43: 162 | V43: 204 | W43: 132 | X43: 133
A44: 262 | B44: MEURTHE ET MOSELLE MEUSE | C44: 31 | D44: VERDUN | E44: 554413 | F44: LONGWY BAS | G44: 3.4 | H44: 35 | I44: 12 | J44: 9 | K44: 62 | L44: 78 | M44: 68 | N44: 101 | O44: 123 | P44: 119 | Q44: 138 | R44: 92 | S44: 67 | T44: 159 | U44: 85 | V44: 77 | W44: 54 | X44: 150
A45: 262 | B45: MARNE ARDENNES | C45: 11 | D45: REIMS | E45: 451301 | F45: REIMS HOTEL DE VILLE | G45: 6.9 | H45: 36 | I45: 106 | J45: 100 | K45: 105 | L45: 57 | M45: 72 | N45: 52 | O45: 112 | P45: 137 | Q45: 38 | R45: 15 | S45: 13 | T45: 23 | U45: 33 | V45: 15 | W45: 150 | X45: 31
A46: 262 | B46: MARNE ARDENNES | C46: 2 | D46: CHARLEVILLE MEZIERES | E46: 408801 | F46: CHARLEVILLE JEAN JAURES | G46: 8.8 | H46: 37 | I46: 81 | J46: 96 | K46: 44 | L46: 65 | M46: 70 | N46: 66 | O46: 67 | P46: 90 | Q46: 26 | R46: 43 | S46: 39 | T46: 82 | U46: 44 | V46: 25 | W46: 183 | X46: 29
A47: 262 | B47: MOSELLE | C47: 44 | D47: MOSELLE NORD | E47: 557352 | F47: HETTANGE GRANDE | G47: 3.1 | H47: 38 | I47: 130 | J47: 91 | K47: 193 | L47: 28 | M47: 52 | N47: 18 | O47: 108 | P47: 128 | Q47: 47 | R47: 39 | S47: 47 | T47: 37 | U47: 20 | V47: 51 | W47: 13 | X47: 28
A48: 262 | B48: MOSELLE | C48: 45 | D48: METZ | E48: 557432 | F48: MAIZIERES LES METZ | G48: 2.8 | H48: 39 | I48: 176 | J48: 165 | K48: 175 | L48: 26 | M48: 58 | N48: 13 | O48: 72 | P48: 101 | Q48: 21 | R48: 41 | S48: 46 | T48: 47 | U48: 12 | V48: 7 | W48: 152 | X48: 15
A49: 262 | B49: MOSELLE | C49: 45 | D49: METZ | E49: 557439 | F49: METZ POMPIDOU | G49: 2.6 | H49: 40 | I49: 63 | J49: 58 | K49: 89 | L49: 62 | M49: 113 | N49: 31 | O49: 16 | P49: 17 | Q49: 40 | R49: 143 | S49: 177 | T49: 55 | U49: 77 | V49: 58 | W49: 83 | X49: 103
A50: 262 | B50: MOSELLE | C50: 42 | D50: MOSELLE EST | E50: 457583 | F50: SAINT AVOLD | G50: 6.9 | H50: 41 | I50: 50 | J50: 65 | K50: 38 | L50: 37 | M50: 30 | N50: 61 | O50: 110 | P50: 135 | Q50: 39 | R50: 57 | S50: 55 | T50: 72 | U50: 86 | V50: 74 | W50: 106 | X50: 94
A51: 262 | B51: BAS RHIN | C51: 5006 | D51: STRASBOURG | E51: 4038 | F51: OBERHAUSBERGEN | G51: 3.3 | H51: 42 | I51: 53 | J51: 54 | K51: 73 | L51: 54 | M51: 97 | N51: 26 | O51: 15 | P51: 16 | Q51: 36 | R51: 184 | S51: 220 | T51: 59 | U51: 70 | V51: 47 | W51: 139 | X51: 76
A52: 262 | B52: AUBE HAUTE MARNE | C52: 21 | D52: CHAUMONT | E52: 510590 | F52: CHAUMONT REPUBLIQUE | G52: 2.9 | H52: 43 | I52: 76 | J52: 100 | K52: 23 | L52: 135 | M52: 162 | N52: 81 | O52: 29 | P52: 32 | Q52: 63 | R52: 30 | S52: 28 | T52: 62 | U52: 69 | V52: 111 | W52: 38 | X52: 70
A53: 262 | B53: MEURTHE ET MOSELLE MEUSE | C53: 26 | D53: NANCY | E53: 554636 | F53: TOMBLAINE | G53: 2.5 | H53: 44 | I53: 15 | J53: 20 | K53: 4 | L53: 149 | M53: 159 | N53: 119 | O53: 53 | P53: 52 | Q53: 65 | R53: 111 | S53: 125 | T53: 89 | U53: 121 | V53: 142 | W53: 114 | X53: 106
A54: 262 | B54: MEURTHE ET MOSELLE MEUSE | C54: 31 | D54: VERDUN | E54: 455678 | F54: VERDUN CENTRALE | G54: 10.3 | H54: 45 | I54: 19 | J54: 16 | K54: 66 | L54: 69 | M54: 73 | N54: 71 | O54: 168 | P54: 179 | Q54: 92 | R54: 150 | S54: 151 | T54: 126 | U54: 41 | V54: 43 | W54: 72 | X54: 41
A55: 262 | B55: MARNE ARDENNES | C55: 11 | D55: REIMS | E55: 551310 | F55: REIMS CHATILLONS | G55: 4.0 | H55: 46 | I55: 135 | J55: 122 | K55: 159 | L55: 22 | M55: 27 | N55: 32 | O55: 104 | P55: 93 | Q55: 102 | R55: 64 | S55: 92 | T55: 34 | U55: 30 | V55: 31 | W55: 126 | X55: 20
A56: 262 | B56: BAS RHIN | C56: 5101 | D56: SELESTAT | E56: 4113 | F56: BARR | G56: 2.9 | H56: 47 | I56: 23 | J56: 43 | K56: 6 | L56: 40 | M56: 23 | N56: 87 | O56: 109 | P56: 129 | Q56: 46 | R56: 141 | S56: 110 | T56: 188 | U56: 137 | V56: 60 | W56: 239 | X56: 81
A57: 262 | B57: MEURTHE ET MOSELLE MEUSE | C57: 27 | D57: PONT A MOUSSON | E57: 554531 | F57: POMPEY | G57: 3.2 | H57: 48 | I57: 209 | J57: 185 | K57: 209 | L57: 25 | M57: 49 | N57: 16 | O57: 33 | P57: 55 | Q57: 25 | R57: 66 | S57: 95 | T57: 39 | U57: 14 | V57: 16 | W57: 19 | X57: 22
A58: 262 | B58: MEURTHE ET MOSELLE MEUSE | C58: 27 | D58: PONT A MOUSSON | E58: 554516 | F58: PAGNY SUR MOSELLE | G58: 2.7 | H58: 49 | I58: 101 | J58: 90 | K58: 119 | L58: 71 | M58: 56 | N58: 115 | O58: 74 | P58: 68 | Q58: 122 | R58: 38 | S58: 44 | T58: 41 | U58: 62 | V58: 53 | W58: 101 | X58: 56
A59: 262 | B59: MEURTHE ET MOSELLE MEUSE | C59: 26 | D59: NANCY | E59: 454481 | F59: NANCY PLACE DOMBASLE | G59: 7.8 | H59: 50 | I59: 142 | J59: 142 | K59: 148 | L59: 75 | M59: 120 | N59: 37 | O59: 46 | P59: 86 | Q59: 11 | R59: 74 | S59: 98 | T59: 46 | U59: 16 | V59: 11 | W59: 78 | X59: 18
A60: 262 | B60: MARNE ARDENNES | C60: 11 | D60: REIMS | E60: 551314 | F60: FISMES | G60: 2.6 | H60: 51 | I60: 31 | J60: 43 | K60: 10 | L60: 34 | M60: 33 | N60: 44 | O60: 227 | P60: 234 | Q60: 33 | R60: 128 | S60: 155 | T60: 57 | U60: 35 | V60: 30 | W60: 136 | X60: 30
A61: 262 | B61: AUBE HAUTE MARNE | C61: 21 | D61: CHAUMONT | E61: 410541 | F61: LANGRES | G61: 8.0 | H61: 52 | I61: 52 | J61: 52 | K61: 75 | L61: 86 | M61: 59 | N61: 158 | O61: 88 | P61: 80 | Q61: 137 | R61: 36 | S61: 26 | T61: 114 | U61: 108 | V61: 175 | W61: 50 | X61: 128
A62: 262 | B62: MEURTHE ET MOSELLE MEUSE | C62: 27 | D62: PONT A MOUSSON | E62: 554686 | F62: VEZELISE | G62: 1.9 | H62: 53 | I62: 2 | J62: 1 | K62: 11 | L62: 131 | M62: 123 | N62: 136 | O62: 89 | P62: 69 | Q62: 195 | R62: 163 | S62: 148 | T62: 182 | U62: 229 | V62: 224 | W62: 164 | X62: 233
A63: 262 | B63: BAS RHIN | C63: 5006 | D63: STRASBOURG | E63: 4047 | F63: STRASBOURG CRONENBOURG | G63: 4.2 | H63: 54 | I63: 105 | J63: 126 | K63: 34 | L63: 30 | M63: 16 | N63: 65 | O63: 32 | P63: 40 | Q63: 51 | R63: 114 | S63: 117 | T63: 115 | U63: 127 | V63: 75 | W63: 191 | X63: 112
A64: 262 | B64: MARNE ARDENNES | C64: 6 | D64: CHALONS EN CHAMPAGNE | E64: 451101 | F64: CHALONS VIVIERS | G64: 9.3 | H64: 55 | I64: 29 | J64: 38 | K64: 16 | L64: 117 | M64: 103 | N64: 145 | O64: 125 | P64: 132 | Q64: 75 | R64: 72 | S64: 70 | T64: 96 | U64: 90 | V64: 80 | W64: 141 | X64: 78
A65: 262 | B65: MOSELLE | C65: 44 | D65: MOSELLE NORD | E65: 557303 | F65: FAMECK | G65: 2.8 | H65: 56 | I65: 40 | J65: 43 | K65: 37 | L65: 84 | M65: 172 | N65: 19 | O65: 54 | P65: 54 | Q65: 70 | R65: 223 | S65: 228 | T65: 157 | U65: 38 | V65: 57 | W65: 24 | X65: 57
A66: 262 | B66: VOSGES | C66: 55 | D66: SAINT DIE | E66: 488326 | F66: GERARDMER | G66: 3.8 | H66: 57 | I66: 79 | J66: 68 | K66: 111 | L66: 96 | M66: 94 | N66: 106 | O66: 38 | P66: 22 | Q66: 155 | R66: 118 | S66: 123 | T66: 107 | U66: 60 | V66: 69 | W66: 47 | X66: 82
A67: 262 | B67: MARNE ARDENNES | C67: 6 | D67: CHALONS EN CHAMPAGNE | E67: 551103 | F67: FAGNIERES LECLERC | G67: 2.7 | H67: 58 | I67: 94 | J67: 117 | K67: 27 | L67: 98 | M67: 98 | N67: 104 | O67: 117 | P67: 142 | Q67: 41 | R67: 19 | S67: 15 | T67: 35 | U67: 71 | V67: 83 | W67: 36 | X67: 99
A68: 262 | B68: MARNE ARDENNES | C68: 6 | D68: CHALONS EN CHAMPAGNE | E68: 551110 | F68: CHALONS ROOSEVELT | G68: 4.4 | H68: 59 | I68: 56 | J68: 55 | K68: 79 | L68: 115 | M68: 92 | N68: 149 | O68: 116 | P68: 125 | Q68: 82 | R68: 18 | S68: 9 | T68: 100 | U68: 113 | V68: 67 | W68: 189 | X68: 97
A69: 262 | B69: VOSGES | C69: 57 | D69: EPINAL | E69: 588396 | F69: LE VAL D AJOL | G69: 2.4 | H69: 60 | I69: 4 | J69: 4 | K69: 8 | L69: 152 | M69: 128 | N69: 188 | O69: 93 | P69: 81 | Q69: 152 | R69: 146 | S69: 108 | T69: 212 | U69: 211 | V69: 150 | W69: 231 | X69: 156
A70: 262 | B70: MOSELLE | C70: 44 | D70: MOSELLE NORD | E70: 457632 | F70: THIONVILLE CENTRALE | G70: 10.3 | H70: 61 | I70: 129 | J70: 132 | K70: 112 | L70: 32 | M70: 26 | N70: 51 | O70: 170 | P70: 198 | Q70: 42 | R70: 25 | S70: 31 | T70: 36 | U70: 49 | V70: 28 | W70: 112 | X70: 49
A71: 262 | B71: MOSELLE | C71: 45 | D71: METZ | E71: 557447 | F71: METZ SAINT MAXIMIN | G71: 2.4 | H71: 62 | I71: 147 | J71: 159 | K71: 128 | L71: 74 | M71: 117 | N71: 38 | O71: 63 | P71: 99 | Q71: 14 | R71: 4 | S71: 5 | T71: 13 | U71: 128 | V71: 135 | W71: 49 | X71: 206
A72: 262 | B72: VOSGES | C72: 57 | D72: EPINAL | E72: 488561 | F72: REMIREMONT | G72: 7.2 | H72: 63 | I72: 11 | J72: 10 | K72: 32 | L72: 107 | M72: 67 | N72: 195 | O72: 120 | P72: 103 | Q72: 182 | R72: 139 | S72: 91 | T72: 221 | U72: 184 | V72: 104 | W72: 225 | X72: 132
A73: 262 | B73: MOSELLE | C73: 44 | D73: MOSELLE NORD | E73: 457350 | F73: HAYANGE | G73: 6.3 | H73: 64 | I73: 126 | J73: 119 | K73: 136 | L73: 49 | M73: 47 | N73: 80 | O73: 132 | P73: 167 | Q73: 30 | R73: 23 | S73: 21 | T73: 40 | U73: 66 | V73: 44 | W73: 143 | X73: 60
A74: 264 | B74: BAS RHIN | C74: 5006 | D74: STRASBOURG | E74: 4024 | F74: STRASBOURG AUSTERLITZ | G74: 1.3 | H74: 65 | I74: 237 | J74: 185 | K74: 237 | L74: 29 | M74: 108 | N74: 2 | O74: 7 | P74: 10 | Q74: 12 | R74: 42 | S74: 154 | T74: 4 | U74: 56 | V74: 17 | W74: 186 | X74: 62
A75: 264 | B75: MOSELLE | C75: 44 | D75: MOSELLE NORD | E75: 457348 | F75: HAGONDANGE | G75: 8.1 | H75: 66 | I75: 110 | J75: 109 | K75: 104 | L75: 53 | M75: 51 | N75: 83 | O75: 145 | P75: 147 | Q75: 83 | R75: 40 | S75: 34 | T75: 90 | U75: 54 | V75: 42 | W75: 108 | X75: 54
A76: 264 | B76: MARNE ARDENNES | C76: 6 | D76: CHALONS EN CHAMPAGNE | E76: 451381 | F76: SEZANNE | G76: 4.7 | H76: 67 | I76: 59 | J76: 49 | K76: 102 | L76: 67 | M76: 64 | N76: 91 | O76: 37 | P76: 29 | Q76: 110 | R76: 209 | S76: 214 | T76: 141 | U76: 74 | V76: 61 | W76: 153 | X76: 50
A77: 264 | B77: MEURTHE ET MOSELLE MEUSE | C77: 31 | D77: VERDUN | E77: 454414 | F77: LONGWY HAUT | G77: 3.4 | H77: 68 | I77: 93 | J77: 96 | K77: 78 | L77: 77 | M77: 91 | N77: 62 | O77: 100 | P77: 87 | Q77: 118 | R77: 48 | S77: 50 | T77: 49 | U77: 92 | V77: 100 | W77: 67 | X77: 116
A78: 264 | B78: MEURTHE ET MOSELLE MEUSE | C78: 31 | D78: VERDUN | E78: 555679 | F78: VERDUN MAZEL | G78: 3.7 | H78: 69 | I78: 18 | J78: 24 | K78: 17 | L78: 122 | M78: 111 | N78: 139 | O78: 91 | P78: 78 | Q78: 164 | R78: 131 | S78: 100 | T78: 185 | U78: 166 | V78: 140 | W78: 195 | X78: 113
A79: 264 | B79: MEURTHE ET MOSELLE MEUSE | C79: 27 | D79: PONT A MOUSSON | E79: 554506 | F79: CHALIGNY NEUVES MAISONS | G79: 3.5 | H79: 70 | I79: 165 | J79: 149 | K79: 179 | L79: 31 | M79: 40 | N79: 27 | O79: 194 | P79: 207 | Q79: 69 | R79: 20 | S79: 23 | T79: 27 | U79: 23 | V79: 38 | W79: 40 | X79: 24
A80: 264 | B80: MOSELLE | C80: 42 | D80: MOSELLE EST | E80: 557305 | F80: FAULQUEMONT | G80: 3.9 | H80: 71 | I80: 233 | J80: 208 | K80: 229 | L80: 15 | M80: 37 | N80: 12 | O80: 179 | P80: 214 | Q80: 22 | R80: 32 | S80: 59 | T80: 16 | U80: 9 | V80: 9 | W80: 74 | X80: 6
A81: 264 | B81: MOSELLE | C81: 45 | D81: METZ | E81: 457574 | F81: ROMBAS | G81: 2.5 | H81: 72 | I81: 55 | J81: 46 | K81: 114 | L81: 99 | M81: 102 | N81: 98 | O81: 138 | P81: 149 | Q81: 58 | R81: 26 | S81: 16 | T81: 83 | U81: 138 | V81: 146 | W81: 86 | X81: 164
A82: 264 | B82: MARNE ARDENNES | C82: 2 | D82: CHARLEVILLE MEZIERES | E82: 408822 | F82: CHARLEVILLE MEZIERES | G82: 5.1 | H82: 73 | I82: 191 | J82: 159 | K82: 198 | L82: 97 | M82: 164 | N82: 30 | O82: 20 | P82: 50 | Q82: 4 | R82: 45 | S82: 66 | T82: 22 | U82: 37 | V82: 37 | W82: 169 | X82: 19
A83: 264 | B83: MOSELLE | C83: 45 | D83: METZ | E83: 557434 | F83: MARLY | G83: 3.1 | H83: 74 | I83: 24 | J83: 18 | K83: 87 | L83: 134 | M83: 107 | N83: 189 | O83: 55 | P83: 34 | Q83: 190 | R83: 193 | S83: 170 | T83: 213 | U83: 106 | V83: 71 | W83: 184 | X83: 87
A84: 264 | B84: MOSELLE | C84: 42 | D84: MOSELLE EST | E84: 557668 | F84: VALMONT | G84: 2.8 | H84: 75 | I84: 43 | J84: 26 | K84: 100 | L84: 193 | M84: 194 | N84: 167 | O84: 28 | P84: 19 | Q84: 134 | R84: 83 | S84: 58 | T84: 134 | U84: 164 | V84: 202 | W84: 68 | X84: 196
A85: 264 | B85: MOSELLE | C85: 42 | D85: MOSELLE EST | E85: 457617 | F85: SARREGUEMINES | G85: 6.5 | H85: 76 | I85: 144 | J85: 153 | K85: 138 | L85: 52 | M85: 61 | N85: 55 | O85: 66 | P85: 88 | Q85: 29 | R85: 63 | S85: 71 | T85: 65 | U85: 46 | V85: 41 | W85: 92 | X85: 46
A86: 264 | B86: VOSGES | C86: 55 | D86: SAINT DIE | E86: 588551 | F86: RAMBERVILLERS | G86: 2.6 | H86: 77 | I86: 20 | J86: 18 | K86: 50 | L86: 161 | M86: 192 | N86: 75 | O86: 68 | P86: 47 | Q86: 176 | R86: 225 | S86: 226 | T86: 189 | U86: 50 | V86: 70 | W86: 70 | X86: 35
A87: 264 | B87: MOSELLE | C87: 42 | D87: MOSELLE EST | E87: 557523 | F87: PHALSBOURG | G87: 2.5 | H87: 78 | I87: 103 | J87: 109 | K87: 77 | L87: 145 | M87: 156 | N87: 123 | O87: 36 | P87: 38 | Q87: 67 | R87: 37 | S87: 17 | T87: 140 | U87: 105 | V87: 120 | W87: 97 | X87: 95
A88: 264 | B88: MEURTHE ET MOSELLE MEUSE | C88: 26 | D88: NANCY | E88: 554116 | F88: BACCARAT | G88: 2.8 | H88: 79 | I88: 6 | J88: 4 | K88: 20 | L88: 142 | M88: 109 | N88: 207 | O88: 142 | P88: 110 | Q88: 234 | R88: 165 | S88: 163 | T88: 151 | U88: 187 | V88: 143 | W88: 166 | X88: 199
A89: 264 | B89: AUBE HAUTE MARNE | C89: 21 | D89: CHAUMONT | E89: 451154 | F89: JOINVILLE | G89: 1.8 | H89: 80 | I89: 73 | J89: 83 | K89: 52 | L89: 55 | M89: 79 | N89: 46 | O89: 222 | P89: 228 | Q89: 68 | R89: 21 | S89: 20 | T89: 32 | U89: 87 | V89: 162 | W89: 76 | X89: 67
A90: 264 | B90: MOSELLE | C90: 45 | D90: METZ | E90: 557105 | F90: ARS SUR MOSELLE | G90: 2.9 | H90: 81 | I90: 116 | J90: 68 | K90: 199 | L90: 100 | M90: 142 | N90: 49 | O90: 90 | P90: 95 | Q90: 59 | R90: 115 | S90: 172 | T90: 24 | U90: 26 | V90: 35 | W90: 28 | X90: 40
A91: 264 | B91: MOSELLE | C91: 44 | D91: MOSELLE NORD | E91: 457306 | F91: FLORANGE | G91: 4.6 | H91: 82 | I91: 230 | J91: 206 | K91: 222 | L91: 36 | M91: 42 | N91: 42 | O91: 77 | P91: 117 | Q91: 17 | R91: 89 | S91: 115 | T91: 53 | U91: 10 | V91: 12 | W91: 18 | X91: 23
A92: 264 | B92: BAS RHIN | C92: 5006 | D92: STRASBOURG | E92: 4054 | F92: STRASBOURG MONTAGNE VERTE | G92: 2.7 | H92: 83 | I92: 62 | J92: 42 | K92: 144 | L92: 88 | M92: 153 | N92: 29 | O92: 69 | P92: 71 | Q92: 81 | R92: 51 | S92: 63 | T92: 28 | U92: 223 | V92: 240 | W92: 200 | X92: 151
A93: 264 | B93: MARNE ARDENNES | C93: 11 | D93: REIMS | E93: 551306 | F93: REIMS SAINT MARCEAUX | G93: 3.5 | H93: 84 | I93: 91 | J93: 75 | K93: 127 | L93: 16 | M93: 10 | N93: 54 | O93: 234 | P93: 235 | Q93: 57 | R93: 79 | S93: 90 | T93: 69 | U93: 51 | V93: 56 | W93: 116 | X93: 36
A94: 264 | B94: BAS RHIN | C94: 5006 | D94: STRASBOURG | E94: 4010 | F94: STRASBOURG MEINAU | G94: 3.0 | H94: 85 | I94: 84 | J94: 65 | K94: 135 | L94: 48 | M94: 69 | N94: 33 | O94: 141 | P94: 148 | Q94: 79 | R94: 49 | S94: 85 | T94: 14 | U94: 154 | V94: 187 | W94: 80 | X94: 186
A95: 264 | B95: MOSELLE | C95: 44 | D95: MOSELLE NORD | E95: 457158 | F95: YUTZ | G95: 4.7 | H95: 86 | I95: 157 | J95: 185 | K95: 131 | L95: 70 | M95: 62 | N95: 94 | O95: 97 | P95: 92 | Q95: 91 | R95: 28 | S95: 29 | T95: 51 | U95: 45 | V95: 62 | W95: 31 | X95: 63
A96: 30 | B96: MARNE ARDENNES | C96: 11 | D96: REIMS | E96: 551369 | F96: DAMERY | G96: 1.6 | H96: 87 | I96: 86 | J96: 63 | K96: 146 | L96: 21 | M96: 38 | N96: 21 | O96: 239 | P96: 238 | Q96: 167 | R96: 46 | S96: 61 | T96: 26 | U96: 18 | V96: 18 | W96: 105 | X96: 14
A97: 30 | B97: MARNE ARDENNES | C97: 6 | D97: CHALONS EN CHAMPAGNE | E97: 551128 | F97: SAINTE MENEHOULD | G97: 2.9 | H97: 88 | I97: 45 | J97: 46 | K97: 65 | L97: 92 | M97: 46 | N97: 224 | O97: 157 | P97: 131 | Q97: 201 | R97: 53 | S97: 40 | T97: 119 | U97: 157 | V97: 165 | W97: 71 | X97: 212
A98: 30 | B98: MARNE ARDENNES | C98: 2 | D98: CHARLEVILLE MEZIERES | E98: 408840 | F98: RETHEL | G98: 4.3 | H98: 89 | I98: 125 | J98: 124 | K98: 126 | L98: 60 | M98: 55 | N98: 93 | O98: 78 | P98: 72 | Q98: 130 | R98: 86 | S98: 64 | T98: 129 | U98: 73 | V98: 87 | W98: 88 | X98: 53
A99: 30 | B99: MARNE ARDENNES | C99: 11 | D99: REIMS | E99: 551341 | F99: REIMS JEAN JAURES | G99: 3.7 | H99: 90 | I99: 177 | J99: 149 | K99: 195 | L99: 51 | M99: 89 | N99: 24 | O99: 101 | P99: 118 | Q99: 49 | R99: 68 | S99: 104 | T99: 31 | U99: 22 | V99: 22 | W99: 163 | X99: 12
A100: 30 | B100: VOSGES | C100: 55 | D100: SAINT DIE | E100: 488246 | F100: CORNIMONT LA BRESSE | G100: 2.7 | H100: 91 | I100: 16 | J100: 17 | K100: 19 | L100: 108 | M100: 110 | N100: 107 | O100: 199 | P100: 183 | Q100: 222 | R100: 121 | S100: 87 | T100: 183 | U100: 172 | V100: 222 | W100: 73 | X100: 180
A101: 30 | B101: MOSELLE | C101: 45 | D101: METZ | E101: 557444 | F101: SAINT JULIEN LES METZ | G101: 3.6 | H101: 92 | I101: 224 | J101: 172 | K101: 226 | L101: 58 | M101: 93 | N101: 36 | O101: 12 | P101: 18 | Q101: 19 | R101: 67 | S101: 130 | T101: 15 | U101: 52 | V101: 106 | W101: 10 | X101: 71
A102: 30 | B102: BAS RHIN | C102: 5101 | D102: SELESTAT | E102: 4104 | F102: ERSTEIN | G102: 4.0 | H102: 93 | I102: 205 | J102: 191 | K102: 206 | L102: 20 | M102: 8 | N102: 88 | O102: 42 | P102: 33 | Q102: 120 | R102: 81 | S102: 51 | T102: 165 | U102: 78 | V102: 45 | W102: 171 | X102: 74
A103: 30 | B103: VOSGES | C103: 57 | D103: EPINAL | E103: 588716 | F103: XERTIGNY | G103: 2.8 | H103: 94 | I103: 67 | J103: 93 | K103: 25 | L103: 111 | M103: 65 | N103: 204 | O103: 57 | P103: 44 | Q103: 128 | R103: 122 | S103: 68 | T103: 224 | U103: 148 | V103: 170 | W103: 134 | X103: 143
A104: 30 | B104: MARNE ARDENNES | C104: 2 | D104: CHARLEVILLE MEZIERES | E104: 508819 | F104: MOUZON | G104: 1.9 | H104: 95 | I104: 131 | J104: 135 | K104: 108 | L104: 150 | M104: 180 | N104: 79 | O104: 58 | P104: 49 | Q104: 95 | R104: 82 | S104: 77 | T104: 94 | U104: 34 | V104: 94 | W104: 17 | X104: 34
A105: 30 | B105: BAS RHIN | C105: 5060 | D105: HAGUENAU | E105: 4071 | F105: WISSEMBOURG | G105: 8.1 | H105: 96 | I105: 33 | J105: 37 | K105: 28 | L105: 101 | M105: 101 | N105: 108 | O105: 102 | P105: 89 | Q105: 117 | R105: 136 | S105: 136 | T105: 125 | U105: 212 | V105: 219 | W105: 168 | X105: 202
A106: 30 | B106: BAS RHIN | C106: 5060 | D106: HAGUENAU | E106: 4092 | F106: HOCHFELDEN | G106: 2.1 | H106: 97 | I106: 89 | J106: 99 | K106: 59 | L106: 146 | M106: 160 | N106: 112 | O106: 45 | P106: 35 | Q106: 100 | R106: 80 | S106: 89 | T106: 76 | U106: 126 | V106: 81 | W106: 140 | X106: 160
A107: 30 | B107: BAS RHIN | C107: 5006 | D107: STRASBOURG | E107: 4043 | F107: STRASBOURG HALLES | G107: 7.7 | H107: 98 | I107: 151 | J107: 208 | K107: 98 | L107: 42 | M107: 71 | N107: 22 | O107: 182 | P107: 219 | Q107: 16 | R107: 8 | S107: 10 | T107: 9 | U107: 125 | V107: 72 | W107: 233 | X107: 59
A108: 30 | B108: VOSGES | C108: 55 | D108: SAINT DIE | E108: 588386 | F108: LE THILLOT | G108: 2.6 | H108: 99 | I108: 5 | J108: 3 | K108: 24 | L108: 160 | M108: 87 | N108: 238 | O108: 156 | P108: 123 | Q108: 235 | R108: 181 | S108: 152 | T108: 218 | U108: 204 | V108: 207 | W108: 174 | X108: 188
A109: 30 | B109: MOSELLE | C109: 44 | D109: MOSELLE NORD | E109: 557347 | F109: GUENANGE | G109: 4.6 | H109: 100 | I109: 203 | J109: 196 | K109: 188 | L109: 33 | M109: 20 | N109: 68 | O109: 147 | P109: 151 | Q109: 76 | R109: 47 | S109: 37 | T109: 93 | U109: 32 | V109: 19 | W109: 65 | X109: 43
A110: 30 | B110: VOSGES | C110: 55 | D110: SAINT DIE | E110: 588186 | F110: BRUYERES | G110: 3.5 | H110: 101 | I110: 25 | J110: 21 | K110: 57 | L110: 121 | M110: 127 | N110: 109 | O110: 172 | P110: 178 | Q110: 108 | R110: 161 | S110: 205 | T110: 67 | U110: 88 | V110: 107 | W110: 131 | X110: 61
A111: 30 | B111: MEURTHE ET MOSELLE MEUSE | C111: 31 | D111: VERDUN | E111: 554700 | F111: VILLERUPT | G111: 2.8 | H111: 102 | I111: 57 | J111: 61 | K111: 70 | L111: 72 | M111: 63 | N111: 96 | O111: 99 | P111: 97 | Q111: 74 | R111: 119 | S111: 102 | T111: 149 | U111: 198 | V111: 200 | W111: 84 | X111: 235
A112: 30 | B112: BAS RHIN | C112: 5006 | D112: STRASBOURG | E112: 4006 | F112: STRASBOURG NEUDORF | G112: 7.9 | H112: 103 | I112: 22 | J112: 34 | K112: 13 | L112: 185 | M112: 190 | N112: 146 | O112: 87 | P112: 73 | Q112: 183 | R112: 101 | S112: 105 | T112: 110 | U112: 209 | V112: 164 | W112: 234 | X112: 136
A113: 30 | B113: VOSGES | C113: 57 | D113: EPINAL | E113: 588631 | F113: THAON LES VOSGES | G113: 4.6 | H113: 104 | I113: 96 | J113: 83 | K113: 117 | L113: 103 | M113: 77 | N113: 157 | O113: 111 | P113: 102 | Q113: 131 | R113: 105 | S113: 126 | T113: 71 | U113: 89 | V113: 155 | W113: 39 | X113: 104
A114: 30 | B114: MEURTHE ET MOSELLE MEUSE | C114: 31 | D114: VERDUN | E114: 554412 | F114: LONGUYON | G114: 2.8 | H114: 105 | I114: 87 | J114: 109 | K114: 31 | L114: 79 | M114: 85 | N114: 70 | O114: 115 | P114: 108 | Q114: 142 | R114: 104 | S114: 81 | T114: 139 | U114: 140 | V114: 137 | W114: 144 | X114: 125
A115: 30 | B115: VOSGES | C115: 55 | D115: SAINT DIE | E115: 588666 | F115: VAGNEY | G115: 3.5 | H115: 106 | I115: 28 | J115: 25 | K115: 39 | L115: 175 | M115: 137 | N115: 229 | O115: 51 | P115: 25 | Q115: 204 | R115: 202 | S115: 162 | T115: 237 | U115: 179 | V115: 189 | W115: 135 | X115: 174
A116: 30 | B116: MOSELLE | C116: 44 | D116: MOSELLE NORD | E116: 457192 | F116: CATTENOM | G116: 1.5 | H116: 107 | I116: 139 | J116: 142 | K116: 137 | L116: 59 | M116: 60 | N116: 84 | O116: 84 | P116: 114 | Q116: 35 | R116: 130 | S116: 132 | T116: 120 | U116: 64 | V116: 55 | W116: 43 | X116: 115
A117: 30 | B117: MEURTHE ET MOSELLE MEUSE | C117: 27 | D117: PONT A MOUSSON | E117: 554357 | F117: JOEUF | G117: 3.0 | H117: 108 | I117: 48 | J117: 38 | K117: 118 | L117: 127 | M117: 157 | N117: 69 | O117: 167 | P117: 168 | Q117: 143 | R117: 172 | S117: 194 | T117: 103 | U117: 68 | V117: 101 | W117: 9 | X117: 127
A118: 30 | B118: MEURTHE ET MOSELLE MEUSE | C118: 27 | D118: PONT A MOUSSON | E118: 554416 | F118: LUDRES | G118: 3.6 | H118: 109 | I118: 74 | J118: 83 | K118: 56 | L118: 139 | M118: 119 | N118: 164 | O118: 73 | P118: 58 | Q118: 170 | R118: 124 | S118: 74 | T118: 214 | U118: 168 | V118: 99 | W118: 212 | X118: 124
A119: 30 | B119: VOSGES | C119: 57 | D119: EPINAL | E119: 488286 | F119: EPINAL ARISTIDE BRIAND | G119: 8.1 | H119: 110 | I119: 178 | J119: 208 | K119: 157 | L119: 38 | M119: 50 | N119: 35 | O119: 56 | P119: 66 | Q119: 50 | R119: 103 | S119: 129 | T119: 61 | U119: 112 | V119: 96 | W119: 202 | X119: 52
A120: 30 | B120: MARNE ARDENNES | C120: 2 | D120: CHARLEVILLE MEZIERES | E120: 508815 | F120: CARIGNAN | G120: 2.6 | H120: 111 | I120: 78 | J120: 55 | K120: 129 | L120: 89 | M120: 83 | N120: 99 | O120: 164 | P120: 175 | Q120: 94 | R120: 109 | S120: 72 | T120: 193 | U120: 116 | V120: 130 | W120: 95 | X120: 114
A121: 30 | B121: MEURTHE ET MOSELLE MEUSE | C121: 31 | D121: VERDUN | E121: 455151 | F121: BAR LE DUC | G121: 9.8 | H121: 112 | I121: 49 | J121: 74 | K121: 29 | L121: 120 | M121: 95 | N121: 162 | O121: 162 | P121: 164 | Q121: 135 | R121: 94 | S121: 82 | T121: 128 | U121: 145 | V121: 184 | W121: 69 | X121: 177
A122: 30 | B122: BAS RHIN | C122: 5006 | D122: STRASBOURG | E122: 4019 | F122: STRASBOURG ANVERS | G122: 4.4 | H122: 113 | I122: 174 | J122: 180 | K122: 167 | L122: 47 | M122: 54 | N122: 50 | O122: 60 | P122: 82 | Q122: 27 | R122: 87 | S122: 84 | T122: 86 | U122: 115 | V122: 39 | W122: 230 | X122: 98
A123: 30 | B123: BAS RHIN | C123: 5060 | D123: HAGUENAU | E123: 4057 | F123: BISCHWILLER | G123: 6.8 | H123: 114 | I123: 71 | J123: 77 | K123: 67 | L123: 56 | M123: 25 | N123: 182 | O123: 169 | P123: 155 | Q123: 191 | R123: 127 | S123: 113 | T123: 148 | U123: 176 | V123: 225 | W123: 55 | X123: 219
A124: 30 | B124: AUBE HAUTE MARNE | C124: 14 | D124: TROYES | E124: 510570 | F124: NOGENT SUR SEINE | G124: 4.0 | H124: 115 | I124: 37 | J124: 29 | K124: 53 | L124: 124 | M124: 118 | N124: 131 | O124: 161 | P124: 165 | Q124: 123 | R124: 166 | S124: 144 | T124: 194 | U124: 147 | V124: 105 | W124: 177 | X124: 135
A125: 30 | B125: VOSGES | C125: 55 | D125: SAINT DIE | E125: 588316 | F125: FRAIZE | G125: 3.6 | H125: 116 | I125: 92 | J125: 107 | K125: 45 | L125: 159 | M125: 136 | N125: 198 | O125: 113 | P125: 112 | Q125: 112 | R125: 77 | S125: 43 | T125: 168 | U125: 120 | V125: 138 | W125: 99 | X125: 111
A126: 30 | B126: BAS RHIN | C126: 5060 | D126: HAGUENAU | E126: 4041 | F126: HOERDT | G126: 1.7 | H126: 117 | I126: 61 | J126: 61 | K126: 82 | L126: 157 | M126: 134 | N126: 191 | O126: 30 | P126: 20 | Q126: 168 | R126: 159 | S126: 133 | T126: 222 | U126: 217 | V126: 123 | W126: 209 | X126: 221
A127: 30 | B127: VOSGES | C127: 57 | D127: EPINAL | E127: 488281 | F127: ELOYES | G127: 3.4 | H127: 118 | I127: 65 | J127: 58 | K127: 95 | L127: 171 | M127: 143 | N127: 213 | O127: 40 | P127: 26 | Q127: 154 | R127: 212 | S127: 191 | T127: 215 | U127: 111 | V127: 158 | W127: 48 | X127: 152
A128: 30 | B128: MEURTHE ET MOSELLE MEUSE | C128: 27 | D128: PONT A MOUSSON | E128: 554376 | F128: LAXOU BOUFFLERS | G128: 2.6 | H128: 119 | I128: 236 | J128: 208 | K128: 236 | L128: 27 | M128: 84 | N128: 6 | O128: 173 | P128: 186 | Q128: 87 | R128: 91 | S128: 190 | T128: 8 | U128: 15 | V128: 32 | W128: 26 | X128: 11
A129: 30 | B129: HAUT RHIN | C129: 5130 | D129: COLMAR | E129: 4143 | F129: MUNSTER | G129: 4.2 | H129: 120 | I129: 127 | J129: 144 | K129: 72 | L129: 76 | M129: 41 | N129: 199 | O129: 86 | P129: 65 | Q129: 203 | R129: 110 | S129: 79 | T129: 174 | U129: 144 | V129: 156 | W129: 89 | X129: 176
A130: 30 | B130: MARNE ARDENNES | C130: 2 | D130: CHARLEVILLE MEZIERES | E130: 408862 | F130: REVIN | G130: 3.9 | H130: 121 | I130: 69 | J130: 83 | K130: 41 | L130: 155 | M130: 155 | N130: 147 | O130: 200 | P130: 203 | Q130: 96 | R130: 70 | S130: 57 | T130: 121 | U130: 96 | V130: 92 | W130: 156 | X130: 73
A131: 30 | B131: BAS RHIN | C131: 5101 | D131: SELESTAT | E131: 4126 | F131: MUTZIG | G131: 2.7 | H131: 122 | I131: 152 | J131: 208 | K131: 99 | L131: 44 | M131: 21 | N131: 126 | O131: 52 | P131: 57 | Q131: 53 | R131: 157 | S131: 161 | T131: 138 | U131: 133 | V131: 91 | W131: 228 | X131: 64
A132: 30 | B132: MARNE ARDENNES | C132: 2 | D132: CHARLEVILLE MEZIERES | E132: 508802 | F132: CHARLEVILLE NEVERS | G132: 2.8 | H132: 123 | I132: 34 | J132: 38 | K132: 26 | L132: 203 | M132: 187 | N132: 223 | O132: 214 | P132: 213 | Q132: 169 | R132: 75 | S132: 49 | T132: 145 | U132: 122 | V132: 78 | W132: 87 | X132: 204
A133: 30 | B133: MOSELLE | C133: 45 | D133: METZ | E133: 557612 | F133: SAINTE MARIE AUX CHENES | G133: 3.7 | H133: 124 | I133: 35 | J133: 55 | K133: 2 | L133: 220 | M133: 199 | N133: 231 | O133: 96 | P133: 56 | Q133: 238 | R133: 120 | S133: 76 | T133: 197 | U133: 213 | V133: 213 | W133: 211 | X133: 142
A134: 30 | B134: BAS RHIN | C134: 5101 | D134: SELESTAT | E134: 4121 | F134: SCHIRMECK | G134: 2.8 | H134: 125 | I134: 54 | J134: 93 | K134: 9 | L134: 73 | M134: 53 | N134: 135 | O134: 187 | P134: 190 | Q134: 93 | R134: 198 | S134: 185 | T134: 202 | U134: 118 | V134: 118 | W134: 94 | X134: 130
A135: 110 | B135: MEURTHE ET MOSELLE MEUSE | C135: 26 | D135: NANCY | E135: 554486 | F135: NANCY POINT CENTRAL | G135: 3.0 | H135: 126 | I135: 122 | J135: 82 | K135: 182 | L135: 179 | M135: 213 | N135: 89 | O135: 14 | P135: 11 | Q135: 77 | R135: 156 | S135: 179 | T135: 111 | U135: 141 | V135: 110 | W135: 115 | X135: 179
A136: 110 | B136: MEURTHE ET MOSELLE MEUSE | C136: 31 | D136: VERDUN | E136: 455566 | F136: REVIGNY SUR ORNAIN | G136: 2.7 | H136: 127 | I136: 83 | J136: 88 | K136: 97 | L136: 147 | M136: 116 | N136: 200 | O136: 98 | P136: 75 | Q136: 205 | R136: 123 | S136: 97 | T136: 173 | U136: 169 | V136: 234 | W136: 35 | X136: 218
A137: 110 | B137: MOSELLE | C137: 42 | D137: MOSELLE EST | E137: 457435 | F137: MERLEBACH | G137: 2.7 | H137: 128 | I137: 98 | J137: 105 | K137: 74 | L137: 144 | M137: 210 | N137: 39 | O137: 188 | P137: 209 | Q137: 52 | R137: 108 | S137: 165 | T137: 25 | U137: 61 | V137: 169 | W137: 5 | X137: 89
A138: 110 | B138: MEURTHE ET MOSELLE MEUSE | C138: 26 | D138: NANCY | E138: 454426 | F138: LUNEVILLE CARNOT | G138: 8.4 | H138: 129 | I138: 179 | J138: 144 | K138: 204 | L138: 106 | M138: 126 | N138: 73 | O138: 59 | P138: 48 | Q138: 98 | R138: 154 | S138: 187 | T138: 81 | U138: 40 | V138: 59 | W138: 37 | X138: 45
A139: 110 | B139: AUBE HAUTE MARNE | C139: 21 | D139: CHAUMONT | E139: 451156 | F139: SAINT DIZIER CENTRE | G139: 8.6 | H139: 130 | I139: 134 | J139: 116 | K139: 161 | L139: 130 | M139: 148 | N139: 95 | O139: 140 | P139: 138 | Q139: 115 | R139: 56 | S139: 53 | T139: 78 | U139: 107 | V139: 141 | W139: 111 | X139: 83
A140: 110 | B140: VOSGES | C140: 55 | D140: SAINT DIE | E140: 588461 | F140: MOYENMOUTIER | G140: 4.3 | H140: 131 | I140: 80 | J140: 80 | K140: 86 | L140: 90 | M140: 44 | N140: 220 | O140: 133 | P140: 104 | Q140: 214 | R140: 144 | S140: 127 | T140: 161 | U140: 215 | V140: 238 | W140: 107 | X140: 220
A141: 110 | B141: MOSELLE | C141: 42 | D141: MOSELLE EST | E141: 457543 | F141: PUTTELANGE AUX LACS | G141: 2.4 | H141: 132 | I141: 143 | J141: 180 | K141: 96 | L141: 104 | M141: 104 | N141: 110 | O141: 143 | P141: 154 | Q141: 64 | R141: 58 | S141: 69 | T141: 48 | U141: 93 | V141: 64 | W141: 196 | X141: 68
A142: 110 | B142: BAS RHIN | C142: 5101 | D142: SELESTAT | E142: 4127 | F142: ROSHEIM | G142: 1.7 | H142: 133 | I142: 111 | J142: 107 | K142: 115 | L142: 204 | M142: 208 | N142: 180 | O142: 24 | P142: 14 | Q142: 108 | R142: 149 | S142: 139 | T142: 171 | U142: 152 | V142: 116 | W142: 224 | X142: 80
A143: 110 | B143: MOSELLE | C143: 44 | D143: MOSELLE NORD | E143: 557307 | F143: FONTOY | G143: 1.9 | H143: 134 | I143: 68 | J143: 70 | K143: 84 | L143: 197 | M143: 191 | N143: 192 | O143: 126 | P143: 106 | Q143: 189 | R143: 192 | S143: 189 | T143: 177 | U143: 65 | V143: 82 | W143: 12 | X143: 137
A144: 110 | B144: BAS RHIN | C144: 5006 | D144: STRASBOURG | E144: 4027 | F144: SCHILTIGHEIM CENTRE | G144: 4.0 | H144: 135 | I144: 204 | J144: 208 | K144: 184 | L144: 43 | M144: 43 | N144: 58 | O144: 92 | P144: 94 | Q144: 80 | R144: 100 | S144: 134 | T144: 54 | U144: 102 | V144: 98 | W144: 137 | X144: 90
A145: 110 | B145: AUBE HAUTE MARNE | C145: 21 | D145: CHAUMONT | E145: 410566 | F145: CHAUMONT HOTEL DE VILLE | G145: 10.4 | H145: 136 | I145: 82 | J145: 77 | K145: 103 | L145: 181 | M145: 177 | N145: 168 | O145: 82 | P145: 74 | Q145: 162 | R145: 138 | S145: 106 | T145: 192 | U145: 171 | V145: 171 | W145: 122 | X145: 185
A146: 110 | B146: BAS RHIN | C146: 5060 | D146: HAGUENAU | E146: 4030 | F146: BRUMATH | G146: 3.8 | H146: 137 | I146: 214 | J146: 208 | K146: 208 | L146: 63 | M146: 35 | N146: 163 | O146: 4 | P146: 4 | Q146: 85 | R146: 219 | S146: 211 | T146: 211 | U146: 195 | V146: 136 | W146: 185 | X146: 201
A147: 110 | B147: VOSGES | C147: 57 | D147: EPINAL | E147: 588201 | F147: CHANTRAINE | G147: 3.7 | H147: 138 | I147: 88 | J147: 91 | K147: 90 | L147: 109 | M147: 80 | N147: 159 | O147: 83 | P147: 76 | Q147: 149 | R147: 211 | S147: 178 | T147: 233 | U147: 185 | V147: 126 | W147: 208 | X147: 141
A148: 110 | B148: BAS RHIN | C148: 5006 | D148: STRASBOURG | E148: 4020 | F148: STRASBOURG ROBERTSAU | G148: 5.3 | H148: 139 | I148: 123 | J148: 133 | K148: 94 | L148: 186 | M148: 186 | N148: 170 | O148: 9 | P148: 6 | Q148: 136 | R148: 205 | S148: 173 | T148: 231 | U148: 196 | V148: 185 | W148: 161 | X148: 207
A149: 110 | B149: VOSGES | C149: 57 | D149: EPINAL | E149: 588206 | F149: CHARMES | G149: 2.9 | H149: 140 | I149: 100 | J149: 119 | K149: 35 | L149: 172 | M149: 181 | N149: 134 | O149: 85 | P149: 62 | Q149: 219 | R149: 142 | S149: 145 | T149: 105 | U149: 177 | V149: 235 | W149: 103 | X149: 154
A150: 110 | B150: MEURTHE ET MOSELLE MEUSE | C150: 27 | D150: PONT A MOUSSON | E150: 454535 | F150: PONT A MOUSSON CENTRALE | G150: 5.6 | H150: 141 | I150: 231 | J150: 194 | K150: 227 | L150: 64 | M150: 106 | N150: 34 | O150: 160 | P150: 145 | Q150: 181 | R150: 71 | S150: 94 | T150: 52 | U150: 39 | V150: 23 | W150: 160 | X150: 33
A151: 110 | B151: MEURTHE ET MOSELLE MEUSE | C151: 26 | D151: NANCY | E151: 554491 | F151: NANCY SAINT SEBASTIEN | G151: 3.6 | H151: 142 | I151: 117 | J151: 102 | K151: 145 | L151: 212 | M151: 222 | N151: 148 | O151: 11 | P151: 7 | Q151: 206 | R151: 213 | S151: 213 | T151: 180 | U151: 159 | V151: 128 | W151: 154 | X151: 167
A152: 110 | B152: BAS RHIN | C152: 5006 | D152: STRASBOURG | E152: 4023 | F152: STRASBOURG VOSGES | G152: 2.9 | H152: 143 | I152: 115 | J152: 103 | K152: 134 | L152: 119 | M152: 124 | N152: 111 | O152: 34 | P152: 41 | Q152: 55 | R152: 208 | S152: 198 | T152: 199 | U152: 219 | V152: 127 | W152: 240 | X152: 122
A153: 110 | B153: MEURTHE ET MOSELLE MEUSE | C153: 27 | D153: PONT A MOUSSON | E153: 554496 | F153: NANCY TROIS MAISONS | G153: 2.4 | H153: 144 | I153: 154 | J153: 194 | K153: 120 | L153: 123 | M153: 133 | N153: 102 | O153: 171 | P153: 158 | Q153: 185 | R153: 69 | S153: 73 | T153: 75 | U153: 76 | V153: 125 | W153: 45 | X153: 79
A154: 110 | B154: VOSGES | C154: 57 | D154: EPINAL | E154: 488706 | F154: VITTEL | G154: 3.1 | H154: 145 | I154: 114 | J154: 126 | K154: 68 | L154: 174 | M154: 154 | N154: 211 | O154: 129 | P154: 98 | Q154: 215 | R154: 126 | S154: 119 | T154: 132 | U154: 129 | V154: 131 | W154: 172 | X154: 85
A155: 110 | B155: MEURTHE ET MOSELLE MEUSE | C155: 26 | D155: NANCY | E155: 554296 | F155: ESSEY LES NANCY | G155: 3.7 | H155: 146 | I155: 47 | J155: 53 | K155: 46 | L155: 148 | M155: 150 | N155: 144 | O155: 175 | P155: 153 | Q155: 208 | R155: 218 | S155: 210 | T155: 208 | U155: 165 | V155: 151 | W155: 210 | X155: 88
A156: 110 | B156: MEURTHE ET MOSELLE MEUSE | C156: 31 | D156: VERDUN | E156: 555624 | F156: STENAY | G156: 3.2 | H156: 147 | I156: 171 | J156: 208 | K156: 153 | L156: 66 | M156: 122 | N156: 25 | O156: 209 | P156: 218 | Q156: 99 | R156: 206 | S156: 224 | T156: 95 | U156: 21 | V156: 95 | W156: 2 | X156: 47
A157: 110 | B157: MEURTHE ET MOSELLE MEUSE | C157: 27 | D157: PONT A MOUSSON | E157: 454651 | F157: TOUL | G157: 9.5 | H157: 148 | I157: 207 | J157: 165 | K157: 214 | L157: 188 | M157: 202 | N157: 128 | O157: 62 | P157: 61 | Q157: 88 | R157: 93 | S157: 122 | T157: 66 | U157: 63 | V157: 46 | W157: 82 | X157: 84
A158: 110 | B158: MEURTHE ET MOSELLE MEUSE | C158: 27 | D158: PONT A MOUSSON | E158: 454355 | F158: JARNY | G158: 4.2 | H158: 149 | I158: 102 | J158: 115 | K158: 64 | L158: 165 | M158: 161 | N158: 150 | O158: 105 | P158: 85 | Q158: 171 | R158: 147 | S158: 142 | T158: 133 | U158: 222 | V158: 205 | W158: 203 | X158: 208
A159: 110 | B159: MEURTHE ET MOSELLE MEUSE | C159: 26 | D159: NANCY | E159: 554166 | F159: BLAINVILLE | G159: 2.9 | H159: 150 | I159: 173 | J159: 208 | K159: 155 | L159: 105 | M159: 88 | N159: 130 | O159: 158 | P159: 143 | Q159: 180 | R159: 55 | S159: 48 | T159: 84 | U159: 143 | V159: 133 | W159: 158 | X159: 123
A160: 110 | B160: MEURTHE ET MOSELLE MEUSE | C160: 26 | D160: NANCY | E160: 554266 | F160: DOMBASLE SUR MEURTHE | G160: 3.4 | H160: 151 | I160: 180 | J160: 206 | K160: 160 | L160: 207 | M160: 209 | N160: 187 | O160: 35 | P160: 23 | Q160: 140 | R160: 97 | S160: 121 | T160: 73 | U160: 110 | V160: 166 | W160: 30 | X160: 178
A161: 110 | B161: MARNE ARDENNES | C161: 2 | D161: CHARLEVILLE MEZIERES | E161: 408806 | F161: SEDAN | G161: 7.4 | H161: 152 | I161: 112 | J161: 130 | K161: 47 | L161: 153 | M161: 138 | N161: 171 | O161: 150 | P161: 152 | Q161: 86 | R161: 217 | S161: 197 | T161: 229 | U161: 97 | V161: 97 | W161: 130 | X161: 91
A162: 110 | B162: HAUT RHIN | C162: 5130 | D162: COLMAR | E162: 4157 | F162: NEUF BRISACH | G162: 2.5 | H162: 153 | I162: 201 | J162: 204 | K162: 183 | L162: 136 | M162: 171 | N162: 67 | O162: 136 | P162: 160 | Q162: 45 | R162: 73 | S162: 83 | T162: 63 | U162: 91 | V162: 168 | W162: 51 | X162: 92
A163: 110 | B163: MOSELLE | C163: 45 | D163: METZ | E163: 557459 | F163: MOULINS LES METZ | G163: 2.5 | H163: 154 | I163: 77 | J163: 49 | K163: 139 | L163: 187 | M163: 166 | N163: 210 | O163: 189 | P163: 185 | Q163: 166 | R163: 152 | S163: 124 | T163: 205 | U163: 170 | V163: 172 | W163: 138 | X163: 166
A164: 110 | B164: BAS RHIN | C164: 5006 | D164: STRASBOURG | E164: 4028 | F164: BISCHHEIM | G164: 3.1 | H164: 155 | I164: 169 | J164: 208 | K164: 152 | L164: 166 | M164: 174 | N164: 127 | O164: 61 | P164: 63 | Q164: 78 | R164: 88 | S164: 103 | T164: 70 | U164: 190 | V164: 173 | W164: 178 | X164: 163
A165: 110 | B165: BAS RHIN | C165: 5006 | D165: STRASBOURG | E165: 4029 | F165: SCHILTIGHEIM KLEBER | G165: 0.7 | H165: 156 | I165: 149 | J165: 141 | K165: 165 | L165: 235 | M165: 234 | N165: 160 | O165: 49 | P165: 37 | Q165: 133 | R165: 107 | S165: 216 | T165: 5 | U165: 99 | V165: 167 | W165: 61 | X165: 96
A166: 110 | B166: BAS RHIN | C166: 5060 | D166: HAGUENAU | E166: 4031 | F166: TRUCHTERSHEIM | G166: 2.4 | H166: 157 | I166: 75 | J166: 75 | K166: 85 | L166: 83 | M166: 31 | N166: 230 | O166: 127 | P166: 91 | Q166: 233 | R166: 224 | S166: 217 | T166: 234 | U166: 240 | V166: 218 | W166: 236 | X166: 240
A167: 110 | B167: AUBE HAUTE MARNE | C167: 14 | D167: TROYES | E167: 510513 | F167: SAINT PARRES AUX TERTRES | G167: 2.7 | H167: 158 | I167: 234 | J167: 208 | K167: 234 | L167: 68 | M167: 105 | N167: 43 | O167: 146 | P167: 180 | Q167: 34 | R167: 22 | S167: 18 | T167: 43 | U167: 189 | V167: 241 | W167: 155 | X167: 102
A168: 110 | B168: BAS RHIN | C168: 5006 | D168: STRASBOURG | E168: 4039 | F168: REICHSTETT | G168: 1.5 | H168: 159 | I168: 146 | J168: 164 | K168: 124 | L168: 168 | M168: 163 | N168: 161 | O168: 80 | P168: 77 | Q168: 126 | R168: 135 | S168: 140 | T168: 116 | U168: 173 | V168: 79 | W168: 220 | X168: 145
A169: 110 | B169: MOSELLE | C169: 45 | D169: METZ | E169: 557441 | F169: METZ PLAPPEVILLE | G169: 2.5 | H169: 160 | I169: 160 | J169: 133 | K169: 197 | L169: 195 | M169: 214 | N169: 133 | O169: 26 | P169: 15 | Q169: 163 | R169: 187 | S169: 181 | T169: 184 | U169: 134 | V169: 192 | W169: 42 | X169: 183
A170: 110 | B170: MARNE ARDENNES | C170: 11 | D170: REIMS | E170: 551309 | F170: REIMS EUROPE | G170: 2.6 | H170: 161 | I170: 136 | J170: 83 | K170: 213 | L170: 137 | M170: 175 | N170: 63 | O170: 206 | P170: 217 | Q170: 89 | R170: 95 | S170: 131 | T170: 50 | U170: 123 | V170: 73 | W170: 229 | X170: 69
A171: 110 | B171: MOSELLE | C171: 45 | D171: METZ | E171: 557559 | F171: REMILLY | G171: 3.3 | H171: 162 | I171: 168 | J171: 157 | K171: 180 | L171: 126 | M171: 114 | N171: 141 | O171: 95 | P171: 79 | Q171: 165 | R171: 197 | S171: 208 | T171: 145 | U171: 82 | V171: 124 | W171: 46 | X171: 100
A172: 110 | B172: BAS RHIN | C172: 5060 | D172: HAGUENAU | E172: 4082 | F172: BOUXWILLER | G172: 2.4 | H172: 163 | I172: 27 | J172: 23 | K172: 49 | L172: 183 | M172: 173 | N172: 194 | O172: 238 | P172: 239 | Q172: 147 | R172: 106 | S172: 116 | T172: 102 | U172: 142 | V172: 115 | W172: 162 | X172: 134
A173: 110 | B173: MOSELLE | C173: 42 | D173: MOSELLE EST | E173: 557503 | F173: NEUNKIRCH | G173: 3.1 | H173: 164 | I173: 7 | J173: 8 | K173: 7 | L173: 224 | M173: 204 | N173: 234 | O173: 226 | P173: 222 | Q173: 231 | R173: 234 | S173: 232 | T173: 236 | U173: 210 | V173: 208 | W173: 149 | X173: 224
A174: 110 | B174: MARNE ARDENNES | C174: 6 | D174: CHALONS EN CHAMPAGNE | E174: 451166 | F174: VITRY LE FRANCOIS | G174: 3.6 | H174: 165 | I174: 215 | J174: 208 | K174: 210 | L174: 61 | M174: 78 | N174: 57 | O174: 233 | P174: 236 | Q174: 48 | R174: 125 | S174: 138 | T174: 98 | U174: 24 | V174: 49 | W174: 33 | X174: 21
A175: 110 | B175: BAS RHIN | C175: 5101 | D175: SELESTAT | E175: 4008 | F175: FEGERSHEIM | G175: 2.4 | H175: 166 | I175: 133 | J175: 137 | K175: 109 | L175: 93 | M175: 48 | N175: 219 | O175: 94 | P175: 70 | Q175: 211 | R175: 210 | S175: 188 | T175: 223 | U175: 231 | V175: 214 | W175: 207 | X175: 216
A176: 110 | B176: BAS RHIN | C176: 5060 | D176: HAGUENAU | E176: 4085 | F176: INGWILLER | G176: 3.5 | H176: 167 | I176: 132 | J176: 114 | K176: 162 | L176: 141 | M176: 141 | N176: 142 | O176: 176 | P176: 172 | Q176: 153 | R176: 151 | S176: 159 | T176: 123 | U176: 146 | V176: 183 | W176: 63 | X176: 200
A177: 160 | B177: BAS RHIN | C177: 5101 | D177: SELESTAT | E177: 4109 | F177: MARCKOLSHEIM | G177: 2.3 | H177: 168 | I177: 120 | J177: 139 | K177: 60 | L177: 151 | M177: 130 | N177: 179 | O177: 191 | P177: 191 | Q177: 125 | R177: 171 | S177: 201 | T177: 85 | U177: 135 | V177: 190 | W177: 96 | X177: 118
A178: 160 | B178: AUBE HAUTE MARNE | C178: 14 | D178: TROYES | E178: 510523 | F178: LA CHAPELLE ST LUC | G178: 4.6 | H178: 169 | I178: 226 | J178: 185 | K178: 225 | L178: 133 | M178: 178 | N178: 60 | O178: 122 | P178: 141 | Q178: 44 | R178: 60 | S178: 86 | T178: 29 | U178: 117 | V178: 134 | W178: 128 | X178: 93
A179: 160 | B179: AUBE HAUTE MARNE | C179: 14 | D179: TROYES | E179: 410550 | F179: BAR SUR AUBE | G179: 5.3 | H179: 170 | I179: 104 | J179: 105 | K179: 92 | L179: 180 | M179: 170 | N179: 183 | O179: 181 | P179: 159 | Q179: 209 | R179: 173 | S179: 158 | T179: 175 | U179: 158 | V179: 215 | W179: 64 | X179: 181
A180: 160 | B180: MEURTHE ET MOSELLE MEUSE | C180: 27 | D180: PONT A MOUSSON | E180: 454696 | F180: VILLERS GENERAL LECLERC | G180: 4.0 | H180: 171 | I180: 163 | J180: 196 | K180: 143 | L180: 189 | M180: 200 | N180: 138 | O180: 17 | P180: 9 | Q180: 151 | R180: 162 | S180: 157 | T180: 160 | U180: 228 | V180: 196 | W180: 223 | X180: 190
A181: 160 | B181: MARNE ARDENNES | C181: 2 | D181: CHARLEVILLE MEZIERES | E181: 508860 | F181: ROCROI | G181: 2.4 | H181: 172 | I181: 208 | J181: 204 | K181: 202 | L181: 81 | M181: 81 | N181: 92 | O181: 165 | P181: 170 | Q181: 113 | R181: 132 | S181: 137 | T181: 118 | U181: 94 | V181: 76 | W181: 157 | X181: 86
A182: 160 | B182: VOSGES | C182: 55 | D182: SAINT DIE | E182: 488556 | F182: RAON L ETAPE | G182: 2.2 | H182: 173 | I182: 97 | J182: 80 | K182: 130 | L182: 218 | M182: 233 | N182: 113 | O182: 228 | P182: 229 | Q182: 145 | R182: 167 | S182: 183 | T182: 122 | U182: 55 | V182: 191 | W182: 3 | X182: 75
A183: 160 | B183: MOSELLE | C183: 42 | D183: MOSELLE EST | E183: 457614 | F183: SARREBOURG | G183: 7.2 | H183: 174 | I183: 141 | J183: 140 | K183: 150 | L183: 162 | M183: 152 | N183: 178 | O183: 177 | P183: 182 | Q183: 114 | R183: 117 | S183: 93 | T183: 166 | U183: 149 | V183: 160 | W183: 85 | X183: 197
A184: 160 | B184: BAS RHIN | C184: 5101 | D184: SELESTAT | E184: 4007 | F184: ILLKIRCH CENTRE | G184: 6.4 | H184: 175 | I184: 184 | J184: 192 | K184: 173 | L184: 154 | M184: 144 | N184: 165 | O184: 190 | P184: 188 | Q184: 156 | R184: 52 | S184: 41 | T184: 109 | U184: 136 | V184: 103 | W184: 147 | X184: 147
A185: 160 | B185: HAUT RHIN | C185: 5169 | D185: MULHOUSE | E185: 4180 | F185: RIEDISHEIM | G185: 3.3 | H185: 176 | I185: 90 | J185: 70 | K185: 140 | L185: 169 | M185: 147 | N185: 208 | O185: 213 | P185: 205 | Q185: 200 | R185: 140 | S185: 118 | T185: 162 | U185: 220 | V185: 102 | W185: 232 | X185: 213
A186: 160 | B186: HAUT RHIN | C186: 5169 | D186: MULHOUSE | E186: 4170 | F186: MULHOUSE REUNION | G186: 7.8 | H186: 177 | I186: 148 | J186: 124 | K186: 191 | L186: 158 | M186: 167 | N186: 122 | O186: 195 | P186: 194 | Q186: 141 | R186: 116 | S186: 143 | T186: 58 | U186: 109 | V186: 90 | W186: 119 | X186: 126
A187: 160 | B187: MOSELLE | C187: 42 | D187: MOSELLE EST | E187: 557210 | F187: CHATEAU SALINS | G187: 1.8 | H187: 178 | I187: 175 | J187: 208 | K187: 156 | L187: 102 | M187: 82 | N187: 143 | O187: 212 | P187: 202 | Q187: 210 | R187: 61 | S187: 45 | T187: 117 | U187: 174 | V187: 212 | W187: 58 | X187: 214
A188: 160 | B188: BAS RHIN | C188: 5060 | D188: HAGUENAU | E188: 4067 | F188: PFAFFENHOFFEN | G188: 1.9 | H188: 179 | I188: 145 | J188: 172 | K188: 116 | L188: 80 | M188: 66 | N188: 120 | O188: 137 | P188: 130 | Q188: 121 | R188: 204 | S188: 200 | T188: 187 | U188: 199 | V188: 188 | W188: 219 | X188: 119
A189: 160 | B189: MOSELLE | C189: 45 | D189: METZ | E189: 557440 | F189: METZ MOZART | G189: 2.8 | H189: 180 | I189: 153 | J189: 208 | K189: 107 | L189: 164 | M189: 129 | N189: 209 | O189: 79 | P189: 59 | Q189: 193 | R189: 145 | S189: 107 | T189: 210 | U189: 216 | V189: 147 | W189: 222 | X189: 184
A190: 160 | B190: MOSELLE | C190: 45 | D190: METZ | E190: 557712 | F190: WOIPPY | G190: 4.3 | H190: 181 | I190: 218 | J190: 149 | K190: 230 | L190: 118 | M190: 121 | N190: 114 | O190: 135 | P190: 146 | Q190: 54 | R190: 99 | S190: 109 | T190: 104 | U190: 130 | V190: 112 | W190: 113 | X190: 146
A191: 160 | B191: MOSELLE | C191: 45 | D191: METZ | E191: 557436 | F191: METZ CATHEDRALE | G191: 4.1 | H191: 182 | I191: 223 | J191: 208 | K191: 218 | L191: 128 | M191: 112 | N191: 151 | O191: 75 | P191: 60 | Q191: 172 | R191: 133 | S191: 120 | T191: 143 | U191: 160 | V191: 182 | W191: 124 | X191: 159
A192: 160 | B192: BAS RHIN | C192: 5060 | D192: HAGUENAU | E192: 4066 | F192: NIEDERBRONN LES BAINS | G192: 5.7 | H192: 183 | I192: 118 | J192: 129 | K192: 83 | L192: 201 | M192: 206 | N192: 174 | O192: 121 | P192: 96 | Q192: 202 | R192: 200 | S192: 174 | T192: 225 | U192: 180 | V192: 223 | W192: 123 | X192: 161
A193: 160 | B193: MARNE ARDENNES | C193: 11 | D193: REIMS | E193: 451308 | F193: REIMS SAINT THOMAS | G193: 5.5 | H193: 184 | I193: 238 | J193: 196 | K193: 238 | L193: 85 | M193: 90 | N193: 76 | O193: 217 | P193: 223 | Q193: 97 | R193: 90 | S193: 101 | T193: 77 | U193: 47 | V193: 34 | W193: 133 | X193: 42
A194: 160 | B194: AUBE HAUTE MARNE | C194: 14 | D194: TROYES | E194: 410510 | F194: TROYES GAMBETTA | G194: 8.6 | H194: 185 | I194: 202 | J194: 185 | K194: 200 | L194: 140 | M194: 140 | N194: 129 | O194: 180 | P194: 169 | Q194: 179 | R194: 96 | S194: 96 | T194: 113 | U194: 124 | V194: 93 | W194: 175 | X194: 105
A195: 160 | B195: BAS RHIN | C195: 5101 | D195: SELESTAT | E195: 4107 | F195: VILLE | G195: 2.2 | H195: 186 | I195: 206 | J195: 208 | K195: 192 | L195: 91 | M195: 32 | N195: 233 | O195: 44 | P195: 21 | Q195: 224 | R195: 188 | S195: 164 | T195: 219 | U195: 234 | V195: 228 | W195: 204 | X195: 236
A196: 160 | B196: BAS RHIN | C196: 5101 | D196: SELESTAT | E196: 4101 | F196: SELESTAT CENTRE | G196: 7.9 | H196: 187 | I196: 182 | J196: 180 | K196: 174 | L196: 114 | M196: 74 | N196: 197 | O196: 166 | P196: 140 | Q196: 223 | R196: 134 | S196: 128 | T196: 131 | U196: 175 | V196: 217 | W196: 93 | X196: 181
A197: 160 | B197: BAS RHIN | C197: 5060 | D197: HAGUENAU | E197: 4060 | F197: HAGUENAU HOUBLON | G197: 8.5 | H197: 188 | I197: 189 | J197: 165 | K197: 185 | L197: 167 | M197: 158 | N197: 169 | O197: 107 | P197: 84 | Q197: 175 | R197: 129 | S197: 111 | T197: 155 | U197: 191 | V197: 195 | W197: 145 | X197: 189
A198: 160 | B198: HAUT RHIN | C198: 5130 | D198: COLMAR | E198: 4132 | F198: COLMAR MARAICHERS | G198: 3.4 | H198: 189 | I198: 140 | J198: 135 | K198: 158 | L198: 143 | M198: 135 | N198: 154 | O198: 139 | P198: 134 | Q198: 127 | R198: 196 | S198: 184 | T198: 201 | U198: 193 | V198: 201 | W198: 104 | X198: 215
A199: 160 | B199: HAUT RHIN | C199: 5169 | D199: MULHOUSE | E199: 4178 | F199: SAINT LOUIS | G199: 6.6 | H199: 190 | I199: 181 | J199: 155 | K199: 190 | L199: 138 | M199: 146 | N199: 121 | O199: 70 | P199: 64 | Q199: 107 | R199: 178 | S199: 180 | T199: 158 | U199: 226 | V199: 161 | W199: 226 | X199: 210
A200: 160 | B200: MOSELLE | C200: 44 | D200: MOSELLE NORD | E200: 457180 | F200: BOUSSE | G200: 2.5 | H200: 191 | I200: 9 | J200: 7 | K200: 30 | L200: 228 | M200: 176 | N200: 241 | O200: 207 | P200: 174 | Q200: 241 | R200: 237 | S200: 227 | T200: 241 | U200: 241 | V200: 233 | W200: 241 | X200: 241
A201: 160 | B201: BAS RHIN | C201: 5006 | D201: STRASBOURG | E201: 4045 | F201: STRASBOURG FRANCS BOURGEOIS | G201: 4.2 | H201: 192 | I201: 128 | J201: 153 | K201: 54 | L201: 94 | M201: 99 | N201: 97 | O201: 229 | P201: 232 | Q201: 60 | R201: 170 | S201: 150 | T201: 185 | U201: 205 | V201: 121 | W201: 227 | X201: 164
A202: 160 | B202: MEURTHE ET MOSELLE MEUSE | C202: 27 | D202: PONT A MOUSSON | E202: 554196 | F202: CHAMPIGNEULLES | G202: 2.6 | H202: 193 | I202: 161 | J202: 208 | K202: 121 | L202: 205 | M202: 182 | N202: 227 | O202: 153 | P202: 127 | Q202: 212 | R202: 84 | S202: 65 | T202: 127 | U202: 202 | V202: 119 | W202: 216 | X202: 193
A203: 160 | B203: MOSELLE | C203: 42 | D203: MOSELLE EST | E203: 457258 | F203: DIEUZE | G203: 3.1 | H203: 194 | I203: 70 | J203: 77 | K203: 63 | L203: 229 | M203: 212 | N203: 232 | O203: 216 | P203: 201 | Q203: 229 | R203: 174 | S203: 156 | T203: 178 | U203: 227 | V203: 231 | W203: 193 | X203: 209
A204: 160 | B204: MOSELLE | C204: 45 | D204: METZ | E204: 557433 | F204: MARANGE SILVANGE | G204: 2.6 | H204: 195 | I204: 167 | J204: 165 | K204: 172 | L204: 190 | M204: 184 | N204: 196 | O204: 183 | P204: 173 | Q204: 178 | R204: 177 | S204: 171 | T204: 163 | U204: 79 | V204: 177 | W204: 11 | X204: 120
... 47 more rows

Sheet AG_FICHE
A1: Accueil
A2: BAROMETRE GRAND PUBLIC
A4: UNITE: | B4: Agence | E4: ETP perf : | F4: =VLOOKUP(A5,'RECAP AG'!$G$6:$CY$248,3,FALSE) -> 5.36
A5: =VLOOKUP(B5,LISTES!$C$6:$D$246,2,FALSE) -> 4189 | B5: ALTKIRCH
C6: Coefficient du critère | E6: Résultats | I6: Ecart au 1ier | K6: =IF(OR(A5=4017,A5=4022),"Rang estimé","Rang") -> Rang
E7: du 1ier | G7: de l'Agence
A9: RANG GRAND PUBLIC | K9: =VLOOKUP($A$5,'RECAP AG'!$G$6:$CY$248,96,FALSE) -> 241
A11: SATISFACTION CLIENTS | C11: 20% | K11: =VLOOKUP($A$5,'RECAP AG'!$G$6:$CY$248,13,FALSE) -> 241
B12: NPS à froid (SAE) | C12: 10% | E12: =+'RECAP AG'!K4 -> 58 | G12: =VLOOKUP($A$5,'RECAP AG'!$G$6:$CY$248,5,FALSE) -> 0.0 | I12: =VLOOKUP($A$5,'RECAP AG'!$G$6:$CY$248,6,FALSE) -> 100% | K12: =VLOOKUP($A$5,'RECAP AG'!$G$6:$CY$248,7,FALSE) -> 208
B13: NPS à chaud (QHD) | C13: 10% | E13: =+'RECAP AG'!N4 -> 88% | G13: =VLOOKUP($A$5,'RECAP AG'!$G$6:$CY$248,8,FALSE) -> 10% | I13: =VLOOKUP($A$5,'RECAP AG'!$G$6:$CY$248,9,FALSE) -> 89% | K13: =VLOOKUP($A$5,'RECAP AG'!$G$6:$CY$248,10,FALSE) -> 241
A15: BANCARISATION | C15: 20% | K15: =VLOOKUP($A$5,'RECAP AG'!$G$6:$CY$248,28,FALSE) -> 239
B16: Ventes Nettes produits pondérés | C16: 12% | E16: ='RECAP AG'!X4 -> 112.6 | G16: =VLOOKUP($A$5,'RECAP AG'!$G$6:$CY$248,19,FALSE) -> -14.8 | I16: =VLOOKUP($A$5,'RECAP AG'!$G$6:$CY$248,20,FALSE) -> 113% | K16: =VLOOKUP($A$5,'RECAP AG'!$G$6:$CY$248,21,FALSE) -> 237
B17: Ventes sur client non détenteur de l’univers | C17: 8% | E17: ='RECAP AG'!AB4 -> 163.2 | G17: =VLOOKUP($A$5,'RECAP AG'!$G$6:$CY$248,23,FALSE) -> 34.7 | I17: =VLOOKUP($A$5,'RECAP AG'!$G$6:$CY$248,24,FALSE) -> 79% | K17: =VLOOKUP($A$5,'RECAP AG'!$G$6:$CY$248,25,FALSE) -> 237
A19: EPARGNE | C19: 20% | K19: =VLOOKUP($A$5,'RECAP AG'!$G$6:$CY$248,43,FALSE) -> 232
B20: Excédent Epargne hors DAV pondéré | C20: 12% | E20: ='RECAP AG'!AM4 -> 2187.1 | G20: =VLOOKUP($A$5,'RECAP AG'!$G$6:$CY$248,34,FALSE) -> -422.2 | I20: =VLOOKUP($A$5,'RECAP AG'!$G$6:$CY$248,35,FALSE) -> 95% | K20: =VLOOKUP($A$5,'RECAP AG'!$G$6:$CY$248,36,FALSE) -> 227
B21: Ventes sur client non détenteur de l’univers | C21: 8% | E21: ='RECAP AG'!AQ4 -> 302.1 | G21: =VLOOKUP($A$5,'RECAP AG'!$G$6:$CY$248,38,FALSE) -> 38.1 | I21: =VLOOKUP($A$5,'RECAP AG'!$G$6:$CY$248,39,FALSE) -> 87% | K21: =VLOOKUP($A$5,'RECAP AG'!$G$6:$CY$248,40,FALSE) -> 228
A23: IARD PREVOYANCE | C23: 20% | K23: =VLOOKUP($A$5,'RECAP AG'!$G$6:$CY$248,77,FALSE) -> 238
B24: Ventes Nettes produits pondérés | C24: 12% | E24: ='RECAP AG'!BU4 -> 670.1 | G24: =VLOOKUP($A$5,'RECAP AG'!$G$6:$CY$248,68,FALSE) -> -106.3 | I24: =VLOOKUP($A$5,'RECAP AG'!$G$6:$CY$248,69,FALSE) -> 113% | K24: =VLOOKUP($A$5,'RECAP AG'!$G$6:$CY$248,70,FALSE) -> 238
B25: Ventes sur client non détenteur de l’univers | C25: 8% | E25: ='RECAP AG'!BY4 -> 161.8 | G25: =VLOOKUP($A$5,'RECAP AG'!$G$6:$CY$248,72,FALSE) -> 25.6 | I25: =VLOOKUP($A$5,'RECAP AG'!$G$6:$CY$248,73,FALSE) -> 84% | K25: =VLOOKUP($A$5,'RECAP AG'!$G$6:$CY$248,74,FALSE) -> 228
A27: CREDITS | C27: 20% | K27: =VLOOKUP($A$5,'RECAP AG'!$G$6:$CY$248,62,FALSE) -> 235
B28: Engagements et ventes accessoires pondérés Immo | C28: 6% | E28: ='RECAP AG'!BB4 -> 1353.5 | G28: =VLOOKUP($A$5,'RECAP AG'!$G$6:$CY$248,49,FALSE) -> 105.6 | I28: =VLOOKUP($A$5,'RECAP AG'!$G$6:$CY$248,50,FALSE) -> 92% | K28: =VLOOKUP($A$5,'RECAP AG'!$G$6:$CY$248,51,FALSE) -> 236
B29: Engagements et ventes accessoires pondérés Conso | C29: 6% | E29: ='RECAP AG'!BF4 -> 116.8 | G29: =VLOOKUP($A$5,'RECAP AG'!$G$6:$CY$248,53,FALSE) -> 39.9 | I29: =VLOOKUP($A$5,'RECAP AG'!$G$6:$CY$248,54,FALSE) -> 66% | K29: =VLOOKUP($A$5,'RECAP AG'!$G$6:$CY$248,55,FALSE) -> 197
B30: Ventes sur client non détenteur de l’univers | C30: 8% | E30: ='RECAP AG'!BJ4 -> 89.6 | G30: =VLOOKUP($A$5,'RECAP AG'!$G$6:$CY$248,57,FALSE) -> 12.3 | I30: =VLOOKUP($A$5,'RECAP AG'!$G$6:$CY$248,58,FALSE) -> 86% | K30: =VLOOKUP($A$5,'RECAP AG'!$G$6:$CY$248,59,FALSE) -> 234

Sheet AG_TOTAL
B1: Accueil | H1: BAROMETRE BDD - AGENCES
H2: TOTAL GENERAL
H3: =ACCUEIL!F7 -> 2022-10-23
H7: TOTAL GENERAL | K7: Total Satisfaction Clients | N7: Total Bancarisation | Q7: Total Epargne | T7: Total IARD Prévoyance | W7: Total Crédits
I8: coef | J8: =M8+P8+S8+V8+Y8 -> 100% | L8: coef | M8: =AG_SATISFACTION!P8 -> 20% | O8: coef | P8: =AG_BANCA!R8 -> 20% | R8: coef | S8: =AG_EPARGNE!R8 -> 20% | U8: coef | V8: =AG_IARD!R8 -> 20% | X8: coef | Y8: =AG_CREDIT!V8 -> 20%
B9: Direction | C9: eds | D9: Territoire | E9: eds | F9: Agence | G9: ="ETP perf "&DATEMAJ!$C$28 -> ETP perf 23-oct | H9: Moyenne ecart au 1er | I9: % Ecart au 1er | J9: Rang CEGEE | K9: Moyenne ecart au 1er | L9: % Ecart au 1er | M9: Rang CEGEE | N9: Moyenne ecart au 1er | O9: % Ecart au 1er | P9: Rang CEGEE | Q9: Moyenne ecart au 1er | R9: % Ecart au 1er | S9: Rang CEGEE | T9: Moyenne ecart au 1er | U9: % Ecart au 1er | V9: Rang CEGEE | W9: Moyenne ecart au 1er | X9: % Ecart au 1er | Y9: Rang CEGEE
A10: 50 | B10: MOSELLE | C10: 44 | D10: MOSELLE NORD | E10: 557508 | F10: NILVANGE | G10: 1.4 | H10: 9% | I10: 0% | J10: 1 | K10: 35% | L10: 34% | M10: 46 | N10: 0% | O10: 0% | P10: 1 | Q10: 42% | R10: 12% | S10: 5 | T10: 0% | U10: 0% | V10: 1 | W10: 0% | X10: 0% | Y10: 1
A11: 50 | B11: VOSGES | C11: 57 | D11: EPINAL | E11: 488288 | F11: EPINAL LEOPOLD BOURG | G11: 2.0 | H11: 39% | I11: 30% | J11: 2 | K11: 7% | L11: 7% | M11: 3 | N11: 53% | O11: 53% | P11: 13 | Q11: 43% | R11: 13% | S11: 6 | T11: 68% | U11: 68% | V11: 50 | W11: 54% | X11: 54% | Y11: 29
A12: 50 | B12: MARNE ARDENNES | C12: 11 | D12: REIMS | E12: 551340 | F12: BETHENY | G12: 2.2 | H12: 42% | I12: 33% | J12: 3 | K12: 38% | L12: 38% | M12: 58 | N12: 40% | O12: 40% | P12: 4 | Q12: 54% | R12: 24% | S12: 13 | T12: 69% | U12: 69% | V12: 54 | W12: 38% | X12: 38% | Y12: 7
A13: 50 | B13: MARNE ARDENNES | C13: 11 | D13: REIMS | E13: 551349 | F13: REIMS SAINT REMI | G13: 2.9 | H13: 42% | I13: 33% | J13: 4 | K13: 52% | L13: 52% | M13: 121 | N13: 33% | O13: 33% | P13: 2 | Q13: 58% | R13: 27% | S13: 25 | T13: 56% | U13: 56% | V13: 11 | W13: 40% | X13: 40% | Y13: 8
A14: 50 | B14: MARNE ARDENNES | C14: 11 | D14: REIMS | E14: 551305 | F14: REIMS HIPPODROME | G14: 5.1 | H14: 42% | I14: 33% | J14: 5 | K14: 40% | L14: 39% | M14: 66 | N14: 49% | O14: 49% | P14: 10 | Q14: 57% | R14: 27% | S14: 21 | T14: 57% | U14: 57% | V14: 12 | W14: 37% | X14: 37% | Y14: 6
A15: 50 | B15: MARNE ARDENNES | C15: 6 | D15: CHALONS EN CHAMPAGNE | E15: 551330 | F15: MONTMIRAIL | G15: 2.8 | H15: 44% | I15: 34% | J15: 6 | K15: 16% | L15: 15% | M15: 10 | N15: 54% | O15: 54% | P15: 17 | Q15: 62% | R15: 32% | S15: 39 | T15: 55% | U15: 55% | V15: 9 | W15: 62% | X15: 62% | Y15: 67
A16: 50 | B16: MARNE ARDENNES | C16: 6 | D16: CHALONS EN CHAMPAGNE | E16: 451115 | F16: MOURMELON LE GRAND | G16: 2.8 | H16: 44% | I16: 35% | J16: 7 | K16: 44% | L16: 44% | M16: 85 | N16: 41% | O16: 41% | P16: 5 | Q16: 56% | R16: 26% | S16: 19 | T16: 60% | U16: 60% | V16: 14 | W16: 50% | X16: 50% | Y16: 19
A17: 50 | B17: MEURTHE ET MOSELLE MEUSE | C17: 27 | D17: PONT A MOUSSON | E17: 554381 | F17: LAXOU ARISTIDE BRIAND | G17: 2.2 | H17: 44% | I17: 35% | J17: 8 | K17: 62% | L17: 61% | M17: 150 | N17: 38% | O17: 38% | P17: 3 | Q17: 59% | R17: 29% | S17: 27 | T17: 59% | U17: 59% | V17: 13 | W17: 35% | X17: 35% | Y17: 3
A18: 50 | B18: MOSELLE | C18: 44 | D18: MOSELLE NORD | E18: 557660 | F18: UCKANGE | G18: 1.9 | H18: 46% | I18: 37% | J18: 9 | K18: 75% | L18: 74% | M18: 217 | N18: 53% | O18: 53% | P18: 14 | Q18: 64% | R18: 34% | S18: 50 | T18: 39% | U18: 39% | V18: 2 | W18: 31% | X18: 31% | Y18: 2
A19: 50 | B19: BAS RHIN | C19: 5006 | D19: STRASBOURG | E19: 4048 | F19: STRASBOURG KOENIGSHOFFEN | G19: 1.6 | H19: 46% | I19: 37% | J19: 10 | K19: 65% | L19: 64% | M19: 164 | N19: 44% | O19: 44% | P19: 8 | Q19: 50% | R19: 20% | S19: 8 | T19: 54% | U19: 54% | V19: 6 | W19: 49% | X19: 49% | Y19: 17
A20: 50 | B20: MARNE ARDENNES | C20: 2 | D20: CHARLEVILLE MEZIERES | E20: 508820 | F20: VOUZIERS | G20: 2.8 | H20: 46% | I20: 37% | J20: 11 | K20: 31% | L20: 30% | M20: 39 | N20: 60% | O20: 60% | P20: 39 | Q20: 63% | R20: 32% | S20: 43 | T20: 52% | U20: 52% | V20: 5 | W20: 57% | X20: 57% | Y20: 36
A21: 50 | B21: MEURTHE ET MOSELLE MEUSE | C21: 26 | D21: NANCY | E21: 554476 | F21: NANCY ARTEM | G21: 2.8 | H21: 46% | I21: 37% | J21: 12 | K21: 27% | L21: 27% | M21: 30 | N21: 51% | O21: 51% | P21: 11 | Q21: 77% | R21: 47% | S21: 152 | T21: 71% | U21: 71% | V21: 62 | W21: 37% | X21: 37% | Y21: 5
A22: 50 | B22: MARNE ARDENNES | C22: 6 | D22: CHALONS EN CHAMPAGNE | E22: 451120 | F22: SARRY | G22: 2.3 | H22: 47% | I22: 38% | J22: 13 | K22: 13% | L22: 13% | M22: 8 | N22: 55% | O22: 55% | P22: 19 | Q22: 73% | R22: 43% | S22: 114 | T22: 65% | U22: 65% | V22: 29 | W22: 60% | X22: 60% | Y22: 53
A23: 50 | B23: MOSELLE | C23: 45 | D23: METZ | E23: 457443 | F23: METZ REPUBLIQUE | G23: 3.5 | H23: 47% | I23: 38% | J23: 14 | K23: 30% | L23: 29% | M23: 36 | N23: 70% | O23: 70% | P23: 82 | Q23: 39% | R23: 9% | S23: 3 | T23: 60% | U23: 60% | V23: 16 | W23: 67% | X23: 67% | Y23: 98
A24: 50 | B24: MOSELLE | C24: 44 | D24: MOSELLE NORD | E24: 557113 | F24: AUDUN LE TICHE | G24: 2.1 | H24: 47% | I24: 38% | J24: 15 | K24: 52% | L24: 51% | M24: 119 | N24: 47% | O24: 47% | P24: 9 | Q24: 56% | R24: 26% | S24: 18 | T24: 66% | U24: 66% | V24: 31 | W24: 46% | X24: 46% | Y24: 13
A25: 50 | B25: BAS RHIN | C25: 5006 | D25: STRASBOURG | E25: 4037 | F25: MUNDOLSHEIM | G25: 3.8 | H25: 49% | I25: 40% | J25: 16 | K25: 39% | L25: 39% | M25: 64 | N25: 51% | O25: 51% | P25: 12 | Q25: 77% | R25: 47% | S25: 155 | T25: 56% | U25: 56% | V25: 10 | W25: 53% | X25: 53% | Y25: 27
A26: 50 | B26: MARNE ARDENNES | C26: 11 | D26: REIMS | E26: 451350 | F26: REIMS CENTRE VILLE | G26: 6.4 | H26: 49% | I26: 40% | J26: 17 | K26: 69% | L26: 69% | M26: 196 | N26: 44% | O26: 44% | P26: 7 | Q26: 69% | R26: 39% | S26: 81 | T26: 60% | U26: 60% | V26: 17 | W26: 35% | X26: 35% | Y26: 4
A27: 50 | B27: MARNE ARDENNES | C27: 11 | D27: REIMS | E27: 551365 | F27: DORMANS | G27: 2.5 | H27: 50% | I27: 40% | J27: 18 | K27: 39% | L27: 38% | M27: 60 | N27: 44% | O27: 44% | P27: 6 | Q27: 79% | R27: 48% | S27: 163 | T27: 66% | U27: 66% | V27: 33 | W27: 52% | X27: 52% | Y27: 25
A28: 262 | B28: MOSELLE | C28: 42 | D28: MOSELLE EST | E28: 457165 | F28: BITCHE | G28: 2.4 | H28: 50% | I28: 41% | J28: 19 | K28: 19% | L28: 18% | M28: 13 | N28: 54% | O28: 54% | P28: 18 | Q28: 73% | R28: 43% | S28: 118 | T28: 66% | U28: 66% | V28: 34 | W28: 68% | X28: 68% | Y28: 114
A29: 262 | B29: MOSELLE | C29: 45 | D29: METZ | E29: 457453 | F29: MONTIGNY LES METZ | G29: 6.9 | H29: 51% | I29: 42% | J29: 20 | K29: 19% | L29: 19% | M29: 14 | N29: 64% | O29: 64% | P29: 50 | Q29: 66% | R29: 36% | S29: 65 | T29: 79% | U29: 79% | V29: 137 | W29: 57% | X29: 57% | Y29: 43
A30: 262 | B30: MARNE ARDENNES | C30: 6 | D30: CHALONS EN CHAMPAGNE | E30: 551354 | F30: VERTUS | G30: 2.0 | H30: 51% | I30: 42% | J30: 21 | K30: 0% | L30: 0% | M30: 1 | N30: 76% | O30: 76% | P30: 132 | Q30: 57% | R30: 27% | S30: 22 | T30: 85% | U30: 85% | V30: 191 | W30: 67% | X30: 67% | Y30: 100
A31: 262 | B31: MARNE ARDENNES | C31: 11 | D31: REIMS | E31: 451336 | F31: TINQUEUX | G31: 5.0 | H31: 51% | I31: 42% | J31: 22 | K31: 58% | L31: 57% | M31: 138 | N31: 63% | O31: 63% | P31: 46 | Q31: 30% | R31: 0% | S31: 1 | T31: 75% | U31: 75% | V31: 98 | W31: 61% | X31: 61% | Y31: 58
A32: 262 | B32: MARNE ARDENNES | C32: 2 | D32: CHARLEVILLE MEZIERES | E32: 508839 | F32: GIVET | G32: 3.3 | H32: 52% | I32: 42% | J32: 23 | K32: 41% | L32: 40% | M32: 72 | N32: 63% | O32: 63% | P32: 45 | Q32: 74% | R32: 44% | S32: 128 | T32: 54% | U32: 54% | V32: 7 | W32: 57% | X32: 57% | Y32: 42
A33: 262 | B33: MEURTHE ET MOSELLE MEUSE | C33: 26 | D33: NANCY | E33: 554601 | F33: SAINT MAX | G33: 3.5 | H33: 52% | I33: 43% | J33: 24 | K33: 25% | L33: 25% | M33: 21 | N33: 73% | O33: 73% | P33: 110 | Q33: 57% | R33: 27% | S33: 23 | T33: 68% | U33: 68% | V33: 44 | W33: 67% | X33: 67% | Y33: 95
A34: 262 | B34: MOSELLE | C34: 45 | D34: METZ | E34: 457446 | F34: METZ SAINT LOUIS | G34: 5.7 | H34: 52% | I34: 43% | J34: 25 | K34: 45% | L34: 45% | M34: 95 | N34: 57% | O34: 57% | P34: 24 | Q34: 66% | R34: 36% | S34: 64 | T34: 71% | U34: 71% | V34: 65 | W34: 53% | X34: 53% | Y34: 28
A35: 262 | B35: MOSELLE | C35: 42 | D35: MOSELLE EST | E35: 457308 | F35: FORBACH CENTRALE | G35: 10.2 | H35: 52% | I35: 43% | J35: 26 | K35: 48% | L35: 48% | M35: 108 | N35: 57% | O35: 57% | P35: 23 | Q35: 71% | R35: 41% | S35: 106 | T35: 62% | U35: 62% | V35: 24 | W35: 55% | X35: 55% | Y35: 31
A36: 262 | B36: MARNE ARDENNES | C36: 11 | D36: REIMS | E36: 451361 | F36: PIERRY LECLERC | G36: 1.9 | H36: 53% | I36: 44% | J36: 27 | K36: 31% | L36: 31% | M36: 41 | N36: 70% | O36: 70% | P36: 87 | Q36: 53% | R36: 23% | S36: 10 | T36: 76% | U36: 76% | V36: 102 | W36: 65% | X36: 65% | Y36: 84
A37: 262 | B37: MARNE ARDENNES | C37: 2 | D37: CHARLEVILLE MEZIERES | E37: 508833 | F37: VILLERS SEMEUSE CORA | G37: 3.0 | H37: 53% | I37: 44% | J37: 28 | K37: 68% | L37: 68% | M37: 186 | N37: 71% | O37: 71% | P37: 95 | Q37: 61% | R37: 31% | S37: 31 | T37: 51% | U37: 51% | V37: 3 | W37: 44% | X37: 44% | Y37: 11
A38: 262 | B38: MOSELLE | C38: 42 | D38: MOSELLE EST | E38: 557250 | F38: CREUTZWALD | G38: 2.5 | H38: 53% | I38: 44% | J38: 29 | K38: 22% | L38: 22% | M38: 17 | N38: 75% | O38: 75% | P38: 125 | Q38: 71% | R38: 41% | S38: 103 | T38: 64% | U38: 64% | V38: 27 | W38: 64% | X38: 64% | Y38: 81
A39: 262 | B39: MARNE ARDENNES | C39: 11 | D39: REIMS | E39: 551367 | F39: AY CHAMPAGNE | G39: 2.6 | H39: 54% | I39: 44% | J39: 30 | K39: 31% | L39: 31% | M39: 42 | N39: 73% | O39: 73% | P39: 112 | Q39: 64% | R39: 33% | S39: 47 | T39: 72% | U39: 72% | V39: 76 | W39: 58% | X39: 58% | Y39: 48
A40: 262 | B40: VOSGES | C40: 57 | D40: EPINAL | E40: 588336 | F40: GOLBEY | G40: 2.8 | H40: 54% | I40: 45% | J40: 31 | K40: 30% | L40: 30% | M40: 38 | N40: 75% | O40: 75% | P40: 129 | Q40: 64% | R40: 33% | S40: 48 | T40: 66% | U40: 66% | V40: 35 | W40: 64% | X40: 64% | Y40: 80
A41: 262 | B41: MARNE ARDENNES | C41: 11 | D41: REIMS | E41: 451370 | F41: EPERNAY | G41: 9.1 | H41: 54% | I41: 45% | J41: 32 | K41: 37% | L41: 37% | M41: 51 | N41: 61% | O41: 61% | P41: 41 | Q41: 68% | R41: 38% | S41: 76 | T41: 73% | U41: 73% | V41: 85 | W41: 61% | X41: 61% | Y41: 59
A42: 262 | B42: MEURTHE ET MOSELLE MEUSE | C42: 26 | D42: NANCY | E42: 554356 | F42: JARVILLE LA MALGRANGE | G42: 4.1 | H42: 54% | I42: 45% | J42: 33 | K42: 27% | L42: 27% | M42: 26 | N42: 59% | O42: 59% | P42: 35 | Q42: 81% | R42: 51% | S42: 186 | T42: 73% | U42: 73% | V42: 78 | W42: 61% | X42: 61% | Y42: 57
A43: 262 | B43: MEURTHE ET MOSELLE MEUSE | C43: 31 | D43: VERDUN | E43: 555406 | F43: LIGNY EN BARROIS | G43: 2.5 | H43: 54% | I43: 45% | J43: 34 | K43: 29% | L43: 28% | M43: 32 | N43: 74% | O43: 74% | P43: 116 | Q43: 39% | R43: 8% | S43: 2 | T43: 88% | U43: 88% | V43: 214 | W43: 73% | X43: 73% | Y43: 162
A44: 262 | B44: MEURTHE ET MOSELLE MEUSE | C44: 31 | D44: VERDUN | E44: 554413 | F44: LONGWY BAS | G44: 3.4 | H44: 54% | I44: 45% | J44: 35 | K44: 18% | L44: 18% | M44: 12 | N44: 69% | O44: 69% | P44: 78 | Q44: 74% | R44: 44% | S44: 123 | T44: 75% | U44: 75% | V44: 92 | W44: 66% | X44: 66% | Y44: 85
A45: 262 | B45: MARNE ARDENNES | C45: 11 | D45: REIMS | E45: 451301 | F45: REIMS HOTEL DE VILLE | G45: 6.9 | H45: 54% | I45: 45% | J45: 36 | K45: 48% | L45: 48% | M45: 106 | N45: 66% | O45: 66% | P45: 57 | Q45: 72% | R45: 42% | S45: 112 | T45: 60% | U45: 60% | V45: 15 | W45: 55% | X45: 55% | Y45: 33
A46: 262 | B46: MARNE ARDENNES | C46: 2 | D46: CHARLEVILLE MEZIERES | E46: 408801 | F46: CHARLEVILLE JEAN JAURES | G46: 8.8 | H46: 54% | I46: 45% | J46: 37 | K46: 43% | L46: 42% | M46: 81 | N46: 67% | O46: 67% | P46: 65 | Q46: 67% | R46: 36% | S46: 67 | T46: 68% | U46: 68% | V46: 43 | W46: 58% | X46: 58% | Y46: 44
A47: 262 | B47: MOSELLE | C47: 44 | D47: MOSELLE NORD | E47: 557352 | F47: HETTANGE GRANDE | G47: 3.1 | H47: 54% | I47: 45% | J47: 38 | K47: 55% | L47: 54% | M47: 130 | N47: 57% | O47: 57% | P47: 28 | Q47: 72% | R47: 42% | S47: 108 | T47: 67% | U47: 67% | V47: 39 | W47: 51% | X47: 51% | Y47: 20
A48: 262 | B48: MOSELLE | C48: 45 | D48: METZ | E48: 557432 | F48: MAIZIERES LES METZ | G48: 2.8 | H48: 55% | I48: 45% | J48: 39 | K48: 67% | L48: 66% | M48: 176 | N48: 57% | O48: 57% | P48: 26 | Q48: 67% | R48: 37% | S48: 72 | T48: 67% | U48: 67% | V48: 41 | W48: 46% | X48: 46% | Y48: 12
A49: 262 | B49: MOSELLE | C49: 45 | D49: METZ | E49: 557439 | F49: METZ POMPIDOU | G49: 2.6 | H49: 55% | I49: 46% | J49: 40 | K49: 39% | L49: 38% | M49: 63 | N49: 67% | O49: 67% | P49: 62 | Q49: 56% | R49: 25% | S49: 16 | T49: 79% | U49: 79% | V49: 143 | W49: 64% | X49: 64% | Y49: 77
A50: 262 | B50: MOSELLE | C50: 42 | D50: MOSELLE EST | E50: 457583 | F50: SAINT AVOLD | G50: 6.9 | H50: 55% | I50: 46% | J50: 41 | K50: 37% | L50: 36% | M50: 50 | N50: 60% | O50: 60% | P50: 37 | Q50: 72% | R50: 42% | S50: 110 | T50: 70% | U50: 70% | V50: 57 | W50: 66% | X50: 66% | Y50: 86
A51: 262 | B51: BAS RHIN | C51: 5006 | D51: STRASBOURG | E51: 4038 | F51: OBERHAUSBERGEN | G51: 3.3 | H51: 55% | I51: 46% | J51: 42 | K51: 37% | L51: 37% | M51: 53 | N51: 65% | O51: 65% | P51: 54 | Q51: 55% | R51: 25% | S51: 15 | T51: 85% | U51: 85% | V51: 184 | W51: 63% | X51: 63% | Y51: 70
A52: 262 | B52: AUBE HAUTE MARNE | C52: 21 | D52: CHAUMONT | E52: 510590 | F52: CHAUMONT REPUBLIQUE | G52: 2.9 | H52: 55% | I52: 46% | J52: 43 | K52: 41% | L52: 41% | M52: 76 | N52: 76% | O52: 76% | P52: 135 | Q52: 61% | R52: 30% | S52: 29 | T52: 65% | U52: 65% | V52: 30 | W52: 62% | X52: 62% | Y52: 69
A53: 262 | B53: MEURTHE ET MOSELLE MEUSE | C53: 26 | D53: NANCY | E53: 554636 | F53: TOMBLAINE | G53: 2.5 | H53: 55% | I53: 46% | J53: 44 | K53: 20% | L53: 19% | M53: 15 | N53: 78% | O53: 78% | P53: 149 | Q53: 64% | R53: 34% | S53: 53 | T53: 77% | U53: 77% | V53: 111 | W53: 69% | X53: 69% | Y53: 121
A54: 262 | B54: MEURTHE ET MOSELLE MEUSE | C54: 31 | D54: VERDUN | E54: 455678 | F54: VERDUN CENTRALE | G54: 10.3 | H54: 56% | I54: 46% | J54: 45 | K54: 24% | L54: 23% | M54: 19 | N54: 67% | O54: 67% | P54: 69 | Q54: 79% | R54: 49% | S54: 168 | T54: 81% | U54: 81% | V54: 150 | W54: 57% | X54: 57% | Y54: 41
A55: 262 | B55: MARNE ARDENNES | C55: 11 | D55: REIMS | E55: 551310 | F55: REIMS CHATILLONS | G55: 4.0 | H55: 56% | I55: 46% | J55: 46 | K55: 56% | L55: 56% | M55: 135 | N55: 56% | O55: 56% | P55: 22 | Q55: 71% | R55: 41% | S55: 104 | T55: 71% | U55: 71% | V55: 64 | W55: 54% | X55: 54% | Y55: 30
A56: 262 | B56: BAS RHIN | C56: 5101 | D56: SELESTAT | E56: 4113 | F56: BARR | G56: 2.9 | H56: 56% | I56: 46% | J56: 47 | K56: 27% | L56: 26% | M56: 23 | N56: 61% | O56: 61% | P56: 40 | Q56: 72% | R56: 42% | S56: 109 | T56: 79% | U56: 79% | V56: 141 | W56: 71% | X56: 71% | Y56: 137
A57: 262 | B57: MEURTHE ET MOSELLE MEUSE | C57: 27 | D57: PONT A MOUSSON | E57: 554531 | F57: POMPEY | G57: 3.2 | H57: 56% | I57: 46% | J57: 48 | K57: 73% | L57: 72% | M57: 209 | N57: 57% | O57: 57% | P57: 25 | Q57: 62% | R57: 32% | S57: 33 | T57: 72% | U57: 72% | V57: 66 | W57: 47% | X57: 47% | Y57: 14
A58: 262 | B58: MEURTHE ET MOSELLE MEUSE | C58: 27 | D58: PONT A MOUSSON | E58: 554516 | F58: PAGNY SUR MOSELLE | G58: 2.7 | H58: 56% | I58: 47% | J58: 49 | K58: 47% | L58: 46% | M58: 101 | N58: 68% | O58: 68% | P58: 71 | Q58: 68% | R58: 37% | S58: 74 | T58: 67% | U58: 67% | V58: 38 | W58: 61% | X58: 61% | Y58: 62
A59: 262 | B59: MEURTHE ET MOSELLE MEUSE | C59: 26 | D59: NANCY | E59: 454481 | F59: NANCY PLACE DOMBASLE | G59: 7.8 | H59: 56% | I59: 47% | J59: 50 | K59: 60% | L59: 59% | M59: 142 | N59: 68% | O59: 68% | P59: 75 | Q59: 63% | R59: 33% | S59: 46 | T59: 72% | U59: 72% | V59: 74 | W59: 47% | X59: 47% | Y59: 16
A60: 262 | B60: MARNE ARDENNES | C60: 11 | D60: REIMS | E60: 551314 | F60: FISMES | G60: 2.6 | H60: 56% | I60: 47% | J60: 51 | K60: 27% | L60: 27% | M60: 31 | N60: 59% | O60: 59% | P60: 34 | Q60: 90% | R60: 59% | S60: 227 | T60: 78% | U60: 78% | V60: 128 | W60: 57% | X60: 57% | Y60: 35
A61: 262 | B61: AUBE HAUTE MARNE | C61: 21 | D61: CHAUMONT | E61: 410541 | F61: LANGRES | G61: 8.0 | H61: 56% | I61: 47% | J61: 52 | K61: 37% | L61: 37% | M61: 52 | N61: 70% | O61: 70% | P61: 86 | Q61: 69% | R61: 39% | S61: 88 | T61: 67% | U61: 67% | V61: 36 | W61: 68% | X61: 68% | Y61: 108
A62: 262 | B62: MEURTHE ET MOSELLE MEUSE | C62: 27 | D62: PONT A MOUSSON | E62: 554686 | F62: VEZELISE | G62: 1.9 | H62: 56% | I62: 47% | J62: 53 | K62: 4% | L62: 4% | M62: 2 | N62: 76% | O62: 76% | P62: 131 | Q62: 69% | R62: 39% | S62: 89 | T62: 83% | U62: 83% | V62: 163 | W62: 80% | X62: 80% | Y62: 229
A63: 262 | B63: BAS RHIN | C63: 5006 | D63: STRASBOURG | E63: 4047 | F63: STRASBOURG CRONENBOURG | G63: 4.2 | H63: 57% | I63: 47% | J63: 54 | K63: 48% | L63: 47% | M63: 105 | N63: 58% | O63: 58% | P63: 30 | Q63: 61% | R63: 31% | S63: 32 | T63: 77% | U63: 77% | V63: 114 | W63: 70% | X63: 70% | Y63: 127
A64: 262 | B64: MARNE ARDENNES | C64: 6 | D64: CHALONS EN CHAMPAGNE | E64: 451101 | F64: CHALONS VIVIERS | G64: 9.3 | H64: 57% | I64: 47% | J64: 55 | K64: 27% | L64: 27% | M64: 29 | N64: 74% | O64: 74% | P64: 117 | Q64: 74% | R64: 44% | S64: 125 | T64: 72% | U64: 72% | V64: 72 | W64: 66% | X64: 66% | Y64: 90
A65: 262 | B65: MOSELLE | C65: 44 | D65: MOSELLE NORD | E65: 557303 | F65: FAMECK | G65: 2.8 | H65: 57% | I65: 47% | J65: 56 | K65: 31% | L65: 31% | M65: 40 | N65: 70% | O65: 70% | P65: 84 | Q65: 65% | R65: 35% | S65: 54 | T65: 91% | U65: 91% | V65: 223 | W65: 57% | X65: 57% | Y65: 38
A66: 262 | B66: VOSGES | C66: 55 | D66: SAINT DIE | E66: 488326 | F66: GERARDMER | G66: 3.8 | H66: 57% | I66: 47% | J66: 57 | K66: 42% | L66: 42% | M66: 79 | N66: 72% | O66: 72% | P66: 96 | Q66: 62% | R66: 32% | S66: 38 | T66: 77% | U66: 77% | V66: 118 | W66: 61% | X66: 61% | Y66: 60
A67: 262 | B67: MARNE ARDENNES | C67: 6 | D67: CHALONS EN CHAMPAGNE | E67: 551103 | F67: FAGNIERES LECLERC | G67: 2.7 | H67: 57% | I67: 48% | J67: 58 | K67: 45% | L67: 45% | M67: 94 | N67: 72% | O67: 72% | P67: 98 | Q67: 73% | R67: 43% | S67: 117 | T67: 62% | U67: 62% | V67: 19 | W67: 63% | X67: 63% | Y67: 71
A68: 262 | B68: MARNE ARDENNES | C68: 6 | D68: CHALONS EN CHAMPAGNE | E68: 551110 | F68: CHALONS ROOSEVELT | G68: 4.4 | H68: 57% | I68: 48% | J68: 59 | K68: 38% | L68: 38% | M68: 56 | N68: 74% | O68: 74% | P68: 115 | Q68: 73% | R68: 43% | S68: 116 | T68: 61% | U68: 61% | V68: 18 | W68: 68% | X68: 68% | Y68: 113
A69: 262 | B69: VOSGES | C69: 57 | D69: EPINAL | E69: 588396 | F69: LE VAL D AJOL | G69: 2.4 | H69: 57% | I69: 48% | J69: 60 | K69: 9% | L69: 9% | M69: 4 | N69: 78% | O69: 78% | P69: 152 | Q69: 70% | R69: 40% | S69: 93 | T69: 80% | U69: 80% | V69: 146 | W69: 77% | X69: 77% | Y69: 211
A70: 262 | B70: MOSELLE | C70: 44 | D70: MOSELLE NORD | E70: 457632 | F70: THIONVILLE CENTRALE | G70: 10.3 | H70: 57% | I70: 48% | J70: 61 | K70: 55% | L70: 54% | M70: 129 | N70: 59% | O70: 59% | P70: 32 | Q70: 79% | R70: 49% | S70: 170 | T70: 64% | U70: 64% | V70: 25 | W70: 59% | X70: 59% | Y70: 49
A71: 262 | B71: MOSELLE | C71: 45 | D71: METZ | E71: 557447 | F71: METZ SAINT MAXIMIN | G71: 2.4 | H71: 57% | I71: 48% | J71: 62 | K71: 61% | L71: 61% | M71: 147 | N71: 68% | O71: 68% | P71: 74 | Q71: 66% | R71: 36% | S71: 63 | T71: 52% | U71: 52% | V71: 4 | W71: 70% | X71: 70% | Y71: 128
A72: 262 | B72: VOSGES | C72: 57 | D72: EPINAL | E72: 488561 | F72: REMIREMONT | G72: 7.2 | H72: 57% | I72: 48% | J72: 63 | K72: 17% | L72: 16% | M72: 11 | N72: 73% | O72: 73% | P72: 107 | Q72: 73% | R72: 43% | S72: 120 | T72: 79% | U72: 79% | V72: 139 | W72: 74% | X72: 74% | Y72: 184
A73: 262 | B73: MOSELLE | C73: 44 | D73: MOSELLE NORD | E73: 457350 | F73: HAYANGE | G73: 6.3 | H73: 57% | I73: 48% | J73: 64 | K73: 54% | L73: 54% | M73: 126 | N73: 64% | O73: 64% | P73: 49 | Q73: 74% | R73: 44% | S73: 132 | T73: 62% | U73: 62% | V73: 23 | W73: 61% | X73: 61% | Y73: 66
A74: 264 | B74: BAS RHIN | C74: 5006 | D74: STRASBOURG | E74: 4024 | F74: STRASBOURG AUSTERLITZ | G74: 1.3 | H74: 57% | I74: 48% | J74: 65 | K74: 82% | L74: 81% | M74: 237 | N74: 57% | O74: 57% | P74: 29 | Q74: 50% | R74: 19% | S74: 7 | T74: 68% | U74: 68% | V74: 42 | W74: 60% | X74: 60% | Y74: 56
A75: 264 | B75: MOSELLE | C75: 44 | D75: MOSELLE NORD | E75: 457348 | F75: HAGONDANGE | G75: 8.1 | H75: 57% | I75: 48% | J75: 66 | K75: 49% | L75: 49% | M75: 110 | N75: 65% | O75: 65% | P75: 53 | Q75: 76% | R75: 46% | S75: 145 | T75: 67% | U75: 67% | V75: 40 | W75: 60% | X75: 60% | Y75: 54
A76: 264 | B76: MARNE ARDENNES | C76: 6 | D76: CHALONS EN CHAMPAGNE | E76: 451381 | F76: SEZANNE | G76: 4.7 | H76: 58% | I76: 48% | J76: 67 | K76: 38% | L76: 38% | M76: 59 | N76: 67% | O76: 67% | P76: 67 | Q76: 62% | R76: 32% | S76: 37 | T76: 87% | U76: 87% | V76: 209 | W76: 63% | X76: 63% | Y76: 74
A77: 264 | B77: MEURTHE ET MOSELLE MEUSE | C77: 31 | D77: VERDUN | E77: 454414 | F77: LONGWY HAUT | G77: 3.4 | H77: 58% | I77: 48% | J77: 68 | K77: 45% | L77: 45% | M77: 93 | N77: 69% | O77: 69% | P77: 77 | Q77: 70% | R77: 40% | S77: 100 | T77: 68% | U77: 68% | V77: 48 | W77: 66% | X77: 66% | Y77: 92
A78: 264 | B78: MEURTHE ET MOSELLE MEUSE | C78: 31 | D78: VERDUN | E78: 555679 | F78: VERDUN MAZEL | G78: 3.7 | H78: 58% | I78: 48% | J78: 69 | K78: 23% | L78: 23% | M78: 18 | N78: 75% | O78: 75% | P78: 122 | Q78: 70% | R78: 40% | S78: 91 | T78: 78% | U78: 78% | V78: 131 | W78: 73% | X78: 73% | Y78: 166
A79: 264 | B79: MEURTHE ET MOSELLE MEUSE | C79: 27 | D79: PONT A MOUSSON | E79: 554506 | F79: CHALIGNY NEUVES MAISONS | G79: 3.5 | H79: 58% | I79: 48% | J79: 70 | K79: 65% | L79: 65% | M79: 165 | N79: 58% | O79: 58% | P79: 31 | Q79: 82% | R79: 52% | S79: 194 | T79: 62% | U79: 62% | V79: 20 | W79: 52% | X79: 52% | Y79: 23
A80: 264 | B80: MOSELLE | C80: 42 | D80: MOSELLE EST | E80: 557305 | F80: FAULQUEMONT | G80: 3.9 | H80: 58% | I80: 49% | J80: 71 | K80: 79% | L80: 79% | M80: 233 | N80: 53% | O80: 53% | P80: 15 | Q80: 80% | R80: 50% | S80: 179 | T80: 66% | U80: 66% | V80: 32 | W80: 41% | X80: 41% | Y80: 9
A81: 264 | B81: MOSELLE | C81: 45 | D81: METZ | E81: 457574 | F81: ROMBAS | G81: 2.5 | H81: 58% | I81: 49% | J81: 72 | K81: 38% | L81: 38% | M81: 55 | N81: 72% | O81: 72% | P81: 99 | Q81: 75% | R81: 45% | S81: 138 | T81: 64% | U81: 64% | V81: 26 | W81: 71% | X81: 71% | Y81: 138
A82: 264 | B82: MARNE ARDENNES | C82: 2 | D82: CHARLEVILLE MEZIERES | E82: 408822 | F82: CHARLEVILLE MEZIERES | G82: 5.1 | H82: 58% | I82: 49% | J82: 73 | K82: 69% | L82: 68% | M82: 191 | N82: 72% | O82: 72% | P82: 97 | Q82: 56% | R82: 26% | S82: 20 | T82: 68% | U82: 68% | V82: 45 | W82: 57% | X82: 57% | Y82: 37
A83: 264 | B83: MOSELLE | C83: 45 | D83: METZ | E83: 557434 | F83: MARLY | G83: 3.1 | H83: 58% | I83: 49% | J83: 74 | K83: 27% | L83: 26% | M83: 24 | N83: 76% | O83: 76% | P83: 134 | Q83: 65% | R83: 35% | S83: 55 | T83: 86% | U83: 86% | V83: 193 | W83: 68% | X83: 68% | Y83: 106
A84: 264 | B84: MOSELLE | C84: 42 | D84: MOSELLE EST | E84: 557668 | F84: VALMONT | G84: 2.8 | H84: 58% | I84: 49% | J84: 75 | K84: 31% | L84: 31% | M84: 43 | N84: 84% | O84: 84% | P84: 193 | Q84: 59% | R84: 29% | S84: 28 | T84: 73% | U84: 73% | V84: 83 | W84: 73% | X84: 73% | Y84: 164
A85: 264 | B85: MOSELLE | C85: 42 | D85: MOSELLE EST | E85: 457617 | F85: SARREGUEMINES | G85: 6.5 | H85: 58% | I85: 49% | J85: 76 | K85: 61% | L85: 60% | M85: 144 | N85: 65% | O85: 65% | P85: 52 | Q85: 66% | R85: 36% | S85: 66 | T85: 71% | U85: 71% | V85: 63 | W85: 58% | X85: 58% | Y85: 46
A86: 264 | B86: VOSGES | C86: 55 | D86: SAINT DIE | E86: 588551 | F86: RAMBERVILLERS | G86: 2.6 | H86: 58% | I86: 49% | J86: 77 | K86: 25% | L86: 24% | M86: 20 | N86: 79% | O86: 79% | P86: 161 | Q86: 67% | R86: 36% | S86: 68 | T86: 92% | U86: 92% | V86: 225 | W86: 59% | X86: 59% | Y86: 50
A87: 264 | B87: MOSELLE | C87: 42 | D87: MOSELLE EST | E87: 557523 | F87: PHALSBOURG | G87: 2.5 | H87: 58% | I87: 49% | J87: 78 | K87: 47% | L87: 47% | M87: 103 | N87: 78% | O87: 78% | P87: 145 | Q87: 62% | R87: 32% | S87: 36 | T87: 67% | U87: 67% | V87: 37 | W87: 68% | X87: 68% | Y87: 105
A88: 264 | B88: MEURTHE ET MOSELLE MEUSE | C88: 26 | D88: NANCY | E88: 554116 | F88: BACCARAT | G88: 2.8 | H88: 58% | I88: 49% | J88: 79 | K88: 11% | L88: 11% | M88: 6 | N88: 77% | O88: 77% | P88: 142 | Q88: 76% | R88: 46% | S88: 142 | T88: 83% | U88: 83% | V88: 165 | W88: 75% | X88: 75% | Y88: 187
A89: 264 | B89: AUBE HAUTE MARNE | C89: 21 | D89: CHAUMONT | E89: 451154 | F89: JOINVILLE | G89: 1.8 | H89: 58% | I89: 49% | J89: 80 | K89: 41% | L89: 40% | M89: 73 | N89: 66% | O89: 66% | P89: 55 | Q89: 88% | R89: 58% | S89: 222 | T89: 62% | U89: 62% | V89: 21 | W89: 66% | X89: 66% | Y89: 87
A90: 264 | B90: MOSELLE | C90: 45 | D90: METZ | E90: 557105 | F90: ARS SUR MOSELLE | G90: 2.9 | H90: 58% | I90: 49% | J90: 81 | K90: 51% | L90: 51% | M90: 116 | N90: 72% | O90: 72% | P90: 100 | Q90: 69% | R90: 39% | S90: 90 | T90: 77% | U90: 77% | V90: 115 | W90: 53% | X90: 53% | Y90: 26
A91: 264 | B91: MOSELLE | C91: 44 | D91: MOSELLE NORD | E91: 457306 | F91: FLORANGE | G91: 4.6 | H91: 58% | I91: 49% | J91: 82 | K91: 77% | L91: 77% | M91: 230 | N91: 60% | O91: 60% | P91: 36 | Q91: 68% | R91: 38% | S91: 77 | T91: 74% | U91: 74% | V91: 89 | W91: 44% | X91: 44% | Y91: 10
A92: 264 | B92: BAS RHIN | C92: 5006 | D92: STRASBOURG | E92: 4054 | F92: STRASBOURG MONTAGNE VERTE | G92: 2.7 | H92: 58% | I92: 49% | J92: 83 | K92: 39% | L92: 38% | M92: 62 | N92: 70% | O92: 70% | P92: 88 | Q92: 67% | R92: 37% | S92: 69 | T92: 68% | U92: 68% | V92: 51 | W92: 79% | X92: 79% | Y92: 223
A93: 264 | B93: MARNE ARDENNES | C93: 11 | D93: REIMS | E93: 551306 | F93: REIMS SAINT MARCEAUX | G93: 3.5 | H93: 59% | I93: 49% | J93: 84 | K93: 45% | L93: 44% | M93: 91 | N93: 54% | O93: 54% | P93: 16 | Q93: 93% | R93: 63% | S93: 234 | T93: 73% | U93: 73% | V93: 79 | W93: 59% | X93: 59% | Y93: 51
A94: 264 | B94: BAS RHIN | C94: 5006 | D94: STRASBOURG | E94: 4010 | F94: STRASBOURG MEINAU | G94: 3.0 | H94: 59% | I94: 49% | J94: 85 | K94: 44% | L94: 44% | M94: 84 | N94: 63% | O94: 63% | P94: 48 | Q94: 76% | R94: 46% | S94: 141 | T94: 68% | U94: 68% | V94: 49 | W94: 72% | X94: 72% | Y94: 154
A95: 264 | B95: MOSELLE | C95: 44 | D95: MOSELLE NORD | E95: 457158 | F95: YUTZ | G95: 4.7 | H95: 59% | I95: 49% | J95: 86 | K95: 63% | L95: 63% | M95: 157 | N95: 68% | O95: 68% | P95: 70 | Q95: 70% | R95: 40% | S95: 97 | T95: 65% | U95: 65% | V95: 28 | W95: 58% | X95: 58% | Y95: 45
A96: 30 | B96: MARNE ARDENNES | C96: 11 | D96: REIMS | E96: 551369 | F96: DAMERY | G96: 1.6 | H96: 59% | I96: 49% | J96: 87 | K96: 44% | L96: 44% | M96: 86 | N96: 56% | O96: 56% | P96: 21 | Q96: 106% | R96: 76% | S96: 239 | T96: 68% | U96: 68% | V96: 46 | W96: 50% | X96: 50% | Y96: 18
A97: 30 | B97: MARNE ARDENNES | C97: 6 | D97: CHALONS EN CHAMPAGNE | E97: 551128 | F97: SAINTE MENEHOULD | G97: 2.9 | H97: 59% | I97: 50% | J97: 88 | K97: 35% | L97: 34% | M97: 45 | N97: 71% | O97: 71% | P97: 92 | Q97: 77% | R97: 47% | S97: 157 | T97: 69% | U97: 69% | V97: 53 | W97: 72% | X97: 72% | Y97: 157
A98: 30 | B98: MARNE ARDENNES | C98: 2 | D98: CHARLEVILLE MEZIERES | E98: 408840 | F98: RETHEL | G98: 4.3 | H98: 59% | I98: 50% | J98: 89 | K98: 54% | L98: 54% | M98: 125 | N98: 67% | O98: 67% | P98: 60 | Q98: 68% | R98: 38% | S98: 78 | T98: 73% | U98: 73% | V98: 86 | W98: 63% | X98: 63% | Y98: 73
A99: 30 | B99: MARNE ARDENNES | C99: 11 | D99: REIMS | E99: 551341 | F99: REIMS JEAN JAURES | G99: 3.7 | H99: 59% | I99: 50% | J99: 90 | K99: 67% | L99: 66% | M99: 177 | N99: 65% | O99: 65% | P99: 51 | Q99: 70% | R99: 40% | S99: 101 | T99: 72% | U99: 72% | V99: 68 | W99: 52% | X99: 52% | Y99: 22
A100: 30 | B100: VOSGES | C100: 55 | D100: SAINT DIE | E100: 488246 | F100: CORNIMONT LA BRESSE | G100: 2.7 | H100: 59% | I100: 50% | J100: 91 | K100: 20% | L100: 20% | M100: 16 | N100: 73% | O100: 73% | P100: 108 | Q100: 83% | R100: 52% | S100: 199 | T100: 77% | U100: 77% | V100: 121 | W100: 73% | X100: 73% | Y100: 172
A101: 30 | B101: MOSELLE | C101: 45 | D101: METZ | E101: 557444 | F101: SAINT JULIEN LES METZ | G101: 3.6 | H101: 59% | I101: 50% | J101: 92 | K101: 76% | L101: 75% | M101: 224 | N101: 66% | O101: 66% | P101: 58 | Q101: 54% | R101: 24% | S101: 12 | T101: 72% | U101: 72% | V101: 67 | W101: 59% | X101: 59% | Y101: 52
A102: 30 | B102: BAS RHIN | C102: 5101 | D102: SELESTAT | E102: 4104 | F102: ERSTEIN | G102: 4.0 | H102: 59% | I102: 50% | J102: 93 | K102: 72% | L102: 71% | M102: 205 | N102: 56% | O102: 56% | P102: 20 | Q102: 63% | R102: 32% | S102: 42 | T102: 73% | U102: 73% | V102: 81 | W102: 64% | X102: 64% | Y102: 78
A103: 30 | B103: VOSGES | C103: 57 | D103: EPINAL | E103: 588716 | F103: XERTIGNY | G103: 2.8 | H103: 59% | I103: 50% | J103: 94 | K103: 40% | L103: 40% | M103: 67 | N103: 73% | O103: 73% | P103: 111 | Q103: 65% | R103: 35% | S103: 57 | T103: 77% | U103: 77% | V103: 122 | W103: 72% | X103: 72% | Y103: 148
A104: 30 | B104: MARNE ARDENNES | C104: 2 | D104: CHARLEVILLE MEZIERES | E104: 508819 | F104: MOUZON | G104: 1.9 | H104: 59% | I104: 50% | J104: 95 | K104: 55% | L104: 55% | M104: 131 | N104: 78% | O104: 78% | P104: 150 | Q104: 65% | R104: 35% | S104: 58 | T104: 73% | U104: 73% | V104: 82 | W104: 56% | X104: 56% | Y104: 34
A105: 30 | B105: BAS RHIN | C105: 5060 | D105: HAGUENAU | E105: 4071 | F105: WISSEMBOURG | G105: 8.1 | H105: 59% | I105: 50% | J105: 96 | K105: 29% | L105: 28% | M105: 33 | N105: 72% | O105: 72% | P105: 101 | Q105: 71% | R105: 40% | S105: 102 | T105: 79% | U105: 79% | V105: 136 | W105: 77% | X105: 77% | Y105: 212
A106: 30 | B106: BAS RHIN | C106: 5060 | D106: HAGUENAU | E106: 4092 | F106: HOCHFELDEN | G106: 2.1 | H106: 59% | I106: 50% | J106: 97 | K106: 44% | L106: 44% | M106: 89 | N106: 78% | O106: 78% | P106: 146 | Q106: 63% | R106: 33% | S106: 45 | T106: 73% | U106: 73% | V106: 80 | W106: 70% | X106: 70% | Y106: 126
A107: 30 | B107: BAS RHIN | C107: 5006 | D107: STRASBOURG | E107: 4043 | F107: STRASBOURG HALLES | G107: 7.7 | H107: 59% | I107: 50% | J107: 98 | K107: 62% | L107: 61% | M107: 151 | N107: 61% | O107: 61% | P107: 42 | Q107: 80% | R107: 50% | S107: 182 | T107: 55% | U107: 55% | V107: 8 | W107: 70% | X107: 70% | Y107: 125
A108: 30 | B108: VOSGES | C108: 55 | D108: SAINT DIE | E108: 588386 | F108: LE THILLOT | G108: 2.6 | H108: 59% | I108: 50% | J108: 99 | K108: 11% | L108: 10% | M108: 5 | N108: 79% | O108: 79% | P108: 160 | Q108: 77% | R108: 47% | S108: 156 | T108: 84% | U108: 84% | V108: 181 | W108: 77% | X108: 77% | Y108: 204
A109: 30 | B109: MOSELLE | C109: 44 | D109: MOSELLE NORD | E109: 557347 | F109: GUENANGE | G109: 4.6 | H109: 60% | I109: 50% | J109: 100 | K109: 71% | L109: 70% | M109: 203 | N109: 59% | O109: 59% | P109: 33 | Q109: 76% | R109: 46% | S109: 147 | T109: 68% | U109: 68% | V109: 47 | W109: 55% | X109: 55% | Y109: 32
A110: 30 | B110: VOSGES | C110: 55 | D110: SAINT DIE | E110: 588186 | F110: BRUYERES | G110: 3.5 | H110: 60% | I110: 50% | J110: 101 | K110: 27% | L110: 26% | M110: 25 | N110: 75% | O110: 75% | P110: 121 | Q110: 79% | R110: 49% | S110: 172 | T110: 82% | U110: 82% | V110: 161 | W110: 66% | X110: 66% | Y110: 88
A111: 30 | B111: MEURTHE ET MOSELLE MEUSE | C111: 31 | D111: VERDUN | E111: 554700 | F111: VILLERUPT | G111: 2.8 | H111: 60% | I111: 50% | J111: 102 | K111: 38% | L111: 38% | M111: 57 | N111: 68% | O111: 68% | P111: 72 | Q111: 70% | R111: 40% | S111: 99 | T111: 77% | U111: 77% | V111: 119 | W111: 76% | X111: 76% | Y111: 198
A112: 30 | B112: BAS RHIN | C112: 5006 | D112: STRASBOURG | E112: 4006 | F112: STRASBOURG NEUDORF | G112: 7.9 | H112: 60% | I112: 51% | J112: 103 | K112: 26% | L112: 26% | M112: 22 | N112: 83% | O112: 83% | P112: 185 | Q112: 69% | R112: 39% | S112: 87 | T112: 76% | U112: 76% | V112: 101 | W112: 77% | X112: 77% | Y112: 209
A113: 30 | B113: VOSGES | C113: 57 | D113: EPINAL | E113: 588631 | F113: THAON LES VOSGES | G113: 4.6 | H113: 60% | I113: 51% | J113: 104 | K113: 45% | L113: 45% | M113: 96 | N113: 72% | O113: 72% | P113: 103 | Q113: 72% | R113: 42% | S113: 111 | T113: 76% | U113: 76% | V113: 105 | W113: 66% | X113: 66% | Y113: 89
A114: 30 | B114: MEURTHE ET MOSELLE MEUSE | C114: 31 | D114: VERDUN | E114: 554412 | F114: LONGUYON | G114: 2.8 | H114: 60% | I114: 51% | J114: 105 | K114: 44% | L114: 44% | M114: 87 | N114: 69% | O114: 69% | P114: 79 | Q114: 73% | R114: 43% | S114: 115 | T114: 76% | U114: 76% | V114: 104 | W114: 71% | X114: 71% | Y114: 140
A115: 30 | B115: VOSGES | C115: 55 | D115: SAINT DIE | E115: 588666 | F115: VAGNEY | G115: 3.5 | H115: 61% | I115: 51% | J115: 106 | K115: 27% | L115: 27% | M115: 28 | N115: 81% | O115: 81% | P115: 175 | Q115: 64% | R115: 34% | S115: 51 | T115: 87% | U115: 87% | V115: 202 | W115: 74% | X115: 74% | Y115: 179
A116: 30 | B116: MOSELLE | C116: 44 | D116: MOSELLE NORD | E116: 457192 | F116: CATTENOM | G116: 1.5 | H116: 61% | I116: 51% | J116: 107 | K116: 59% | L116: 58% | M116: 139 | N116: 66% | O116: 66% | P116: 59 | Q116: 69% | R116: 39% | S116: 84 | T116: 78% | U116: 78% | V116: 130 | W116: 61% | X116: 61% | Y116: 64
A117: 30 | B117: MEURTHE ET MOSELLE MEUSE | C117: 27 | D117: PONT A MOUSSON | E117: 554357 | F117: JOEUF | G117: 3.0 | H117: 61% | I117: 52% | J117: 108 | K117: 36% | L117: 36% | M117: 48 | N117: 75% | O117: 75% | P117: 127 | Q117: 79% | R117: 49% | S117: 167 | T117: 83% | U117: 83% | V117: 172 | W117: 62% | X117: 62% | Y117: 68
A118: 30 | B118: MEURTHE ET MOSELLE MEUSE | C118: 27 | D118: PONT A MOUSSON | E118: 554416 | F118: LUDRES | G118: 3.6 | H118: 61% | I118: 52% | J118: 109 | K118: 41% | L118: 41% | M118: 74 | N118: 76% | O118: 76% | P118: 139 | Q118: 68% | R118: 37% | S118: 73 | T118: 78% | U118: 78% | V118: 124 | W118: 73% | X118: 73% | Y118: 168
A119: 30 | B119: VOSGES | C119: 57 | D119: EPINAL | E119: 488286 | F119: EPINAL ARISTIDE BRIAND | G119: 8.1 | H119: 61% | I119: 52% | J119: 110 | K119: 67% | L119: 66% | M119: 178 | N119: 60% | O119: 60% | P119: 38 | Q119: 65% | R119: 35% | S119: 56 | T119: 76% | U119: 76% | V119: 103 | W119: 68% | X119: 68% | Y119: 112
A120: 30 | B120: MARNE ARDENNES | C120: 2 | D120: CHARLEVILLE MEZIERES | E120: 508815 | F120: CARIGNAN | G120: 2.6 | H120: 61% | I120: 52% | J120: 111 | K120: 42% | L120: 42% | M120: 78 | N120: 70% | O120: 70% | P120: 89 | Q120: 79% | R120: 49% | S120: 164 | T120: 76% | U120: 76% | V120: 109 | W120: 68% | X120: 68% | Y120: 116
A121: 30 | B121: MEURTHE ET MOSELLE MEUSE | C121: 31 | D121: VERDUN | E121: 455151 | F121: BAR LE DUC | G121: 9.8 | H121: 61% | I121: 52% | J121: 112 | K121: 37% | L121: 36% | M121: 49 | N121: 75% | O121: 75% | P121: 120 | Q121: 78% | R121: 48% | S121: 162 | T121: 75% | U121: 75% | V121: 94 | W121: 72% | X121: 72% | Y121: 145
A122: 30 | B122: BAS RHIN | C122: 5006 | D122: STRASBOURG | E122: 4019 | F122: STRASBOURG ANVERS | G122: 4.4 | H122: 61% | I122: 52% | J122: 113 | K122: 66% | L122: 66% | M122: 174 | N122: 63% | O122: 63% | P122: 47 | Q122: 65% | R122: 35% | S122: 60 | T122: 73% | U122: 73% | V122: 87 | W122: 68% | X122: 68% | Y122: 115
A123: 30 | B123: BAS RHIN | C123: 5060 | D123: HAGUENAU | E123: 4057 | F123: BISCHWILLER | G123: 6.8 | H123: 61% | I123: 52% | J123: 114 | K123: 40% | L123: 40% | M123: 71 | N123: 66% | O123: 66% | P123: 56 | Q123: 79% | R123: 49% | S123: 169 | T123: 78% | U123: 78% | V123: 127 | W123: 74% | X123: 74% | Y123: 176
A124: 30 | B124: AUBE HAUTE MARNE | C124: 14 | D124: TROYES | E124: 510570 | F124: NOGENT SUR SEINE | G124: 4.0 | H124: 61% | I124: 52% | J124: 115 | K124: 30% | L124: 29% | M124: 37 | N124: 75% | O124: 75% | P124: 124 | Q124: 78% | R124: 48% | S124: 161 | T124: 83% | U124: 83% | V124: 166 | W124: 72% | X124: 72% | Y124: 147
A125: 30 | B125: VOSGES | C125: 55 | D125: SAINT DIE | E125: 588316 | F125: FRAIZE | G125: 3.6 | H125: 61% | I125: 52% | J125: 116 | K125: 45% | L125: 44% | M125: 92 | N125: 79% | O125: 79% | P125: 159 | Q125: 73% | R125: 42% | S125: 113 | T125: 72% | U125: 72% | V125: 77 | W125: 69% | X125: 69% | Y125: 120
A126: 30 | B126: BAS RHIN | C126: 5060 | D126: HAGUENAU | E126: 4041 | F126: HOERDT | G126: 1.7 | H126: 62% | I126: 52% | J126: 117 | K126: 39% | L126: 38% | M126: 61 | N126: 79% | O126: 79% | P126: 157 | Q126: 61% | R126: 30% | S126: 30 | T126: 82% | U126: 82% | V126: 159 | W126: 78% | X126: 78% | Y126: 217
A127: 30 | B127: VOSGES | C127: 57 | D127: EPINAL | E127: 488281 | F127: ELOYES | G127: 3.4 | H127: 62% | I127: 52% | J127: 118 | K127: 39% | L127: 39% | M127: 65 | N127: 81% | O127: 81% | P127: 171 | Q127: 62% | R127: 32% | S127: 40 | T127: 87% | U127: 87% | V127: 212 | W127: 68% | X127: 68% | Y127: 111
A128: 30 | B128: MEURTHE ET MOSELLE MEUSE | C128: 27 | D128: PONT A MOUSSON | E128: 554376 | F128: LAXOU BOUFFLERS | G128: 2.6 | H128: 62% | I128: 52% | J128: 119 | K128: 81% | L128: 81% | M128: 236 | N128: 57% | O128: 57% | P128: 27 | Q128: 79% | R128: 49% | S128: 173 | T128: 74% | U128: 74% | V128: 91 | W128: 47% | X128: 47% | Y128: 15
A129: 30 | B129: HAUT RHIN | C129: 5130 | D129: COLMAR | E129: 4143 | F129: MUNSTER | G129: 4.2 | H129: 62% | I129: 53% | J129: 120 | K129: 54% | L129: 54% | M129: 127 | N129: 68% | O129: 68% | P129: 76 | Q129: 69% | R129: 39% | S129: 86 | T129: 77% | U129: 77% | V129: 110 | W129: 71% | X129: 71% | Y129: 144
A130: 30 | B130: MARNE ARDENNES | C130: 2 | D130: CHARLEVILLE MEZIERES | E130: 408862 | F130: REVIN | G130: 3.9 | H130: 62% | I130: 53% | J130: 121 | K130: 40% | L130: 40% | M130: 69 | N130: 78% | O130: 78% | P130: 155 | Q130: 83% | R130: 53% | S130: 200 | T130: 72% | U130: 72% | V130: 70 | W130: 67% | X130: 67% | Y130: 96
A131: 30 | B131: BAS RHIN | C131: 5101 | D131: SELESTAT | E131: 4126 | F131: MUTZIG | G131: 2.7 | H131: 62% | I131: 53% | J131: 122 | K131: 62% | L131: 62% | M131: 152 | N131: 63% | O131: 63% | P131: 44 | Q131: 64% | R131: 34% | S131: 52 | T131: 82% | U131: 82% | V131: 157 | W131: 70% | X131: 70% | Y131: 133
A132: 30 | B132: MARNE ARDENNES | C132: 2 | D132: CHARLEVILLE MEZIERES | E132: 508802 | F132: CHARLEVILLE NEVERS | G132: 2.8 | H132: 62% | I132: 53% | J132: 123 | K132: 29% | L132: 28% | M132: 34 | N132: 86% | O132: 86% | P132: 203 | Q132: 85% | R132: 55% | S132: 214 | T132: 72% | U132: 72% | V132: 75 | W132: 69% | X132: 69% | Y132: 122
A133: 30 | B133: MOSELLE | C133: 45 | D133: METZ | E133: 557612 | F133: SAINTE MARIE AUX CHENES | G133: 3.7 | H133: 62% | I133: 53% | J133: 124 | K133: 29% | L133: 28% | M133: 35 | N133: 88% | O133: 88% | P133: 220 | Q133: 70% | R133: 40% | S133: 96 | T133: 77% | U133: 77% | V133: 120 | W133: 77% | X133: 77% | Y133: 213
A134: 30 | B134: BAS RHIN | C134: 5101 | D134: SELESTAT | E134: 4121 | F134: SCHIRMECK | G134: 2.8 | H134: 62% | I134: 53% | J134: 125 | K134: 38% | L134: 37% | M134: 54 | N134: 68% | O134: 68% | P134: 73 | Q134: 81% | R134: 51% | S134: 187 | T134: 86% | U134: 86% | V134: 198 | W134: 69% | X134: 69% | Y134: 118
A135: 110 | B135: MEURTHE ET MOSELLE MEUSE | C135: 26 | D135: NANCY | E135: 554486 | F135: NANCY POINT CENTRAL | G135: 3.0 | H135: 62% | I135: 53% | J135: 126 | K135: 53% | L135: 52% | M135: 122 | N135: 82% | O135: 82% | P135: 179 | Q135: 55% | R135: 25% | S135: 14 | T135: 82% | U135: 82% | V135: 156 | W135: 71% | X135: 71% | Y135: 141
A136: 110 | B136: MEURTHE ET MOSELLE MEUSE | C136: 31 | D136: VERDUN | E136: 455566 | F136: REVIGNY SUR ORNAIN | G136: 2.7 | H136: 62% | I136: 53% | J136: 127 | K136: 44% | L136: 43% | M136: 83 | N136: 78% | O136: 78% | P136: 147 | Q136: 70% | R136: 40% | S136: 98 | T136: 78% | U136: 78% | V136: 123 | W136: 73% | X136: 73% | Y136: 169
A137: 110 | B137: MOSELLE | C137: 42 | D137: MOSELLE EST | E137: 457435 | F137: MERLEBACH | G137: 2.7 | H137: 62% | I137: 53% | J137: 128 | K137: 46% | L137: 46% | M137: 98 | N137: 77% | O137: 77% | P137: 144 | Q137: 81% | R137: 51% | S137: 188 | T137: 76% | U137: 76% | V137: 108 | W137: 61% | X137: 61% | Y137: 61
A138: 110 | B138: MEURTHE ET MOSELLE MEUSE | C138: 26 | D138: NANCY | E138: 454426 | F138: LUNEVILLE CARNOT | G138: 8.4 | H138: 63% | I138: 53% | J138: 129 | K138: 67% | L138: 67% | M138: 179 | N138: 73% | O138: 73% | P138: 106 | Q138: 65% | R138: 35% | S138: 59 | T138: 82% | U138: 82% | V138: 154 | W138: 57% | X138: 57% | Y138: 40
A139: 110 | B139: AUBE HAUTE MARNE | C139: 21 | D139: CHAUMONT | E139: 451156 | F139: SAINT DIZIER CENTRE | G139: 8.6 | H139: 63% | I139: 53% | J139: 130 | K139: 55% | L139: 55% | M139: 134 | N139: 75% | O139: 75% | P139: 130 | Q139: 76% | R139: 46% | S139: 140 | T139: 70% | U139: 70% | V139: 56 | W139: 68% | X139: 68% | Y139: 107
A140: 110 | B140: VOSGES | C140: 55 | D140: SAINT DIE | E140: 588461 | F140: MOYENMOUTIER | G140: 4.3 | H140: 63% | I140: 54% | J140: 131 | K140: 42% | L140: 42% | M140: 80 | N140: 70% | O140: 70% | P140: 90 | Q140: 74% | R140: 44% | S140: 133 | T140: 80% | U140: 80% | V140: 144 | W140: 78% | X140: 78% | Y140: 215
A141: 110 | B141: MOSELLE | C141: 42 | D141: MOSELLE EST | E141: 457543 | F141: PUTTELANGE AUX LACS | G141: 2.4 | H141: 63% | I141: 54% | J141: 132 | K141: 60% | L141: 59% | M141: 143 | N141: 72% | O141: 72% | P141: 104 | Q141: 76% | R141: 46% | S141: 143 | T141: 70% | U141: 70% | V141: 58 | W141: 67% | X141: 67% | Y141: 93
A142: 110 | B142: BAS RHIN | C142: 5101 | D142: SELESTAT | E142: 4127 | F142: ROSHEIM | G142: 1.7 | H142: 63% | I142: 54% | J142: 133 | K142: 50% | L142: 49% | M142: 111 | N142: 86% | O142: 86% | P142: 204 | Q142: 57% | R142: 27% | S142: 24 | T142: 81% | U142: 81% | V142: 149 | W142: 72% | X142: 72% | Y142: 152
A143: 110 | B143: MOSELLE | C143: 44 | D143: MOSELLE NORD | E143: 557307 | F143: FONTOY | G143: 1.9 | H143: 63% | I143: 54% | J143: 134 | K143: 40% | L143: 40% | M143: 68 | N143: 85% | O143: 85% | P143: 197 | Q143: 74% | R143: 44% | S143: 126 | T143: 86% | U143: 86% | V143: 192 | W143: 61% | X143: 61% | Y143: 65
A144: 110 | B144: BAS RHIN | C144: 5006 | D144: STRASBOURG | E144: 4027 | F144: SCHILTIGHEIM CENTRE | G144: 4.0 | H144: 63% | I144: 54% | J144: 135 | K144: 71% | L144: 71% | M144: 204 | N144: 62% | O144: 62% | P144: 43 | Q144: 70% | R144: 40% | S144: 92 | T144: 75% | U144: 75% | V144: 100 | W144: 67% | X144: 67% | Y144: 102
A145: 110 | B145: AUBE HAUTE MARNE | C145: 21 | D145: CHAUMONT | E145: 410566 | F145: CHAUMONT HOTEL DE VILLE | G145: 10.4 | H145: 63% | I145: 54% | J145: 136 | K145: 43% | L145: 43% | M145: 82 | N145: 82% | O145: 82% | P145: 181 | Q145: 69% | R145: 39% | S145: 82 | T145: 79% | U145: 79% | V145: 138 | W145: 73% | X145: 73% | Y145: 171
A146: 110 | B146: BAS RHIN | C146: 5060 | D146: HAGUENAU | E146: 4030 | F146: BRUMATH | G146: 3.8 | H146: 63% | I146: 54% | J146: 137 | K146: 74% | L146: 74% | M146: 214 | N146: 67% | O146: 67% | P146: 63 | Q146: 41% | R146: 11% | S146: 4 | T146: 89% | U146: 89% | V146: 219 | W146: 75% | X146: 75% | Y146: 195
A147: 110 | B147: VOSGES | C147: 57 | D147: EPINAL | E147: 588201 | F147: CHANTRAINE | G147: 3.7 | H147: 63% | I147: 54% | J147: 138 | K147: 44% | L147: 44% | M147: 88 | N147: 73% | O147: 73% | P147: 109 | Q147: 69% | R147: 39% | S147: 83 | T147: 87% | U147: 87% | V147: 211 | W147: 75% | X147: 75% | Y147: 185
A148: 110 | B148: BAS RHIN | C148: 5006 | D148: STRASBOURG | E148: 4020 | F148: STRASBOURG ROBERTSAU | G148: 5.3 | H148: 64% | I148: 55% | J148: 139 | K148: 54% | L148: 53% | M148: 123 | N148: 83% | O148: 83% | P148: 186 | Q148: 51% | R148: 21% | S148: 9 | T148: 87% | U148: 87% | V148: 205 | W148: 76% | X148: 76% | Y148: 196
A149: 110 | B149: VOSGES | C149: 57 | D149: EPINAL | E149: 588206 | F149: CHARMES | G149: 2.9 | H149: 64% | I149: 55% | J149: 140 | K149: 47% | L149: 46% | M149: 100 | N149: 81% | O149: 81% | P149: 172 | Q149: 69% | R149: 39% | S149: 85 | T149: 79% | U149: 79% | V149: 142 | W149: 74% | X149: 74% | Y149: 177
A150: 110 | B150: MEURTHE ET MOSELLE MEUSE | C150: 27 | D150: PONT A MOUSSON | E150: 454535 | F150: PONT A MOUSSON CENTRALE | G150: 5.6 | H150: 64% | I150: 55% | J150: 141 | K150: 77% | L150: 77% | M150: 231 | N150: 67% | O150: 67% | P150: 64 | Q150: 78% | R150: 48% | S150: 160 | T150: 72% | U150: 72% | V150: 71 | W150: 57% | X150: 57% | Y150: 39
A151: 110 | B151: MEURTHE ET MOSELLE MEUSE | C151: 26 | D151: NANCY | E151: 554491 | F151: NANCY SAINT SEBASTIEN | G151: 3.6 | H151: 64% | I151: 55% | J151: 142 | K151: 51% | L151: 51% | M151: 117 | N151: 87% | O151: 87% | P151: 212 | Q151: 53% | R151: 23% | S151: 11 | T151: 87% | U151: 87% | V151: 213 | W151: 73% | X151: 73% | Y151: 159
A152: 110 | B152: BAS RHIN | C152: 5006 | D152: STRASBOURG | E152: 4023 | F152: STRASBOURG VOSGES | G152: 2.9 | H152: 64% | I152: 55% | J152: 143 | K152: 51% | L152: 51% | M152: 115 | N152: 74% | O152: 74% | P152: 119 | Q152: 62% | R152: 32% | S152: 34 | T152: 87% | U152: 87% | V152: 208 | W152: 78% | X152: 78% | Y152: 219
A153: 110 | B153: MEURTHE ET MOSELLE MEUSE | C153: 27 | D153: PONT A MOUSSON | E153: 554496 | F153: NANCY TROIS MAISONS | G153: 2.4 | H153: 64% | I153: 55% | J153: 144 | K153: 63% | L153: 62% | M153: 154 | N153: 75% | O153: 75% | P153: 123 | Q153: 79% | R153: 49% | S153: 171 | T153: 72% | U153: 72% | V153: 69 | W153: 64% | X153: 64% | Y153: 76
A154: 110 | B154: VOSGES | C154: 57 | D154: EPINAL | E154: 488706 | F154: VITTEL | G154: 3.1 | H154: 65% | I154: 55% | J154: 145 | K154: 50% | L154: 50% | M154: 114 | N154: 81% | O154: 81% | P154: 174 | Q154: 74% | R154: 44% | S154: 129 | T154: 78% | U154: 78% | V154: 126 | W154: 70% | X154: 70% | Y154: 129
A155: 110 | B155: MEURTHE ET MOSELLE MEUSE | C155: 26 | D155: NANCY | E155: 554296 | F155: ESSEY LES NANCY | G155: 3.7 | H155: 65% | I155: 56% | J155: 146 | K155: 35% | L155: 35% | M155: 47 | N155: 78% | O155: 78% | P155: 148 | Q155: 80% | R155: 49% | S155: 175 | T155: 89% | U155: 89% | V155: 218 | W155: 73% | X155: 73% | Y155: 165
A156: 110 | B156: MEURTHE ET MOSELLE MEUSE | C156: 31 | D156: VERDUN | E156: 555624 | F156: STENAY | G156: 3.2 | H156: 65% | I156: 56% | J156: 147 | K156: 66% | L156: 66% | M156: 171 | N156: 67% | O156: 67% | P156: 66 | Q156: 85% | R156: 55% | S156: 209 | T156: 87% | U156: 87% | V156: 206 | W156: 51% | X156: 51% | Y156: 21
A157: 110 | B157: MEURTHE ET MOSELLE MEUSE | C157: 27 | D157: PONT A MOUSSON | E157: 454651 | F157: TOUL | G157: 9.5 | H157: 65% | I157: 56% | J157: 148 | K157: 72% | L157: 72% | M157: 207 | N157: 83% | O157: 83% | P157: 188 | Q157: 66% | R157: 35% | S157: 62 | T157: 75% | U157: 75% | V157: 93 | W157: 61% | X157: 61% | Y157: 63
A158: 110 | B158: MEURTHE ET MOSELLE MEUSE | C158: 27 | D158: PONT A MOUSSON | E158: 454355 | F158: JARNY | G158: 4.2 | H158: 65% | I158: 56% | J158: 149 | K158: 47% | L158: 47% | M158: 102 | N158: 80% | O158: 80% | P158: 165 | Q158: 71% | R158: 41% | S158: 105 | T158: 80% | U158: 80% | V158: 147 | W158: 79% | X158: 79% | Y158: 222
A159: 110 | B159: MEURTHE ET MOSELLE MEUSE | C159: 26 | D159: NANCY | E159: 554166 | F159: BLAINVILLE | G159: 2.9 | H159: 65% | I159: 56% | J159: 150 | K159: 66% | L159: 66% | M159: 173 | N159: 72% | O159: 72% | P159: 105 | Q159: 78% | R159: 48% | S159: 158 | T159: 70% | U159: 70% | V159: 55 | W159: 71% | X159: 71% | Y159: 143
A160: 110 | B160: MEURTHE ET MOSELLE MEUSE | C160: 26 | D160: NANCY | E160: 554266 | F160: DOMBASLE SUR MEURTHE | G160: 3.4 | H160: 66% | I160: 56% | J160: 151 | K160: 67% | L160: 67% | M160: 180 | N160: 86% | O160: 86% | P160: 207 | Q160: 62% | R160: 32% | S160: 35 | T160: 75% | U160: 75% | V160: 97 | W160: 68% | X160: 68% | Y160: 110
A161: 110 | B161: MARNE ARDENNES | C161: 2 | D161: CHARLEVILLE MEZIERES | E161: 408806 | F161: SEDAN | G161: 7.4 | H161: 66% | I161: 57% | J161: 152 | K161: 50% | L161: 50% | M161: 112 | N161: 78% | O161: 78% | P161: 153 | Q161: 76% | R161: 46% | S161: 150 | T161: 88% | U161: 88% | V161: 217 | W161: 67% | X161: 67% | Y161: 97
A162: 110 | B162: HAUT RHIN | C162: 5130 | D162: COLMAR | E162: 4157 | F162: NEUF BRISACH | G162: 2.5 | H162: 66% | I162: 57% | J162: 153 | K162: 70% | L162: 70% | M162: 201 | N162: 76% | O162: 76% | P162: 136 | Q162: 75% | R162: 45% | S162: 136 | T162: 72% | U162: 72% | V162: 73 | W162: 66% | X162: 66% | Y162: 91
A163: 110 | B163: MOSELLE | C163: 45 | D163: METZ | E163: 557459 | F163: MOULINS LES METZ | G163: 2.5 | H163: 66% | I163: 57% | J163: 154 | K163: 41% | L163: 41% | M163: 77 | N163: 83% | O163: 83% | P163: 187 | Q163: 81% | R163: 51% | S163: 189 | T163: 81% | U163: 81% | V163: 152 | W163: 73% | X163: 73% | Y163: 170
A164: 110 | B164: BAS RHIN | C164: 5006 | D164: STRASBOURG | E164: 4028 | F164: BISCHHEIM | G164: 3.1 | H164: 66% | I164: 57% | J164: 155 | K164: 66% | L164: 66% | M164: 169 | N164: 80% | O164: 80% | P164: 166 | Q164: 65% | R164: 35% | S164: 61 | T164: 74% | U164: 74% | V164: 88 | W164: 75% | X164: 75% | Y164: 190
A165: 110 | B165: BAS RHIN | C165: 5006 | D165: STRASBOURG | E165: 4029 | F165: SCHILTIGHEIM KLEBER | G165: 0.7 | H165: 66% | I165: 57% | J165: 156 | K165: 61% | L165: 61% | M165: 149 | N165: 92% | O165: 92% | P165: 235 | Q165: 64% | R165: 34% | S165: 49 | T165: 76% | U165: 76% | V165: 107 | W165: 67% | X165: 67% | Y165: 99
A166: 110 | B166: BAS RHIN | C166: 5060 | D166: HAGUENAU | E166: 4031 | F166: TRUCHTERSHEIM | G166: 2.4 | H166: 66% | I166: 57% | J166: 157 | K166: 41% | L166: 41% | M166: 75 | N166: 70% | O166: 70% | P166: 83 | Q166: 74% | R166: 44% | S166: 127 | T166: 91% | U166: 91% | V166: 224 | W166: 84% | X166: 84% | Y166: 240
A167: 110 | B167: AUBE HAUTE MARNE | C167: 14 | D167: TROYES | E167: 510513 | F167: SAINT PARRES AUX TERTRES | G167: 2.7 | H167: 66% | I167: 57% | J167: 158 | K167: 81% | L167: 80% | M167: 234 | N167: 67% | O167: 67% | P167: 68 | Q167: 76% | R167: 46% | S167: 146 | T167: 62% | U167: 62% | V167: 22 | W167: 75% | X167: 75% | Y167: 189
A168: 110 | B168: BAS RHIN | C168: 5006 | D168: STRASBOURG | E168: 4039 | F168: REICHSTETT | G168: 1.5 | H168: 66% | I168: 57% | J168: 159 | K168: 61% | L168: 60% | M168: 146 | N168: 80% | O168: 80% | P168: 168 | Q168: 69% | R168: 39% | S168: 80 | T168: 79% | U168: 79% | V168: 135 | W168: 73% | X168: 73% | Y168: 173
A169: 110 | B169: MOSELLE | C169: 45 | D169: METZ | E169: 557441 | F169: METZ PLAPPEVILLE | G169: 2.5 | H169: 66% | I169: 57% | J169: 160 | K169: 64% | L169: 64% | M169: 160 | N169: 84% | O169: 84% | P169: 195 | Q169: 58% | R169: 28% | S169: 26 | T169: 85% | U169: 85% | V169: 187 | W169: 70% | X169: 70% | Y169: 134
A170: 110 | B170: MARNE ARDENNES | C170: 11 | D170: REIMS | E170: 551309 | F170: REIMS EUROPE | G170: 2.6 | H170: 66% | I170: 57% | J170: 161 | K170: 57% | L170: 57% | M170: 136 | N170: 76% | O170: 76% | P170: 137 | Q170: 84% | R170: 54% | S170: 206 | T170: 75% | U170: 75% | V170: 95 | W170: 69% | X170: 69% | Y170: 123
A171: 110 | B171: MOSELLE | C171: 45 | D171: METZ | E171: 557559 | F171: REMILLY | G171: 3.3 | H171: 66% | I171: 57% | J171: 162 | K171: 66% | L171: 66% | M171: 168 | N171: 75% | O171: 75% | P171: 126 | Q171: 70% | R171: 40% | S171: 95 | T171: 86% | U171: 86% | V171: 197 | W171: 65% | X171: 65% | Y171: 82
A172: 110 | B172: BAS RHIN | C172: 5060 | D172: HAGUENAU | E172: 4082 | F172: BOUXWILLER | G172: 2.4 | H172: 66% | I172: 57% | J172: 163 | K172: 27% | L172: 27% | M172: 27 | N172: 83% | O172: 83% | P172: 183 | Q172: 106% | R172: 76% | S172: 238 | T172: 76% | U172: 76% | V172: 106 | W172: 71% | X172: 71% | Y172: 142
A173: 110 | B173: MOSELLE | C173: 42 | D173: MOSELLE EST | E173: 557503 | F173: NEUNKIRCH | G173: 3.1 | H173: 66% | I173: 57% | J173: 164 | K173: 11% | L173: 11% | M173: 7 | N173: 89% | O173: 89% | P173: 224 | Q173: 89% | R173: 59% | S173: 226 | T173: 96% | U173: 96% | V173: 234 | W173: 77% | X173: 77% | Y173: 210
A174: 110 | B174: MARNE ARDENNES | C174: 6 | D174: CHALONS EN CHAMPAGNE | E174: 451166 | F174: VITRY LE FRANCOIS | G174: 3.6 | H174: 67% | I174: 57% | J174: 165 | K174: 74% | L174: 74% | M174: 215 | N174: 67% | O174: 67% | P174: 61 | Q174: 92% | R174: 62% | S174: 233 | T174: 78% | U174: 78% | V174: 125 | W174: 52% | X174: 52% | Y174: 24
A175: 110 | B175: BAS RHIN | C175: 5101 | D175: SELESTAT | E175: 4008 | F175: FEGERSHEIM | G175: 2.4 | H175: 67% | I175: 57% | J175: 166 | K175: 55% | L175: 55% | M175: 133 | N175: 71% | O175: 71% | P175: 93 | Q175: 70% | R175: 40% | S175: 94 | T175: 87% | U175: 87% | V175: 210 | W175: 80% | X175: 80% | Y175: 231
A176: 110 | B176: BAS RHIN | C176: 5060 | D176: HAGUENAU | E176: 4085 | F176: INGWILLER | G176: 3.5 | H176: 67% | I176: 58% | J176: 167 | K176: 55% | L176: 55% | M176: 132 | N176: 77% | O176: 77% | P176: 141 | Q176: 80% | R176: 50% | S176: 176 | T176: 81% | U176: 81% | V176: 151 | W176: 72% | X176: 72% | Y176: 146
A177: 160 | B177: BAS RHIN | C177: 5101 | D177: SELESTAT | E177: 4109 | F177: MARCKOLSHEIM | G177: 2.3 | H177: 67% | I177: 58% | J177: 168 | K177: 52% | L177: 51% | M177: 120 | N177: 78% | O177: 78% | P177: 151 | Q177: 82% | R177: 52% | S177: 191 | T177: 83% | U177: 83% | V177: 171 | W177: 71% | X177: 71% | Y177: 135
A178: 160 | B178: AUBE HAUTE MARNE | C178: 14 | D178: TROYES | E178: 510523 | F178: LA CHAPELLE ST LUC | G178: 4.6 | H178: 67% | I178: 58% | J178: 169 | K178: 76% | L178: 76% | M178: 226 | N178: 76% | O178: 76% | P178: 133 | Q178: 74% | R178: 44% | S178: 122 | T178: 70% | U178: 70% | V178: 60 | W178: 69% | X178: 69% | Y178: 117
A179: 160 | B179: AUBE HAUTE MARNE | C179: 14 | D179: TROYES | E179: 410550 | F179: BAR SUR AUBE | G179: 5.3 | H179: 67% | I179: 58% | J179: 170 | K179: 48% | L179: 47% | M179: 104 | N179: 82% | O179: 82% | P179: 180 | Q179: 80% | R179: 50% | S179: 181 | T179: 83% | U179: 83% | V179: 173 | W179: 73% | X179: 73% | Y179: 158
A180: 160 | B180: MEURTHE ET MOSELLE MEUSE | C180: 27 | D180: PONT A MOUSSON | E180: 454696 | F180: VILLERS GENERAL LECLERC | G180: 4.0 | H180: 67% | I180: 58% | J180: 171 | K180: 65% | L180: 64% | M180: 163 | N180: 83% | O180: 83% | P180: 189 | Q180: 56% | R180: 25% | S180: 17 | T180: 82% | U180: 82% | V180: 162 | W180: 79% | X180: 79% | Y180: 228
A181: 160 | B181: MARNE ARDENNES | C181: 2 | D181: CHARLEVILLE MEZIERES | E181: 508860 | F181: ROCROI | G181: 2.4 | H181: 67% | I181: 58% | J181: 172 | K181: 72% | L181: 72% | M181: 208 | N181: 70% | O181: 70% | P181: 81 | Q181: 79% | R181: 49% | S181: 165 | T181: 78% | U181: 78% | V181: 132 | W181: 67% | X181: 67% | Y181: 94
A182: 160 | B182: VOSGES | C182: 55 | D182: SAINT DIE | E182: 488556 | F182: RAON L ETAPE | G182: 2.2 | H182: 67% | I182: 58% | J182: 173 | K182: 46% | L182: 46% | M182: 97 | N182: 88% | O182: 88% | P182: 218 | Q182: 90% | R182: 60% | S182: 228 | T182: 83% | U182: 83% | V182: 167 | W182: 60% | X182: 60% | Y182: 55
A183: 160 | B183: MOSELLE | C183: 42 | D183: MOSELLE EST | E183: 457614 | F183: SARREBOURG | G183: 7.2 | H183: 67% | I183: 58% | J183: 174 | K183: 59% | L183: 59% | M183: 141 | N183: 79% | O183: 79% | P183: 162 | Q183: 80% | R183: 50% | S183: 177 | T183: 77% | U183: 77% | V183: 117 | W183: 72% | X183: 72% | Y183: 149
A184: 160 | B184: BAS RHIN | C184: 5101 | D184: SELESTAT | E184: 4007 | F184: ILLKIRCH CENTRE | G184: 6.4 | H184: 67% | I184: 58% | J184: 175 | K184: 68% | L184: 68% | M184: 184 | N184: 78% | O184: 78% | P184: 154 | Q184: 81% | R184: 51% | S184: 190 | T184: 69% | U184: 69% | V184: 52 | W184: 71% | X184: 71% | Y184: 136
A185: 160 | B185: HAUT RHIN | C185: 5169 | D185: MULHOUSE | E185: 4180 | F185: RIEDISHEIM | G185: 3.3 | H185: 67% | I185: 58% | J185: 176 | K185: 45% | L185: 44% | M185: 90 | N185: 80% | O185: 80% | P185: 169 | Q185: 85% | R185: 55% | S185: 213 | T185: 79% | U185: 79% | V185: 140 | W185: 78% | X185: 78% | Y185: 220
A186: 160 | B186: HAUT RHIN | C186: 5169 | D186: MULHOUSE | E186: 4170 | F186: MULHOUSE REUNION | G186: 7.8 | H186: 67% | I186: 58% | J186: 177 | K186: 61% | L186: 61% | M186: 148 | N186: 79% | O186: 79% | P186: 158 | Q186: 82% | R186: 52% | S186: 195 | T186: 77% | U186: 77% | V186: 116 | W186: 68% | X186: 68% | Y186: 109
A187: 160 | B187: MOSELLE | C187: 42 | D187: MOSELLE EST | E187: 557210 | F187: CHATEAU SALINS | G187: 1.8 | H187: 67% | I187: 58% | J187: 178 | K187: 67% | L187: 66% | M187: 175 | N187: 72% | O187: 72% | P187: 102 | Q187: 85% | R187: 55% | S187: 212 | T187: 70% | U187: 70% | V187: 61 | W187: 73% | X187: 73% | Y187: 174
A188: 160 | B188: BAS RHIN | C188: 5060 | D188: HAGUENAU | E188: 4067 | F188: PFAFFENHOFFEN | G188: 1.9 | H188: 67% | I188: 58% | J188: 179 | K188: 61% | L188: 60% | M188: 145 | N188: 69% | O188: 69% | P188: 80 | Q188: 75% | R188: 45% | S188: 137 | T188: 87% | U188: 87% | V188: 204 | W188: 76% | X188: 76% | Y188: 199
A189: 160 | B189: MOSELLE | C189: 45 | D189: METZ | E189: 557440 | F189: METZ MOZART | G189: 2.8 | H189: 67% | I189: 58% | J189: 180 | K189: 63% | L189: 62% | M189: 153 | N189: 79% | O189: 79% | P189: 164 | Q189: 68% | R189: 38% | S189: 79 | T189: 80% | U189: 80% | V189: 145 | W189: 78% | X189: 78% | Y189: 216
A190: 160 | B190: MOSELLE | C190: 45 | D190: METZ | E190: 557712 | F190: WOIPPY | G190: 4.3 | H190: 68% | I190: 58% | J190: 181 | K190: 75% | L190: 74% | M190: 218 | N190: 74% | O190: 74% | P190: 118 | Q190: 75% | R190: 45% | S190: 135 | T190: 75% | U190: 75% | V190: 99 | W190: 70% | X190: 70% | Y190: 130
A191: 160 | B191: MOSELLE | C191: 45 | D191: METZ | E191: 557436 | F191: METZ CATHEDRALE | G191: 4.1 | H191: 68% | I191: 59% | J191: 182 | K191: 76% | L191: 75% | M191: 223 | N191: 75% | O191: 75% | P191: 128 | Q191: 68% | R191: 38% | S191: 75 | T191: 79% | U191: 79% | V191: 133 | W191: 73% | X191: 73% | Y191: 160
A192: 160 | B192: BAS RHIN | C192: 5060 | D192: HAGUENAU | E192: 4066 | F192: NIEDERBRONN LES BAINS | G192: 5.7 | H192: 68% | I192: 59% | J192: 183 | K192: 51% | L192: 51% | M192: 118 | N192: 86% | O192: 86% | P192: 201 | Q192: 74% | R192: 43% | S192: 121 | T192: 86% | U192: 86% | V192: 200 | W192: 74% | X192: 74% | Y192: 180
A193: 160 | B193: MARNE ARDENNES | C193: 11 | D193: REIMS | E193: 451308 | F193: REIMS SAINT THOMAS | G193: 5.5 | H193: 68% | I193: 59% | J193: 184 | K193: 83% | L193: 82% | M193: 238 | N193: 70% | O193: 70% | P193: 85 | Q193: 86% | R193: 56% | S193: 217 | T193: 74% | U193: 74% | V193: 90 | W193: 58% | X193: 58% | Y193: 47
A194: 160 | B194: AUBE HAUTE MARNE | C194: 14 | D194: TROYES | E194: 410510 | F194: TROYES GAMBETTA | G194: 8.6 | H194: 68% | I194: 59% | J194: 185 | K194: 71% | L194: 70% | M194: 202 | N194: 76% | O194: 76% | P194: 140 | Q194: 80% | R194: 50% | S194: 180 | T194: 75% | U194: 75% | V194: 96 | W194: 70% | X194: 70% | Y194: 124
A195: 160 | B195: BAS RHIN | C195: 5101 | D195: SELESTAT | E195: 4107 | F195: VILLE | G195: 2.2 | H195: 68% | I195: 59% | J195: 186 | K195: 72% | L195: 71% | M195: 206 | N195: 70% | O195: 70% | P195: 91 | Q195: 63% | R195: 33% | S195: 44 | T195: 85% | U195: 85% | V195: 188 | W195: 82% | X195: 82% | Y195: 234
A196: 160 | B196: BAS RHIN | C196: 5101 | D196: SELESTAT | E196: 4101 | F196: SELESTAT CENTRE | G196: 7.9 | H196: 68% | I196: 59% | J196: 187 | K196: 68% | L196: 67% | M196: 182 | N196: 73% | O196: 73% | P196: 114 | Q196: 79% | R196: 49% | S196: 166 | T196: 79% | U196: 79% | V196: 134 | W196: 74% | X196: 74% | Y196: 175
A197: 160 | B197: BAS RHIN | C197: 5060 | D197: HAGUENAU | E197: 4060 | F197: HAGUENAU HOUBLON | G197: 8.5 | H197: 68% | I197: 59% | J197: 188 | K197: 68% | L197: 68% | M197: 189 | N197: 80% | O197: 80% | P197: 167 | Q197: 71% | R197: 41% | S197: 107 | T197: 78% | U197: 78% | V197: 129 | W197: 75% | X197: 75% | Y197: 191
A198: 160 | B198: HAUT RHIN | C198: 5130 | D198: COLMAR | E198: 4132 | F198: COLMAR MARAICHERS | G198: 3.4 | H198: 69% | I198: 59% | J198: 189 | K198: 59% | L198: 59% | M198: 140 | N198: 77% | O198: 77% | P198: 143 | Q198: 76% | R198: 45% | S198: 139 | T198: 86% | U198: 86% | V198: 196 | W198: 75% | X198: 75% | Y198: 193
A199: 160 | B199: HAUT RHIN | C199: 5169 | D199: MULHOUSE | E199: 4178 | F199: SAINT LOUIS | G199: 6.6 | H199: 69% | I199: 59% | J199: 190 | K199: 67% | L199: 67% | M199: 181 | N199: 76% | O199: 76% | P199: 138 | Q199: 67% | R199: 37% | S199: 70 | T199: 84% | U199: 84% | V199: 178 | W199: 79% | X199: 79% | Y199: 226
A200: 160 | B200: MOSELLE | C200: 44 | D200: MOSELLE NORD | E200: 457180 | F200: BOUSSE | G200: 2.5 | H200: 69% | I200: 60% | J200: 191 | K200: 14% | L200: 13% | M200: 9 | N200: 90% | O200: 90% | P200: 228 | Q200: 84% | R200: 54% | S200: 207 | T200: 98% | U200: 98% | V200: 237 | W200: 90% | X200: 90% | Y200: 241
A201: 160 | B201: BAS RHIN | C201: 5006 | D201: STRASBOURG | E201: 4045 | F201: STRASBOURG FRANCS BOURGEOIS | G201: 4.2 | H201: 69% | I201: 60% | J201: 192 | K201: 54% | L201: 54% | M201: 128 | N201: 71% | O201: 71% | P201: 94 | Q201: 91% | R201: 60% | S201: 229 | T201: 83% | U201: 83% | V201: 170 | W201: 77% | X201: 77% | Y201: 205
A202: 160 | B202: MEURTHE ET MOSELLE MEUSE | C202: 27 | D202: PONT A MOUSSON | E202: 554196 | F202: CHAMPIGNEULLES | G202: 2.6 | H202: 69% | I202: 60% | J202: 193 | K202: 64% | L202: 64% | M202: 161 | N202: 86% | O202: 86% | P202: 205 | Q202: 77% | R202: 47% | S202: 153 | T202: 73% | U202: 73% | V202: 84 | W202: 77% | X202: 77% | Y202: 202
A203: 160 | B203: MOSELLE | C203: 42 | D203: MOSELLE EST | E203: 457258 | F203: DIEUZE | G203: 3.1 | H203: 69% | I203: 60% | J203: 194 | K203: 40% | L203: 40% | M203: 70 | N203: 90% | O203: 90% | P203: 229 | Q203: 86% | R203: 56% | S203: 216 | T203: 83% | U203: 83% | V203: 174 | W203: 79% | X203: 79% | Y203: 227
... 48 more rows

Sheet AG_BANCA
B1: Accueil | H1: BAROMETRE BDD - AGENCES
H2: BANCARISATION
H3: =ACCUEIL!F7 -> 2022-10-23
H7: Ventes Nettes produits pondérés | L7: Ventes sur client non détenteur de l’univers | P7: Total Bancarisation
H8: =DATEMAJ!C8 -> au 23/10 | J8: coef | K8: ='RECAP DIRCOM'!AA4 -> 12% | L8: =DATEMAJ!C9 -> au 23/10 | N8: coef | O8: ='RECAP DIRCOM'!AE4 -> 8% | Q8: coef | R8: ='RECAP DIRCOM'!$AH$4 -> 20%
B9: Direction | C9: eds | D9: Territoire | E9: eds | F9: Agence | G9: ="ETP perf "&DATEMAJ!$C$28 -> ETP perf 23-oct | H9: VN | I9: VN / ETP | J9: % Ecart au 1er | K9: Rang | L9: VB | M9: VB / ETP | N9: % Ecart au 1er | O9: Rang | P9: Moyenne ecart au 1er | Q9: % Ecart au 1er | R9: Rang CEGEE
A10: 50 | B10: AUBE HAUTE MARNE | C10: 21 | D10: CHAUMONT | E10: 410541 | F10: LANGRES | G10: =VLOOKUP($E10,'RECAP AG'!$G$6:$CU$247,3,FALSE) -> 8.0 | H10: =VLOOKUP($E10,'RECAP AG'!$G$6:$CU$247,18,FALSE) -> 245.2 | I10: =VLOOKUP($E10,'RECAP AG'!$G$6:$CU$247,19,FALSE) -> 30.50 | J10: =VLOOKUP($E10,'RECAP AG'!$G$6:$CU$247,20,FALSE) -> 73% | K10: =VLOOKUP($E10,'RECAP AG'!$G$6:$CU$247,21,FALSE) -> 59 | L10: =VLOOKUP($E10,'RECAP AG'!$G$6:$CU$247,22,FALSE) -> 453 | M10: =VLOOKUP($E10,'RECAP AG'!$G$6:$CU$247,23,FALSE) -> 56.34 | N10: =VLOOKUP($E10,'RECAP AG'!$G$6:$CU$247,24,FALSE) -> 65% | O10: =VLOOKUP($E10,'RECAP AG'!$G$6:$CU$247,25,FALSE) -> 158 | P10: =VLOOKUP($E10,'RECAP AG'!$G$6:$CU$247,26,FALSE) -> 70% | Q10: =VLOOKUP($E10,'RECAP AG'!$G$6:$CU$247,27,FALSE) -> 70% | R10: =VLOOKUP($E10,'RECAP AG'!$G$6:$CU$247,28,FALSE) -> 86
A11: 50 | B11: AUBE HAUTE MARNE | C11: 21 | D11: CHAUMONT | E11: 410566 | F11: CHAUMONT HOTEL DE VILLE | G11: =VLOOKUP($E11,'RECAP AG'!$G$6:$CU$247,3,FALSE) -> 10.4 | H11: =VLOOKUP($E11,'RECAP AG'!$G$6:$CU$247,18,FALSE) -> 87.5 | I11: =VLOOKUP($E11,'RECAP AG'!$G$6:$CU$247,19,FALSE) -> 8.41 | J11: =VLOOKUP($E11,'RECAP AG'!$G$6:$CU$247,20,FALSE) -> 93% | K11: =VLOOKUP($E11,'RECAP AG'!$G$6:$CU$247,21,FALSE) -> 177 | L11: =VLOOKUP($E11,'RECAP AG'!$G$6:$CU$247,22,FALSE) -> 562 | M11: =VLOOKUP($E11,'RECAP AG'!$G$6:$CU$247,23,FALSE) -> 54.04 | N11: =VLOOKUP($E11,'RECAP AG'!$G$6:$CU$247,24,FALSE) -> 67% | O11: =VLOOKUP($E11,'RECAP AG'!$G$6:$CU$247,25,FALSE) -> 168 | P11: =VLOOKUP($E11,'RECAP AG'!$G$6:$CU$247,26,FALSE) -> 82% | Q11: =VLOOKUP($E11,'RECAP AG'!$G$6:$CU$247,27,FALSE) -> 82% | R11: =VLOOKUP($E11,'RECAP AG'!$G$6:$CU$247,28,FALSE) -> 181
A12: 50 | B12: AUBE HAUTE MARNE | C12: 21 | D12: CHAUMONT | E12: 510590 | F12: CHAUMONT REPUBLIQUE | G12: =VLOOKUP($E12,'RECAP AG'!$G$6:$CU$247,3,FALSE) -> 2.9 | H12: =VLOOKUP($E12,'RECAP AG'!$G$6:$CU$247,18,FALSE) -> 32.2 | I12: =VLOOKUP($E12,'RECAP AG'!$G$6:$CU$247,19,FALSE) -> 11.22 | J12: =VLOOKUP($E12,'RECAP AG'!$G$6:$CU$247,20,FALSE) -> 90% | K12: =VLOOKUP($E12,'RECAP AG'!$G$6:$CU$247,21,FALSE) -> 162 | L12: =VLOOKUP($E12,'RECAP AG'!$G$6:$CU$247,22,FALSE) -> 208 | M12: =VLOOKUP($E12,'RECAP AG'!$G$6:$CU$247,23,FALSE) -> 72.47 | N12: =VLOOKUP($E12,'RECAP AG'!$G$6:$CU$247,24,FALSE) -> 56% | O12: =VLOOKUP($E12,'RECAP AG'!$G$6:$CU$247,25,FALSE) -> 81 | P12: =VLOOKUP($E12,'RECAP AG'!$G$6:$CU$247,26,FALSE) -> 76% | Q12: =VLOOKUP($E12,'RECAP AG'!$G$6:$CU$247,27,FALSE) -> 76% | R12: =VLOOKUP($E12,'RECAP AG'!$G$6:$CU$247,28,FALSE) -> 135
A13: 50 | B13: AUBE HAUTE MARNE | C13: 21 | D13: CHAUMONT | E13: 451154 | F13: JOINVILLE | G13: =VLOOKUP($E13,'RECAP AG'!$G$6:$CU$247,3,FALSE) -> 1.8 | H13: =VLOOKUP($E13,'RECAP AG'!$G$6:$CU$247,18,FALSE) -> 46.2 | I13: =VLOOKUP($E13,'RECAP AG'!$G$6:$CU$247,19,FALSE) -> 25.67 | J13: =VLOOKUP($E13,'RECAP AG'!$G$6:$CU$247,20,FALSE) -> 77% | K13: =VLOOKUP($E13,'RECAP AG'!$G$6:$CU$247,21,FALSE) -> 79 | L13: =VLOOKUP($E13,'RECAP AG'!$G$6:$CU$247,22,FALSE) -> 152 | M13: =VLOOKUP($E13,'RECAP AG'!$G$6:$CU$247,23,FALSE) -> 84.44 | N13: =VLOOKUP($E13,'RECAP AG'!$G$6:$CU$247,24,FALSE) -> 48% | O13: =VLOOKUP($E13,'RECAP AG'!$G$6:$CU$247,25,FALSE) -> 46 | P13: =VLOOKUP($E13,'RECAP AG'!$G$6:$CU$247,26,FALSE) -> 66% | Q13: =VLOOKUP($E13,'RECAP AG'!$G$6:$CU$247,27,FALSE) -> 66% | R13: =VLOOKUP($E13,'RECAP AG'!$G$6:$CU$247,28,FALSE) -> 55
A14: 50 | B14: AUBE HAUTE MARNE | C14: 21 | D14: CHAUMONT | E14: 451156 | F14: SAINT DIZIER CENTRE | G14: =VLOOKUP($E14,'RECAP AG'!$G$6:$CU$247,3,FALSE) -> 8.6 | H14: =VLOOKUP($E14,'RECAP AG'!$G$6:$CU$247,18,FALSE) -> 128.6 | I14: =VLOOKUP($E14,'RECAP AG'!$G$6:$CU$247,19,FALSE) -> 14.94 | J14: =VLOOKUP($E14,'RECAP AG'!$G$6:$CU$247,20,FALSE) -> 87% | K14: =VLOOKUP($E14,'RECAP AG'!$G$6:$CU$247,21,FALSE) -> 148 | L14: =VLOOKUP($E14,'RECAP AG'!$G$6:$CU$247,22,FALSE) -> 591 | M14: =VLOOKUP($E14,'RECAP AG'!$G$6:$CU$247,23,FALSE) -> 68.64 | N14: =VLOOKUP($E14,'RECAP AG'!$G$6:$CU$247,24,FALSE) -> 58% | O14: =VLOOKUP($E14,'RECAP AG'!$G$6:$CU$247,25,FALSE) -> 95 | P14: =VLOOKUP($E14,'RECAP AG'!$G$6:$CU$247,26,FALSE) -> 75% | Q14: =VLOOKUP($E14,'RECAP AG'!$G$6:$CU$247,27,FALSE) -> 75% | R14: =VLOOKUP($E14,'RECAP AG'!$G$6:$CU$247,28,FALSE) -> 130
A15: 50 | B15: AUBE HAUTE MARNE | C15: 21 | D15: CHAUMONT | E15: 451151 | F15: WASSY | G15: =VLOOKUP($E15,'RECAP AG'!$G$6:$CU$247,3,FALSE) -> 1.9 | H15: =VLOOKUP($E15,'RECAP AG'!$G$6:$CU$247,18,FALSE) -> 21.3 | I15: =VLOOKUP($E15,'RECAP AG'!$G$6:$CU$247,19,FALSE) -> 11.09 | J15: =VLOOKUP($E15,'RECAP AG'!$G$6:$CU$247,20,FALSE) -> 90% | K15: =VLOOKUP($E15,'RECAP AG'!$G$6:$CU$247,21,FALSE) -> 165 | L15: =VLOOKUP($E15,'RECAP AG'!$G$6:$CU$247,22,FALSE) -> 102 | M15: =VLOOKUP($E15,'RECAP AG'!$G$6:$CU$247,23,FALSE) -> 53.13 | N15: =VLOOKUP($E15,'RECAP AG'!$G$6:$CU$247,24,FALSE) -> 67% | O15: =VLOOKUP($E15,'RECAP AG'!$G$6:$CU$247,25,FALSE) -> 176 | P15: =VLOOKUP($E15,'RECAP AG'!$G$6:$CU$247,26,FALSE) -> 81% | Q15: =VLOOKUP($E15,'RECAP AG'!$G$6:$CU$247,27,FALSE) -> 81% | R15: =VLOOKUP($E15,'RECAP AG'!$G$6:$CU$247,28,FALSE) -> 173
A16: 50 | B16: AUBE HAUTE MARNE | C16: 14 | D16: TROYES | E16: 510523 | F16: LA CHAPELLE ST LUC | G16: =VLOOKUP($E16,'RECAP AG'!$G$6:$CU$247,3,FALSE) -> 4.6 | H16: =VLOOKUP($E16,'RECAP AG'!$G$6:$CU$247,18,FALSE) -> 38.4 | I16: =VLOOKUP($E16,'RECAP AG'!$G$6:$CU$247,19,FALSE) -> 8.29 | J16: =VLOOKUP($E16,'RECAP AG'!$G$6:$CU$247,20,FALSE) -> 93% | K16: =VLOOKUP($E16,'RECAP AG'!$G$6:$CU$247,21,FALSE) -> 178 | L16: =VLOOKUP($E16,'RECAP AG'!$G$6:$CU$247,22,FALSE) -> 366 | M16: =VLOOKUP($E16,'RECAP AG'!$G$6:$CU$247,23,FALSE) -> 79.05 | N16: =VLOOKUP($E16,'RECAP AG'!$G$6:$CU$247,24,FALSE) -> 52% | O16: =VLOOKUP($E16,'RECAP AG'!$G$6:$CU$247,25,FALSE) -> 60 | P16: =VLOOKUP($E16,'RECAP AG'!$G$6:$CU$247,26,FALSE) -> 76% | Q16: =VLOOKUP($E16,'RECAP AG'!$G$6:$CU$247,27,FALSE) -> 76% | R16: =VLOOKUP($E16,'RECAP AG'!$G$6:$CU$247,28,FALSE) -> 133
A17: 50 | B17: AUBE HAUTE MARNE | C17: 14 | D17: TROYES | E17: 510530 | F17: ARCIS SUR AUBE | G17: =VLOOKUP($E17,'RECAP AG'!$G$6:$CU$247,3,FALSE) -> 3.7 | H17: =VLOOKUP($E17,'RECAP AG'!$G$6:$CU$247,18,FALSE) -> 55.8 | I17: =VLOOKUP($E17,'RECAP AG'!$G$6:$CU$247,19,FALSE) -> 15.25 | J17: =VLOOKUP($E17,'RECAP AG'!$G$6:$CU$247,20,FALSE) -> 86% | K17: =VLOOKUP($E17,'RECAP AG'!$G$6:$CU$247,21,FALSE) -> 145 | L17: =VLOOKUP($E17,'RECAP AG'!$G$6:$CU$247,22,FALSE) -> 198 | M17: =VLOOKUP($E17,'RECAP AG'!$G$6:$CU$247,23,FALSE) -> 54.10 | N17: =VLOOKUP($E17,'RECAP AG'!$G$6:$CU$247,24,FALSE) -> 67% | O17: =VLOOKUP($E17,'RECAP AG'!$G$6:$CU$247,25,FALSE) -> 166 | P17: =VLOOKUP($E17,'RECAP AG'!$G$6:$CU$247,26,FALSE) -> 79% | Q17: =VLOOKUP($E17,'RECAP AG'!$G$6:$CU$247,27,FALSE) -> 79% | R17: =VLOOKUP($E17,'RECAP AG'!$G$6:$CU$247,28,FALSE) -> 156
A18: 50 | B18: AUBE HAUTE MARNE | C18: 14 | D18: TROYES | E18: 410550 | F18: BAR SUR AUBE | G18: =VLOOKUP($E18,'RECAP AG'!$G$6:$CU$247,3,FALSE) -> 5.3 | H18: =VLOOKUP($E18,'RECAP AG'!$G$6:$CU$247,18,FALSE) -> 52.4 | I18: =VLOOKUP($E18,'RECAP AG'!$G$6:$CU$247,19,FALSE) -> 9.92 | J18: =VLOOKUP($E18,'RECAP AG'!$G$6:$CU$247,20,FALSE) -> 91% | K18: =VLOOKUP($E18,'RECAP AG'!$G$6:$CU$247,21,FALSE) -> 170 | L18: =VLOOKUP($E18,'RECAP AG'!$G$6:$CU$247,22,FALSE) -> 274 | M18: =VLOOKUP($E18,'RECAP AG'!$G$6:$CU$247,23,FALSE) -> 51.89 | N18: =VLOOKUP($E18,'RECAP AG'!$G$6:$CU$247,24,FALSE) -> 68% | O18: =VLOOKUP($E18,'RECAP AG'!$G$6:$CU$247,25,FALSE) -> 183 | P18: =VLOOKUP($E18,'RECAP AG'!$G$6:$CU$247,26,FALSE) -> 82% | Q18: =VLOOKUP($E18,'RECAP AG'!$G$6:$CU$247,27,FALSE) -> 82% | R18: =VLOOKUP($E18,'RECAP AG'!$G$6:$CU$247,28,FALSE) -> 180
A19: 50 | B19: AUBE HAUTE MARNE | C19: 14 | D19: TROYES | E19: 510556 | F19: BAR SUR SEINE | G19: =VLOOKUP($E19,'RECAP AG'!$G$6:$CU$247,3,FALSE) -> 2.7 | H19: =VLOOKUP($E19,'RECAP AG'!$G$6:$CU$247,18,FALSE) -> 11.9 | I19: =VLOOKUP($E19,'RECAP AG'!$G$6:$CU$247,19,FALSE) -> 4.39 | J19: =VLOOKUP($E19,'RECAP AG'!$G$6:$CU$247,20,FALSE) -> 96% | K19: =VLOOKUP($E19,'RECAP AG'!$G$6:$CU$247,21,FALSE) -> 197 | L19: =VLOOKUP($E19,'RECAP AG'!$G$6:$CU$247,22,FALSE) -> 113 | M19: =VLOOKUP($E19,'RECAP AG'!$G$6:$CU$247,23,FALSE) -> 41.70 | N19: =VLOOKUP($E19,'RECAP AG'!$G$6:$CU$247,24,FALSE) -> 74% | O19: =VLOOKUP($E19,'RECAP AG'!$G$6:$CU$247,25,FALSE) -> 226 | P19: =VLOOKUP($E19,'RECAP AG'!$G$6:$CU$247,26,FALSE) -> 87% | Q19: =VLOOKUP($E19,'RECAP AG'!$G$6:$CU$247,27,FALSE) -> 87% | R19: =VLOOKUP($E19,'RECAP AG'!$G$6:$CU$247,28,FALSE) -> 215
A20: 50 | B20: AUBE HAUTE MARNE | C20: 14 | D20: TROYES | E20: 510570 | F20: NOGENT SUR SEINE | G20: =VLOOKUP($E20,'RECAP AG'!$G$6:$CU$247,3,FALSE) -> 4.0 | H20: =VLOOKUP($E20,'RECAP AG'!$G$6:$CU$247,18,FALSE) -> 76.4 | I20: =VLOOKUP($E20,'RECAP AG'!$G$6:$CU$247,19,FALSE) -> 19.05 | J20: =VLOOKUP($E20,'RECAP AG'!$G$6:$CU$247,20,FALSE) -> 83% | K20: =VLOOKUP($E20,'RECAP AG'!$G$6:$CU$247,21,FALSE) -> 118 | L20: =VLOOKUP($E20,'RECAP AG'!$G$6:$CU$247,22,FALSE) -> 246 | M20: =VLOOKUP($E20,'RECAP AG'!$G$6:$CU$247,23,FALSE) -> 61.35 | N20: =VLOOKUP($E20,'RECAP AG'!$G$6:$CU$247,24,FALSE) -> 62% | O20: =VLOOKUP($E20,'RECAP AG'!$G$6:$CU$247,25,FALSE) -> 131 | P20: =VLOOKUP($E20,'RECAP AG'!$G$6:$CU$247,26,FALSE) -> 75% | Q20: =VLOOKUP($E20,'RECAP AG'!$G$6:$CU$247,27,FALSE) -> 75% | R20: =VLOOKUP($E20,'RECAP AG'!$G$6:$CU$247,28,FALSE) -> 124
A21: 50 | B21: AUBE HAUTE MARNE | C21: 14 | D21: TROYES | E21: 410571 | F21: ROMILLY SUR SEINE | G21: =VLOOKUP($E21,'RECAP AG'!$G$6:$CU$247,3,FALSE) -> 4.5 | H21: =VLOOKUP($E21,'RECAP AG'!$G$6:$CU$247,18,FALSE) -> -5.6 | I21: =VLOOKUP($E21,'RECAP AG'!$G$6:$CU$247,19,FALSE) -> -1.24 | J21: =VLOOKUP($E21,'RECAP AG'!$G$6:$CU$247,20,FALSE) -> 101% | K21: =VLOOKUP($E21,'RECAP AG'!$G$6:$CU$247,21,FALSE) -> 218 | L21: =VLOOKUP($E21,'RECAP AG'!$G$6:$CU$247,22,FALSE) -> 270 | M21: =VLOOKUP($E21,'RECAP AG'!$G$6:$CU$247,23,FALSE) -> 59.87 | N21: =VLOOKUP($E21,'RECAP AG'!$G$6:$CU$247,24,FALSE) -> 63% | O21: =VLOOKUP($E21,'RECAP AG'!$G$6:$CU$247,25,FALSE) -> 137 | P21: =VLOOKUP($E21,'RECAP AG'!$G$6:$CU$247,26,FALSE) -> 86% | Q21: =VLOOKUP($E21,'RECAP AG'!$G$6:$CU$247,27,FALSE) -> 86% | R21: =VLOOKUP($E21,'RECAP AG'!$G$6:$CU$247,28,FALSE) -> 206
A22: 50 | B22: AUBE HAUTE MARNE | C22: 14 | D22: TROYES | E22: 510520 | F22: SAINT ANDRE LES VERGERS | G22: =VLOOKUP($E22,'RECAP AG'!$G$6:$CU$247,3,FALSE) -> 3.1 | H22: =VLOOKUP($E22,'RECAP AG'!$G$6:$CU$247,18,FALSE) -> -14.1 | I22: =VLOOKUP($E22,'RECAP AG'!$G$6:$CU$247,19,FALSE) -> -4.56 | J22: =VLOOKUP($E22,'RECAP AG'!$G$6:$CU$247,20,FALSE) -> 104% | K22: =VLOOKUP($E22,'RECAP AG'!$G$6:$CU$247,21,FALSE) -> 226 | L22: =VLOOKUP($E22,'RECAP AG'!$G$6:$CU$247,22,FALSE) -> 228 | M22: =VLOOKUP($E22,'RECAP AG'!$G$6:$CU$247,23,FALSE) -> 73.79 | N22: =VLOOKUP($E22,'RECAP AG'!$G$6:$CU$247,24,FALSE) -> 55% | O22: =VLOOKUP($E22,'RECAP AG'!$G$6:$CU$247,25,FALSE) -> 74 | P22: =VLOOKUP($E22,'RECAP AG'!$G$6:$CU$247,26,FALSE) -> 84% | Q22: =VLOOKUP($E22,'RECAP AG'!$G$6:$CU$247,27,FALSE) -> 84% | R22: =VLOOKUP($E22,'RECAP AG'!$G$6:$CU$247,28,FALSE) -> 194
A23: 50 | B23: AUBE HAUTE MARNE | C23: 14 | D23: TROYES | E23: 410524 | F23: SAINT JULIEN LES VILLAS | G23: =VLOOKUP($E23,'RECAP AG'!$G$6:$CU$247,3,FALSE) -> 5.1 | H23: =VLOOKUP($E23,'RECAP AG'!$G$6:$CU$247,18,FALSE) -> 39.5 | I23: =VLOOKUP($E23,'RECAP AG'!$G$6:$CU$247,19,FALSE) -> 7.68 | J23: =VLOOKUP($E23,'RECAP AG'!$G$6:$CU$247,20,FALSE) -> 93% | K23: =VLOOKUP($E23,'RECAP AG'!$G$6:$CU$247,21,FALSE) -> 183 | L23: =VLOOKUP($E23,'RECAP AG'!$G$6:$CU$247,22,FALSE) -> 294 | M23: =VLOOKUP($E23,'RECAP AG'!$G$6:$CU$247,23,FALSE) -> 57.20 | N23: =VLOOKUP($E23,'RECAP AG'!$G$6:$CU$247,24,FALSE) -> 65% | O23: =VLOOKUP($E23,'RECAP AG'!$G$6:$CU$247,25,FALSE) -> 153 | P23: =VLOOKUP($E23,'RECAP AG'!$G$6:$CU$247,26,FALSE) -> 82% | Q23: =VLOOKUP($E23,'RECAP AG'!$G$6:$CU$247,27,FALSE) -> 82% | R23: =VLOOKUP($E23,'RECAP AG'!$G$6:$CU$247,28,FALSE) -> 177
A24: 50 | B24: AUBE HAUTE MARNE | C24: 14 | D24: TROYES | E24: 410521 | F24: SAINTE SAVINE | G24: =VLOOKUP($E24,'RECAP AG'!$G$6:$CU$247,3,FALSE) -> 4.1 | H24: =VLOOKUP($E24,'RECAP AG'!$G$6:$CU$247,18,FALSE) -> 6.5 | I24: =VLOOKUP($E24,'RECAP AG'!$G$6:$CU$247,19,FALSE) -> 1.58 | J24: =VLOOKUP($E24,'RECAP AG'!$G$6:$CU$247,20,FALSE) -> 99% | K24: =VLOOKUP($E24,'RECAP AG'!$G$6:$CU$247,21,FALSE) -> 211 | L24: =VLOOKUP($E24,'RECAP AG'!$G$6:$CU$247,22,FALSE) -> 233 | M24: =VLOOKUP($E24,'RECAP AG'!$G$6:$CU$247,23,FALSE) -> 56.55 | N24: =VLOOKUP($E24,'RECAP AG'!$G$6:$CU$247,24,FALSE) -> 65% | O24: =VLOOKUP($E24,'RECAP AG'!$G$6:$CU$247,25,FALSE) -> 156 | P24: =VLOOKUP($E24,'RECAP AG'!$G$6:$CU$247,26,FALSE) -> 85% | Q24: =VLOOKUP($E24,'RECAP AG'!$G$6:$CU$247,27,FALSE) -> 85% | R24: =VLOOKUP($E24,'RECAP AG'!$G$6:$CU$247,28,FALSE) -> 199
A25: 50 | B25: AUBE HAUTE MARNE | C25: 14 | D25: TROYES | E25: 510513 | F25: SAINT PARRES AUX TERTRES | G25: =VLOOKUP($E25,'RECAP AG'!$G$6:$CU$247,3,FALSE) -> 2.7 | H25: =VLOOKUP($E25,'RECAP AG'!$G$6:$CU$247,18,FALSE) -> 58.0 | I25: =VLOOKUP($E25,'RECAP AG'!$G$6:$CU$247,19,FALSE) -> 21.48 | J25: =VLOOKUP($E25,'RECAP AG'!$G$6:$CU$247,20,FALSE) -> 81% | K25: =VLOOKUP($E25,'RECAP AG'!$G$6:$CU$247,21,FALSE) -> 105 | L25: =VLOOKUP($E25,'RECAP AG'!$G$6:$CU$247,22,FALSE) -> 232 | M25: =VLOOKUP($E25,'RECAP AG'!$G$6:$CU$247,23,FALSE) -> 85.93 | N25: =VLOOKUP($E25,'RECAP AG'!$G$6:$CU$247,24,FALSE) -> 47% | O25: =VLOOKUP($E25,'RECAP AG'!$G$6:$CU$247,25,FALSE) -> 43 | P25: =VLOOKUP($E25,'RECAP AG'!$G$6:$CU$247,26,FALSE) -> 67% | Q25: =VLOOKUP($E25,'RECAP AG'!$G$6:$CU$247,27,FALSE) -> 67% | R25: =VLOOKUP($E25,'RECAP AG'!$G$6:$CU$247,28,FALSE) -> 68
A26: 50 | B26: AUBE HAUTE MARNE | C26: 14 | D26: TROYES | E26: 410510 | F26: TROYES GAMBETTA | G26: =VLOOKUP($E26,'RECAP AG'!$G$6:$CU$247,3,FALSE) -> 8.6 | H26: =VLOOKUP($E26,'RECAP AG'!$G$6:$CU$247,18,FALSE) -> 137.0 | I26: =VLOOKUP($E26,'RECAP AG'!$G$6:$CU$247,19,FALSE) -> 15.86 | J26: =VLOOKUP($E26,'RECAP AG'!$G$6:$CU$247,20,FALSE) -> 86% | K26: =VLOOKUP($E26,'RECAP AG'!$G$6:$CU$247,21,FALSE) -> 140 | L26: =VLOOKUP($E26,'RECAP AG'!$G$6:$CU$247,22,FALSE) -> 532 | M26: =VLOOKUP($E26,'RECAP AG'!$G$6:$CU$247,23,FALSE) -> 61.57 | N26: =VLOOKUP($E26,'RECAP AG'!$G$6:$CU$247,24,FALSE) -> 62% | O26: =VLOOKUP($E26,'RECAP AG'!$G$6:$CU$247,25,FALSE) -> 129 | P26: =VLOOKUP($E26,'RECAP AG'!$G$6:$CU$247,26,FALSE) -> 76% | Q26: =VLOOKUP($E26,'RECAP AG'!$G$6:$CU$247,27,FALSE) -> 76% | R26: =VLOOKUP($E26,'RECAP AG'!$G$6:$CU$247,28,FALSE) -> 140
A27: 50 | B27: AUBE HAUTE MARNE | C27: 14 | D27: TROYES | E27: 410512 | F27: TROYES ZOLA | G27: =VLOOKUP($E27,'RECAP AG'!$G$6:$CU$247,3,FALSE) -> 5.5 | H27: =VLOOKUP($E27,'RECAP AG'!$G$6:$CU$247,18,FALSE) -> -21.6 | I27: =VLOOKUP($E27,'RECAP AG'!$G$6:$CU$247,19,FALSE) -> -3.90 | J27: =VLOOKUP($E27,'RECAP AG'!$G$6:$CU$247,20,FALSE) -> 103% | K27: =VLOOKUP($E27,'RECAP AG'!$G$6:$CU$247,21,FALSE) -> 225 | L27: =VLOOKUP($E27,'RECAP AG'!$G$6:$CU$247,22,FALSE) -> 314 | M27: =VLOOKUP($E27,'RECAP AG'!$G$6:$CU$247,23,FALSE) -> 56.68 | N27: =VLOOKUP($E27,'RECAP AG'!$G$6:$CU$247,24,FALSE) -> 65% | O27: =VLOOKUP($E27,'RECAP AG'!$G$6:$CU$247,25,FALSE) -> 155 | P27: =VLOOKUP($E27,'RECAP AG'!$G$6:$CU$247,26,FALSE) -> 88% | Q27: =VLOOKUP($E27,'RECAP AG'!$G$6:$CU$247,27,FALSE) -> 88% | R27: =VLOOKUP($E27,'RECAP AG'!$G$6:$CU$247,28,FALSE) -> 219
A28: 262 | B28: BAS RHIN | C28: 5060 | D28: HAGUENAU | E28: 4057 | F28: BISCHWILLER | G28: =VLOOKUP($E28,'RECAP AG'!$G$6:$CU$247,3,FALSE) -> 6.8 | H28: =VLOOKUP($E28,'RECAP AG'!$G$6:$CU$247,18,FALSE) -> 276.2 | I28: =VLOOKUP($E28,'RECAP AG'!$G$6:$CU$247,19,FALSE) -> 40.38 | J28: =VLOOKUP($E28,'RECAP AG'!$G$6:$CU$247,20,FALSE) -> 64% | K28: =VLOOKUP($E28,'RECAP AG'!$G$6:$CU$247,21,FALSE) -> 25 | L28: =VLOOKUP($E28,'RECAP AG'!$G$6:$CU$247,22,FALSE) -> 356 | M28: =VLOOKUP($E28,'RECAP AG'!$G$6:$CU$247,23,FALSE) -> 52.05 | N28: =VLOOKUP($E28,'RECAP AG'!$G$6:$CU$247,24,FALSE) -> 68% | O28: =VLOOKUP($E28,'RECAP AG'!$G$6:$CU$247,25,FALSE) -> 182 | P28: =VLOOKUP($E28,'RECAP AG'!$G$6:$CU$247,26,FALSE) -> 66% | Q28: =VLOOKUP($E28,'RECAP AG'!$G$6:$CU$247,27,FALSE) -> 66% | R28: =VLOOKUP($E28,'RECAP AG'!$G$6:$CU$247,28,FALSE) -> 56
A29: 262 | B29: BAS RHIN | C29: 5060 | D29: HAGUENAU | E29: 4082 | F29: BOUXWILLER | G29: =VLOOKUP($E29,'RECAP AG'!$G$6:$CU$247,3,FALSE) -> 2.4 | H29: =VLOOKUP($E29,'RECAP AG'!$G$6:$CU$247,18,FALSE) -> 22.8 | I29: =VLOOKUP($E29,'RECAP AG'!$G$6:$CU$247,19,FALSE) -> 9.46 | J29: =VLOOKUP($E29,'RECAP AG'!$G$6:$CU$247,20,FALSE) -> 92% | K29: =VLOOKUP($E29,'RECAP AG'!$G$6:$CU$247,21,FALSE) -> 173 | L29: =VLOOKUP($E29,'RECAP AG'!$G$6:$CU$247,22,FALSE) -> 122 | M29: =VLOOKUP($E29,'RECAP AG'!$G$6:$CU$247,23,FALSE) -> 50.62 | N29: =VLOOKUP($E29,'RECAP AG'!$G$6:$CU$247,24,FALSE) -> 69% | O29: =VLOOKUP($E29,'RECAP AG'!$G$6:$CU$247,25,FALSE) -> 194 | P29: =VLOOKUP($E29,'RECAP AG'!$G$6:$CU$247,26,FALSE) -> 83% | Q29: =VLOOKUP($E29,'RECAP AG'!$G$6:$CU$247,27,FALSE) -> 83% | R29: =VLOOKUP($E29,'RECAP AG'!$G$6:$CU$247,28,FALSE) -> 183
A30: 262 | B30: BAS RHIN | C30: 5060 | D30: HAGUENAU | E30: 4030 | F30: BRUMATH | G30: =VLOOKUP($E30,'RECAP AG'!$G$6:$CU$247,3,FALSE) -> 3.8 | H30: =VLOOKUP($E30,'RECAP AG'!$G$6:$CU$247,18,FALSE) -> 138.9 | I30: =VLOOKUP($E30,'RECAP AG'!$G$6:$CU$247,19,FALSE) -> 36.65 | J30: =VLOOKUP($E30,'RECAP AG'!$G$6:$CU$247,20,FALSE) -> 67% | K30: =VLOOKUP($E30,'RECAP AG'!$G$6:$CU$247,21,FALSE) -> 35 | L30: =VLOOKUP($E30,'RECAP AG'!$G$6:$CU$247,22,FALSE) -> 208 | M30: =VLOOKUP($E30,'RECAP AG'!$G$6:$CU$247,23,FALSE) -> 54.88 | N30: =VLOOKUP($E30,'RECAP AG'!$G$6:$CU$247,24,FALSE) -> 66% | O30: =VLOOKUP($E30,'RECAP AG'!$G$6:$CU$247,25,FALSE) -> 163 | P30: =VLOOKUP($E30,'RECAP AG'!$G$6:$CU$247,26,FALSE) -> 67% | Q30: =VLOOKUP($E30,'RECAP AG'!$G$6:$CU$247,27,FALSE) -> 67% | R30: =VLOOKUP($E30,'RECAP AG'!$G$6:$CU$247,28,FALSE) -> 63
A31: 262 | B31: BAS RHIN | C31: 5060 | D31: HAGUENAU | E31: 4060 | F31: HAGUENAU HOUBLON | G31: =VLOOKUP($E31,'RECAP AG'!$G$6:$CU$247,3,FALSE) -> 8.5 | H31: =VLOOKUP($E31,'RECAP AG'!$G$6:$CU$247,18,FALSE) -> 105.1 | I31: =VLOOKUP($E31,'RECAP AG'!$G$6:$CU$247,19,FALSE) -> 12.31 | J31: =VLOOKUP($E31,'RECAP AG'!$G$6:$CU$247,20,FALSE) -> 89% | K31: =VLOOKUP($E31,'RECAP AG'!$G$6:$CU$247,21,FALSE) -> 158 | L31: =VLOOKUP($E31,'RECAP AG'!$G$6:$CU$247,22,FALSE) -> 461 | M31: =VLOOKUP($E31,'RECAP AG'!$G$6:$CU$247,23,FALSE) -> 53.98 | N31: =VLOOKUP($E31,'RECAP AG'!$G$6:$CU$247,24,FALSE) -> 67% | O31: =VLOOKUP($E31,'RECAP AG'!$G$6:$CU$247,25,FALSE) -> 169 | P31: =VLOOKUP($E31,'RECAP AG'!$G$6:$CU$247,26,FALSE) -> 80% | Q31: =VLOOKUP($E31,'RECAP AG'!$G$6:$CU$247,27,FALSE) -> 80% | R31: =VLOOKUP($E31,'RECAP AG'!$G$6:$CU$247,28,FALSE) -> 167
A32: 262 | B32: BAS RHIN | C32: 5060 | D32: HAGUENAU | E32: 4092 | F32: HOCHFELDEN | G32: =VLOOKUP($E32,'RECAP AG'!$G$6:$CU$247,3,FALSE) -> 2.1 | H32: =VLOOKUP($E32,'RECAP AG'!$G$6:$CU$247,18,FALSE) -> 24.3 | I32: =VLOOKUP($E32,'RECAP AG'!$G$6:$CU$247,19,FALSE) -> 11.80 | J32: =VLOOKUP($E32,'RECAP AG'!$G$6:$CU$247,20,FALSE) -> 90% | K32: =VLOOKUP($E32,'RECAP AG'!$G$6:$CU$247,21,FALSE) -> 160 | L32: =VLOOKUP($E32,'RECAP AG'!$G$6:$CU$247,22,FALSE) -> 135 | M32: =VLOOKUP($E32,'RECAP AG'!$G$6:$CU$247,23,FALSE) -> 65.53 | N32: =VLOOKUP($E32,'RECAP AG'!$G$6:$CU$247,24,FALSE) -> 60% | O32: =VLOOKUP($E32,'RECAP AG'!$G$6:$CU$247,25,FALSE) -> 112 | P32: =VLOOKUP($E32,'RECAP AG'!$G$6:$CU$247,26,FALSE) -> 78% | Q32: =VLOOKUP($E32,'RECAP AG'!$G$6:$CU$247,27,FALSE) -> 78% | R32: =VLOOKUP($E32,'RECAP AG'!$G$6:$CU$247,28,FALSE) -> 146
A33: 262 | B33: BAS RHIN | C33: 5060 | D33: HAGUENAU | E33: 4041 | F33: HOERDT | G33: =VLOOKUP($E33,'RECAP AG'!$G$6:$CU$247,3,FALSE) -> 1.7 | H33: =VLOOKUP($E33,'RECAP AG'!$G$6:$CU$247,18,FALSE) -> 27.7 | I33: =VLOOKUP($E33,'RECAP AG'!$G$6:$CU$247,19,FALSE) -> 16.49 | J33: =VLOOKUP($E33,'RECAP AG'!$G$6:$CU$247,20,FALSE) -> 85% | K33: =VLOOKUP($E33,'RECAP AG'!$G$6:$CU$247,21,FALSE) -> 134 | L33: =VLOOKUP($E33,'RECAP AG'!$G$6:$CU$247,22,FALSE) -> 86 | M33: =VLOOKUP($E33,'RECAP AG'!$G$6:$CU$247,23,FALSE) -> 51.19 | N33: =VLOOKUP($E33,'RECAP AG'!$G$6:$CU$247,24,FALSE) -> 69% | O33: =VLOOKUP($E33,'RECAP AG'!$G$6:$CU$247,25,FALSE) -> 191 | P33: =VLOOKUP($E33,'RECAP AG'!$G$6:$CU$247,26,FALSE) -> 79% | Q33: =VLOOKUP($E33,'RECAP AG'!$G$6:$CU$247,27,FALSE) -> 79% | R33: =VLOOKUP($E33,'RECAP AG'!$G$6:$CU$247,28,FALSE) -> 157
A34: 262 | B34: BAS RHIN | C34: 5060 | D34: HAGUENAU | E34: 4085 | F34: INGWILLER | G34: =VLOOKUP($E34,'RECAP AG'!$G$6:$CU$247,3,FALSE) -> 3.5 | H34: =VLOOKUP($E34,'RECAP AG'!$G$6:$CU$247,18,FALSE) -> 55.6 | I34: =VLOOKUP($E34,'RECAP AG'!$G$6:$CU$247,19,FALSE) -> 15.75 | J34: =VLOOKUP($E34,'RECAP AG'!$G$6:$CU$247,20,FALSE) -> 86% | K34: =VLOOKUP($E34,'RECAP AG'!$G$6:$CU$247,21,FALSE) -> 141 | L34: =VLOOKUP($E34,'RECAP AG'!$G$6:$CU$247,22,FALSE) -> 209 | M34: =VLOOKUP($E34,'RECAP AG'!$G$6:$CU$247,23,FALSE) -> 59.21 | N34: =VLOOKUP($E34,'RECAP AG'!$G$6:$CU$247,24,FALSE) -> 64% | O34: =VLOOKUP($E34,'RECAP AG'!$G$6:$CU$247,25,FALSE) -> 142 | P34: =VLOOKUP($E34,'RECAP AG'!$G$6:$CU$247,26,FALSE) -> 77% | Q34: =VLOOKUP($E34,'RECAP AG'!$G$6:$CU$247,27,FALSE) -> 77% | R34: =VLOOKUP($E34,'RECAP AG'!$G$6:$CU$247,28,FALSE) -> 141
A35: 262 | B35: BAS RHIN | C35: 5060 | D35: HAGUENAU | E35: 4066 | F35: NIEDERBRONN LES BAINS | G35: =VLOOKUP($E35,'RECAP AG'!$G$6:$CU$247,3,FALSE) -> 5.7 | H35: =VLOOKUP($E35,'RECAP AG'!$G$6:$CU$247,18,FALSE) -> 15.3 | I35: =VLOOKUP($E35,'RECAP AG'!$G$6:$CU$247,19,FALSE) -> 2.69 | J35: =VLOOKUP($E35,'RECAP AG'!$G$6:$CU$247,20,FALSE) -> 98% | K35: =VLOOKUP($E35,'RECAP AG'!$G$6:$CU$247,21,FALSE) -> 206 | L35: =VLOOKUP($E35,'RECAP AG'!$G$6:$CU$247,22,FALSE) -> 303 | M35: =VLOOKUP($E35,'RECAP AG'!$G$6:$CU$247,23,FALSE) -> 53.25 | N35: =VLOOKUP($E35,'RECAP AG'!$G$6:$CU$247,24,FALSE) -> 67% | O35: =VLOOKUP($E35,'RECAP AG'!$G$6:$CU$247,25,FALSE) -> 174 | P35: =VLOOKUP($E35,'RECAP AG'!$G$6:$CU$247,26,FALSE) -> 86% | Q35: =VLOOKUP($E35,'RECAP AG'!$G$6:$CU$247,27,FALSE) -> 86% | R35: =VLOOKUP($E35,'RECAP AG'!$G$6:$CU$247,28,FALSE) -> 201
A36: 262 | B36: BAS RHIN | C36: 5060 | D36: HAGUENAU | E36: 4067 | F36: PFAFFENHOFFEN | G36: =VLOOKUP($E36,'RECAP AG'!$G$6:$CU$247,3,FALSE) -> 1.9 | H36: =VLOOKUP($E36,'RECAP AG'!$G$6:$CU$247,18,FALSE) -> 52.5 | I36: =VLOOKUP($E36,'RECAP AG'!$G$6:$CU$247,19,FALSE) -> 28.07 | J36: =VLOOKUP($E36,'RECAP AG'!$G$6:$CU$247,20,FALSE) -> 75% | K36: =VLOOKUP($E36,'RECAP AG'!$G$6:$CU$247,21,FALSE) -> 66 | L36: =VLOOKUP($E36,'RECAP AG'!$G$6:$CU$247,22,FALSE) -> 120 | M36: =VLOOKUP($E36,'RECAP AG'!$G$6:$CU$247,23,FALSE) -> 64.17 | N36: =VLOOKUP($E36,'RECAP AG'!$G$6:$CU$247,24,FALSE) -> 61% | O36: =VLOOKUP($E36,'RECAP AG'!$G$6:$CU$247,25,FALSE) -> 120 | P36: =VLOOKUP($E36,'RECAP AG'!$G$6:$CU$247,26,FALSE) -> 69% | Q36: =VLOOKUP($E36,'RECAP AG'!$G$6:$CU$247,27,FALSE) -> 69% | R36: =VLOOKUP($E36,'RECAP AG'!$G$6:$CU$247,28,FALSE) -> 80
A37: 262 | B37: BAS RHIN | C37: 5060 | D37: HAGUENAU | E37: 4095 | F37: SARRE UNION | G37: =VLOOKUP($E37,'RECAP AG'!$G$6:$CU$247,3,FALSE) -> 2.9 | H37: =VLOOKUP($E37,'RECAP AG'!$G$6:$CU$247,18,FALSE) -> 29.7 | I37: =VLOOKUP($E37,'RECAP AG'!$G$6:$CU$247,19,FALSE) -> 10.35 | J37: =VLOOKUP($E37,'RECAP AG'!$G$6:$CU$247,20,FALSE) -> 91% | K37: =VLOOKUP($E37,'RECAP AG'!$G$6:$CU$247,21,FALSE) -> 168 | L37: =VLOOKUP($E37,'RECAP AG'!$G$6:$CU$247,22,FALSE) -> 141 | M37: =VLOOKUP($E37,'RECAP AG'!$G$6:$CU$247,23,FALSE) -> 49.13 | N37: =VLOOKUP($E37,'RECAP AG'!$G$6:$CU$247,24,FALSE) -> 70% | O37: =VLOOKUP($E37,'RECAP AG'!$G$6:$CU$247,25,FALSE) -> 201 | P37: =VLOOKUP($E37,'RECAP AG'!$G$6:$CU$247,26,FALSE) -> 82% | Q37: =VLOOKUP($E37,'RECAP AG'!$G$6:$CU$247,27,FALSE) -> 82% | R37: =VLOOKUP($E37,'RECAP AG'!$G$6:$CU$247,28,FALSE) -> 182
A38: 262 | B38: BAS RHIN | C38: 5060 | D38: HAGUENAU | E38: 4087 | F38: SAVERNE | G38: =VLOOKUP($E38,'RECAP AG'!$G$6:$CU$247,3,FALSE) -> 5.6 | H38: =VLOOKUP($E38,'RECAP AG'!$G$6:$CU$247,18,FALSE) -> 146.9 | I38: =VLOOKUP($E38,'RECAP AG'!$G$6:$CU$247,19,FALSE) -> 26.09 | J38: =VLOOKUP($E38,'RECAP AG'!$G$6:$CU$247,20,FALSE) -> 77% | K38: =VLOOKUP($E38,'RECAP AG'!$G$6:$CU$247,21,FALSE) -> 76 | L38: =VLOOKUP($E38,'RECAP AG'!$G$6:$CU$247,22,FALSE) -> 291 | M38: =VLOOKUP($E38,'RECAP AG'!$G$6:$CU$247,23,FALSE) -> 51.69 | N38: =VLOOKUP($E38,'RECAP AG'!$G$6:$CU$247,24,FALSE) -> 68% | O38: =VLOOKUP($E38,'RECAP AG'!$G$6:$CU$247,25,FALSE) -> 185 | P38: =VLOOKUP($E38,'RECAP AG'!$G$6:$CU$247,26,FALSE) -> 73% | Q38: =VLOOKUP($E38,'RECAP AG'!$G$6:$CU$247,27,FALSE) -> 73% | R38: =VLOOKUP($E38,'RECAP AG'!$G$6:$CU$247,28,FALSE) -> 113
A39: 262 | B39: BAS RHIN | C39: 5060 | D39: HAGUENAU | E39: 4031 | F39: TRUCHTERSHEIM | G39: =VLOOKUP($E39,'RECAP AG'!$G$6:$CU$247,3,FALSE) -> 2.4 | H39: =VLOOKUP($E39,'RECAP AG'!$G$6:$CU$247,18,FALSE) -> 91.2 | I39: =VLOOKUP($E39,'RECAP AG'!$G$6:$CU$247,19,FALSE) -> 38.48 | J39: =VLOOKUP($E39,'RECAP AG'!$G$6:$CU$247,20,FALSE) -> 66% | K39: =VLOOKUP($E39,'RECAP AG'!$G$6:$CU$247,21,FALSE) -> 31 | L39: =VLOOKUP($E39,'RECAP AG'!$G$6:$CU$247,22,FALSE) -> 95 | M39: =VLOOKUP($E39,'RECAP AG'!$G$6:$CU$247,23,FALSE) -> 40.08 | N39: =VLOOKUP($E39,'RECAP AG'!$G$6:$CU$247,24,FALSE) -> 75% | O39: =VLOOKUP($E39,'RECAP AG'!$G$6:$CU$247,25,FALSE) -> 230 | P39: =VLOOKUP($E39,'RECAP AG'!$G$6:$CU$247,26,FALSE) -> 70% | Q39: =VLOOKUP($E39,'RECAP AG'!$G$6:$CU$247,27,FALSE) -> 70% | R39: =VLOOKUP($E39,'RECAP AG'!$G$6:$CU$247,28,FALSE) -> 83
A40: 262 | B40: BAS RHIN | C40: 5060 | D40: HAGUENAU | E40: 4071 | F40: WISSEMBOURG | G40: =VLOOKUP($E40,'RECAP AG'!$G$6:$CU$247,3,FALSE) -> 8.1 | H40: =VLOOKUP($E40,'RECAP AG'!$G$6:$CU$247,18,FALSE) -> 178.3 | I40: =VLOOKUP($E40,'RECAP AG'!$G$6:$CU$247,19,FALSE) -> 21.96 | J40: =VLOOKUP($E40,'RECAP AG'!$G$6:$CU$247,20,FALSE) -> 80% | K40: =VLOOKUP($E40,'RECAP AG'!$G$6:$CU$247,21,FALSE) -> 101 | L40: =VLOOKUP($E40,'RECAP AG'!$G$6:$CU$247,22,FALSE) -> 538 | M40: =VLOOKUP($E40,'RECAP AG'!$G$6:$CU$247,23,FALSE) -> 66.26 | N40: =VLOOKUP($E40,'RECAP AG'!$G$6:$CU$247,24,FALSE) -> 59% | O40: =VLOOKUP($E40,'RECAP AG'!$G$6:$CU$247,25,FALSE) -> 108 | P40: =VLOOKUP($E40,'RECAP AG'!$G$6:$CU$247,26,FALSE) -> 72% | Q40: =VLOOKUP($E40,'RECAP AG'!$G$6:$CU$247,27,FALSE) -> 72% | R40: =VLOOKUP($E40,'RECAP AG'!$G$6:$CU$247,28,FALSE) -> 101
A41: 262 | B41: BAS RHIN | C41: 5101 | D41: SELESTAT | E41: 4113 | F41: BARR | G41: =VLOOKUP($E41,'RECAP AG'!$G$6:$CU$247,3,FALSE) -> 2.9 | H41: =VLOOKUP($E41,'RECAP AG'!$G$6:$CU$247,18,FALSE) -> 118.7 | I41: =VLOOKUP($E41,'RECAP AG'!$G$6:$CU$247,19,FALSE) -> 41.36 | J41: =VLOOKUP($E41,'RECAP AG'!$G$6:$CU$247,20,FALSE) -> 63% | K41: =VLOOKUP($E41,'RECAP AG'!$G$6:$CU$247,21,FALSE) -> 23 | L41: =VLOOKUP($E41,'RECAP AG'!$G$6:$CU$247,22,FALSE) -> 203 | M41: =VLOOKUP($E41,'RECAP AG'!$G$6:$CU$247,23,FALSE) -> 70.73 | N41: =VLOOKUP($E41,'RECAP AG'!$G$6:$CU$247,24,FALSE) -> 57% | O41: =VLOOKUP($E41,'RECAP AG'!$G$6:$CU$247,25,FALSE) -> 87 | P41: =VLOOKUP($E41,'RECAP AG'!$G$6:$CU$247,26,FALSE) -> 61% | Q41: =VLOOKUP($E41,'RECAP AG'!$G$6:$CU$247,27,FALSE) -> 61% | R41: =VLOOKUP($E41,'RECAP AG'!$G$6:$CU$247,28,FALSE) -> 40
A42: 262 | B42: BAS RHIN | C42: 5101 | D42: SELESTAT | E42: 4111 | F42: BENFELD | G42: =VLOOKUP($E42,'RECAP AG'!$G$6:$CU$247,3,FALSE) -> 3.1 | H42: =VLOOKUP($E42,'RECAP AG'!$G$6:$CU$247,18,FALSE) -> 14.3 | I42: =VLOOKUP($E42,'RECAP AG'!$G$6:$CU$247,19,FALSE) -> 4.61 | J42: =VLOOKUP($E42,'RECAP AG'!$G$6:$CU$247,20,FALSE) -> 96% | K42: =VLOOKUP($E42,'RECAP AG'!$G$6:$CU$247,21,FALSE) -> 195 | L42: =VLOOKUP($E42,'RECAP AG'!$G$6:$CU$247,22,FALSE) -> 134 | M42: =VLOOKUP($E42,'RECAP AG'!$G$6:$CU$247,23,FALSE) -> 43.23 | N42: =VLOOKUP($E42,'RECAP AG'!$G$6:$CU$247,24,FALSE) -> 74% | O42: =VLOOKUP($E42,'RECAP AG'!$G$6:$CU$247,25,FALSE) -> 222 | P42: =VLOOKUP($E42,'RECAP AG'!$G$6:$CU$247,26,FALSE) -> 87% | Q42: =VLOOKUP($E42,'RECAP AG'!$G$6:$CU$247,27,FALSE) -> 87% | R42: =VLOOKUP($E42,'RECAP AG'!$G$6:$CU$247,28,FALSE) -> 209
A43: 262 | B43: BAS RHIN | C43: 5101 | D43: SELESTAT | E43: 4104 | F43: ERSTEIN | G43: =VLOOKUP($E43,'RECAP AG'!$G$6:$CU$247,3,FALSE) -> 4.0 | H43: =VLOOKUP($E43,'RECAP AG'!$G$6:$CU$247,18,FALSE) -> 204.2 | I43: =VLOOKUP($E43,'RECAP AG'!$G$6:$CU$247,19,FALSE) -> 50.67 | J43: =VLOOKUP($E43,'RECAP AG'!$G$6:$CU$247,20,FALSE) -> 55% | K43: =VLOOKUP($E43,'RECAP AG'!$G$6:$CU$247,21,FALSE) -> 8 | L43: =VLOOKUP($E43,'RECAP AG'!$G$6:$CU$247,22,FALSE) -> 284 | M43: =VLOOKUP($E43,'RECAP AG'!$G$6:$CU$247,23,FALSE) -> 70.47 | N43: =VLOOKUP($E43,'RECAP AG'!$G$6:$CU$247,24,FALSE) -> 57% | O43: =VLOOKUP($E43,'RECAP AG'!$G$6:$CU$247,25,FALSE) -> 88 | P43: =VLOOKUP($E43,'RECAP AG'!$G$6:$CU$247,26,FALSE) -> 56% | Q43: =VLOOKUP($E43,'RECAP AG'!$G$6:$CU$247,27,FALSE) -> 56% | R43: =VLOOKUP($E43,'RECAP AG'!$G$6:$CU$247,28,FALSE) -> 20
A44: 262 | B44: BAS RHIN | C44: 5101 | D44: SELESTAT | E44: 4008 | F44: FEGERSHEIM | G44: =VLOOKUP($E44,'RECAP AG'!$G$6:$CU$247,3,FALSE) -> 2.4 | H44: =VLOOKUP($E44,'RECAP AG'!$G$6:$CU$247,18,FALSE) -> 80.3 | I44: =VLOOKUP($E44,'RECAP AG'!$G$6:$CU$247,19,FALSE) -> 34.03 | J44: =VLOOKUP($E44,'RECAP AG'!$G$6:$CU$247,20,FALSE) -> 70% | K44: =VLOOKUP($E44,'RECAP AG'!$G$6:$CU$247,21,FALSE) -> 48 | L44: =VLOOKUP($E44,'RECAP AG'!$G$6:$CU$247,22,FALSE) -> 104 | M44: =VLOOKUP($E44,'RECAP AG'!$G$6:$CU$247,23,FALSE) -> 44.07 | N44: =VLOOKUP($E44,'RECAP AG'!$G$6:$CU$247,24,FALSE) -> 73% | O44: =VLOOKUP($E44,'RECAP AG'!$G$6:$CU$247,25,FALSE) -> 219 | P44: =VLOOKUP($E44,'RECAP AG'!$G$6:$CU$247,26,FALSE) -> 71% | Q44: =VLOOKUP($E44,'RECAP AG'!$G$6:$CU$247,27,FALSE) -> 71% | R44: =VLOOKUP($E44,'RECAP AG'!$G$6:$CU$247,28,FALSE) -> 93
A45: 262 | B45: BAS RHIN | C45: 5101 | D45: SELESTAT | E45: 4007 | F45: ILLKIRCH CENTRE | G45: =VLOOKUP($E45,'RECAP AG'!$G$6:$CU$247,3,FALSE) -> 6.4 | H45: =VLOOKUP($E45,'RECAP AG'!$G$6:$CU$247,18,FALSE) -> 97.4 | I45: =VLOOKUP($E45,'RECAP AG'!$G$6:$CU$247,19,FALSE) -> 15.29 | J45: =VLOOKUP($E45,'RECAP AG'!$G$6:$CU$247,20,FALSE) -> 86% | K45: =VLOOKUP($E45,'RECAP AG'!$G$6:$CU$247,21,FALSE) -> 144 | L45: =VLOOKUP($E45,'RECAP AG'!$G$6:$CU$247,22,FALSE) -> 349 | M45: =VLOOKUP($E45,'RECAP AG'!$G$6:$CU$247,23,FALSE) -> 54.79 | N45: =VLOOKUP($E45,'RECAP AG'!$G$6:$CU$247,24,FALSE) -> 66% | O45: =VLOOKUP($E45,'RECAP AG'!$G$6:$CU$247,25,FALSE) -> 165 | P45: =VLOOKUP($E45,'RECAP AG'!$G$6:$CU$247,26,FALSE) -> 78% | Q45: =VLOOKUP($E45,'RECAP AG'!$G$6:$CU$247,27,FALSE) -> 78% | R45: =VLOOKUP($E45,'RECAP AG'!$G$6:$CU$247,28,FALSE) -> 154
A46: 262 | B46: BAS RHIN | C46: 5101 | D46: SELESTAT | E46: 4015 | F46: LINGOLSHEIM | G46: =VLOOKUP($E46,'RECAP AG'!$G$6:$CU$247,3,FALSE) -> 2.6 | H46: =VLOOKUP($E46,'RECAP AG'!$G$6:$CU$247,18,FALSE) -> -35.1 | I46: =VLOOKUP($E46,'RECAP AG'!$G$6:$CU$247,19,FALSE) -> -13.66 | J46: =VLOOKUP($E46,'RECAP AG'!$G$6:$CU$247,20,FALSE) -> 112% | K46: =VLOOKUP($E46,'RECAP AG'!$G$6:$CU$247,21,FALSE) -> 236 | L46: =VLOOKUP($E46,'RECAP AG'!$G$6:$CU$247,22,FALSE) -> 172 | M46: =VLOOKUP($E46,'RECAP AG'!$G$6:$CU$247,23,FALSE) -> 66.93 | N46: =VLOOKUP($E46,'RECAP AG'!$G$6:$CU$247,24,FALSE) -> 59% | O46: =VLOOKUP($E46,'RECAP AG'!$G$6:$CU$247,25,FALSE) -> 103 | P46: =VLOOKUP($E46,'RECAP AG'!$G$6:$CU$247,26,FALSE) -> 91% | Q46: =VLOOKUP($E46,'RECAP AG'!$G$6:$CU$247,27,FALSE) -> 91% | R46: =VLOOKUP($E46,'RECAP AG'!$G$6:$CU$247,28,FALSE) -> 234
A47: 262 | B47: BAS RHIN | C47: 5101 | D47: SELESTAT | E47: 4109 | F47: MARCKOLSHEIM | G47: =VLOOKUP($E47,'RECAP AG'!$G$6:$CU$247,3,FALSE) -> 2.3 | H47: =VLOOKUP($E47,'RECAP AG'!$G$6:$CU$247,18,FALSE) -> 39.1 | I47: =VLOOKUP($E47,'RECAP AG'!$G$6:$CU$247,19,FALSE) -> 16.93 | J47: =VLOOKUP($E47,'RECAP AG'!$G$6:$CU$247,20,FALSE) -> 85% | K47: =VLOOKUP($E47,'RECAP AG'!$G$6:$CU$247,21,FALSE) -> 130 | L47: =VLOOKUP($E47,'RECAP AG'!$G$6:$CU$247,22,FALSE) -> 122 | M47: =VLOOKUP($E47,'RECAP AG'!$G$6:$CU$247,23,FALSE) -> 52.81 | N47: =VLOOKUP($E47,'RECAP AG'!$G$6:$CU$247,24,FALSE) -> 68% | O47: =VLOOKUP($E47,'RECAP AG'!$G$6:$CU$247,25,FALSE) -> 179 | P47: =VLOOKUP($E47,'RECAP AG'!$G$6:$CU$247,26,FALSE) -> 78% | Q47: =VLOOKUP($E47,'RECAP AG'!$G$6:$CU$247,27,FALSE) -> 78% | R47: =VLOOKUP($E47,'RECAP AG'!$G$6:$CU$247,28,FALSE) -> 151
A48: 262 | B48: BAS RHIN | C48: 5101 | D48: SELESTAT | E48: 4120 | F48: WASSELONNE | G48: =VLOOKUP($E48,'RECAP AG'!$G$6:$CU$247,3,FALSE) -> 2.7 | H48: =VLOOKUP($E48,'RECAP AG'!$G$6:$CU$247,18,FALSE) -> -13.6 | I48: =VLOOKUP($E48,'RECAP AG'!$G$6:$CU$247,19,FALSE) -> -4.96 | J48: =VLOOKUP($E48,'RECAP AG'!$G$6:$CU$247,20,FALSE) -> 104% | K48: =VLOOKUP($E48,'RECAP AG'!$G$6:$CU$247,21,FALSE) -> 227 | L48: =VLOOKUP($E48,'RECAP AG'!$G$6:$CU$247,22,FALSE) -> 170 | M48: =VLOOKUP($E48,'RECAP AG'!$G$6:$CU$247,23,FALSE) -> 62.04 | N48: =VLOOKUP($E48,'RECAP AG'!$G$6:$CU$247,24,FALSE) -> 62% | O48: =VLOOKUP($E48,'RECAP AG'!$G$6:$CU$247,25,FALSE) -> 124 | P48: =VLOOKUP($E48,'RECAP AG'!$G$6:$CU$247,26,FALSE) -> 87% | Q48: =VLOOKUP($E48,'RECAP AG'!$G$6:$CU$247,27,FALSE) -> 87% | R48: =VLOOKUP($E48,'RECAP AG'!$G$6:$CU$247,28,FALSE) -> 214
A49: 262 | B49: BAS RHIN | C49: 5101 | D49: SELESTAT | E49: 4116 | F49: MOLSHEIM | G49: =VLOOKUP($E49,'RECAP AG'!$G$6:$CU$247,3,FALSE) -> 3.8 | H49: =VLOOKUP($E49,'RECAP AG'!$G$6:$CU$247,18,FALSE) -> -0.1 | I49: =VLOOKUP($E49,'RECAP AG'!$G$6:$CU$247,19,FALSE) -> -0.03 | J49: =VLOOKUP($E49,'RECAP AG'!$G$6:$CU$247,20,FALSE) -> 100% | K49: =VLOOKUP($E49,'RECAP AG'!$G$6:$CU$247,21,FALSE) -> 216 | L49: =VLOOKUP($E49,'RECAP AG'!$G$6:$CU$247,22,FALSE) -> 161 | M49: =VLOOKUP($E49,'RECAP AG'!$G$6:$CU$247,23,FALSE) -> 42.15 | N49: =VLOOKUP($E49,'RECAP AG'!$G$6:$CU$247,24,FALSE) -> 74% | O49: =VLOOKUP($E49,'RECAP AG'!$G$6:$CU$247,25,FALSE) -> 225 | P49: =VLOOKUP($E49,'RECAP AG'!$G$6:$CU$247,26,FALSE) -> 90% | Q49: =VLOOKUP($E49,'RECAP AG'!$G$6:$CU$247,27,FALSE) -> 90% | R49: =VLOOKUP($E49,'RECAP AG'!$G$6:$CU$247,28,FALSE) -> 230
